Workbook

Sheet kuljetuslaskuri
B5: Lietelannan lannoitusuunnitelma
B6: Valitse lannoitettavat lohkot/lohkoryppäät: | D6: lohkojen kok. p-a, ha | E6: lohkojen keskiet, km
B10: Lohkojen kokonaispinta-ala, ha | D10: =SUM(D7:D9) -> 0
B11: Lohkojen pinta-alalla painotettu keskietäisyys, km | E11: =IF(D10>0,(D7*E7+D8*E8+D9*E9)/SUM(D7:D9),0) -> 0 | H11: 2
B12: Lannan levitysmäärä | D12: 30 | E12: m3/ha
B13: Lannan kok.määrä valitun pinta-alan mukaan | D13: =D10*Levitys -> 0 | E13: m3
B16: Lietelannan kuljetus erikseen
B17: 1. kuljetusvaunun tilavuus | D17: 25 | E17: m3 | H17: TRUE
B18: 2. kuljetusvaunun tilavuus | D18: 20 | E18: m3 | H18: FALSE
B19: Vaunujen tehollinen kapasiteetti teoreettisesta | D19: 95 | E19: %
B20: Kulj.matka yhteen suuntaan (lannoitussuunnitelmasta) | D20: =Kulj_matka -> 0 | E20: km | H20: 1
B21: Ajonopeus kuljetuksessa (laskettu ajomatkan mukaan) | D21: =laskentapohja!X12 -> 15.94 | E21: km/h
B22: Kuljetusvaunun lastauskapasiteetti | D22: 3900 | E22: l/min
B23: Kuljetusvaunun purkukapasiteetti | D23: 4000 | E23: l/min
B24: Kuljetuksen elpymis- & häiriölisä | D24: 0 | E24: % | I24: Lietelannan levityksen työnmenekki (min/ha)
B25: Kuljetuksen apuajat | D25: 2 | E25: min/kuorma
B26: Kuljetuksen työnmenekki | D26: =laskentapohja!AC12 -> 17.71862348 | E26: min/ha
B27: Kuljetuksen työnmenekki | D27: =laskentapohja!AD12 -> 0.5906207827 | E27: min/m3
B28: Kuljetuksen työntuotos | D28: =laskentapohja!AE12 -> 1.693133783 | E28: m3/min
B30: Lietelannan levitys erikseen | H30: hajalevitys
B31: Levityskapasiteetti | D31: 2500 | E31: l/min | H31: letkulevitys
B32: Levitysmenetelmä | H32: sijoitus
B33: Säiliön koko | D33: 14 | E33: m3 | H33: letkulevitys
B34: Levitysvaunun täyttökapasiteetti | D34: 4000 | E34: l/min
B35: Levityksen elpymis- & häiriölisä | D35: 0 | E35: %
B36: Levityksen apuajat ml. siirtymiset täyttöpaikalle | D36: 2 | E36: min/ha
B37: Lannanlevityksen työnmenekki | D37: =laskentapohja!K12 -> 21.5 | E37: min/ha
B38: Lannanlevityksen työnmenekki | D38: =laskentapohja!L12 -> 0.7166666667 | E38: min/m3
B39: Lannanlevityksen työntuotos | D39: =laskentapohja!N12 -> 1.395348837 | E39: m3/min
B41: Lannanlevityksen kokonaistyönmenekki | D41: =(D37+D26)/60*D10 -> 0 | E41: h
B42: Lannanlevityksen kesto | D42: =IF(D39<D28,(D13/D28)/60,(D13/D39)/60) -> 0 | E42: h | I42: Lietelannan levityksen työntuotos (m3/min)
B44: Lietelannan kuljetus&levitys samalla kalustolla
B45: 1. vaunun tilavuus | D45: 20 | E45: m3 | H45: TRUE
B46: 2. vaunun tilavuus | D46: 20 | E46: m3 | H46: FALSE
B47: Vaunujen tehollinen kap. teoreettisesta | D47: 95 | E47: %
B48: Kuljetusmatka yhteen suuntaan (lannoitussuunnitelmasta) | D48: =Kulj_matka -> 0 | E48: km | H48: 1
B49: Ajonopeus kuljetuksessa (laskettu ajomatkan mukaan) | D49: =laskentapohja!X12 -> 15.94 | E49: km/h
B50: Lietteen lastauskapasitetti | D50: 4000 | E50: l/min
B51: Lietteen levityskapasiteetti | D51: 4000 | E51: l/min
B52: Työn elpymis- & häiriölisä | D52: 0 | E52: %
B53: Työhön liittyvät apuajat | D53: 2 | E53: min/kuorma
B54: Lannan kuljetuksen ja levityksen työnmenekki | D54: =laskentapohja!BK12 -> 30.15789474 | E54: min/ha
B55: Lannan kuljetuksen ja levityksen työnmenekki | D55: =laskentapohja!BL12 -> 1.005263158 | E55: min/m3
B56: Lannan kuljetuksen ja levityksen työntuotos | D56: =laskentapohja!BM12 -> 0.9947643979 | E56: m3/min
B58: Lannanlevityksen kokonaistyönmenekki | D58: =D54/60*D10 -> 0 | E58: h | I58: Lietteen kuljetus&levityskustannus vs. lietteen ravinnearvo
B59: Lannanlevityksen kesto | D59: =D13/D56/60 -> 0 | E59: h
B62: Lietteen kuljetuksen ja levityksen kustannuslaskenta alv. 0% (eri kalustot)
B63: Kuljettajan palkka sivukuluineen | D63: 35 | E63: €/h
B64: Kuljetuskaluston tuntihinta | D64: 76 | E64: €/h
B65: Levityskaluston tuntihinta | D65: 76 | E65: €/h
B67: TAI
B68: kuljetustaksa | D68: 0.39 | E68: €/m3/km
B69: lietteen hajalevitys | D69: 2.44 | E69: €/m3
B70: lietteen letkulevitys | D70: 2.37 | E70: €/m3
B71: lietteen sijoitus | D71: 2.73 | E71: €/m3
B73: Kuljetuskustannus (kuljetustaksan mukaan) | D73: =kulj_taksa*Kulj_matka*Levitys -> 0 | E73: €/ha
B74: Levityskustannus (levitystaksan mukaan) | D74: =Levitys*IF(H33="hajalevitys",D69,IF(H33="letkulevitys",D70,D71)) -> 71.1 | E74: €/ha
B75: Kokonaiskustannus (taksojen mukaan) | D75: =D73+D74 -> 71.1 | E75: €/ha
B77: Nitraattiasetuksen taulukkoarvot lietelannan ravinteille
D78: liukoinen typpi | E78: kokonais-fosfori | F78: kalium
B79: Lantalaji | D79: kg/m3 | E79: kg/m3 | F79: kg/m3
B80: Naudan lietelanta | D80: 1.7 | E80: 0.5 | F80: 3.3
B81: Naudan virtsa | D81: 1.5 | E81: 0.1 | F81: 3.7
B82: Sian lietelanta | D82: 2.2 | E82: 0.8 | F82: 2.2
B83: Sian virtsa | D83: 1.3 | E83: 0.2 | F83: 1.3
B85: Ravinteiden arvo, määrä ja hyväksikäyttö lietelannassa (alv. 0 %)
B86: Ravinne | C86: €/kg | D86: kg/m3 | E86: hyväksi-käyttö-% | F86: €/tn
B87: Typpi | C87: 0.9 | D87: 2.2 | E87: 100 | F87: =N_arvo*N_maara*E87% -> 1.98
B88: Fosfori | C88: 1.71 | D88: 0.8 | E88: 100 | F88: =P_arvo*P_maara*E88% -> 1.368
B89: Kalium | C89: 1.2 | D89: 2.2 | E89: 100 | F89: =K_arvo*K_maara*E89% -> 2.64
F90: =SUM(F87:F89) -> 5.988
B91: Lannoitusvaikutuksen arvo | D91: =laskentapohja!CC12 -> 179.64 | E91: €/ha
B92: Lannasta saavutettu hyöty hehtaaria kohti | D92: =D91-D75 -> 108.54 | E92: €/ha
B94: Lannoitussuunnitelman mukaisesta lietemäärästä saavutettava hyöty
D95: =D92*D10 -> 0 | E95: €/v

Sheet laskentapohja
AH1: 0.2
AH2: 0.4
AH3: 0.2 | AI3: 25
AH4: 0.8 | AI4: 25 | BO4: =AH4*AI4 -> 20
AH5: 0.8 | AI5: 67 | BO5: =AH5*AI5 -> 53.6
BO6: =SUM(BO4:BO5) -> 73.6
B9: Lannan levitys | P9: Lietteen lastaus&kuljetus&purku | AG9: Ketjutarkastelu | AJ9: erotuksen laskenta | AN9: apuviivat työntuotoskaavioon | AS9: levitys | AV9: Kuljetus ja levitys samalla kalustolla | BO9: Kustannuslaskenta | BS9: Kuljetuksen kustannuslaskenta urakointitaksan mukaan | BV9: levitys taksan mukaan | BX9: Kuljetus&levitys urakointitaksan mukaan | BZ9: Lannan ravinne-arvot €/ha
B10: levityskapasiteetti | C10: levitysmäärä | D10: vaunukoko | E10: täyttökapasiteetti | F10: Ajoaika | G10: täyttöjä | H10: täyttöaika | I10: apuaika | J10: Elpymislisä | K10: Levityksen työnmenekki | L10: Levityksen työnmenekki | N10: Levityksen työntuotos | P10: 1. vaunu | Q10: 2. vaunu | R10: 3. vaunu | S10: kapasiteetti/vaunu | T10: tehollinen kapasiteetti | V10: kuljetuksen | W10: ajonopeus | X10: ajonopeus km/h laskennallisesti | Y10: kuljetusaika | Z10: lastausaika | AA10: purkuaika | AB10: kuljetuksen apuajat | AC10: kuljetus yhteensä | AD10: kuljetuksen työnmenekki | AE10: Kuljetuksen työntuotos | AG10: ketjun työnmenekki | AH10: Erillinen kuljetus ja levitys | AJ10: keskipiste | AK10: erotus | AN10: matka,x | AO10: tuotos,x | AP10: matka,y | AQ10: tuotos,y | AS10: matka,y | AT10: tuotos,y | AV10: 1. vaunu | AW10: 2. vaunu | AX10: 3. vaunu | AY10: kapasiteetti/vaunu | AZ10: tehollinen kapasiteetti | BB10: työn | BC10: ajonopeus | BD10: ajonopeus km/h laskennallisesti | BE10: kuljetusaika | BF10: lastausaika | BG10: purkuaika | BH10: kuljetuksen apuajat | BI10: kuljetus yhteensä | BJ10: levityksen ajoaika | BK10: levitys&kuljetuksen kok. työnmenekki | BL10: levitys&kuljetuksen kok. työnmenekki | BM10: levitys&kuljetuksen työntuotos | BO10: kuljetustyö | BP10: kone | BQ10: yht. | BS10: urakointihinta | BX10: yht. | BZ10: N | CA10: P | CB10: K | CC10: Yht.
B11: l/min | C11: m3/ha | D11: m3 | E11: l/min | F11: min/ha | G11: kpl/ha | H11: min/ha | I11: min/ha | J11: % | K11: min/ha | L11: min/m3 | N11: m3/min | P11: m3 | Q11: m3 | R11: m3 | S11: kg/vaunu | T11: kg/vaunu | U11: matka (km) | V11: elpyminen + häiriö | W11: km/h | X11: km/h | Y11: min/ha | Z11: min/ha | AA11: min/ha | AB11: min/ha | AC11: min/ha | AD11: min/m3 | AE11: m3/min | AG11: min/ha | AH11: m3/min | AJ11: m3/min | AK11: m3/min | AN11: km | AO11: m3/min | AP11: km | AQ11: m3/min | AS11: km | AT11: m3/min | AV11: m3 | AW11: m3 | AX11: m3 | AY11: kg/vaunu | AZ11: kg/vaunu | BA11: matka (km) | BB11: elpyminen + häiriö | BC11: km/h | BD11: km/h | BE11: min/ha | BF11: min/ha | BG11: min/ha | BH11: min/ha | BI11: min/ha | BJ11: min/ha | BK11: min/ha | BL11: min/m3 | BM11: m3/min | BO11: €/ha | BP11: €/ha | BQ11: €/ha | BS11: €/m3/km | BT11: €/ha | BV11: €/ha | BX11: €/ha | BZ11: €/ha | CA11: €/ha | CB11: €/ha | CC11: €/ha
B12: =kuljetuslaskuri!$D$31 -> 2500 | C12: =kuljetuslaskuri!$D$12 -> 30 | D12: =kuljetuslaskuri!$D$33 -> 14 | E12: =kuljetuslaskuri!$D$34 -> 4000 | F12: =(C12*1000)/B12 -> 12 | G12: =C12/D12 -> 2.142857143 | H12: =(C12*1000)/E12 -> 7.5 | I12: =Levityksen_apuaika -> 2 | J12: =kuljetuslaskuri!$D$35 -> 0 | K12: =(F12+H12+I12)*(1+J12%) -> 21.5 | L12: =K12/C12 -> 0.7166666667 | N12: =1/L12 -> 1.395348837 | P12: =IF(kuljetuslaskuri!$H$17,kuljetuslaskuri!$D$17,0) -> 25 | Q12: =IF(kuljetuslaskuri!$H$18,kuljetuslaskuri!$D$18,0) -> 0 | R12: =IF(kuljetuslaskuri!$G$19,kuljetuslaskuri!#REF!,0) -> 0 | S12: =AVERAGE(IF(P12:R12<>0, P12:R12,"")) -> 25 | T12: =S12*kuljetuslaskuri!$D$19% -> 23.75 | U12: =Kulj_matka -> 0 | V12: =kuljetuslaskuri!$D$24% -> 0 | W12: =Kulj_nop -> 15.94 | X12: =IF(U12>15,50,LN(9.4526)*U12+15.94) -> 15.94 | Y12: =(C12/T12)*((U12*1000*0.12)/W12)*(1+V12) -> 0 | Z12: =Levitys*1000/Last_nop -> 7.692307692 | AA12: =Levitys*1000/Purk_nop -> 7.5 | AB12: =kuljetuslaskuri!$D$25*(laskentapohja!C12/laskentapohja!T12) -> 2.526315789 | AC12: =SUM(Y12:AB12) -> 17.71862348 | AD12: =AC12/C12 -> 0.5906207827 | AE12: =IF(Q12>0,2*1/AD12,1/AD12) -> 1.693133783 | AG12: =MAX(K12,AC12) -> 21.5 | AH12: =MIN(N12,AE12) -> 1.395348837 | AJ12: =N12+((AE12-N12)/2) -> 1.54424131 | AK12: =AH12-N12 -> 0 | AN12: =$U$12 -> 0 | AO12: =AH12 -> 1.395348837 | AP12: =+U12 -> 0 | AQ12: =$AH$12 -> 1.395348837 | AS12: =+U12 -> 0 | AT12: =$N$12 -> 1.395348837 | AV12: =IF(kuljetuslaskuri!$H$45,kuljetuslaskuri!$D$45,0) -> 20 | AW12: =IF(kuljetuslaskuri!$H$46,kuljetuslaskuri!$D$46,0) -> 0 | AX12: =IF(kuljetuslaskuri!$G$19,kuljetuslaskuri!#REF!,0) -> 0 | AY12: =AVERAGE(IF(AV12:AX12<>0, AV12:AX12,"")) -> 20 | AZ12: =AY12*kuljetuslaskuri!$D$47% -> 19 | BA12: =Kulj_matka -> 0 | BB12: =kuljetuslaskuri!$D$52% -> 0 | BC12: =Kulj_nop -> 15.94 | BD12: =IF(BA12>15,50,LN(9.0943)*BA12+16.208) -> 16.208 | BE12: =(C12/AZ12)*((BA12*1000*0.12)/BC12) -> 0 | BF12: =Levitys*1000/Last_nop2 -> 7.5 | BG12: =Levitys*1000/Levitys_kap2 -> 7.5 | BH12: =kuljetuslaskuri!$D$53*(laskentapohja!C12/laskentapohja!AZ12) -> 3.157894737 | BI12: =SUM(BE12:BH12) -> 18.15789474 | BJ12: =(C12*1000)/B12 -> 12 | BK12: =SUM(BI12,BJ12)*(1+BB12) -> 30.15789474 | BL12: =BK12/C12 -> 1.005263158 | BM12: =IF(AW12>0,2*1/BL12,1/BL12) -> 0.9947643979 | BO12: =AC12/60*työ_kust -> 10.3358637 | BP12: =AC12/60*kone_kust -> 22.44358974 | BQ12: =SUM(BO12:BP12) -> 32.77945344 | BS12: =kulj_taksa -> 0.39 | BT12: =BS12*C12*U12 -> 0 | BV12: =kuljetuslaskuri!$D$74 -> 71.1 | BX12: =BT12+BV12 -> 71.1 | BZ12: =N_arvo*N_maara*kuljetuslaskuri!$E$87%*C12 -> 59.4 | CA12: =P_arvo*P_maara*kuljetuslaskuri!$E$88%*C12 -> 41.04 | CB12: =K_arvo*K_maara*kuljetuslaskuri!$E$89%*C12 -> 79.2 | CC12: =SUM(BZ12:CB12) -> 179.64
B13: =kuljetuslaskuri!$D$31 -> 2500 | C13: =kuljetuslaskuri!$D$12 -> 30 | D13: =kuljetuslaskuri!$D$33 -> 14 | E13: =kuljetuslaskuri!$D$34 -> 4000 | F13: =(C13*1000)/B13 -> 12 | G13: 2.142857143 | H13: 7.5 | I13: 2 | J13: =kuljetuslaskuri!$D$35 -> 0 | K13: 21.5 | L13: 0.7166666667 | N13: =1/L13 -> 1.395348837 | P13: =IF(kuljetuslaskuri!$H$17,kuljetuslaskuri!$D$17,0) -> 25 | Q13: =IF(kuljetuslaskuri!$H$18,kuljetuslaskuri!$D$18,0) -> 0 | R13: =IF(kuljetuslaskuri!$G$19,kuljetuslaskuri!#REF!,0) -> 0 | S13: =AVERAGE(IF(P13:R13<>0, P13:R13,"")) -> 25 | T13: =S13*kuljetuslaskuri!$D$19% -> 23.75 | U13: 0 | V13: =kuljetuslaskuri!$D$24% -> 0 | W13: 15.94 | X13: =IF(U13>15,50,LN(9.4526)*U13+15.94) -> 15.94 | Y13: 0 | Z13: 7.692307692 | AA13: 7.5 | AB13: =kuljetuslaskuri!$D$25*(laskentapohja!C13/laskentapohja!T13) -> 2.526315789 | AC13: =SUM(Y13:AB13) -> 17.71862348 | AD13: 0.5906207827 | AE13: =IF(Q13>0,2*1/AD13,1/AD13) -> 1.693133783 | AG13: 21.5 | AH13: 1.395348837 | AJ13: =N13+((AE13-N13)/2) -> 1.54424131 | AK13: =AH13-N13 -> 0 | AN13: =$U$12 -> 0 | AO13: =+AO12-($AO$12/20) -> 1.325581395 | AP13: =+AP12-($AP$12/20) -> 0 | AQ13: =$AH$12 -> 1.395348837 | AS13: =+AS12-($AP$12/20) -> 0 | AT13: =$N$12 -> 1.395348837 | AV13: =IF(kuljetuslaskuri!$H$45,kuljetuslaskuri!$D$45,0) -> 20 | AW13: =IF(kuljetuslaskuri!$H$46,kuljetuslaskuri!$D$46,0) -> 0 | AX13: =IF(kuljetuslaskuri!$G$19,kuljetuslaskuri!#REF!,0) -> 0 | AY13: =AVERAGE(IF(AV13:AX13<>0, AV13:AX13,"")) -> 20 | AZ13: =AY13*kuljetuslaskuri!$D$47% -> 19 | BA13: 0 | BB13: =kuljetuslaskuri!$D$52% -> 0 | BC13: 15.94 | BD13: =IF(BA13>15,50,LN(9.0943)*BA13+16.208) -> 16.208 | BE13: 0 | BF13: 7.5 | BG13: 7.5 | BH13: =kuljetuslaskuri!$D$53*(laskentapohja!C13/laskentapohja!AZ13) -> 3.157894737 | BI13: =SUM(BE13:BH13) -> 18.15789474 | BJ13: 12 | BK13: =SUM(BI13,BJ13)*(1+BB13) -> 30.15789474 | BL13: 1.005263158 | BM13: 0.9947643979 | BO13: 10.3358637 | BP13: 22.44358974 | BQ13: =SUM(BO13:BP13) -> 32.77945344 | BS13: 0.39 | BT13: 0 | BV13: =kuljetuslaskuri!$D$74 -> 71.1 | BX13: =BT13+BV13 -> 71.1 | BZ13: =N_arvo*N_maara*kuljetuslaskuri!$E$87%*C13 -> 59.4 | CA13: =P_arvo*P_maara*kuljetuslaskuri!$E$88%*C13 -> 41.04 | CB13: =K_arvo*K_maara*kuljetuslaskuri!$E$89%*C13 -> 79.2 | CC13: =SUM(BZ13:CB13) -> 179.64
B14: =kuljetuslaskuri!$D$31 -> 2500 | C14: =kuljetuslaskuri!$D$12 -> 30 | D14: =kuljetuslaskuri!$D$33 -> 14 | E14: =kuljetuslaskuri!$D$34 -> 4000 | F14: 12 | G14: 2.142857143 | H14: 7.5 | I14: 2 | J14: =kuljetuslaskuri!$D$35 -> 0 | K14: 21.5 | L14: 0.7166666667 | N14: 1.395348837 | P14: =IF(kuljetuslaskuri!$H$17,kuljetuslaskuri!$D$17,0) -> 25 | Q14: =IF(kuljetuslaskuri!$H$18,kuljetuslaskuri!$D$18,0) -> 0 | R14: =IF(kuljetuslaskuri!$G$19,kuljetuslaskuri!#REF!,0) -> 0 | S14: =AVERAGE(IF(P14:R14<>0, P14:R14,"")) -> 25 | T14: =S14*kuljetuslaskuri!$D$19% -> 23.75 | U14: 0.25 | V14: =kuljetuslaskuri!$D$24% -> 0 | W14: 15.94 | X14: 16.50157246 | Y14: 2.377336063 | Z14: 7.692307692 | AA14: 7.5 | AB14: =kuljetuslaskuri!$D$25*(laskentapohja!C14/laskentapohja!T14) -> 2.526315789 | AC14: 20.09595954 | AD14: 0.6698653182 | AE14: 1.4928374 | AG14: 21.5 | AH14: 1.395348837 | AJ14: 1.444093119 | AK14: 0 | AN14: 0 | AO14: =+AO13-($AO$12/20) -> 1.255813953 | AP14: 0 | AQ14: 1.395348837 | AS14: 0 | AT14: 1.395348837 | AV14: =IF(kuljetuslaskuri!$H$45,kuljetuslaskuri!$D$45,0) -> 20 | AW14: =IF(kuljetuslaskuri!$H$46,kuljetuslaskuri!$D$46,0) -> 0 | AX14: =IF(kuljetuslaskuri!$G$19,kuljetuslaskuri!#REF!,0) -> 0 | AY14: =AVERAGE(IF(AV14:AX14<>0, AV14:AX14,"")) -> 20 | AZ14: =AY14*kuljetuslaskuri!$D$47% -> 19 | BA14: 0.25 | BB14: =kuljetuslaskuri!$D$52% -> 0 | BC14: 15.94 | BD14: 16.75991196 | BE14: 2.971670079 | BF14: 7.5 | BG14: 7.5 | BH14: =kuljetuslaskuri!$D$53*(laskentapohja!C14/laskentapohja!AZ14) -> 3.157894737 | BI14: 21.12956482 | BJ14: 12 | BK14: 33.12956482 | BL14: 1.104318827 | BM14: 0.9055355893 | BO14: 11.72264307 | BP14: 25.45488209 | BQ14: 37.17752516 | BS14: 0.39 | BT14: 2.925 | BV14: =kuljetuslaskuri!$D$74 -> 71.1 | BX14: 74.025 | BZ14: =N_arvo*N_maara*kuljetuslaskuri!$E$87%*C14 -> 59.4 | CA14: =P_arvo*P_maara*kuljetuslaskuri!$E$88%*C14 -> 41.04 | CB14: =K_arvo*K_maara*kuljetuslaskuri!$E$89%*C14 -> 79.2 | CC14: 179.64
B15: =kuljetuslaskuri!$D$31 -> 2500 | C15: =kuljetuslaskuri!$D$12 -> 30 | D15: =kuljetuslaskuri!$D$33 -> 14 | E15: =kuljetuslaskuri!$D$34 -> 4000 | F15: 12 | G15: 2.142857143 | H15: 7.5 | I15: 2 | J15: =kuljetuslaskuri!$D$35 -> 0 | K15: 21.5 | L15: 0.7166666667 | N15: 1.395348837 | P15: =IF(kuljetuslaskuri!$H$17,kuljetuslaskuri!$D$17,0) -> 25 | Q15: =IF(kuljetuslaskuri!$H$18,kuljetuslaskuri!$D$18,0) -> 0 | R15: =IF(kuljetuslaskuri!$G$19,kuljetuslaskuri!#REF!,0) -> 0 | S15: =AVERAGE(IF(P15:R15<>0, P15:R15,"")) -> 25 | T15: =S15*kuljetuslaskuri!$D$19% -> 23.75 | U15: 0.5 | V15: =kuljetuslaskuri!$D$24% -> 0 | W15: 15.94 | X15: 17.06314492 | Y15: 4.754672126 | Z15: 7.692307692 | AA15: 7.5 | AB15: =kuljetuslaskuri!$D$25*(laskentapohja!C15/laskentapohja!T15) -> 2.526315789 | AC15: 22.47329561 | AD15: 0.7491098536 | AE15: 1.334917696 | AG15: 22.47329561 | AH15: 1.334917696 | AJ15: 1.365133267 | AK15: -0.06043114094 | AN15: 0 | AO15: 1.186046512 | AP15: 0 | AQ15: 1.395348837 | AS15: 0 | AT15: 1.395348837 | AV15: =IF(kuljetuslaskuri!$H$45,kuljetuslaskuri!$D$45,0) -> 20 | AW15: =IF(kuljetuslaskuri!$H$46,kuljetuslaskuri!$D$46,0) -> 0 | AX15: =IF(kuljetuslaskuri!$G$19,kuljetuslaskuri!#REF!,0) -> 0 | AY15: =AVERAGE(IF(AV15:AX15<>0, AV15:AX15,"")) -> 20 | AZ15: =AY15*kuljetuslaskuri!$D$47% -> 19 | BA15: 0.5 | BB15: =kuljetuslaskuri!$D$52% -> 0 | BC15: 15.94 | BD15: 17.31182392 | BE15: 5.943340157 | BF15: 7.5 | BG15: 7.5 | BH15: =kuljetuslaskuri!$D$53*(laskentapohja!C15/laskentapohja!AZ15) -> 3.157894737 | BI15: 24.10123489 | BJ15: 12 | BK15: 36.10123489 | BL15: 1.203374496 | BM15: 0.8309965044 | BO15: 13.10942244 | BP15: 28.46617444 | BQ15: 41.57559687 | BS15: 0.39 | BT15: 5.85 | BV15: =kuljetuslaskuri!$D$74 -> 71.1 | BX15: 76.95 | BZ15: =N_arvo*N_maara*kuljetuslaskuri!$E$87%*C15 -> 59.4 | CA15: =P_arvo*P_maara*kuljetuslaskuri!$E$88%*C15 -> 41.04 | CB15: =K_arvo*K_maara*kuljetuslaskuri!$E$89%*C15 -> 79.2 | CC15: 179.64
B16: =kuljetuslaskuri!$D$31 -> 2500 | C16: =kuljetuslaskuri!$D$12 -> 30 | D16: =kuljetuslaskuri!$D$33 -> 14 | E16: =kuljetuslaskuri!$D$34 -> 4000 | F16: 12 | G16: 2.142857143 | H16: 7.5 | I16: 2 | J16: =kuljetuslaskuri!$D$35 -> 0 | K16: 21.5 | L16: 0.7166666667 | N16: 1.395348837 | P16: =IF(kuljetuslaskuri!$H$17,kuljetuslaskuri!$D$17,0) -> 25 | Q16: =IF(kuljetuslaskuri!$H$18,kuljetuslaskuri!$D$18,0) -> 0 | R16: =IF(kuljetuslaskuri!$G$19,kuljetuslaskuri!#REF!,0) -> 0 | S16: =AVERAGE(IF(P16:R16<>0, P16:R16,"")) -> 25 | T16: =S16*kuljetuslaskuri!$D$19% -> 23.75 | U16: 0.75 | V16: =kuljetuslaskuri!$D$24% -> 0 | W16: 15.94 | X16: 17.62471738 | Y16: 7.132008189 | Z16: 7.692307692 | AA16: 7.5 | AB16: =kuljetuslaskuri!$D$25*(laskentapohja!C16/laskentapohja!T16) -> 2.526315789 | AC16: 24.85063167 | AD16: 0.828354389 | AE16: 1.207212774 | AG16: 24.85063167 | AH16: 1.207212774 | AJ16: 1.301280806 | AK16: -0.188136063 | AN16: 0 | AO16: 1.11627907 | AP16: 0 | AQ16: 1.395348837 | AS16: 0 | AT16: 1.395348837 | AV16: =IF(kuljetuslaskuri!$H$45,kuljetuslaskuri!$D$45,0) -> 20 | AW16: =IF(kuljetuslaskuri!$H$46,kuljetuslaskuri!$D$46,0) -> 0 | AX16: =IF(kuljetuslaskuri!$G$19,kuljetuslaskuri!#REF!,0) -> 0 | AY16: =AVERAGE(IF(AV16:AX16<>0, AV16:AX16,"")) -> 20 | AZ16: =AY16*kuljetuslaskuri!$D$47% -> 19 | BA16: 0.75 | BB16: =kuljetuslaskuri!$D$52% -> 0 | BC16: 15.94 | BD16: 17.86373588 | BE16: 8.915010236 | BF16: 7.5 | BG16: 7.5 | BH16: =kuljetuslaskuri!$D$53*(laskentapohja!C16/laskentapohja!AZ16) -> 3.157894737 | BI16: 27.07290497 | BJ16: 12 | BK16: 39.07290497 | BL16: 1.302430166 | BM16: 0.7677954844 | BO16: 14.49620181 | BP16: 31.47746678 | BQ16: 45.97366859 | BS16: 0.39 | BT16: 8.775 | BV16: =kuljetuslaskuri!$D$74 -> 71.1 | BX16: 79.875 | BZ16: =N_arvo*N_maara*kuljetuslaskuri!$E$87%*C16 -> 59.4 | CA16: =P_arvo*P_maara*kuljetuslaskuri!$E$88%*C16 -> 41.04 | CB16: =K_arvo*K_maara*kuljetuslaskuri!$E$89%*C16 -> 79.2 | CC16: 179.64
B17: =kuljetuslaskuri!$D$31 -> 2500 | C17: =kuljetuslaskuri!$D$12 -> 30 | D17: =kuljetuslaskuri!$D$33 -> 14 | E17: =kuljetuslaskuri!$D$34 -> 4000 | F17: 12 | G17: 2.142857143 | H17: 7.5 | I17: 2 | J17: =kuljetuslaskuri!$D$35 -> 0 | K17: 21.5 | L17: 0.7166666667 | N17: 1.395348837 | P17: =IF(kuljetuslaskuri!$H$17,kuljetuslaskuri!$D$17,0) -> 25 | Q17: =IF(kuljetuslaskuri!$H$18,kuljetuslaskuri!$D$18,0) -> 0 | R17: =IF(kuljetuslaskuri!$G$19,kuljetuslaskuri!#REF!,0) -> 0 | S17: =AVERAGE(IF(P17:R17<>0, P17:R17,"")) -> 25 | T17: =S17*kuljetuslaskuri!$D$19% -> 23.75 | U17: 1 | V17: =kuljetuslaskuri!$D$24% -> 0 | W17: 15.94 | X17: 18.18628984 | Y17: 9.509344251 | Z17: 7.692307692 | AA17: 7.5 | AB17: =kuljetuslaskuri!$D$25*(laskentapohja!C17/laskentapohja!T17) -> 2.526315789 | AC17: 27.22796773 | AD17: 0.9075989244 | AE17: 1.101808269 | AG17: 27.22796773 | AH17: 1.101808269 | AJ17: 1.248578553 | AK17: -0.2935405681 | AN17: 0 | AO17: 1.046511628 | AP17: 0 | AQ17: 1.395348837 | AS17: 0 | AT17: 1.395348837 | AV17: =IF(kuljetuslaskuri!$H$45,kuljetuslaskuri!$D$45,0) -> 20 | AW17: =IF(kuljetuslaskuri!$H$46,kuljetuslaskuri!$D$46,0) -> 0 | AX17: =IF(kuljetuslaskuri!$G$19,kuljetuslaskuri!#REF!,0) -> 0 | AY17: =AVERAGE(IF(AV17:AX17<>0, AV17:AX17,"")) -> 20 | AZ17: =AY17*kuljetuslaskuri!$D$47% -> 19 | BA17: 1 | BB17: =kuljetuslaskuri!$D$52% -> 0 | BC17: 15.94 | BD17: 18.41564784 | BE17: 11.88668031 | BF17: 7.5 | BG17: 7.5 | BH17: =kuljetuslaskuri!$D$53*(laskentapohja!C17/laskentapohja!AZ17) -> 3.157894737 | BI17: 30.04457505 | BJ17: 12 | BK17: 42.04457505 | BL17: 1.401485835 | BM17: 0.7135284389 | BO17: 15.88298118 | BP17: 34.48875913 | BQ17: 50.37174031 | BS17: 0.39 | BT17: 11.7 | BV17: =kuljetuslaskuri!$D$74 -> 71.1 | BX17: 82.8 | BZ17: =N_arvo*N_maara*kuljetuslaskuri!$E$87%*C17 -> 59.4 | CA17: =P_arvo*P_maara*kuljetuslaskuri!$E$88%*C17 -> 41.04 | CB17: =K_arvo*K_maara*kuljetuslaskuri!$E$89%*C17 -> 79.2 | CC17: 179.64
B18: =kuljetuslaskuri!$D$31 -> 2500 | C18: =kuljetuslaskuri!$D$12 -> 30 | D18: =kuljetuslaskuri!$D$33 -> 14 | E18: =kuljetuslaskuri!$D$34 -> 4000 | F18: 12 | G18: 2.142857143 | H18: 7.5 | I18: 2 | J18: =kuljetuslaskuri!$D$35 -> 0 | K18: 21.5 | L18: 0.7166666667 | N18: 1.395348837 | P18: =IF(kuljetuslaskuri!$H$17,kuljetuslaskuri!$D$17,0) -> 25 | Q18: =IF(kuljetuslaskuri!$H$18,kuljetuslaskuri!$D$18,0) -> 0 | R18: =IF(kuljetuslaskuri!$G$19,kuljetuslaskuri!#REF!,0) -> 0 | S18: =AVERAGE(IF(P18:R18<>0, P18:R18,"")) -> 25 | T18: =S18*kuljetuslaskuri!$D$19% -> 23.75 | U18: 1.25 | V18: =kuljetuslaskuri!$D$24% -> 0 | W18: 15.94 | X18: 18.74786229 | Y18: 11.88668031 | Z18: 7.692307692 | AA18: 7.5 | AB18: =kuljetuslaskuri!$D$25*(laskentapohja!C18/laskentapohja!T18) -> 2.526315789 | AC18: 29.6053038 | AD18: 0.9868434599 | AE18: 1.013331942 | AG18: 29.6053038 | AH18: 1.013331942 | AJ18: 1.20434039 | AK18: -0.3820168948 | AN18: 0 | AO18: 0.976744186 | AP18: 0 | AQ18: 1.395348837 | AS18: 0 | AT18: 1.395348837 | AV18: =IF(kuljetuslaskuri!$H$45,kuljetuslaskuri!$D$45,0) -> 20 | AW18: =IF(kuljetuslaskuri!$H$46,kuljetuslaskuri!$D$46,0) -> 0 | AX18: =IF(kuljetuslaskuri!$G$19,kuljetuslaskuri!#REF!,0) -> 0 | AY18: =AVERAGE(IF(AV18:AX18<>0, AV18:AX18,"")) -> 20 | AZ18: =AY18*kuljetuslaskuri!$D$47% -> 19 | BA18: 1.25 | BB18: =kuljetuslaskuri!$D$52% -> 0 | BC18: 15.94 | BD18: 18.9675598 | BE18: 14.85835039 | BF18: 7.5 | BG18: 7.5 | BH18: =kuljetuslaskuri!$D$53*(laskentapohja!C18/laskentapohja!AZ18) -> 3.157894737 | BI18: 33.01624513 | BJ18: 12 | BK18: 45.01624513 | BL18: 1.500541504 | BM18: 0.6664260849 | BO18: 17.26976055 | BP18: 37.50005148 | BQ18: 54.76981202 | BS18: 0.39 | BT18: 14.625 | BV18: =kuljetuslaskuri!$D$74 -> 71.1 | BX18: 85.725 | BZ18: =N_arvo*N_maara*kuljetuslaskuri!$E$87%*C18 -> 59.4 | CA18: =P_arvo*P_maara*kuljetuslaskuri!$E$88%*C18 -> 41.04 | CB18: =K_arvo*K_maara*kuljetuslaskuri!$E$89%*C18 -> 79.2 | CC18: 179.64
B19: =kuljetuslaskuri!$D$31 -> 2500 | C19: =kuljetuslaskuri!$D$12 -> 30 | D19: =kuljetuslaskuri!$D$33 -> 14 | E19: =kuljetuslaskuri!$D$34 -> 4000 | F19: 12 | G19: 2.142857143 | H19: 7.5 | I19: 2 | J19: =kuljetuslaskuri!$D$35 -> 0 | K19: 21.5 | L19: 0.7166666667 | N19: 1.395348837 | P19: =IF(kuljetuslaskuri!$H$17,kuljetuslaskuri!$D$17,0) -> 25 | Q19: =IF(kuljetuslaskuri!$H$18,kuljetuslaskuri!$D$18,0) -> 0 | R19: =IF(kuljetuslaskuri!$G$19,kuljetuslaskuri!#REF!,0) -> 0 | S19: =AVERAGE(IF(P19:R19<>0, P19:R19,"")) -> 25 | T19: =S19*kuljetuslaskuri!$D$19% -> 23.75 | U19: 1.5 | V19: =kuljetuslaskuri!$D$24% -> 0 | W19: 15.94 | X19: 19.30943475 | Y19: 14.26401638 | Z19: 7.692307692 | AA19: 7.5 | AB19: =kuljetuslaskuri!$D$25*(laskentapohja!C19/laskentapohja!T19) -> 2.526315789 | AC19: 31.98263986 | AD19: 1.066087995 | AE19: 0.9380088739 | AG19: 31.98263986 | AH19: 0.9380088739 | AJ19: 1.166678856 | AK19: -0.4573399633 | AN19: 0 | AO19: 0.9069767442 | AP19: 0 | AQ19: 1.395348837 | AS19: 0 | AT19: 1.395348837 | AV19: =IF(kuljetuslaskuri!$H$45,kuljetuslaskuri!$D$45,0) -> 20 | AW19: =IF(kuljetuslaskuri!$H$46,kuljetuslaskuri!$D$46,0) -> 0 | AX19: =IF(kuljetuslaskuri!$G$19,kuljetuslaskuri!#REF!,0) -> 0 | AY19: =AVERAGE(IF(AV19:AX19<>0, AV19:AX19,"")) -> 20 | AZ19: =AY19*kuljetuslaskuri!$D$47% -> 19 | BA19: 1.5 | BB19: =kuljetuslaskuri!$D$52% -> 0 | BC19: 15.94 | BD19: 19.51947177 | BE19: 17.83002047 | BF19: 7.5 | BG19: 7.5 | BH19: =kuljetuslaskuri!$D$53*(laskentapohja!C19/laskentapohja!AZ19) -> 3.157894737 | BI19: 35.98791521 | BJ19: 12 | BK19: 47.98791521 | BL19: 1.599597174 | BM19: 0.6251573937 | BO19: 18.65653992 | BP19: 40.51134382 | BQ19: 59.16788374 | BS19: 0.39 | BT19: 17.55 | BV19: =kuljetuslaskuri!$D$74 -> 71.1 | BX19: 88.65 | BZ19: =N_arvo*N_maara*kuljetuslaskuri!$E$87%*C19 -> 59.4 | CA19: =P_arvo*P_maara*kuljetuslaskuri!$E$88%*C19 -> 41.04 | CB19: =K_arvo*K_maara*kuljetuslaskuri!$E$89%*C19 -> 79.2 | CC19: 179.64
B20: =kuljetuslaskuri!$D$31 -> 2500 | C20: =kuljetuslaskuri!$D$12 -> 30 | D20: =kuljetuslaskuri!$D$33 -> 14 | E20: =kuljetuslaskuri!$D$34 -> 4000 | F20: 12 | G20: 2.142857143 | H20: 7.5 | I20: 2 | J20: =kuljetuslaskuri!$D$35 -> 0 | K20: 21.5 | L20: 0.7166666667 | N20: 1.395348837 | P20: =IF(kuljetuslaskuri!$H$17,kuljetuslaskuri!$D$17,0) -> 25 | Q20: =IF(kuljetuslaskuri!$H$18,kuljetuslaskuri!$D$18,0) -> 0 | R20: =IF(kuljetuslaskuri!$G$19,kuljetuslaskuri!#REF!,0) -> 0 | S20: =AVERAGE(IF(P20:R20<>0, P20:R20,"")) -> 25 | T20: =S20*kuljetuslaskuri!$D$19% -> 23.75 | U20: 1.75 | V20: =kuljetuslaskuri!$D$24% -> 0 | W20: 15.94 | X20: 19.87100721 | Y20: 16.64135244 | Z20: 7.692307692 | AA20: 7.5 | AB20: =kuljetuslaskuri!$D$25*(laskentapohja!C20/laskentapohja!T20) -> 2.526315789 | AC20: 34.35997592 | AD20: 1.145332531 | AE20: 0.8731088773 | AG20: 34.35997592 | AH20: 0.8731088773 | AJ20: 1.134228857 | AK20: -0.5222399599 | AN20: 0 | AO20: 0.8372093023 | AP20: 0 | AQ20: 1.395348837 | AS20: 0 | AT20: 1.395348837 | AV20: =IF(kuljetuslaskuri!$H$45,kuljetuslaskuri!$D$45,0) -> 20 | AW20: =IF(kuljetuslaskuri!$H$46,kuljetuslaskuri!$D$46,0) -> 0 | AX20: =IF(kuljetuslaskuri!$G$19,kuljetuslaskuri!#REF!,0) -> 0 | AY20: =AVERAGE(IF(AV20:AX20<>0, AV20:AX20,"")) -> 20 | AZ20: =AY20*kuljetuslaskuri!$D$47% -> 19 | BA20: 1.75 | BB20: =kuljetuslaskuri!$D$52% -> 0 | BC20: 15.94 | BD20: 20.07138373 | BE20: 20.80169055 | BF20: 7.5 | BG20: 7.5 | BH20: =kuljetuslaskuri!$D$53*(laskentapohja!C20/laskentapohja!AZ20) -> 3.157894737 | BI20: 38.95958529 | BJ20: 12 | BK20: 50.95958529 | BL20: 1.698652843 | BM20: 0.5887018081 | BO20: 20.04331929 | BP20: 43.52263617 | BQ20: 63.56595546 | BS20: 0.39 | BT20: 20.475 | BV20: =kuljetuslaskuri!$D$74 -> 71.1 | BX20: 91.575 | BZ20: =N_arvo*N_maara*kuljetuslaskuri!$E$87%*C20 -> 59.4 | CA20: =P_arvo*P_maara*kuljetuslaskuri!$E$88%*C20 -> 41.04 | CB20: =K_arvo*K_maara*kuljetuslaskuri!$E$89%*C20 -> 79.2 | CC20: 179.64
B21: =kuljetuslaskuri!$D$31 -> 2500 | C21: =kuljetuslaskuri!$D$12 -> 30 | D21: =kuljetuslaskuri!$D$33 -> 14 | E21: =kuljetuslaskuri!$D$34 -> 4000 | F21: 12 | G21: 2.142857143 | H21: 7.5 | I21: 2 | J21: =kuljetuslaskuri!$D$35 -> 0 | K21: 21.5 | L21: 0.7166666667 | N21: 1.395348837 | P21: =IF(kuljetuslaskuri!$H$17,kuljetuslaskuri!$D$17,0) -> 25 | Q21: =IF(kuljetuslaskuri!$H$18,kuljetuslaskuri!$D$18,0) -> 0 | R21: =IF(kuljetuslaskuri!$G$19,kuljetuslaskuri!#REF!,0) -> 0 | S21: =AVERAGE(IF(P21:R21<>0, P21:R21,"")) -> 25 | T21: =S21*kuljetuslaskuri!$D$19% -> 23.75 | U21: 2 | V21: =kuljetuslaskuri!$D$24% -> 0 | W21: 15.94 | X21: 20.43257967 | Y21: 19.0186885 | Z21: 7.692307692 | AA21: 7.5 | AB21: =kuljetuslaskuri!$D$25*(laskentapohja!C21/laskentapohja!T21) -> 2.526315789 | AC21: 36.73731198 | AD21: 1.224577066 | AE21: 0.8166084664 | AG21: 36.73731198 | AH21: 0.8166084664 | AJ21: 1.105978652 | AK21: -0.5787403708 | AN21: 0 | AO21: 0.7674418605 | AP21: 0 | AQ21: 1.395348837 | AS21: 0 | AT21: 1.395348837 | AV21: =IF(kuljetuslaskuri!$H$45,kuljetuslaskuri!$D$45,0) -> 20 | AW21: =IF(kuljetuslaskuri!$H$46,kuljetuslaskuri!$D$46,0) -> 0 | AX21: =IF(kuljetuslaskuri!$G$19,kuljetuslaskuri!#REF!,0) -> 0 | AY21: =AVERAGE(IF(AV21:AX21<>0, AV21:AX21,"")) -> 20 | AZ21: =AY21*kuljetuslaskuri!$D$47% -> 19 | BA21: 2 | BB21: =kuljetuslaskuri!$D$52% -> 0 | BC21: 15.94 | BD21: 20.62329569 | BE21: 23.77336063 | BF21: 7.5 | BG21: 7.5 | BH21: =kuljetuslaskuri!$D$53*(laskentapohja!C21/laskentapohja!AZ21) -> 3.157894737 | BI21: 41.93125537 | BJ21: 12 | BK21: 53.93125537 | BL21: 1.797708512 | BM21: 0.5562637064 | BO21: 21.43009866 | BP21: 46.53392851 | BQ21: 67.96402717 | BS21: 0.39 | BT21: 23.4 | BV21: =kuljetuslaskuri!$D$74 -> 71.1 | BX21: 94.5 | BZ21: =N_arvo*N_maara*kuljetuslaskuri!$E$87%*C21 -> 59.4 | CA21: =P_arvo*P_maara*kuljetuslaskuri!$E$88%*C21 -> 41.04 | CB21: =K_arvo*K_maara*kuljetuslaskuri!$E$89%*C21 -> 79.2 | CC21: 179.64
B22: =kuljetuslaskuri!$D$31 -> 2500 | C22: =kuljetuslaskuri!$D$12 -> 30 | D22: =kuljetuslaskuri!$D$33 -> 14 | E22: =kuljetuslaskuri!$D$34 -> 4000 | F22: 12 | G22: 2.142857143 | H22: 7.5 | I22: 2 | J22: =kuljetuslaskuri!$D$35 -> 0 | K22: 21.5 | L22: 0.7166666667 | N22: 1.395348837 | P22: =IF(kuljetuslaskuri!$H$17,kuljetuslaskuri!$D$17,0) -> 25 | Q22: =IF(kuljetuslaskuri!$H$18,kuljetuslaskuri!$D$18,0) -> 0 | R22: =IF(kuljetuslaskuri!$G$19,kuljetuslaskuri!#REF!,0) -> 0 | S22: =AVERAGE(IF(P22:R22<>0, P22:R22,"")) -> 25 | T22: =S22*kuljetuslaskuri!$D$19% -> 23.75 | U22: 2.25 | V22: =kuljetuslaskuri!$D$24% -> 0 | W22: 15.94 | X22: 20.99415213 | Y22: 21.39602457 | Z22: 7.692307692 | AA22: 7.5 | AB22: =kuljetuslaskuri!$D$25*(laskentapohja!C22/laskentapohja!T22) -> 2.526315789 | AC22: 39.11464805 | AD22: 1.303821602 | AE22: 0.7669760946 | AG22: 39.11464805 | AH22: 0.7669760946 | AJ22: 1.081162466 | AK22: -0.6283727426 | AN22: 0 | AO22: 0.6976744186 | AP22: 0 | AQ22: 1.395348837 | AS22: 0 | AT22: 1.395348837 | AV22: =IF(kuljetuslaskuri!$H$45,kuljetuslaskuri!$D$45,0) -> 20 | AW22: =IF(kuljetuslaskuri!$H$46,kuljetuslaskuri!$D$46,0) -> 0 | AX22: =IF(kuljetuslaskuri!$G$19,kuljetuslaskuri!#REF!,0) -> 0 | AY22: =AVERAGE(IF(AV22:AX22<>0, AV22:AX22,"")) -> 20 | AZ22: =AY22*kuljetuslaskuri!$D$47% -> 19 | BA22: 2.25 | BB22: =kuljetuslaskuri!$D$52% -> 0 | BC22: 15.94 | BD22: 21.17520765 | BE22: 26.74503071 | BF22: 7.5 | BG22: 7.5 | BH22: =kuljetuslaskuri!$D$53*(laskentapohja!C22/laskentapohja!AZ22) -> 3.157894737 | BI22: 44.90292544 | BJ22: 12 | BK22: 56.90292544 | BL22: 1.896764181 | BM22: 0.5272136672 | BO22: 22.81687803 | BP22: 49.54522086 | BQ22: 72.36209889 | BS22: 0.39 | BT22: 26.325 | BV22: =kuljetuslaskuri!$D$74 -> 71.1 | BX22: 97.425 | BZ22: =N_arvo*N_maara*kuljetuslaskuri!$E$87%*C22 -> 59.4 | CA22: =P_arvo*P_maara*kuljetuslaskuri!$E$88%*C22 -> 41.04 | CB22: =K_arvo*K_maara*kuljetuslaskuri!$E$89%*C22 -> 79.2 | CC22: 179.64
B23: =kuljetuslaskuri!$D$31 -> 2500 | C23: =kuljetuslaskuri!$D$12 -> 30 | D23: =kuljetuslaskuri!$D$33 -> 14 | E23: =kuljetuslaskuri!$D$34 -> 4000 | F23: 12 | G23: 2.142857143 | H23: 7.5 | I23: 2 | J23: =kuljetuslaskuri!$D$35 -> 0 | K23: 21.5 | L23: 0.7166666667 | N23: 1.395348837 | P23: =IF(kuljetuslaskuri!$H$17,kuljetuslaskuri!$D$17,0) -> 25 | Q23: =IF(kuljetuslaskuri!$H$18,kuljetuslaskuri!$D$18,0) -> 0 | R23: =IF(kuljetuslaskuri!$G$19,kuljetuslaskuri!#REF!,0) -> 0 | S23: =AVERAGE(IF(P23:R23<>0, P23:R23,"")) -> 25 | T23: =S23*kuljetuslaskuri!$D$19% -> 23.75 | U23: 2.5 | V23: =kuljetuslaskuri!$D$24% -> 0 | W23: 15.94 | X23: 21.55572459 | Y23: 23.77336063 | Z23: 7.692307692 | AA23: 7.5 | AB23: =kuljetuslaskuri!$D$25*(laskentapohja!C23/laskentapohja!T23) -> 2.526315789 | AC23: 41.49198411 | AD23: 1.383066137 | AE23: 0.7230312226 | AG23: 41.49198411 | AH23: 0.7230312226 | AJ23: 1.05919003 | AK23: -0.6723176146 | AN23: 0 | AO23: 0.6279069767 | AP23: 0 | AQ23: 1.395348837 | AS23: 0 | AT23: 1.395348837 | AV23: =IF(kuljetuslaskuri!$H$45,kuljetuslaskuri!$D$45,0) -> 20 | AW23: =IF(kuljetuslaskuri!$H$46,kuljetuslaskuri!$D$46,0) -> 0 | AX23: =IF(kuljetuslaskuri!$G$19,kuljetuslaskuri!#REF!,0) -> 0 | AY23: =AVERAGE(IF(AV23:AX23<>0, AV23:AX23,"")) -> 20 | AZ23: =AY23*kuljetuslaskuri!$D$47% -> 19 | BA23: 2.5 | BB23: =kuljetuslaskuri!$D$52% -> 0 | BC23: 15.94 | BD23: 21.72711961 | BE23: 29.71670079 | BF23: 7.5 | BG23: 7.5 | BH23: =kuljetuslaskuri!$D$53*(laskentapohja!C23/laskentapohja!AZ23) -> 3.157894737 | BI23: 47.87459552 | BJ23: 12 | BK23: 59.87459552 | BL23: 1.995819851 | BM23: 0.5010472261 | BO23: 24.2036574 | BP23: 52.55651321 | BQ23: 76.7601706 | BS23: 0.39 | BT23: 29.25 | BV23: =kuljetuslaskuri!$D$74 -> 71.1 | BX23: 100.35 | BZ23: =N_arvo*N_maara*kuljetuslaskuri!$E$87%*C23 -> 59.4 | CA23: =P_arvo*P_maara*kuljetuslaskuri!$E$88%*C23 -> 41.04 | CB23: =K_arvo*K_maara*kuljetuslaskuri!$E$89%*C23 -> 79.2 | CC23: 179.64
B24: =kuljetuslaskuri!$D$31 -> 2500 | C24: =kuljetuslaskuri!$D$12 -> 30 | D24: =kuljetuslaskuri!$D$33 -> 14 | E24: =kuljetuslaskuri!$D$34 -> 4000 | F24: 12 | G24: 2.142857143 | H24: 7.5 | I24: 2 | J24: =kuljetuslaskuri!$D$35 -> 0 | K24: 21.5 | L24: 0.7166666667 | N24: 1.395348837 | P24: =IF(kuljetuslaskuri!$H$17,kuljetuslaskuri!$D$17,0) -> 25 | Q24: =IF(kuljetuslaskuri!$H$18,kuljetuslaskuri!$D$18,0) -> 0 | R24: =IF(kuljetuslaskuri!$G$19,kuljetuslaskuri!#REF!,0) -> 0 | S24: =AVERAGE(IF(P24:R24<>0, P24:R24,"")) -> 25 | T24: =S24*kuljetuslaskuri!$D$19% -> 23.75 | U24: 2.75 | V24: =kuljetuslaskuri!$D$24% -> 0 | W24: 15.94 | X24: 22.11729705 | Y24: 26.15069669 | Z24: 7.692307692 | AA24: 7.5 | AB24: =kuljetuslaskuri!$D$25*(laskentapohja!C24/laskentapohja!T24) -> 2.526315789 | AC24: 43.86932017 | AD24: 1.462310672 | AE24: 0.6838492113 | AG24: 43.86932017 | AH24: 0.6838492113 | AJ24: 1.039599024 | AK24: -0.7114996259 | AN24: 0 | AO24: 0.5581395349 | AP24: 0 | AQ24: 1.395348837 | AS24: 0 | AT24: 1.395348837 | AV24: =IF(kuljetuslaskuri!$H$45,kuljetuslaskuri!$D$45,0) -> 20 | AW24: =IF(kuljetuslaskuri!$H$46,kuljetuslaskuri!$D$46,0) -> 0 | AX24: =IF(kuljetuslaskuri!$G$19,kuljetuslaskuri!#REF!,0) -> 0 | AY24: =AVERAGE(IF(AV24:AX24<>0, AV24:AX24,"")) -> 20 | AZ24: =AY24*kuljetuslaskuri!$D$47% -> 19 | BA24: 2.75 | BB24: =kuljetuslaskuri!$D$52% -> 0 | BC24: 15.94 | BD24: 22.27903157 | BE24: 32.68837086 | BF24: 7.5 | BG24: 7.5 | BH24: =kuljetuslaskuri!$D$53*(laskentapohja!C24/laskentapohja!AZ24) -> 3.157894737 | BI24: 50.8462656 | BJ24: 12 | BK24: 62.8462656 | BL24: 2.09487552 | BM24: 0.4773553323 | BO24: 25.59043677 | BP24: 55.56780555 | BQ24: 81.15824232 | BS24: 0.39 | BT24: 32.175 | BV24: =kuljetuslaskuri!$D$74 -> 71.1 | BX24: 103.275 | BZ24: =N_arvo*N_maara*kuljetuslaskuri!$E$87%*C24 -> 59.4 | CA24: =P_arvo*P_maara*kuljetuslaskuri!$E$88%*C24 -> 41.04 | CB24: =K_arvo*K_maara*kuljetuslaskuri!$E$89%*C24 -> 79.2 | CC24: 179.64
B25: =kuljetuslaskuri!$D$31 -> 2500 | C25: =kuljetuslaskuri!$D$12 -> 30 | D25: =kuljetuslaskuri!$D$33 -> 14 | E25: =kuljetuslaskuri!$D$34 -> 4000 | F25: 12 | G25: 2.142857143 | H25: 7.5 | I25: 2 | J25: =kuljetuslaskuri!$D$35 -> 0 | K25: 21.5 | L25: 0.7166666667 | N25: 1.395348837 | P25: =IF(kuljetuslaskuri!$H$17,kuljetuslaskuri!$D$17,0) -> 25 | Q25: =IF(kuljetuslaskuri!$H$18,kuljetuslaskuri!$D$18,0) -> 0 | R25: =IF(kuljetuslaskuri!$G$19,kuljetuslaskuri!#REF!,0) -> 0 | S25: =AVERAGE(IF(P25:R25<>0, P25:R25,"")) -> 25 | T25: =S25*kuljetuslaskuri!$D$19% -> 23.75 | U25: 3 | V25: =kuljetuslaskuri!$D$24% -> 0 | W25: 15.94 | X25: 22.67886951 | Y25: 28.52803275 | Z25: 7.692307692 | AA25: 7.5 | AB25: =kuljetuslaskuri!$D$25*(laskentapohja!C25/laskentapohja!T25) -> 2.526315789 | AC25: 46.24665624 | AD25: 1.541555208 | AE25: 0.6486955478 | AG25: 46.24665624 | AH25: 0.6486955478 | AJ25: 1.022022192 | AK25: -0.7466532894 | AN25: 0 | AO25: 0.488372093 | AP25: 0 | AQ25: 1.395348837 | AS25: 0 | AT25: 1.395348837 | AV25: =IF(kuljetuslaskuri!$H$45,kuljetuslaskuri!$D$45,0) -> 20 | AW25: =IF(kuljetuslaskuri!$H$46,kuljetuslaskuri!$D$46,0) -> 0 | AX25: =IF(kuljetuslaskuri!$G$19,kuljetuslaskuri!#REF!,0) -> 0 | AY25: =AVERAGE(IF(AV25:AX25<>0, AV25:AX25,"")) -> 20 | AZ25: =AY25*kuljetuslaskuri!$D$47% -> 19 | BA25: 3 | BB25: =kuljetuslaskuri!$D$52% -> 0 | BC25: 15.94 | BD25: 22.83094353 | BE25: 35.66004094 | BF25: 7.5 | BG25: 7.5 | BH25: =kuljetuslaskuri!$D$53*(laskentapohja!C25/laskentapohja!AZ25) -> 3.157894737 | BI25: 53.81793568 | BJ25: 12 | BK25: 65.81793568 | BL25: 2.193931189 | BM25: 0.4558028095 | BO25: 26.97721614 | BP25: 58.5790979 | BQ25: 85.55631404 | BS25: 0.39 | BT25: 35.1 | BV25: =kuljetuslaskuri!$D$74 -> 71.1 | BX25: 106.2 | BZ25: =N_arvo*N_maara*kuljetuslaskuri!$E$87%*C25 -> 59.4 | CA25: =P_arvo*P_maara*kuljetuslaskuri!$E$88%*C25 -> 41.04 | CB25: =K_arvo*K_maara*kuljetuslaskuri!$E$89%*C25 -> 79.2 | CC25: 179.64
B26: =kuljetuslaskuri!$D$31 -> 2500 | C26: =kuljetuslaskuri!$D$12 -> 30 | D26: =kuljetuslaskuri!$D$33 -> 14 | E26: =kuljetuslaskuri!$D$34 -> 4000 | F26: 12 | G26: 2.142857143 | H26: 7.5 | I26: 2 | J26: =kuljetuslaskuri!$D$35 -> 0 | K26: 21.5 | L26: 0.7166666667 | N26: 1.395348837 | P26: =IF(kuljetuslaskuri!$H$17,kuljetuslaskuri!$D$17,0) -> 25 | Q26: =IF(kuljetuslaskuri!$H$18,kuljetuslaskuri!$D$18,0) -> 0 | R26: =IF(kuljetuslaskuri!$G$19,kuljetuslaskuri!#REF!,0) -> 0 | S26: =AVERAGE(IF(P26:R26<>0, P26:R26,"")) -> 25 | T26: =S26*kuljetuslaskuri!$D$19% -> 23.75 | U26: 3.25 | V26: =kuljetuslaskuri!$D$24% -> 0 | W26: 15.94 | X26: 23.24044197 | Y26: 30.90536882 | Z26: 7.692307692 | AA26: 7.5 | AB26: =kuljetuslaskuri!$D$25*(laskentapohja!C26/laskentapohja!T26) -> 2.526315789 | AC26: 48.6239923 | AD26: 1.620799743 | AE26: 0.6169793672 | AG26: 48.6239923 | AH26: 0.6169793672 | AJ26: 1.006164102 | AK26: -0.77836947 | AN26: 0 | AO26: 0.4186046512 | AP26: 0 | AQ26: 1.395348837 | AS26: 0 | AT26: 1.395348837 | AV26: =IF(kuljetuslaskuri!$H$45,kuljetuslaskuri!$D$45,0) -> 20 | AW26: =IF(kuljetuslaskuri!$H$46,kuljetuslaskuri!$D$46,0) -> 0 | AX26: =IF(kuljetuslaskuri!$G$19,kuljetuslaskuri!#REF!,0) -> 0 | AY26: =AVERAGE(IF(AV26:AX26<>0, AV26:AX26,"")) -> 20 | AZ26: =AY26*kuljetuslaskuri!$D$47% -> 19 | BA26: 3.25 | BB26: =kuljetuslaskuri!$D$52% -> 0 | BC26: 15.94 | BD26: 23.38285549 | BE26: 38.63171102 | BF26: 7.5 | BG26: 7.5 | BH26: =kuljetuslaskuri!$D$53*(laskentapohja!C26/laskentapohja!AZ26) -> 3.157894737 | BI26: 56.78960576 | BJ26: 12 | BK26: 68.78960576 | BL26: 2.292986859 | BM26: 0.4361123991 | BO26: 28.36399551 | BP26: 61.59039025 | BQ26: 89.95438575 | BS26: 0.39 | BT26: 38.025 | BV26: =kuljetuslaskuri!$D$74 -> 71.1 | BX26: 109.125 | BZ26: =N_arvo*N_maara*kuljetuslaskuri!$E$87%*C26 -> 59.4 | CA26: =P_arvo*P_maara*kuljetuslaskuri!$E$88%*C26 -> 41.04 | CB26: =K_arvo*K_maara*kuljetuslaskuri!$E$89%*C26 -> 79.2 | CC26: 179.64
B27: =kuljetuslaskuri!$D$31 -> 2500 | C27: =kuljetuslaskuri!$D$12 -> 30 | D27: =kuljetuslaskuri!$D$33 -> 14 | E27: =kuljetuslaskuri!$D$34 -> 4000 | F27: 12 | G27: 2.142857143 | H27: 7.5 | I27: 2 | J27: =kuljetuslaskuri!$D$35 -> 0 | K27: 21.5 | L27: 0.7166666667 | N27: 1.395348837 | P27: =IF(kuljetuslaskuri!$H$17,kuljetuslaskuri!$D$17,0) -> 25 | Q27: =IF(kuljetuslaskuri!$H$18,kuljetuslaskuri!$D$18,0) -> 0 | R27: =IF(kuljetuslaskuri!$G$19,kuljetuslaskuri!#REF!,0) -> 0 | S27: =AVERAGE(IF(P27:R27<>0, P27:R27,"")) -> 25 | T27: =S27*kuljetuslaskuri!$D$19% -> 23.75 | U27: 3.5 | V27: =kuljetuslaskuri!$D$24% -> 0 | W27: 15.94 | X27: 23.80201443 | Y27: 33.28270488 | Z27: 7.692307692 | AA27: 7.5 | AB27: =kuljetuslaskuri!$D$25*(laskentapohja!C27/laskentapohja!T27) -> 2.526315789 | AC27: 51.00132836 | AD27: 1.700044279 | AE27: 0.5882199732 | AG27: 51.00132836 | AH27: 0.5882199732 | AJ27: 0.9917844052 | AK27: -0.8071288641 | AN27: 0 | AO27: 0.3488372093 | AP27: 0 | AQ27: 1.395348837 | AS27: 0 | AT27: 1.395348837 | AV27: =IF(kuljetuslaskuri!$H$45,kuljetuslaskuri!$D$45,0) -> 20 | AW27: =IF(kuljetuslaskuri!$H$46,kuljetuslaskuri!$D$46,0) -> 0 | AX27: =IF(kuljetuslaskuri!$G$19,kuljetuslaskuri!#REF!,0) -> 0 | AY27: =AVERAGE(IF(AV27:AX27<>0, AV27:AX27,"")) -> 20 | AZ27: =AY27*kuljetuslaskuri!$D$47% -> 19 | BA27: 3.5 | BB27: =kuljetuslaskuri!$D$52% -> 0 | BC27: 15.94 | BD27: 23.93476745 | BE27: 41.6033811 | BF27: 7.5 | BG27: 7.5 | BH27: =kuljetuslaskuri!$D$53*(laskentapohja!C27/laskentapohja!AZ27) -> 3.157894737 | BI27: 59.76127584 | BJ27: 12 | BK27: 71.76127584 | BL27: 2.392042528 | BM27: 0.418052768 | BO27: 29.75077488 | BP27: 64.60168259 | BQ27: 94.35245747 | BS27: 0.39 | BT27: 40.95 | BV27: =kuljetuslaskuri!$D$74 -> 71.1 | BX27: 112.05 | BZ27: =N_arvo*N_maara*kuljetuslaskuri!$E$87%*C27 -> 59.4 | CA27: =P_arvo*P_maara*kuljetuslaskuri!$E$88%*C27 -> 41.04 | CB27: =K_arvo*K_maara*kuljetuslaskuri!$E$89%*C27 -> 79.2 | CC27: 179.64
B28: =kuljetuslaskuri!$D$31 -> 2500 | C28: =kuljetuslaskuri!$D$12 -> 30 | D28: =kuljetuslaskuri!$D$33 -> 14 | E28: =kuljetuslaskuri!$D$34 -> 4000 | F28: 12 | G28: 2.142857143 | H28: 7.5 | I28: 2 | J28: =kuljetuslaskuri!$D$35 -> 0 | K28: 21.5 | L28: 0.7166666667 | N28: 1.395348837 | P28: =IF(kuljetuslaskuri!$H$17,kuljetuslaskuri!$D$17,0) -> 25 | Q28: =IF(kuljetuslaskuri!$H$18,kuljetuslaskuri!$D$18,0) -> 0 | R28: =IF(kuljetuslaskuri!$G$19,kuljetuslaskuri!#REF!,0) -> 0 | S28: =AVERAGE(IF(P28:R28<>0, P28:R28,"")) -> 25 | T28: =S28*kuljetuslaskuri!$D$19% -> 23.75 | U28: 3.75 | V28: =kuljetuslaskuri!$D$24% -> 0 | W28: 15.94 | X28: 24.36358688 | Y28: 35.66004094 | Z28: 7.692307692 | AA28: 7.5 | AB28: =kuljetuslaskuri!$D$25*(laskentapohja!C28/laskentapohja!T28) -> 2.526315789 | AC28: 53.37866442 | AD28: 1.779288814 | AE28: 0.5620223047 | AG28: 53.37866442 | AH28: 0.5620223047 | AJ28: 0.9786855709 | AK28: -0.8333265325 | AN28: 0 | AO28: 0.2790697674 | AP28: 0 | AQ28: 1.395348837 | AS28: 0 | AT28: 1.395348837 | AV28: =IF(kuljetuslaskuri!$H$45,kuljetuslaskuri!$D$45,0) -> 20 | AW28: =IF(kuljetuslaskuri!$H$46,kuljetuslaskuri!$D$46,0) -> 0 | AX28: =IF(kuljetuslaskuri!$G$19,kuljetuslaskuri!#REF!,0) -> 0 | AY28: =AVERAGE(IF(AV28:AX28<>0, AV28:AX28,"")) -> 20 | AZ28: =AY28*kuljetuslaskuri!$D$47% -> 19 | BA28: 3.75 | BB28: =kuljetuslaskuri!$D$52% -> 0 | BC28: 15.94 | BD28: 24.48667941 | BE28: 44.57505118 | BF28: 7.5 | BG28: 7.5 | BH28: =kuljetuslaskuri!$D$53*(laskentapohja!C28/laskentapohja!AZ28) -> 3.157894737 | BI28: 62.73294592 | BJ28: 12 | BK28: 74.73294592 | BL28: 2.491098197 | BM28: 0.4014293781 | BO28: 31.13755425 | BP28: 67.61297494 | BQ28: 98.75052919 | BS28: 0.39 | BT28: 43.875 | BV28: =kuljetuslaskuri!$D$74 -> 71.1 | BX28: 114.975 | BZ28: =N_arvo*N_maara*kuljetuslaskuri!$E$87%*C28 -> 59.4 | CA28: =P_arvo*P_maara*kuljetuslaskuri!$E$88%*C28 -> 41.04 | CB28: =K_arvo*K_maara*kuljetuslaskuri!$E$89%*C28 -> 79.2 | CC28: 179.64
B29: =kuljetuslaskuri!$D$31 -> 2500 | C29: =kuljetuslaskuri!$D$12 -> 30 | D29: =kuljetuslaskuri!$D$33 -> 14 | E29: =kuljetuslaskuri!$D$34 -> 4000 | F29: 12 | G29: 2.142857143 | H29: 7.5 | I29: 2 | J29: =kuljetuslaskuri!$D$35 -> 0 | K29: 21.5 | L29: 0.7166666667 | N29: 1.395348837 | P29: =IF(kuljetuslaskuri!$H$17,kuljetuslaskuri!$D$17,0) -> 25 | Q29: =IF(kuljetuslaskuri!$H$18,kuljetuslaskuri!$D$18,0) -> 0 | R29: =IF(kuljetuslaskuri!$G$19,kuljetuslaskuri!#REF!,0) -> 0 | S29: =AVERAGE(IF(P29:R29<>0, P29:R29,"")) -> 25 | T29: =S29*kuljetuslaskuri!$D$19% -> 23.75 | U29: 4 | V29: =kuljetuslaskuri!$D$24% -> 0 | W29: 15.94 | X29: 24.92515934 | Y29: 38.03737701 | Z29: 7.692307692 | AA29: 7.5 | AB29: =kuljetuslaskuri!$D$25*(laskentapohja!C29/laskentapohja!T29) -> 2.526315789 | AC29: 55.75600049 | AD29: 1.85853335 | AE29: 0.5380586796 | AG29: 55.75600049 | AH29: 0.5380586796 | AJ29: 0.9667037584 | AK29: -0.8572901576 | AN29: 0 | AO29: 0.2093023256 | AP29: 0 | AQ29: 1.395348837 | AS29: 0 | AT29: 1.395348837 | AV29: =IF(kuljetuslaskuri!$H$45,kuljetuslaskuri!$D$45,0) -> 20 | AW29: =IF(kuljetuslaskuri!$H$46,kuljetuslaskuri!$D$46,0) -> 0 | AX29: =IF(kuljetuslaskuri!$G$19,kuljetuslaskuri!#REF!,0) -> 0 | AY29: =AVERAGE(IF(AV29:AX29<>0, AV29:AX29,"")) -> 20 | AZ29: =AY29*kuljetuslaskuri!$D$47% -> 19 | BA29: 4 | BB29: =kuljetuslaskuri!$D$52% -> 0 | BC29: 15.94 | BD29: 25.03859137 | BE29: 47.54672126 | BF29: 7.5 | BG29: 7.5 | BH29: =kuljetuslaskuri!$D$53*(laskentapohja!C29/laskentapohja!AZ29) -> 3.157894737 | BI29: 65.70461599 | BJ29: 12 | BK29: 77.70461599 | BL29: 2.590153866 | BM29: 0.38607745 | BO29: 32.52433362 | BP29: 70.62426728 | BQ29: 103.1486009 | BS29: 0.39 | BT29: 46.8 | BV29: =kuljetuslaskuri!$D$74 -> 71.1 | BX29: 117.9 | BZ29: =N_arvo*N_maara*kuljetuslaskuri!$E$87%*C29 -> 59.4 | CA29: =P_arvo*P_maara*kuljetuslaskuri!$E$88%*C29 -> 41.04 | CB29: =K_arvo*K_maara*kuljetuslaskuri!$E$89%*C29 -> 79.2 | CC29: 179.64
B30: =kuljetuslaskuri!$D$31 -> 2500 | C30: =kuljetuslaskuri!$D$12 -> 30 | D30: =kuljetuslaskuri!$D$33 -> 14 | E30: =kuljetuslaskuri!$D$34 -> 4000 | F30: 12 | G30: 2.142857143 | H30: 7.5 | I30: 2 | J30: =kuljetuslaskuri!$D$35 -> 0 | K30: 21.5 | L30: 0.7166666667 | N30: 1.395348837 | P30: =IF(kuljetuslaskuri!$H$17,kuljetuslaskuri!$D$17,0) -> 25 | Q30: =IF(kuljetuslaskuri!$H$18,kuljetuslaskuri!$D$18,0) -> 0 | R30: =IF(kuljetuslaskuri!$G$19,kuljetuslaskuri!#REF!,0) -> 0 | S30: =AVERAGE(IF(P30:R30<>0, P30:R30,"")) -> 25 | T30: =S30*kuljetuslaskuri!$D$19% -> 23.75 | U30: 4.25 | V30: =kuljetuslaskuri!$D$24% -> 0 | W30: 15.94 | X30: 25.4867318 | Y30: 40.41471307 | Z30: 7.692307692 | AA30: 7.5 | AB30: =kuljetuslaskuri!$D$25*(laskentapohja!C30/laskentapohja!T30) -> 2.526315789 | AC30: 58.13333655 | AD30: 1.937777885 | AE30: 0.5160550173 | AG30: 58.13333655 | AH30: 0.5160550173 | AJ30: 0.9557019273 | AK30: -0.8792938199 | AN30: 0 | AO30: 0.1395348837 | AP30: 0 | AQ30: 1.395348837 | AS30: 0 | AT30: 1.395348837 | AV30: =IF(kuljetuslaskuri!$H$45,kuljetuslaskuri!$D$45,0) -> 20 | AW30: =IF(kuljetuslaskuri!$H$46,kuljetuslaskuri!$D$46,0) -> 0 | AX30: =IF(kuljetuslaskuri!$G$19,kuljetuslaskuri!#REF!,0) -> 0 | AY30: =AVERAGE(IF(AV30:AX30<>0, AV30:AX30,"")) -> 20 | AZ30: =AY30*kuljetuslaskuri!$D$47% -> 19 | BA30: 4.25 | BB30: =kuljetuslaskuri!$D$52% -> 0 | BC30: 15.94 | BD30: 25.59050334 | BE30: 50.51839134 | BF30: 7.5 | BG30: 7.5 | BH30: =kuljetuslaskuri!$D$53*(laskentapohja!C30/laskentapohja!AZ30) -> 3.157894737 | BI30: 68.67628607 | BJ30: 12 | BK30: 80.67628607 | BL30: 2.689209536 | BM30: 0.371856483 | BO30: 33.91111299 | BP30: 73.63555963 | BQ30: 107.5466726 | BS30: 0.39 | BT30: 49.725 | BV30: =kuljetuslaskuri!$D$74 -> 71.1 | BX30: 120.825 | BZ30: =N_arvo*N_maara*kuljetuslaskuri!$E$87%*C30 -> 59.4 | CA30: =P_arvo*P_maara*kuljetuslaskuri!$E$88%*C30 -> 41.04 | CB30: =K_arvo*K_maara*kuljetuslaskuri!$E$89%*C30 -> 79.2 | CC30: 179.64
B31: =kuljetuslaskuri!$D$31 -> 2500 | C31: =kuljetuslaskuri!$D$12 -> 30 | D31: =kuljetuslaskuri!$D$33 -> 14 | E31: =kuljetuslaskuri!$D$34 -> 4000 | F31: 12 | G31: 2.142857143 | H31: 7.5 | I31: 2 | J31: =kuljetuslaskuri!$D$35 -> 0 | K31: 21.5 | L31: 0.7166666667 | N31: 1.395348837 | P31: =IF(kuljetuslaskuri!$H$17,kuljetuslaskuri!$D$17,0) -> 25 | Q31: =IF(kuljetuslaskuri!$H$18,kuljetuslaskuri!$D$18,0) -> 0 | R31: =IF(kuljetuslaskuri!$G$19,kuljetuslaskuri!#REF!,0) -> 0 | S31: =AVERAGE(IF(P31:R31<>0, P31:R31,"")) -> 25 | T31: =S31*kuljetuslaskuri!$D$19% -> 23.75 | U31: 4.5 | V31: =kuljetuslaskuri!$D$24% -> 0 | W31: 15.94 | X31: 26.04830426 | Y31: 42.79204913 | Z31: 7.692307692 | AA31: 7.5 | AB31: =kuljetuslaskuri!$D$25*(laskentapohja!C31/laskentapohja!T31) -> 2.526315789 | AC31: 60.51067261 | AD31: 2.01702242 | AE31: 0.4957803096 | AG31: 60.51067261 | AH31: 0.4957803096 | AJ31: 0.9455645734 | AK31: -0.8995685276 | AN31: 0 | AO31: 0.06976744186 | AP31: 0 | AQ31: 1.395348837 | AS31: 0 | AT31: 1.395348837 | AV31: =IF(kuljetuslaskuri!$H$45,kuljetuslaskuri!$D$45,0) -> 20 | AW31: =IF(kuljetuslaskuri!$H$46,kuljetuslaskuri!$D$46,0) -> 0 | AX31: =IF(kuljetuslaskuri!$G$19,kuljetuslaskuri!#REF!,0) -> 0 | AY31: =AVERAGE(IF(AV31:AX31<>0, AV31:AX31,"")) -> 20 | AZ31: =AY31*kuljetuslaskuri!$D$47% -> 19 | BA31: 4.5 | BB31: =kuljetuslaskuri!$D$52% -> 0 | BC31: 15.94 | BD31: 26.1424153 | BE31: 53.49006141 | BF31: 7.5 | BG31: 7.5 | BH31: =kuljetuslaskuri!$D$53*(laskentapohja!C31/laskentapohja!AZ31) -> 3.157894737 | BI31: 71.64795615 | BJ31: 12 | BK31: 83.64795615 | BL31: 2.788265205 | BM31: 0.3586459416 | BO31: 35.29789236 | BP31: 76.64685198 | BQ31: 111.9447443 | BS31: 0.39 | BT31: 52.65 | BV31: =kuljetuslaskuri!$D$74 -> 71.1 | BX31: 123.75 | BZ31: =N_arvo*N_maara*kuljetuslaskuri!$E$87%*C31 -> 59.4 | CA31: =P_arvo*P_maara*kuljetuslaskuri!$E$88%*C31 -> 41.04 | CB31: =K_arvo*K_maara*kuljetuslaskuri!$E$89%*C31 -> 79.2 | CC31: 179.64
B32: =kuljetuslaskuri!$D$31 -> 2500 | C32: =kuljetuslaskuri!$D$12 -> 30 | D32: =kuljetuslaskuri!$D$33 -> 14 | E32: =kuljetuslaskuri!$D$34 -> 4000 | F32: 12 | G32: 2.142857143 | H32: 7.5 | I32: 2 | J32: =kuljetuslaskuri!$D$35 -> 0 | K32: 21.5 | L32: 0.7166666667 | N32: 1.395348837 | P32: =IF(kuljetuslaskuri!$H$17,kuljetuslaskuri!$D$17,0) -> 25 | Q32: =IF(kuljetuslaskuri!$H$18,kuljetuslaskuri!$D$18,0) -> 0 | R32: =IF(kuljetuslaskuri!$G$19,kuljetuslaskuri!#REF!,0) -> 0 | S32: =AVERAGE(IF(P32:R32<>0, P32:R32,"")) -> 25 | T32: =S32*kuljetuslaskuri!$D$19% -> 23.75 | U32: 4.75 | V32: =kuljetuslaskuri!$D$24% -> 0 | W32: 15.94 | X32: 26.60987672 | Y32: 45.16938519 | Z32: 7.692307692 | AA32: 7.5 | AB32: =kuljetuslaskuri!$D$25*(laskentapohja!C32/laskentapohja!T32) -> 2.526315789 | AC32: 62.88800868 | AD32: 2.096266956 | AE32: 0.4770384789 | AG32: 62.88800868 | AH32: 0.4770384789 | AJ32: 0.9361936581 | AK32: -0.9183103583 | AN32: 0 | AO32: 3.60822483e-16 | AP32: 0 | AQ32: 1.395348837 | AS32: 0 | AT32: 1.395348837 | AV32: =IF(kuljetuslaskuri!$H$45,kuljetuslaskuri!$D$45,0) -> 20 | AW32: =IF(kuljetuslaskuri!$H$46,kuljetuslaskuri!$D$46,0) -> 0 | AX32: =IF(kuljetuslaskuri!$G$19,kuljetuslaskuri!#REF!,0) -> 0 | AY32: =AVERAGE(IF(AV32:AX32<>0, AV32:AX32,"")) -> 20 | AZ32: =AY32*kuljetuslaskuri!$D$47% -> 19 | BA32: 4.75 | BB32: =kuljetuslaskuri!$D$52% -> 0 | BC32: 15.94 | BD32: 26.69432726 | BE32: 56.46173149 | BF32: 7.5 | BG32: 7.5 | BH32: =kuljetuslaskuri!$D$53*(laskentapohja!C32/laskentapohja!AZ32) -> 3.157894737 | BI32: 74.61962623 | BJ32: 12 | BK32: 86.61962623 | BL32: 2.887320874 | BM32: 0.3463418316 | BO32: 36.68467173 | BP32: 79.65814432 | BQ32: 116.3428161 | BS32: 0.39 | BT32: 55.575 | BV32: =kuljetuslaskuri!$D$74 -> 71.1 | BX32: 126.675 | BZ32: =N_arvo*N_maara*kuljetuslaskuri!$E$87%*C32 -> 59.4 | CA32: =P_arvo*P_maara*kuljetuslaskuri!$E$88%*C32 -> 41.04 | CB32: =K_arvo*K_maara*kuljetuslaskuri!$E$89%*C32 -> 79.2 | CC32: 179.64
B33: =kuljetuslaskuri!$D$31 -> 2500 | C33: =kuljetuslaskuri!$D$12 -> 30 | D33: =kuljetuslaskuri!$D$33 -> 14 | E33: =kuljetuslaskuri!$D$34 -> 4000 | F33: 12 | G33: 2.142857143 | H33: 7.5 | I33: 2 | J33: =kuljetuslaskuri!$D$35 -> 0 | K33: 21.5 | L33: 0.7166666667 | N33: 1.395348837 | P33: =IF(kuljetuslaskuri!$H$17,kuljetuslaskuri!$D$17,0) -> 25 | Q33: =IF(kuljetuslaskuri!$H$18,kuljetuslaskuri!$D$18,0) -> 0 | R33: =IF(kuljetuslaskuri!$G$19,kuljetuslaskuri!#REF!,0) -> 0 | S33: =AVERAGE(IF(P33:R33<>0, P33:R33,"")) -> 25 | T33: =S33*kuljetuslaskuri!$D$19% -> 23.75 | U33: 5 | V33: =kuljetuslaskuri!$D$24% -> 0 | W33: 15.94 | X33: 27.17144918 | Y33: 47.54672126 | Z33: 7.692307692 | AA33: 7.5 | AB33: =kuljetuslaskuri!$D$25*(laskentapohja!C33/laskentapohja!T33) -> 2.526315789 | AC33: 65.26534474 | AD33: 2.175511491 | AE33: 0.459662017 | AG33: 65.26534474 | AH33: 0.459662017 | AJ33: 0.9275054271 | AK33: -0.9356868203 | AV33: =IF(kuljetuslaskuri!$H$45,kuljetuslaskuri!$D$45,0) -> 20 | AW33: =IF(kuljetuslaskuri!$H$46,kuljetuslaskuri!$D$46,0) -> 0 | AX33: =IF(kuljetuslaskuri!$G$19,kuljetuslaskuri!#REF!,0) -> 0 | AY33: =AVERAGE(IF(AV33:AX33<>0, AV33:AX33,"")) -> 20 | AZ33: =AY33*kuljetuslaskuri!$D$47% -> 19 | BA33: 5 | BB33: =kuljetuslaskuri!$D$52% -> 0 | BC33: 15.94 | BD33: 27.24623922 | BE33: 59.43340157 | BF33: 7.5 | BG33: 7.5 | BH33: =kuljetuslaskuri!$D$53*(laskentapohja!C33/laskentapohja!AZ33) -> 3.157894737 | BI33: 77.59129631 | BJ33: 12 | BK33: 89.59129631 | BL33: 2.986376544 | BM33: 0.3348539561 | BO33: 38.0714511 | BP33: 82.66943667 | BQ33: 120.7408878 | BS33: 0.39 | BT33: 58.5 | BV33: =kuljetuslaskuri!$D$74 -> 71.1 | BX33: 129.6 | BZ33: =N_arvo*N_maara*kuljetuslaskuri!$E$87%*C33 -> 59.4 | CA33: =P_arvo*P_maara*kuljetuslaskuri!$E$88%*C33 -> 41.04 | CB33: =K_arvo*K_maara*kuljetuslaskuri!$E$89%*C33 -> 79.2 | CC33: 179.64
B34: =kuljetuslaskuri!$D$31 -> 2500 | C34: =kuljetuslaskuri!$D$12 -> 30 | D34: =kuljetuslaskuri!$D$33 -> 14 | E34: =kuljetuslaskuri!$D$34 -> 4000 | F34: 12 | G34: 2.142857143 | H34: 7.5 | I34: 2 | J34: =kuljetuslaskuri!$D$35 -> 0 | K34: 21.5 | L34: 0.7166666667 | N34: 1.395348837 | P34: =IF(kuljetuslaskuri!$H$17,kuljetuslaskuri!$D$17,0) -> 25 | Q34: =IF(kuljetuslaskuri!$H$18,kuljetuslaskuri!$D$18,0) -> 0 | R34: =IF(kuljetuslaskuri!$G$19,kuljetuslaskuri!#REF!,0) -> 0 | S34: =AVERAGE(IF(P34:R34<>0, P34:R34,"")) -> 25 | T34: =S34*kuljetuslaskuri!$D$19% -> 23.75 | U34: 5.25 | V34: =kuljetuslaskuri!$D$24% -> 0 | W34: 15.94 | X34: 27.73302164 | Y34: 49.92405732 | Z34: 7.692307692 | AA34: 7.5 | AB34: =kuljetuslaskuri!$D$25*(laskentapohja!C34/laskentapohja!T34) -> 2.526315789 | AC34: 67.6426808 | AD34: 2.254756027 | AE34: 0.443506964 | AG34: 67.6426808 | AH34: 0.443506964 | AJ34: 0.9194279006 | AK34: -0.9518418732 | AV34: =IF(kuljetuslaskuri!$H$45,kuljetuslaskuri!$D$45,0) -> 20 | AW34: =IF(kuljetuslaskuri!$H$46,kuljetuslaskuri!$D$46,0) -> 0 | AX34: =IF(kuljetuslaskuri!$G$19,kuljetuslaskuri!#REF!,0) -> 0 | AY34: =AVERAGE(IF(AV34:AX34<>0, AV34:AX34,"")) -> 20 | AZ34: =AY34*kuljetuslaskuri!$D$47% -> 19 | BA34: 5.25 | BB34: =kuljetuslaskuri!$D$52% -> 0 | BC34: 15.94 | BD34: 27.79815118 | BE34: 62.40507165 | BF34: 7.5 | BG34: 7.5 | BH34: =kuljetuslaskuri!$D$53*(laskentapohja!C34/laskentapohja!AZ34) -> 3.157894737 | BI34: 80.56296639 | BJ34: 12 | BK34: 92.56296639 | BL34: 3.085432213 | BM34: 0.3241037012 | BO34: 39.45823047 | BP34: 85.68072902 | BQ34: 125.1389595 | BS34: 0.39 | BT34: 61.425 | BV34: =kuljetuslaskuri!$D$74 -> 71.1 | BX34: 132.525 | BZ34: =N_arvo*N_maara*kuljetuslaskuri!$E$87%*C34 -> 59.4 | CA34: =P_arvo*P_maara*kuljetuslaskuri!$E$88%*C34 -> 41.04 | CB34: =K_arvo*K_maara*kuljetuslaskuri!$E$89%*C34 -> 79.2 | CC34: 179.64
B35: =kuljetuslaskuri!$D$31 -> 2500 | C35: =kuljetuslaskuri!$D$12 -> 30 | D35: =kuljetuslaskuri!$D$33 -> 14 | E35: =kuljetuslaskuri!$D$34 -> 4000 | F35: 12 | G35: 2.142857143 | H35: 7.5 | I35: 2 | J35: =kuljetuslaskuri!$D$35 -> 0 | K35: 21.5 | L35: 0.7166666667 | N35: 1.395348837 | P35: =IF(kuljetuslaskuri!$H$17,kuljetuslaskuri!$D$17,0) -> 25 | Q35: =IF(kuljetuslaskuri!$H$18,kuljetuslaskuri!$D$18,0) -> 0 | R35: =IF(kuljetuslaskuri!$G$19,kuljetuslaskuri!#REF!,0) -> 0 | S35: =AVERAGE(IF(P35:R35<>0, P35:R35,"")) -> 25 | T35: =S35*kuljetuslaskuri!$D$19% -> 23.75 | U35: 5.5 | V35: =kuljetuslaskuri!$D$24% -> 0 | W35: 15.94 | X35: 28.2945941 | Y35: 52.30139338 | Z35: 7.692307692 | AA35: 7.5 | AB35: =kuljetuslaskuri!$D$25*(laskentapohja!C35/laskentapohja!T35) -> 2.526315789 | AC35: 70.02001686 | AD35: 2.334000562 | AE35: 0.4284489114 | AG35: 70.02001686 | AH35: 0.4284489114 | AJ35: 0.9118988743 | AK35: -0.9668999258 | AV35: =IF(kuljetuslaskuri!$H$45,kuljetuslaskuri!$D$45,0) -> 20 | AW35: =IF(kuljetuslaskuri!$H$46,kuljetuslaskuri!$D$46,0) -> 0 | AX35: =IF(kuljetuslaskuri!$G$19,kuljetuslaskuri!#REF!,0) -> 0 | AY35: =AVERAGE(IF(AV35:AX35<>0, AV35:AX35,"")) -> 20 | AZ35: =AY35*kuljetuslaskuri!$D$47% -> 19 | BA35: 5.5 | BB35: =kuljetuslaskuri!$D$52% -> 0 | BC35: 15.94 | BD35: 28.35006314 | BE35: 65.37674173 | BF35: 7.5 | BG35: 7.5 | BH35: =kuljetuslaskuri!$D$53*(laskentapohja!C35/laskentapohja!AZ35) -> 3.157894737 | BI35: 83.53463647 | BJ35: 12 | BK35: 95.53463647 | BL35: 3.184487882 | BM35: 0.3140222343 | BO35: 40.84500984 | BP35: 88.69202136 | BQ35: 129.5370312 | BS35: 0.39 | BT35: 64.35 | BV35: =kuljetuslaskuri!$D$74 -> 71.1 | BX35: 135.45 | BZ35: =N_arvo*N_maara*kuljetuslaskuri!$E$87%*C35 -> 59.4 | CA35: =P_arvo*P_maara*kuljetuslaskuri!$E$88%*C35 -> 41.04 | CB35: =K_arvo*K_maara*kuljetuslaskuri!$E$89%*C35 -> 79.2 | CC35: 179.64
B36: =kuljetuslaskuri!$D$31 -> 2500 | C36: =kuljetuslaskuri!$D$12 -> 30 | D36: =kuljetuslaskuri!$D$33 -> 14 | E36: =kuljetuslaskuri!$D$34 -> 4000 | F36: 12 | G36: 2.142857143 | H36: 7.5 | I36: 2 | J36: =kuljetuslaskuri!$D$35 -> 0 | K36: 21.5 | L36: 0.7166666667 | N36: 1.395348837 | P36: =IF(kuljetuslaskuri!$H$17,kuljetuslaskuri!$D$17,0) -> 25 | Q36: =IF(kuljetuslaskuri!$H$18,kuljetuslaskuri!$D$18,0) -> 0 | R36: =IF(kuljetuslaskuri!$G$19,kuljetuslaskuri!#REF!,0) -> 0 | S36: =AVERAGE(IF(P36:R36<>0, P36:R36,"")) -> 25 | T36: =S36*kuljetuslaskuri!$D$19% -> 23.75 | U36: 5.75 | V36: =kuljetuslaskuri!$D$24% -> 0 | W36: 15.94 | X36: 28.85616656 | Y36: 54.67872945 | Z36: 7.692307692 | AA36: 7.5 | AB36: =kuljetuslaskuri!$D$25*(laskentapohja!C36/laskentapohja!T36) -> 2.526315789 | AC36: 72.39735293 | AD36: 2.413245098 | AE36: 0.4143797913 | AG36: 72.39735293 | AH36: 0.4143797913 | AJ36: 0.9048643143 | AK36: -0.9809690459 | AV36: =IF(kuljetuslaskuri!$H$45,kuljetuslaskuri!$D$45,0) -> 20 | AW36: =IF(kuljetuslaskuri!$H$46,kuljetuslaskuri!$D$46,0) -> 0 | AX36: =IF(kuljetuslaskuri!$G$19,kuljetuslaskuri!#REF!,0) -> 0 | AY36: =AVERAGE(IF(AV36:AX36<>0, AV36:AX36,"")) -> 20 | AZ36: =AY36*kuljetuslaskuri!$D$47% -> 19 | BA36: 5.75 | BB36: =kuljetuslaskuri!$D$52% -> 0 | BC36: 15.94 | BD36: 28.9019751 | BE36: 68.34841181 | BF36: 7.5 | BG36: 7.5 | BH36: =kuljetuslaskuri!$D$53*(laskentapohja!C36/laskentapohja!AZ36) -> 3.157894737 | BI36: 86.50630654 | BJ36: 12 | BK36: 98.50630654 | BL36: 3.283543551 | BM36: 0.3045490289 | BO36: 42.23178921 | BP36: 91.70331371 | BQ36: 133.9351029 | BS36: 0.39 | BT36: 67.275 | BV36: =kuljetuslaskuri!$D$74 -> 71.1 | BX36: 138.375 | BZ36: =N_arvo*N_maara*kuljetuslaskuri!$E$87%*C36 -> 59.4 | CA36: =P_arvo*P_maara*kuljetuslaskuri!$E$88%*C36 -> 41.04 | CB36: =K_arvo*K_maara*kuljetuslaskuri!$E$89%*C36 -> 79.2 | CC36: 179.64
B37: =kuljetuslaskuri!$D$31 -> 2500 | C37: =kuljetuslaskuri!$D$12 -> 30 | D37: =kuljetuslaskuri!$D$33 -> 14 | E37: =kuljetuslaskuri!$D$34 -> 4000 | F37: 12 | G37: 2.142857143 | H37: 7.5 | I37: 2 | J37: =kuljetuslaskuri!$D$35 -> 0 | K37: 21.5 | L37: 0.7166666667 | N37: 1.395348837 | P37: =IF(kuljetuslaskuri!$H$17,kuljetuslaskuri!$D$17,0) -> 25 | Q37: =IF(kuljetuslaskuri!$H$18,kuljetuslaskuri!$D$18,0) -> 0 | R37: =IF(kuljetuslaskuri!$G$19,kuljetuslaskuri!#REF!,0) -> 0 | S37: =AVERAGE(IF(P37:R37<>0, P37:R37,"")) -> 25 | T37: =S37*kuljetuslaskuri!$D$19% -> 23.75 | U37: 6 | V37: =kuljetuslaskuri!$D$24% -> 0 | W37: 15.94 | X37: 29.41773902 | Y37: 57.05606551 | Z37: 7.692307692 | AA37: 7.5 | AB37: =kuljetuslaskuri!$D$25*(laskentapohja!C37/laskentapohja!T37) -> 2.526315789 | AC37: 74.77468899 | AD37: 2.492489633 | AE37: 0.4012052796 | AG37: 74.77468899 | AH37: 0.4012052796 | AJ37: 0.8982770584 | AK37: -0.9941435577 | AV37: =IF(kuljetuslaskuri!$H$45,kuljetuslaskuri!$D$45,0) -> 20 | AW37: =IF(kuljetuslaskuri!$H$46,kuljetuslaskuri!$D$46,0) -> 0 | AX37: =IF(kuljetuslaskuri!$G$19,kuljetuslaskuri!#REF!,0) -> 0 | AY37: =AVERAGE(IF(AV37:AX37<>0, AV37:AX37,"")) -> 20 | AZ37: =AY37*kuljetuslaskuri!$D$47% -> 19 | BA37: 6 | BB37: =kuljetuslaskuri!$D$52% -> 0 | BC37: 15.94 | BD37: 29.45388706 | BE37: 71.32008189 | BF37: 7.5 | BG37: 7.5 | BH37: =kuljetuslaskuri!$D$53*(laskentapohja!C37/laskentapohja!AZ37) -> 3.157894737 | BI37: 89.47797662 | BJ37: 12 | BK37: 101.4779766 | BL37: 3.382599221 | BM37: 0.2956306481 | BO37: 43.61856858 | BP37: 94.71460605 | BQ37: 138.3331746 | BS37: 0.39 | BT37: 70.2 | BV37: =kuljetuslaskuri!$D$74 -> 71.1 | BX37: 141.3 | BZ37: =N_arvo*N_maara*kuljetuslaskuri!$E$87%*C37 -> 59.4 | CA37: =P_arvo*P_maara*kuljetuslaskuri!$E$88%*C37 -> 41.04 | CB37: =K_arvo*K_maara*kuljetuslaskuri!$E$89%*C37 -> 79.2 | CC37: 179.64
B38: =kuljetuslaskuri!$D$31 -> 2500 | C38: =kuljetuslaskuri!$D$12 -> 30 | D38: =kuljetuslaskuri!$D$33 -> 14 | E38: =kuljetuslaskuri!$D$34 -> 4000 | F38: 12 | G38: 2.142857143 | H38: 7.5 | I38: 2 | J38: =kuljetuslaskuri!$D$35 -> 0 | K38: 21.5 | L38: 0.7166666667 | N38: 1.395348837 | P38: =IF(kuljetuslaskuri!$H$17,kuljetuslaskuri!$D$17,0) -> 25 | Q38: =IF(kuljetuslaskuri!$H$18,kuljetuslaskuri!$D$18,0) -> 0 | R38: =IF(kuljetuslaskuri!$G$19,kuljetuslaskuri!#REF!,0) -> 0 | S38: =AVERAGE(IF(P38:R38<>0, P38:R38,"")) -> 25 | T38: =S38*kuljetuslaskuri!$D$19% -> 23.75 | U38: 6.25 | V38: =kuljetuslaskuri!$D$24% -> 0 | W38: 15.94 | X38: 29.97931147 | Y38: 59.43340157 | Z38: 7.692307692 | AA38: 7.5 | AB38: =kuljetuslaskuri!$D$25*(laskentapohja!C38/laskentapohja!T38) -> 2.526315789 | AC38: 77.15202505 | AD38: 2.571734168 | AE38: 0.3888426775 | AG38: 77.15202505 | AH38: 0.3888426775 | AJ38: 0.8920957574 | AK38: -1.00650616 | AV38: =IF(kuljetuslaskuri!$H$45,kuljetuslaskuri!$D$45,0) -> 20 | AW38: =IF(kuljetuslaskuri!$H$46,kuljetuslaskuri!$D$46,0) -> 0 | AX38: =IF(kuljetuslaskuri!$G$19,kuljetuslaskuri!#REF!,0) -> 0 | AY38: =AVERAGE(IF(AV38:AX38<>0, AV38:AX38,"")) -> 20 | AZ38: =AY38*kuljetuslaskuri!$D$47% -> 19 | BA38: 6.25 | BB38: =kuljetuslaskuri!$D$52% -> 0 | BC38: 15.94 | BD38: 30.00579902 | BE38: 74.29175196 | BF38: 7.5 | BG38: 7.5 | BH38: =kuljetuslaskuri!$D$53*(laskentapohja!C38/laskentapohja!AZ38) -> 3.157894737 | BI38: 92.4496467 | BJ38: 12 | BK38: 104.4496467 | BL38: 3.48165489 | BM38: 0.2872197365 | BO38: 45.00534795 | BP38: 97.7258984 | BQ38: 142.7312463 | BS38: 0.39 | BT38: 73.125 | BV38: =kuljetuslaskuri!$D$74 -> 71.1 | BX38: 144.225 | BZ38: =N_arvo*N_maara*kuljetuslaskuri!$E$87%*C38 -> 59.4 | CA38: =P_arvo*P_maara*kuljetuslaskuri!$E$88%*C38 -> 41.04 | CB38: =K_arvo*K_maara*kuljetuslaskuri!$E$89%*C38 -> 79.2 | CC38: 179.64
B39: =kuljetuslaskuri!$D$31 -> 2500 | C39: =kuljetuslaskuri!$D$12 -> 30 | D39: =kuljetuslaskuri!$D$33 -> 14 | E39: =kuljetuslaskuri!$D$34 -> 4000 | F39: 12 | G39: 2.142857143 | H39: 7.5 | I39: 2 | J39: =kuljetuslaskuri!$D$35 -> 0 | K39: 21.5 | L39: 0.7166666667 | N39: 1.395348837 | P39: =IF(kuljetuslaskuri!$H$17,kuljetuslaskuri!$D$17,0) -> 25 | Q39: =IF(kuljetuslaskuri!$H$18,kuljetuslaskuri!$D$18,0) -> 0 | R39: =IF(kuljetuslaskuri!$G$19,kuljetuslaskuri!#REF!,0) -> 0 | S39: =AVERAGE(IF(P39:R39<>0, P39:R39,"")) -> 25 | T39: =S39*kuljetuslaskuri!$D$19% -> 23.75 | U39: 6.5 | V39: =kuljetuslaskuri!$D$24% -> 0 | W39: 15.94 | X39: 30.54088393 | Y39: 61.81073763 | Z39: 7.692307692 | AA39: 7.5 | AB39: =kuljetuslaskuri!$D$25*(laskentapohja!C39/laskentapohja!T39) -> 2.526315789 | AC39: 79.52936112 | AD39: 2.650978704 | AE39: 0.3772191751 | AG39: 79.52936112 | AH39: 0.3772191751 | AJ39: 0.8862840062 | AK39: -1.018129662 | AV39: =IF(kuljetuslaskuri!$H$45,kuljetuslaskuri!$D$45,0) -> 20 | AW39: =IF(kuljetuslaskuri!$H$46,kuljetuslaskuri!$D$46,0) -> 0 | AX39: =IF(kuljetuslaskuri!$G$19,kuljetuslaskuri!#REF!,0) -> 0 | AY39: =AVERAGE(IF(AV39:AX39<>0, AV39:AX39,"")) -> 20 | AZ39: =AY39*kuljetuslaskuri!$D$47% -> 19 | BA39: 6.5 | BB39: =kuljetuslaskuri!$D$52% -> 0 | BC39: 15.94 | BD39: 30.55771098 | BE39: 77.26342204 | BF39: 7.5 | BG39: 7.5 | BH39: =kuljetuslaskuri!$D$53*(laskentapohja!C39/laskentapohja!AZ39) -> 3.157894737 | BI39: 95.42131678 | BJ39: 12 | BK39: 107.4213168 | BL39: 3.580710559 | BM39: 0.2792741785 | BO39: 46.39212732 | BP39: 100.7371907 | BQ39: 147.1293181 | BS39: 0.39 | BT39: 76.05 | BV39: =kuljetuslaskuri!$D$74 -> 71.1 | BX39: 147.15 | BZ39: =N_arvo*N_maara*kuljetuslaskuri!$E$87%*C39 -> 59.4 | CA39: =P_arvo*P_maara*kuljetuslaskuri!$E$88%*C39 -> 41.04 | CB39: =K_arvo*K_maara*kuljetuslaskuri!$E$89%*C39 -> 79.2 | CC39: 179.64
B40: =kuljetuslaskuri!$D$31 -> 2500 | C40: =kuljetuslaskuri!$D$12 -> 30 | D40: =kuljetuslaskuri!$D$33 -> 14 | E40: =kuljetuslaskuri!$D$34 -> 4000 | F40: 12 | G40: 2.142857143 | H40: 7.5 | I40: 2 | J40: =kuljetuslaskuri!$D$35 -> 0 | K40: 21.5 | L40: 0.7166666667 | N40: 1.395348837 | P40: =IF(kuljetuslaskuri!$H$17,kuljetuslaskuri!$D$17,0) -> 25 | Q40: =IF(kuljetuslaskuri!$H$18,kuljetuslaskuri!$D$18,0) -> 0 | R40: =IF(kuljetuslaskuri!$G$19,kuljetuslaskuri!#REF!,0) -> 0 | S40: =AVERAGE(IF(P40:R40<>0, P40:R40,"")) -> 25 | T40: =S40*kuljetuslaskuri!$D$19% -> 23.75 | U40: 6.75 | V40: =kuljetuslaskuri!$D$24% -> 0 | W40: 15.94 | X40: 31.10245639 | Y40: 64.1880737 | Z40: 7.692307692 | AA40: 7.5 | AB40: =kuljetuslaskuri!$D$25*(laskentapohja!C40/laskentapohja!T40) -> 2.526315789 | AC40: 81.90669718 | AD40: 2.730223239 | AE40: 0.3662704154 | AG40: 81.90669718 | AH40: 0.3662704154 | AJ40: 0.8808096263 | AK40: -1.029078422 | AV40: =IF(kuljetuslaskuri!$H$45,kuljetuslaskuri!$D$45,0) -> 20 | AW40: =IF(kuljetuslaskuri!$H$46,kuljetuslaskuri!$D$46,0) -> 0 | AX40: =IF(kuljetuslaskuri!$G$19,kuljetuslaskuri!#REF!,0) -> 0 | AY40: =AVERAGE(IF(AV40:AX40<>0, AV40:AX40,"")) -> 20 | AZ40: =AY40*kuljetuslaskuri!$D$47% -> 19 | BA40: 6.75 | BB40: =kuljetuslaskuri!$D$52% -> 0 | BC40: 15.94 | BD40: 31.10962294 | BE40: 80.23509212 | BF40: 7.5 | BG40: 7.5 | BH40: =kuljetuslaskuri!$D$53*(laskentapohja!C40/laskentapohja!AZ40) -> 3.157894737 | BI40: 98.39298686 | BJ40: 12 | BK40: 110.3929869 | BL40: 3.679766229 | BM40: 0.2717563937 | BO40: 47.77890669 | BP40: 103.7484831 | BQ40: 151.5273898 | BS40: 0.39 | BT40: 78.975 | BV40: =kuljetuslaskuri!$D$74 -> 71.1 | BX40: 150.075 | BZ40: =N_arvo*N_maara*kuljetuslaskuri!$E$87%*C40 -> 59.4 | CA40: =P_arvo*P_maara*kuljetuslaskuri!$E$88%*C40 -> 41.04 | CB40: =K_arvo*K_maara*kuljetuslaskuri!$E$89%*C40 -> 79.2 | CC40: 179.64
B41: =kuljetuslaskuri!$D$31 -> 2500 | C41: =kuljetuslaskuri!$D$12 -> 30 | D41: =kuljetuslaskuri!$D$33 -> 14 | E41: =kuljetuslaskuri!$D$34 -> 4000 | F41: 12 | G41: 2.142857143 | H41: 7.5 | I41: 2 | J41: =kuljetuslaskuri!$D$35 -> 0 | K41: 21.5 | L41: 0.7166666667 | N41: 1.395348837 | P41: =IF(kuljetuslaskuri!$H$17,kuljetuslaskuri!$D$17,0) -> 25 | Q41: =IF(kuljetuslaskuri!$H$18,kuljetuslaskuri!$D$18,0) -> 0 | R41: =IF(kuljetuslaskuri!$G$19,kuljetuslaskuri!#REF!,0) -> 0 | S41: =AVERAGE(IF(P41:R41<>0, P41:R41,"")) -> 25 | T41: =S41*kuljetuslaskuri!$D$19% -> 23.75 | U41: 7 | V41: =kuljetuslaskuri!$D$24% -> 0 | W41: 15.94 | X41: 31.66402885 | Y41: 66.56540976 | Z41: 7.692307692 | AA41: 7.5 | AB41: =kuljetuslaskuri!$D$25*(laskentapohja!C41/laskentapohja!T41) -> 2.526315789 | AC41: 84.28403324 | AD41: 2.809467775 | AE41: 0.3559393025 | AG41: 84.28403324 | AH41: 0.3559393025 | AJ41: 0.8756440698 | AK41: -1.039409535 | AV41: =IF(kuljetuslaskuri!$H$45,kuljetuslaskuri!$D$45,0) -> 20 | AW41: =IF(kuljetuslaskuri!$H$46,kuljetuslaskuri!$D$46,0) -> 0 | AX41: =IF(kuljetuslaskuri!$G$19,kuljetuslaskuri!#REF!,0) -> 0 | AY41: =AVERAGE(IF(AV41:AX41<>0, AV41:AX41,"")) -> 20 | AZ41: =AY41*kuljetuslaskuri!$D$47% -> 19 | BA41: 7 | BB41: =kuljetuslaskuri!$D$52% -> 0 | BC41: 15.94 | BD41: 31.66153491 | BE41: 83.2067622 | BF41: 7.5 | BG41: 7.5 | BH41: =kuljetuslaskuri!$D$53*(laskentapohja!C41/laskentapohja!AZ41) -> 3.157894737 | BI41: 101.3646569 | BJ41: 12 | BK41: 113.3646569 | BL41: 3.778821898 | BM41: 0.2646327419 | BO41: 49.16568606 | BP41: 106.7597754 | BQ41: 155.9254615 | BS41: 0.39 | BT41: 81.9 | BV41: =kuljetuslaskuri!$D$74 -> 71.1 | BX41: 153 | BZ41: =N_arvo*N_maara*kuljetuslaskuri!$E$87%*C41 -> 59.4 | CA41: =P_arvo*P_maara*kuljetuslaskuri!$E$88%*C41 -> 41.04 | CB41: =K_arvo*K_maara*kuljetuslaskuri!$E$89%*C41 -> 79.2 | CC41: 179.64
B42: =kuljetuslaskuri!$D$31 -> 2500 | C42: =kuljetuslaskuri!$D$12 -> 30 | D42: =kuljetuslaskuri!$D$33 -> 14 | E42: =kuljetuslaskuri!$D$34 -> 4000 | F42: 12 | G42: 2.142857143 | H42: 7.5 | I42: 2 | J42: =kuljetuslaskuri!$D$35 -> 0 | K42: 21.5 | L42: 0.7166666667 | N42: 1.395348837 | P42: =IF(kuljetuslaskuri!$H$17,kuljetuslaskuri!$D$17,0) -> 25 | Q42: =IF(kuljetuslaskuri!$H$18,kuljetuslaskuri!$D$18,0) -> 0 | R42: =IF(kuljetuslaskuri!$G$19,kuljetuslaskuri!#REF!,0) -> 0 | S42: =AVERAGE(IF(P42:R42<>0, P42:R42,"")) -> 25 | T42: =S42*kuljetuslaskuri!$D$19% -> 23.75 | U42: 7.25 | V42: =kuljetuslaskuri!$D$24% -> 0 | W42: 15.94 | X42: 32.22560131 | Y42: 68.94274582 | Z42: 7.692307692 | AA42: 7.5 | AB42: =kuljetuslaskuri!$D$25*(laskentapohja!C42/laskentapohja!T42) -> 2.526315789 | AC42: 86.6613693 | AD42: 2.88871231 | AE42: 0.3461750055 | AG42: 86.6613693 | AH42: 0.3461750055 | AJ42: 0.8707619214 | AK42: =AH42-N42 -> -1.049173832 | AV42: =IF(kuljetuslaskuri!$H$45,kuljetuslaskuri!$D$45,0) -> 20 | AW42: =IF(kuljetuslaskuri!$H$46,kuljetuslaskuri!$D$46,0) -> 0 | AX42: =IF(kuljetuslaskuri!$G$19,kuljetuslaskuri!#REF!,0) -> 0 | AY42: =AVERAGE(IF(AV42:AX42<>0, AV42:AX42,"")) -> 20 | AZ42: =AY42*kuljetuslaskuri!$D$47% -> 19 | BA42: 7.25 | BB42: =kuljetuslaskuri!$D$52% -> 0 | BC42: 15.94 | BD42: 32.21344687 | BE42: 86.17843228 | BF42: 7.5 | BG42: 7.5 | BH42: =kuljetuslaskuri!$D$53*(laskentapohja!C42/laskentapohja!AZ42) -> 3.157894737 | BI42: 104.336327 | BJ42: 12 | BK42: 116.336327 | BL42: 3.877877567 | BM42: 0.2578730201 | BO42: 50.55246543 | BP42: 109.7710678 | BQ42: 160.3235332 | BS42: 0.39 | BT42: 84.825 | BV42: =kuljetuslaskuri!$D$74 -> 71.1 | BX42: 155.925 | BZ42: =N_arvo*N_maara*kuljetuslaskuri!$E$87%*C42 -> 59.4 | CA42: =P_arvo*P_maara*kuljetuslaskuri!$E$88%*C42 -> 41.04 | CB42: =K_arvo*K_maara*kuljetuslaskuri!$E$89%*C42 -> 79.2 | CC42: 179.64
B43: =kuljetuslaskuri!$D$31 -> 2500 | C43: =kuljetuslaskuri!$D$12 -> 30 | D43: =kuljetuslaskuri!$D$33 -> 14 | E43: =kuljetuslaskuri!$D$34 -> 4000 | F43: 12 | G43: 2.142857143 | H43: 7.5 | I43: 2 | J43: =kuljetuslaskuri!$D$35 -> 0 | K43: 21.5 | L43: 0.7166666667 | N43: 1.395348837 | P43: =IF(kuljetuslaskuri!$H$17,kuljetuslaskuri!$D$17,0) -> 25 | Q43: =IF(kuljetuslaskuri!$H$18,kuljetuslaskuri!$D$18,0) -> 0 | R43: =IF(kuljetuslaskuri!$G$19,kuljetuslaskuri!#REF!,0) -> 0 | S43: =AVERAGE(IF(P43:R43<>0, P43:R43,"")) -> 25 | T43: =S43*kuljetuslaskuri!$D$19% -> 23.75 | U43: 7.5 | V43: =kuljetuslaskuri!$D$24% -> 0 | W43: 15.94 | X43: 32.78717377 | Y43: 71.32008189 | Z43: 7.692307692 | AA43: 7.5 | AB43: =kuljetuslaskuri!$D$25*(laskentapohja!C43/laskentapohja!T43) -> 2.526315789 | AC43: 89.03870537 | AD43: 2.967956846 | AE43: 0.3369321227 | AG43: 89.03870537 | AH43: 0.3369321227 | AJ43: 0.8661404799 | AK43: -1.058416715 | AV43: =IF(kuljetuslaskuri!$H$45,kuljetuslaskuri!$D$45,0) -> 20 | AW43: =IF(kuljetuslaskuri!$H$46,kuljetuslaskuri!$D$46,0) -> 0 | AX43: =IF(kuljetuslaskuri!$G$19,kuljetuslaskuri!#REF!,0) -> 0 | AY43: =AVERAGE(IF(AV43:AX43<>0, AV43:AX43,"")) -> 20 | AZ43: =AY43*kuljetuslaskuri!$D$47% -> 19 | BA43: 7.5 | BB43: =kuljetuslaskuri!$D$52% -> 0 | BC43: 15.94 | BD43: 32.76535883 | BE43: 89.15010236 | BF43: 7.5 | BG43: 7.5 | BH43: =kuljetuslaskuri!$D$53*(laskentapohja!C43/laskentapohja!AZ43) -> 3.157894737 | BI43: 107.3079971 | BJ43: 12 | BK43: 119.3079971 | BL43: 3.976933236 | BM43: 0.2514500346 | BO43: 51.9392448 | BP43: 112.7823601 | BQ43: 164.7216049 | BS43: 0.39 | BT43: 87.75 | BV43: =kuljetuslaskuri!$D$74 -> 71.1 | BX43: 158.85 | BZ43: =N_arvo*N_maara*kuljetuslaskuri!$E$87%*C43 -> 59.4 | CA43: =P_arvo*P_maara*kuljetuslaskuri!$E$88%*C43 -> 41.04 | CB43: =K_arvo*K_maara*kuljetuslaskuri!$E$89%*C43 -> 79.2 | CC43: 179.64
B44: =kuljetuslaskuri!$D$31 -> 2500 | C44: =kuljetuslaskuri!$D$12 -> 30 | D44: =kuljetuslaskuri!$D$33 -> 14 | E44: =kuljetuslaskuri!$D$34 -> 4000 | F44: 12 | G44: 2.142857143 | H44: 7.5 | I44: 2 | J44: =kuljetuslaskuri!$D$35 -> 0 | K44: 21.5 | L44: 0.7166666667 | N44: 1.395348837 | P44: =IF(kuljetuslaskuri!$H$17,kuljetuslaskuri!$D$17,0) -> 25 | Q44: =IF(kuljetuslaskuri!$H$18,kuljetuslaskuri!$D$18,0) -> 0 | R44: =IF(kuljetuslaskuri!$G$19,kuljetuslaskuri!#REF!,0) -> 0 | S44: =AVERAGE(IF(P44:R44<>0, P44:R44,"")) -> 25 | T44: =S44*kuljetuslaskuri!$D$19% -> 23.75 | U44: 7.75 | V44: =kuljetuslaskuri!$D$24% -> 0 | W44: =Kulj_nop -> 15.94 | X44: 33.34874623 | Y44: 73.69741795 | Z44: 7.692307692 | AA44: 7.5 | AB44: =kuljetuslaskuri!$D$25*(laskentapohja!C44/laskentapohja!T44) -> 2.526315789 | AC44: 91.41604143 | AD44: 3.047201381 | AE44: 0.3281699747 | AG44: 91.41604143 | AH44: 0.3281699747 | AJ44: 0.8617594059 | AK44: -1.067178863 | AV44: =IF(kuljetuslaskuri!$H$45,kuljetuslaskuri!$D$45,0) -> 20 | AW44: =IF(kuljetuslaskuri!$H$46,kuljetuslaskuri!$D$46,0) -> 0 | AX44: =IF(kuljetuslaskuri!$G$19,kuljetuslaskuri!#REF!,0) -> 0 | AY44: =AVERAGE(IF(AV44:AX44<>0, AV44:AX44,"")) -> 20 | AZ44: =AY44*kuljetuslaskuri!$D$47% -> 19 | BA44: 7.75 | BB44: =kuljetuslaskuri!$D$52% -> 0 | BC44: 15.94 | BD44: 33.31727079 | BE44: 92.12177244 | BF44: 7.5 | BG44: 7.5 | BH44: =kuljetuslaskuri!$D$53*(laskentapohja!C44/laskentapohja!AZ44) -> 3.157894737 | BI44: 110.2796672 | BJ44: 12 | BK44: 122.2796672 | BL44: 4.075988906 | BM44: 0.245339235 | BO44: 53.32602417 | BP44: 115.7936525 | BQ44: 169.1196766 | BS44: 0.39 | BT44: 90.675 | BV44: =kuljetuslaskuri!$D$74 -> 71.1 | BX44: 161.775 | BZ44: =N_arvo*N_maara*kuljetuslaskuri!$E$87%*C44 -> 59.4 | CA44: =P_arvo*P_maara*kuljetuslaskuri!$E$88%*C44 -> 41.04 | CB44: =K_arvo*K_maara*kuljetuslaskuri!$E$89%*C44 -> 79.2 | CC44: 179.64
B45: =kuljetuslaskuri!$D$31 -> 2500 | C45: =kuljetuslaskuri!$D$12 -> 30 | D45: =kuljetuslaskuri!$D$33 -> 14 | E45: =kuljetuslaskuri!$D$34 -> 4000 | F45: 12 | G45: 2.142857143 | H45: 7.5 | I45: 2 | J45: =kuljetuslaskuri!$D$35 -> 0 | K45: 21.5 | L45: 0.7166666667 | N45: 1.395348837 | P45: =IF(kuljetuslaskuri!$H$17,kuljetuslaskuri!$D$17,0) -> 25 | Q45: =IF(kuljetuslaskuri!$H$18,kuljetuslaskuri!$D$18,0) -> 0 | R45: =IF(kuljetuslaskuri!$G$19,kuljetuslaskuri!#REF!,0) -> 0 | S45: =AVERAGE(IF(P45:R45<>0, P45:R45,"")) -> 25 | T45: =S45*kuljetuslaskuri!$D$19% -> 23.75 | U45: 8 | V45: =kuljetuslaskuri!$D$24% -> 0 | W45: 15.94 | X45: 33.91031869 | Y45: 76.07475401 | Z45: 7.692307692 | AA45: 7.5 | AB45: =kuljetuslaskuri!$D$25*(laskentapohja!C45/laskentapohja!T45) -> 2.526315789 | AC45: 93.79337749 | AD45: 3.126445916 | AE45: 0.3198520066 | AG45: 93.79337749 | AH45: 0.3198520066 | AJ45: 0.8576004219 | AK45: -1.075496831 | AV45: =IF(kuljetuslaskuri!$H$45,kuljetuslaskuri!$D$45,0) -> 20 | AW45: =IF(kuljetuslaskuri!$H$46,kuljetuslaskuri!$D$46,0) -> 0 | AX45: =IF(kuljetuslaskuri!$G$19,kuljetuslaskuri!#REF!,0) -> 0 | AY45: =AVERAGE(IF(AV45:AX45<>0, AV45:AX45,"")) -> 20 | AZ45: =AY45*kuljetuslaskuri!$D$47% -> 19 | BA45: 8 | BB45: =kuljetuslaskuri!$D$52% -> 0 | BC45: 15.94 | BD45: 33.86918275 | BE45: 95.09344251 | BF45: 7.5 | BG45: 7.5 | BH45: =kuljetuslaskuri!$D$53*(laskentapohja!C45/laskentapohja!AZ45) -> 3.157894737 | BI45: 113.2513373 | BJ45: 12 | BK45: 125.2513373 | BL45: 4.175044575 | BM45: 0.2395184008 | BO45: 54.71280354 | BP45: 118.8049448 | BQ45: 173.5177484 | BS45: 0.39 | BT45: 93.6 | BV45: =kuljetuslaskuri!$D$74 -> 71.1 | BX45: 164.7 | BZ45: =N_arvo*N_maara*kuljetuslaskuri!$E$87%*C45 -> 59.4 | CA45: =P_arvo*P_maara*kuljetuslaskuri!$E$88%*C45 -> 41.04 | CB45: =K_arvo*K_maara*kuljetuslaskuri!$E$89%*C45 -> 79.2 | CC45: 179.64
B46: =kuljetuslaskuri!$D$31 -> 2500 | C46: =kuljetuslaskuri!$D$12 -> 30 | D46: =kuljetuslaskuri!$D$33 -> 14 | E46: =kuljetuslaskuri!$D$34 -> 4000 | F46: 12 | G46: 2.142857143 | H46: 7.5 | I46: 2 | J46: =kuljetuslaskuri!$D$35 -> 0 | K46: 21.5 | L46: 0.7166666667 | N46: 1.395348837 | P46: =IF(kuljetuslaskuri!$H$17,kuljetuslaskuri!$D$17,0) -> 25 | Q46: =IF(kuljetuslaskuri!$H$18,kuljetuslaskuri!$D$18,0) -> 0 | R46: =IF(kuljetuslaskuri!$G$19,kuljetuslaskuri!#REF!,0) -> 0 | S46: =AVERAGE(IF(P46:R46<>0, P46:R46,"")) -> 25 | T46: =S46*kuljetuslaskuri!$D$19% -> 23.75 | U46: 8.25 | V46: =kuljetuslaskuri!$D$24% -> 0 | W46: 15.94 | X46: 34.47189115 | Y46: 78.45209007 | Z46: 7.692307692 | AA46: 7.5 | AB46: =kuljetuslaskuri!$D$25*(laskentapohja!C46/laskentapohja!T46) -> 2.526315789 | AC46: 96.17071356 | AD46: 3.205690452 | AE46: 0.3119452783 | AG46: 96.17071356 | AH46: 0.3119452783 | AJ46: 0.8536470577 | AK46: -1.083403559 | AV46: =IF(kuljetuslaskuri!$H$45,kuljetuslaskuri!$D$45,0) -> 20 | AW46: =IF(kuljetuslaskuri!$H$46,kuljetuslaskuri!$D$46,0) -> 0 | AX46: =IF(kuljetuslaskuri!$G$19,kuljetuslaskuri!#REF!,0) -> 0 | AY46: =AVERAGE(IF(AV46:AX46<>0, AV46:AX46,"")) -> 20 | AZ46: =AY46*kuljetuslaskuri!$D$47% -> 19 | BA46: 8.25 | BB46: =kuljetuslaskuri!$D$52% -> 0 | BC46: 15.94 | BD46: 34.42109471 | BE46: 98.06511259 | BF46: 7.5 | BG46: 7.5 | BH46: =kuljetuslaskuri!$D$53*(laskentapohja!C46/laskentapohja!AZ46) -> 3.157894737 | BI46: 116.2230073 | BJ46: 12 | BK46: 128.2230073 | BL46: 4.274100244 | BM46: 0.2339673716 | BO46: 56.09958291 | BP46: 121.8162372 | BQ46: 177.9158201 | BS46: 0.39 | BT46: 96.525 | BV46: =kuljetuslaskuri!$D$74 -> 71.1 | BX46: 167.625 | BZ46: =N_arvo*N_maara*kuljetuslaskuri!$E$87%*C46 -> 59.4 | CA46: =P_arvo*P_maara*kuljetuslaskuri!$E$88%*C46 -> 41.04 | CB46: =K_arvo*K_maara*kuljetuslaskuri!$E$89%*C46 -> 79.2 | CC46: 179.64
B47: =kuljetuslaskuri!$D$31 -> 2500 | C47: =kuljetuslaskuri!$D$12 -> 30 | D47: =kuljetuslaskuri!$D$33 -> 14 | E47: =kuljetuslaskuri!$D$34 -> 4000 | F47: 12 | G47: 2.142857143 | H47: 7.5 | I47: 2 | J47: =kuljetuslaskuri!$D$35 -> 0 | K47: 21.5 | L47: 0.7166666667 | N47: 1.395348837 | P47: =IF(kuljetuslaskuri!$H$17,kuljetuslaskuri!$D$17,0) -> 25 | Q47: =IF(kuljetuslaskuri!$H$18,kuljetuslaskuri!$D$18,0) -> 0 | R47: =IF(kuljetuslaskuri!$G$19,kuljetuslaskuri!#REF!,0) -> 0 | S47: =AVERAGE(IF(P47:R47<>0, P47:R47,"")) -> 25 | T47: =S47*kuljetuslaskuri!$D$19% -> 23.75 | U47: 8.5 | V47: =kuljetuslaskuri!$D$24% -> 0 | W47: 15.94 | X47: 35.03346361 | Y47: 80.82942614 | Z47: 7.692307692 | AA47: 7.5 | AB47: =kuljetuslaskuri!$D$25*(laskentapohja!C47/laskentapohja!T47) -> 2.526315789 | AC47: 98.54804962 | AD47: 3.284934987 | AE47: 0.3044200278 | AG47: 98.54804962 | AH47: 0.3044200278 | AJ47: 0.8498844325 | AK47: -1.090928809 | AV47: =IF(kuljetuslaskuri!$H$45,kuljetuslaskuri!$D$45,0) -> 20 | AW47: =IF(kuljetuslaskuri!$H$46,kuljetuslaskuri!$D$46,0) -> 0 | AX47: =IF(kuljetuslaskuri!$G$19,kuljetuslaskuri!#REF!,0) -> 0 | AY47: =AVERAGE(IF(AV47:AX47<>0, AV47:AX47,"")) -> 20 | AZ47: =AY47*kuljetuslaskuri!$D$47% -> 19 | BA47: 8.5 | BB47: =kuljetuslaskuri!$D$52% -> 0 | BC47: 15.94 | BD47: 34.97300667 | BE47: 101.0367827 | BF47: 7.5 | BG47: 7.5 | BH47: =kuljetuslaskuri!$D$53*(laskentapohja!C47/laskentapohja!AZ47) -> 3.157894737 | BI47: 119.1946774 | BJ47: 12 | BK47: 131.1946774 | BL47: 4.373155914 | BM47: 0.2286678133 | BO47: 57.48636228 | BP47: 124.8275295 | BQ47: 182.3138918 | BS47: 0.39 | BT47: 99.45 | BV47: =kuljetuslaskuri!$D$74 -> 71.1 | BX47: 170.55 | BZ47: =N_arvo*N_maara*kuljetuslaskuri!$E$87%*C47 -> 59.4 | CA47: =P_arvo*P_maara*kuljetuslaskuri!$E$88%*C47 -> 41.04 | CB47: =K_arvo*K_maara*kuljetuslaskuri!$E$89%*C47 -> 79.2 | CC47: 179.64
B48: =kuljetuslaskuri!$D$31 -> 2500 | C48: =kuljetuslaskuri!$D$12 -> 30 | D48: =kuljetuslaskuri!$D$33 -> 14 | E48: =kuljetuslaskuri!$D$34 -> 4000 | F48: 12 | G48: 2.142857143 | H48: 7.5 | I48: 2 | J48: =kuljetuslaskuri!$D$35 -> 0 | K48: 21.5 | L48: 0.7166666667 | N48: 1.395348837 | P48: =IF(kuljetuslaskuri!$H$17,kuljetuslaskuri!$D$17,0) -> 25 | Q48: =IF(kuljetuslaskuri!$H$18,kuljetuslaskuri!$D$18,0) -> 0 | R48: =IF(kuljetuslaskuri!$G$19,kuljetuslaskuri!#REF!,0) -> 0 | S48: =AVERAGE(IF(P48:R48<>0, P48:R48,"")) -> 25 | T48: =S48*kuljetuslaskuri!$D$19% -> 23.75 | U48: 8.75 | V48: =kuljetuslaskuri!$D$24% -> 0 | W48: 15.94 | X48: 35.59503606 | Y48: 83.2067622 | Z48: 7.692307692 | AA48: 7.5 | AB48: =kuljetuslaskuri!$D$25*(laskentapohja!C48/laskentapohja!T48) -> 2.526315789 | AC48: 100.9253857 | AD48: 3.364179523 | AE48: 0.2972492976 | AG48: 100.9253857 | AH48: 0.2972492976 | AJ48: 0.8462990674 | AK48: -1.09809954 | AV48: =IF(kuljetuslaskuri!$H$45,kuljetuslaskuri!$D$45,0) -> 20 | AW48: =IF(kuljetuslaskuri!$H$46,kuljetuslaskuri!$D$46,0) -> 0 | AX48: =IF(kuljetuslaskuri!$G$19,kuljetuslaskuri!#REF!,0) -> 0 | AY48: =AVERAGE(IF(AV48:AX48<>0, AV48:AX48,"")) -> 20 | AZ48: =AY48*kuljetuslaskuri!$D$47% -> 19 | BA48: 8.75 | BB48: =kuljetuslaskuri!$D$52% -> 0 | BC48: 15.94 | BD48: 35.52491863 | BE48: 104.0084528 | BF48: 7.5 | BG48: 7.5 | BH48: =kuljetuslaskuri!$D$53*(laskentapohja!C48/laskentapohja!AZ48) -> 3.157894737 | BI48: 122.1663475 | BJ48: 12 | BK48: 134.1663475 | BL48: 4.472211583 | BM48: 0.2236030164 | BO48: 58.87314165 | BP48: 127.8388219 | BQ48: 186.7119635 | BS48: 0.39 | BT48: 102.375 | BV48: =kuljetuslaskuri!$D$74 -> 71.1 | BX48: 173.475 | BZ48: =N_arvo*N_maara*kuljetuslaskuri!$E$87%*C48 -> 59.4 | CA48: =P_arvo*P_maara*kuljetuslaskuri!$E$88%*C48 -> 41.04 | CB48: =K_arvo*K_maara*kuljetuslaskuri!$E$89%*C48 -> 79.2 | CC48: 179.64
B49: =kuljetuslaskuri!$D$31 -> 2500 | C49: =kuljetuslaskuri!$D$12 -> 30 | D49: =kuljetuslaskuri!$D$33 -> 14 | E49: =kuljetuslaskuri!$D$34 -> 4000 | F49: 12 | G49: 2.142857143 | H49: 7.5 | I49: 2 | J49: =kuljetuslaskuri!$D$35 -> 0 | K49: 21.5 | L49: 0.7166666667 | N49: 1.395348837 | P49: =IF(kuljetuslaskuri!$H$17,kuljetuslaskuri!$D$17,0) -> 25 | Q49: =IF(kuljetuslaskuri!$H$18,kuljetuslaskuri!$D$18,0) -> 0 | R49: =IF(kuljetuslaskuri!$G$19,kuljetuslaskuri!#REF!,0) -> 0 | S49: =AVERAGE(IF(P49:R49<>0, P49:R49,"")) -> 25 | T49: =S49*kuljetuslaskuri!$D$19% -> 23.75 | U49: 9 | V49: =kuljetuslaskuri!$D$24% -> 0 | W49: 15.94 | X49: 36.15660852 | Y49: 85.58409826 | Z49: 7.692307692 | AA49: 7.5 | AB49: =kuljetuslaskuri!$D$25*(laskentapohja!C49/laskentapohja!T49) -> 2.526315789 | AC49: 103.3027217 | AD49: 3.443424058 | AE49: 0.2904086116 | AG49: 103.3027217 | AH49: 0.2904086116 | AJ49: 0.8428787244 | AK49: -1.104940226 | AV49: =IF(kuljetuslaskuri!$H$45,kuljetuslaskuri!$D$45,0) -> 20 | AW49: =IF(kuljetuslaskuri!$H$46,kuljetuslaskuri!$D$46,0) -> 0 | AX49: =IF(kuljetuslaskuri!$G$19,kuljetuslaskuri!#REF!,0) -> 0 | AY49: =AVERAGE(IF(AV49:AX49<>0, AV49:AX49,"")) -> 20 | AZ49: =AY49*kuljetuslaskuri!$D$47% -> 19 | BA49: 9 | BB49: =kuljetuslaskuri!$D$52% -> 0 | BC49: 15.94 | BD49: 36.07683059 | BE49: 106.9801228 | BF49: 7.5 | BG49: 7.5 | BH49: =kuljetuslaskuri!$D$53*(laskentapohja!C49/laskentapohja!AZ49) -> 3.157894737 | BI49: 125.1380176 | BJ49: 12 | BK49: 137.1380176 | BL49: 4.571267252 | BM49: 0.2187577196 | BO49: 60.25992102 | BP49: 130.8501142 | BQ49: 191.1100352 | BS49: 0.39 | BT49: 105.3 | BV49: =kuljetuslaskuri!$D$74 -> 71.1 | BX49: 176.4 | BZ49: =N_arvo*N_maara*kuljetuslaskuri!$E$87%*C49 -> 59.4 | CA49: =P_arvo*P_maara*kuljetuslaskuri!$E$88%*C49 -> 41.04 | CB49: =K_arvo*K_maara*kuljetuslaskuri!$E$89%*C49 -> 79.2 | CC49: 179.64
B50: =kuljetuslaskuri!$D$31 -> 2500 | C50: =kuljetuslaskuri!$D$12 -> 30 | D50: =kuljetuslaskuri!$D$33 -> 14 | E50: =kuljetuslaskuri!$D$34 -> 4000 | F50: 12 | G50: 2.142857143 | H50: 7.5 | I50: 2 | J50: =kuljetuslaskuri!$D$35 -> 0 | K50: 21.5 | L50: 0.7166666667 | N50: 1.395348837 | P50: =IF(kuljetuslaskuri!$H$17,kuljetuslaskuri!$D$17,0) -> 25 | Q50: =IF(kuljetuslaskuri!$H$18,kuljetuslaskuri!$D$18,0) -> 0 | R50: =IF(kuljetuslaskuri!$G$19,kuljetuslaskuri!#REF!,0) -> 0 | S50: =AVERAGE(IF(P50:R50<>0, P50:R50,"")) -> 25 | T50: =S50*kuljetuslaskuri!$D$19% -> 23.75 | U50: 9.25 | V50: =kuljetuslaskuri!$D$24% -> 0 | W50: 15.94 | X50: 36.71818098 | Y50: 87.96143433 | Z50: 7.692307692 | AA50: 7.5 | AB50: =kuljetuslaskuri!$D$25*(laskentapohja!C50/laskentapohja!T50) -> 2.526315789 | AC50: 105.6800578 | AD50: 3.522668594 | AE50: 0.2838756963 | AG50: 105.6800578 | AH50: 0.2838756963 | AJ50: 0.8396122668 | AK50: -1.111473141 | AV50: =IF(kuljetuslaskuri!$H$45,kuljetuslaskuri!$D$45,0) -> 20 | AW50: =IF(kuljetuslaskuri!$H$46,kuljetuslaskuri!$D$46,0) -> 0 | AX50: =IF(kuljetuslaskuri!$G$19,kuljetuslaskuri!#REF!,0) -> 0 | AY50: =AVERAGE(IF(AV50:AX50<>0, AV50:AX50,"")) -> 20 | AZ50: =AY50*kuljetuslaskuri!$D$47% -> 19 | BA50: 9.25 | BB50: =kuljetuslaskuri!$D$52% -> 0 | BC50: 15.94 | BD50: 36.62874255 | BE50: 109.9517929 | BF50: 7.5 | BG50: 7.5 | BH50: =kuljetuslaskuri!$D$53*(laskentapohja!C50/laskentapohja!AZ50) -> 3.157894737 | BI50: 128.1096876 | BJ50: 12 | BK50: 140.1096876 | BL50: 4.670322921 | BM50: 0.2141179565 | BO50: 61.64670039 | BP50: 133.8614066 | BQ50: 195.5081069 | BS50: 0.39 | BT50: 108.225 | BV50: =kuljetuslaskuri!$D$74 -> 71.1 | BX50: 179.325 | BZ50: =N_arvo*N_maara*kuljetuslaskuri!$E$87%*C50 -> 59.4 | CA50: =P_arvo*P_maara*kuljetuslaskuri!$E$88%*C50 -> 41.04 | CB50: =K_arvo*K_maara*kuljetuslaskuri!$E$89%*C50 -> 79.2 | CC50: 179.64
B51: =kuljetuslaskuri!$D$31 -> 2500 | C51: =kuljetuslaskuri!$D$12 -> 30 | D51: =kuljetuslaskuri!$D$33 -> 14 | E51: =kuljetuslaskuri!$D$34 -> 4000 | F51: 12 | G51: 2.142857143 | H51: 7.5 | I51: 2 | J51: =kuljetuslaskuri!$D$35 -> 0 | K51: 21.5 | L51: 0.7166666667 | N51: 1.395348837 | P51: =IF(kuljetuslaskuri!$H$17,kuljetuslaskuri!$D$17,0) -> 25 | Q51: =IF(kuljetuslaskuri!$H$18,kuljetuslaskuri!$D$18,0) -> 0 | R51: =IF(kuljetuslaskuri!$G$19,kuljetuslaskuri!#REF!,0) -> 0 | S51: =AVERAGE(IF(P51:R51<>0, P51:R51,"")) -> 25 | T51: =S51*kuljetuslaskuri!$D$19% -> 23.75 | U51: 9.5 | V51: =kuljetuslaskuri!$D$24% -> 0 | W51: 15.94 | X51: 37.27975344 | Y51: 90.33877039 | Z51: 7.692307692 | AA51: 7.5 | AB51: =kuljetuslaskuri!$D$25*(laskentapohja!C51/laskentapohja!T51) -> 2.526315789 | AC51: 108.0573939 | AD51: 3.601913129 | AE51: 0.2776302382 | AG51: 108.0573939 | AH51: 0.2776302382 | AJ51: 0.8364895377 | AK51: -1.117718599 | AV51: =IF(kuljetuslaskuri!$H$45,kuljetuslaskuri!$D$45,0) -> 20 | AW51: =IF(kuljetuslaskuri!$H$46,kuljetuslaskuri!$D$46,0) -> 0 | AX51: =IF(kuljetuslaskuri!$G$19,kuljetuslaskuri!#REF!,0) -> 0 | AY51: =AVERAGE(IF(AV51:AX51<>0, AV51:AX51,"")) -> 20 | AZ51: =AY51*kuljetuslaskuri!$D$47% -> 19 | BA51: 9.5 | BB51: =kuljetuslaskuri!$D$52% -> 0 | BC51: 15.94 | BD51: 37.18065451 | BE51: 112.923463 | BF51: 7.5 | BG51: 7.5 | BH51: =kuljetuslaskuri!$D$53*(laskentapohja!C51/laskentapohja!AZ51) -> 3.157894737 | BI51: 131.0813577 | BJ51: 12 | BK51: 143.0813577 | BL51: 4.769378591 | BM51: 0.2096709206 | BO51: 63.03347976 | BP51: 136.8726989 | BQ51: 199.9061787 | BS51: 0.39 | BT51: 111.15 | BV51: =kuljetuslaskuri!$D$74 -> 71.1 | BX51: 182.25 | BZ51: =N_arvo*N_maara*kuljetuslaskuri!$E$87%*C51 -> 59.4 | CA51: =P_arvo*P_maara*kuljetuslaskuri!$E$88%*C51 -> 41.04 | CB51: =K_arvo*K_maara*kuljetuslaskuri!$E$89%*C51 -> 79.2 | CC51: 179.64
B52: =kuljetuslaskuri!$D$31 -> 2500 | C52: =kuljetuslaskuri!$D$12 -> 30 | D52: =kuljetuslaskuri!$D$33 -> 14 | E52: =kuljetuslaskuri!$D$34 -> 4000 | F52: 12 | G52: 2.142857143 | H52: 7.5 | I52: 2 | J52: =kuljetuslaskuri!$D$35 -> 0 | K52: 21.5 | L52: 0.7166666667 | N52: 1.395348837 | P52: =IF(kuljetuslaskuri!$H$17,kuljetuslaskuri!$D$17,0) -> 25 | Q52: =IF(kuljetuslaskuri!$H$18,kuljetuslaskuri!$D$18,0) -> 0 | R52: =IF(kuljetuslaskuri!$G$19,kuljetuslaskuri!#REF!,0) -> 0 | S52: =AVERAGE(IF(P52:R52<>0, P52:R52,"")) -> 25 | T52: =S52*kuljetuslaskuri!$D$19% -> 23.75 | U52: 9.75 | V52: =kuljetuslaskuri!$D$24% -> 0 | W52: 15.94 | X52: 37.8413259 | Y52: 92.71610645 | Z52: 7.692307692 | AA52: 7.5 | AB52: =kuljetuslaskuri!$D$25*(laskentapohja!C52/laskentapohja!T52) -> 2.526315789 | AC52: 110.4347299 | AD52: 3.681157664 | AE52: 0.2716536729 | AG52: 110.4347299 | AH52: 0.2716536729 | AJ52: 0.833501255 | AK52: -1.123695164 | AV52: =IF(kuljetuslaskuri!$H$45,kuljetuslaskuri!$D$45,0) -> 20 | AW52: =IF(kuljetuslaskuri!$H$46,kuljetuslaskuri!$D$46,0) -> 0 | AX52: =IF(kuljetuslaskuri!$G$19,kuljetuslaskuri!#REF!,0) -> 0 | AY52: =AVERAGE(IF(AV52:AX52<>0, AV52:AX52,"")) -> 20 | AZ52: =AY52*kuljetuslaskuri!$D$47% -> 19 | BA52: 9.75 | BB52: =kuljetuslaskuri!$D$52% -> 0 | BC52: 15.94 | BD52: 37.73256648 | BE52: 115.8951331 | BF52: 7.5 | BG52: 7.5 | BH52: =kuljetuslaskuri!$D$53*(laskentapohja!C52/laskentapohja!AZ52) -> 3.157894737 | BI52: 134.0530278 | BJ52: 12 | BK52: 146.0530278 | BL52: 4.86843426 | BM52: 0.2054048482 | BO52: 64.42025913 | BP52: 139.8839912 | BQ52: 204.3042504 | BS52: 0.39 | BT52: 114.075 | BV52: =kuljetuslaskuri!$D$74 -> 71.1 | BX52: 185.175 | BZ52: =N_arvo*N_maara*kuljetuslaskuri!$E$87%*C52 -> 59.4 | CA52: =P_arvo*P_maara*kuljetuslaskuri!$E$88%*C52 -> 41.04 | CB52: =K_arvo*K_maara*kuljetuslaskuri!$E$89%*C52 -> 79.2 | CC52: 179.64
B53: =kuljetuslaskuri!$D$31 -> 2500 | C53: =kuljetuslaskuri!$D$12 -> 30 | D53: =kuljetuslaskuri!$D$33 -> 14 | E53: =kuljetuslaskuri!$D$34 -> 4000 | F53: 12 | G53: 2.142857143 | H53: 7.5 | I53: 2 | J53: =kuljetuslaskuri!$D$35 -> 0 | K53: 21.5 | L53: 0.7166666667 | N53: 1.395348837 | P53: =IF(kuljetuslaskuri!$H$17,kuljetuslaskuri!$D$17,0) -> 25 | Q53: =IF(kuljetuslaskuri!$H$18,kuljetuslaskuri!$D$18,0) -> 0 | R53: =IF(kuljetuslaskuri!$G$19,kuljetuslaskuri!#REF!,0) -> 0 | S53: =AVERAGE(IF(P53:R53<>0, P53:R53,"")) -> 25 | T53: =S53*kuljetuslaskuri!$D$19% -> 23.75 | U53: 10 | V53: =kuljetuslaskuri!$D$24% -> 0 | W53: 15.94 | X53: 38.40289836 | Y53: 95.09344251 | Z53: 7.692307692 | AA53: 7.5 | AB53: =kuljetuslaskuri!$D$25*(laskentapohja!C53/laskentapohja!T53) -> 2.526315789 | AC53: 112.812066 | AD53: 3.7604022 | AE53: 0.2659290009 | AG53: 112.812066 | AH53: 0.2659290009 | AJ53: 0.8306389191 | AK53: -1.129419836 | AV53: =IF(kuljetuslaskuri!$H$45,kuljetuslaskuri!$D$45,0) -> 20 | AW53: =IF(kuljetuslaskuri!$H$46,kuljetuslaskuri!$D$46,0) -> 0 | AX53: =IF(kuljetuslaskuri!$G$19,kuljetuslaskuri!#REF!,0) -> 0 | AY53: =AVERAGE(IF(AV53:AX53<>0, AV53:AX53,"")) -> 20 | AZ53: =AY53*kuljetuslaskuri!$D$47% -> 19 | BA53: 10 | BB53: =kuljetuslaskuri!$D$52% -> 0 | BC53: 15.94 | BD53: 38.28447844 | BE53: 118.8668031 | BF53: 7.5 | BG53: 7.5 | BH53: =kuljetuslaskuri!$D$53*(laskentapohja!C53/laskentapohja!AZ53) -> 3.157894737 | BI53: 137.0246979 | BJ53: 12 | BK53: 149.0246979 | BL53: 4.967489929 | BM53: 0.2013089134 | BO53: 65.8070385 | BP53: 142.8952836 | BQ53: 208.7023221 | BS53: 0.39 | BT53: 117 | BV53: =kuljetuslaskuri!$D$74 -> 71.1 | BX53: 188.1 | BZ53: =N_arvo*N_maara*kuljetuslaskuri!$E$87%*C53 -> 59.4 | CA53: =P_arvo*P_maara*kuljetuslaskuri!$E$88%*C53 -> 41.04 | CB53: =K_arvo*K_maara*kuljetuslaskuri!$E$89%*C53 -> 79.2 | CC53: 179.64
B54: =kuljetuslaskuri!$D$31 -> 2500 | C54: =kuljetuslaskuri!$D$12 -> 30 | D54: =kuljetuslaskuri!$D$33 -> 14 | E54: =kuljetuslaskuri!$D$34 -> 4000 | F54: 12 | G54: 2.142857143 | H54: 7.5 | I54: 2 | J54: =kuljetuslaskuri!$D$35 -> 0 | K54: 21.5 | L54: 0.7166666667 | N54: 1.395348837 | P54: =IF(kuljetuslaskuri!$H$17,kuljetuslaskuri!$D$17,0) -> 25 | Q54: =IF(kuljetuslaskuri!$H$18,kuljetuslaskuri!$D$18,0) -> 0 | R54: =IF(kuljetuslaskuri!$G$19,kuljetuslaskuri!#REF!,0) -> 0 | S54: =AVERAGE(IF(P54:R54<>0, P54:R54,"")) -> 25 | T54: =S54*kuljetuslaskuri!$D$19% -> 23.75 | U54: 10.25 | V54: =kuljetuslaskuri!$D$24% -> 0 | W54: 15.94 | X54: 38.96447082 | Y54: 97.47077858 | Z54: 7.692307692 | AA54: 7.5 | AB54: =kuljetuslaskuri!$D$25*(laskentapohja!C54/laskentapohja!T54) -> 2.526315789 | AC54: 115.1894021 | AD54: 3.839646735 | AE54: 0.2604406262 | AG54: 115.1894021 | AH54: 0.2604406262 | AJ54: 0.8278947317 | AK54: -1.134908211 | AV54: =IF(kuljetuslaskuri!$H$45,kuljetuslaskuri!$D$45,0) -> 20 | AW54: =IF(kuljetuslaskuri!$H$46,kuljetuslaskuri!$D$46,0) -> 0 | AX54: =IF(kuljetuslaskuri!$G$19,kuljetuslaskuri!#REF!,0) -> 0 | AY54: =AVERAGE(IF(AV54:AX54<>0, AV54:AX54,"")) -> 20 | AZ54: =AY54*kuljetuslaskuri!$D$47% -> 19 | BA54: 10.25 | BB54: =kuljetuslaskuri!$D$52% -> 0 | BC54: 15.94 | BD54: 38.8363904 | BE54: 121.8384732 | BF54: 7.5 | BG54: 7.5 | BH54: =kuljetuslaskuri!$D$53*(laskentapohja!C54/laskentapohja!AZ54) -> 3.157894737 | BI54: 139.996368 | BJ54: 12 | BK54: 151.996368 | BL54: 5.066545599 | BM54: 0.1973731373 | BO54: 67.19381787 | BP54: 145.9065759 | BQ54: 213.1003938 | BS54: 0.39 | BT54: 119.925 | BV54: =kuljetuslaskuri!$D$74 -> 71.1 | BX54: 191.025 | BZ54: =N_arvo*N_maara*kuljetuslaskuri!$E$87%*C54 -> 59.4 | CA54: =P_arvo*P_maara*kuljetuslaskuri!$E$88%*C54 -> 41.04 | CB54: =K_arvo*K_maara*kuljetuslaskuri!$E$89%*C54 -> 79.2 | CC54: 179.64
B55: =kuljetuslaskuri!$D$31 -> 2500 | C55: =kuljetuslaskuri!$D$12 -> 30 | D55: =kuljetuslaskuri!$D$33 -> 14 | E55: =kuljetuslaskuri!$D$34 -> 4000 | F55: 12 | G55: 2.142857143 | H55: 7.5 | I55: 2 | J55: =kuljetuslaskuri!$D$35 -> 0 | K55: 21.5 | L55: 0.7166666667 | N55: 1.395348837 | P55: =IF(kuljetuslaskuri!$H$17,kuljetuslaskuri!$D$17,0) -> 25 | Q55: =IF(kuljetuslaskuri!$H$18,kuljetuslaskuri!$D$18,0) -> 0 | R55: =IF(kuljetuslaskuri!$G$19,kuljetuslaskuri!#REF!,0) -> 0 | S55: =AVERAGE(IF(P55:R55<>0, P55:R55,"")) -> 25 | T55: =S55*kuljetuslaskuri!$D$19% -> 23.75 | U55: 10.5 | V55: =kuljetuslaskuri!$D$24% -> 0 | W55: 15.94 | X55: 39.52604328 | Y55: 99.84811464 | Z55: 7.692307692 | AA55: 7.5 | AB55: =kuljetuslaskuri!$D$25*(laskentapohja!C55/laskentapohja!T55) -> 2.526315789 | AC55: 117.5667381 | AD55: 3.918891271 | AE55: 0.2551742141 | AG55: 117.5667381 | AH55: 0.2551742141 | AJ55: 0.8252615256 | AK55: -1.140174623 | AV55: =IF(kuljetuslaskuri!$H$45,kuljetuslaskuri!$D$45,0) -> 20 | AW55: =IF(kuljetuslaskuri!$H$46,kuljetuslaskuri!$D$46,0) -> 0 | AX55: =IF(kuljetuslaskuri!$G$19,kuljetuslaskuri!#REF!,0) -> 0 | AY55: =AVERAGE(IF(AV55:AX55<>0, AV55:AX55,"")) -> 20 | AZ55: =AY55*kuljetuslaskuri!$D$47% -> 19 | BA55: 10.5 | BB55: =kuljetuslaskuri!$D$52% -> 0 | BC55: 15.94 | BD55: 39.38830236 | BE55: 124.8101433 | BF55: 7.5 | BG55: 7.5 | BH55: =kuljetuslaskuri!$D$53*(laskentapohja!C55/laskentapohja!AZ55) -> 3.157894737 | BI55: 142.968038 | BJ55: 12 | BK55: 154.968038 | BL55: 5.165601268 | BM55: 0.1935883062 | BO55: 68.58059724 | BP55: 148.9178683 | BQ55: 217.4984655 | BS55: 0.39 | BT55: 122.85 | BV55: =kuljetuslaskuri!$D$74 -> 71.1 | BX55: 193.95 | BZ55: =N_arvo*N_maara*kuljetuslaskuri!$E$87%*C55 -> 59.4 | CA55: =P_arvo*P_maara*kuljetuslaskuri!$E$88%*C55 -> 41.04 | CB55: =K_arvo*K_maara*kuljetuslaskuri!$E$89%*C55 -> 79.2 | CC55: 179.64
B56: =kuljetuslaskuri!$D$31 -> 2500 | C56: =kuljetuslaskuri!$D$12 -> 30 | D56: =kuljetuslaskuri!$D$33 -> 14 | E56: =kuljetuslaskuri!$D$34 -> 4000 | F56: 12 | G56: 2.142857143 | H56: 7.5 | I56: 2 | J56: =kuljetuslaskuri!$D$35 -> 0 | K56: 21.5 | L56: 0.7166666667 | N56: 1.395348837 | P56: =IF(kuljetuslaskuri!$H$17,kuljetuslaskuri!$D$17,0) -> 25 | Q56: =IF(kuljetuslaskuri!$H$18,kuljetuslaskuri!$D$18,0) -> 0 | R56: =IF(kuljetuslaskuri!$G$19,kuljetuslaskuri!#REF!,0) -> 0 | S56: =AVERAGE(IF(P56:R56<>0, P56:R56,"")) -> 25 | T56: =S56*kuljetuslaskuri!$D$19% -> 23.75 | U56: 10.75 | V56: =kuljetuslaskuri!$D$24% -> 0 | W56: 15.94 | X56: 40.08761574 | Y56: 102.2254507 | Z56: 7.692307692 | AA56: 7.5 | AB56: =kuljetuslaskuri!$D$25*(laskentapohja!C56/laskentapohja!T56) -> 2.526315789 | AC56: 119.9440742 | AD56: 3.998135806 | AE56: 0.2501165664 | AG56: 119.9440742 | AH56: 0.2501165664 | AJ56: 0.8227327018 | AK56: -1.145232271 | AV56: =IF(kuljetuslaskuri!$H$45,kuljetuslaskuri!$D$45,0) -> 20 | AW56: =IF(kuljetuslaskuri!$H$46,kuljetuslaskuri!$D$46,0) -> 0 | AX56: =IF(kuljetuslaskuri!$G$19,kuljetuslaskuri!#REF!,0) -> 0 | AY56: =AVERAGE(IF(AV56:AX56<>0, AV56:AX56,"")) -> 20 | AZ56: =AY56*kuljetuslaskuri!$D$47% -> 19 | BA56: 10.75 | BB56: =kuljetuslaskuri!$D$52% -> 0 | BC56: 15.94 | BD56: 39.94021432 | BE56: 127.7818134 | BF56: 7.5 | BG56: 7.5 | BH56: =kuljetuslaskuri!$D$53*(laskentapohja!C56/laskentapohja!AZ56) -> 3.157894737 | BI56: 145.9397081 | BJ56: 12 | BK56: 157.9397081 | BL56: 5.264656937 | BM56: 0.1899459 | BO56: 69.96737661 | BP56: 151.9291606 | BQ56: 221.8965372 | BS56: 0.39 | BT56: 125.775 | BV56: =kuljetuslaskuri!$D$74 -> 71.1 | BX56: 196.875 | BZ56: =N_arvo*N_maara*kuljetuslaskuri!$E$87%*C56 -> 59.4 | CA56: =P_arvo*P_maara*kuljetuslaskuri!$E$88%*C56 -> 41.04 | CB56: =K_arvo*K_maara*kuljetuslaskuri!$E$89%*C56 -> 79.2 | CC56: 179.64
B57: =kuljetuslaskuri!$D$31 -> 2500 | C57: =kuljetuslaskuri!$D$12 -> 30 | D57: =kuljetuslaskuri!$D$33 -> 14 | E57: =kuljetuslaskuri!$D$34 -> 4000 | F57: 12 | G57: 2.142857143 | H57: 7.5 | I57: 2 | J57: =kuljetuslaskuri!$D$35 -> 0 | K57: 21.5 | L57: 0.7166666667 | N57: 1.395348837 | P57: =IF(kuljetuslaskuri!$H$17,kuljetuslaskuri!$D$17,0) -> 25 | Q57: =IF(kuljetuslaskuri!$H$18,kuljetuslaskuri!$D$18,0) -> 0 | R57: =IF(kuljetuslaskuri!$G$19,kuljetuslaskuri!#REF!,0) -> 0 | S57: =AVERAGE(IF(P57:R57<>0, P57:R57,"")) -> 25 | T57: =S57*kuljetuslaskuri!$D$19% -> 23.75 | U57: 11 | V57: =kuljetuslaskuri!$D$24% -> 0 | W57: 15.94 | X57: 40.6491882 | Y57: 104.6027868 | Z57: 7.692307692 | AA57: 7.5 | AB57: =kuljetuslaskuri!$D$25*(laskentapohja!C57/laskentapohja!T57) -> 2.526315789 | AC57: 122.3214102 | AD57: 4.077380342 | AE57: 0.2452555112 | AG57: 122.3214102 | AH57: 0.2452555112 | AJ57: 0.8203021742 | AK57: -1.150093326 | AV57: =IF(kuljetuslaskuri!$H$45,kuljetuslaskuri!$D$45,0) -> 20 | AW57: =IF(kuljetuslaskuri!$H$46,kuljetuslaskuri!$D$46,0) -> 0 | AX57: =IF(kuljetuslaskuri!$G$19,kuljetuslaskuri!#REF!,0) -> 0 | AY57: =AVERAGE(IF(AV57:AX57<>0, AV57:AX57,"")) -> 20 | AZ57: =AY57*kuljetuslaskuri!$D$47% -> 19 | BA57: 11 | BB57: =kuljetuslaskuri!$D$52% -> 0 | BC57: 15.94 | BD57: 40.49212628 | BE57: 130.7534835 | BF57: 7.5 | BG57: 7.5 | BH57: =kuljetuslaskuri!$D$53*(laskentapohja!C57/laskentapohja!AZ57) -> 3.157894737 | BI57: 148.9113782 | BJ57: 12 | BK57: 160.9113782 | BL57: 5.363712606 | BM57: 0.1864380278 | BO57: 71.35415598 | BP57: 154.940453 | BQ57: 226.294609 | BS57: 0.39 | BT57: 128.7 | BV57: =kuljetuslaskuri!$D$74 -> 71.1 | BX57: 199.8 | BZ57: =N_arvo*N_maara*kuljetuslaskuri!$E$87%*C57 -> 59.4 | CA57: =P_arvo*P_maara*kuljetuslaskuri!$E$88%*C57 -> 41.04 | CB57: =K_arvo*K_maara*kuljetuslaskuri!$E$89%*C57 -> 79.2 | CC57: 179.64
B58: =kuljetuslaskuri!$D$31 -> 2500 | C58: =kuljetuslaskuri!$D$12 -> 30 | D58: =kuljetuslaskuri!$D$33 -> 14 | E58: =kuljetuslaskuri!$D$34 -> 4000 | F58: 12 | G58: 2.142857143 | H58: 7.5 | I58: 2 | J58: =kuljetuslaskuri!$D$35 -> 0 | K58: 21.5 | L58: 0.7166666667 | N58: 1.395348837 | P58: =IF(kuljetuslaskuri!$H$17,kuljetuslaskuri!$D$17,0) -> 25 | Q58: =IF(kuljetuslaskuri!$H$18,kuljetuslaskuri!$D$18,0) -> 0 | R58: =IF(kuljetuslaskuri!$G$19,kuljetuslaskuri!#REF!,0) -> 0 | S58: =AVERAGE(IF(P58:R58<>0, P58:R58,"")) -> 25 | T58: =S58*kuljetuslaskuri!$D$19% -> 23.75 | U58: 11.25 | V58: =kuljetuslaskuri!$D$24% -> 0 | W58: 15.94 | X58: 41.21076065 | Y58: 106.9801228 | Z58: 7.692307692 | AA58: 7.5 | AB58: =kuljetuslaskuri!$D$25*(laskentapohja!C58/laskentapohja!T58) -> 2.526315789 | AC58: 124.6987463 | AD58: 4.156624877 | AE58: 0.2405798044 | AG58: 124.6987463 | AH58: 0.2405798044 | AJ58: 0.8179643208 | AK58: -1.154769033 | AV58: =IF(kuljetuslaskuri!$H$45,kuljetuslaskuri!$D$45,0) -> 20 | AW58: =IF(kuljetuslaskuri!$H$46,kuljetuslaskuri!$D$46,0) -> 0 | AX58: =IF(kuljetuslaskuri!$G$19,kuljetuslaskuri!#REF!,0) -> 0 | AY58: =AVERAGE(IF(AV58:AX58<>0, AV58:AX58,"")) -> 20 | AZ58: =AY58*kuljetuslaskuri!$D$47% -> 19 | BA58: 11.25 | BB58: =kuljetuslaskuri!$D$52% -> 0 | BC58: 15.94 | BD58: 41.04403824 | BE58: 133.7251535 | BF58: 7.5 | BG58: 7.5 | BH58: =kuljetuslaskuri!$D$53*(laskentapohja!C58/laskentapohja!AZ58) -> 3.157894737 | BI58: 151.8830483 | BJ58: 12 | BK58: 163.8830483 | BL58: 5.462768276 | BM58: 0.1830573712 | BO58: 72.74093535 | BP58: 157.9517453 | BQ58: 230.6926807 | BS58: 0.39 | BT58: 131.625 | BV58: =kuljetuslaskuri!$D$74 -> 71.1 | BX58: 202.725 | BZ58: =N_arvo*N_maara*kuljetuslaskuri!$E$87%*C58 -> 59.4 | CA58: =P_arvo*P_maara*kuljetuslaskuri!$E$88%*C58 -> 41.04 | CB58: =K_arvo*K_maara*kuljetuslaskuri!$E$89%*C58 -> 79.2 | CC58: 179.64
B59: =kuljetuslaskuri!$D$31 -> 2500 | C59: =kuljetuslaskuri!$D$12 -> 30 | D59: =kuljetuslaskuri!$D$33 -> 14 | E59: =kuljetuslaskuri!$D$34 -> 4000 | F59: 12 | G59: 2.142857143 | H59: 7.5 | I59: 2 | J59: =kuljetuslaskuri!$D$35 -> 0 | K59: 21.5 | L59: 0.7166666667 | N59: 1.395348837 | P59: =IF(kuljetuslaskuri!$H$17,kuljetuslaskuri!$D$17,0) -> 25 | Q59: =IF(kuljetuslaskuri!$H$18,kuljetuslaskuri!$D$18,0) -> 0 | R59: =IF(kuljetuslaskuri!$G$19,kuljetuslaskuri!#REF!,0) -> 0 | S59: =AVERAGE(IF(P59:R59<>0, P59:R59,"")) -> 25 | T59: =S59*kuljetuslaskuri!$D$19% -> 23.75 | U59: 11.5 | V59: =kuljetuslaskuri!$D$24% -> 0 | W59: 15.94 | X59: 41.77233311 | Y59: 109.3574589 | Z59: 7.692307692 | AA59: 7.5 | AB59: =kuljetuslaskuri!$D$25*(laskentapohja!C59/laskentapohja!T59) -> 2.526315789 | AC59: 127.0760824 | AD59: 4.235869412 | AE59: 0.2360790437 | AG59: 127.0760824 | AH59: 0.2360790437 | AJ59: 0.8157139404 | AK59: -1.159269794 | AV59: =IF(kuljetuslaskuri!$H$45,kuljetuslaskuri!$D$45,0) -> 20 | AW59: =IF(kuljetuslaskuri!$H$46,kuljetuslaskuri!$D$46,0) -> 0 | AX59: =IF(kuljetuslaskuri!$G$19,kuljetuslaskuri!#REF!,0) -> 0 | AY59: =AVERAGE(IF(AV59:AX59<>0, AV59:AX59,"")) -> 20 | AZ59: =AY59*kuljetuslaskuri!$D$47% -> 19 | BA59: 11.5 | BB59: =kuljetuslaskuri!$D$52% -> 0 | BC59: 15.94 | BD59: 41.5959502 | BE59: 136.6968236 | BF59: 7.5 | BG59: 7.5 | BH59: =kuljetuslaskuri!$D$53*(laskentapohja!C59/laskentapohja!AZ59) -> 3.157894737 | BI59: 154.8547184 | BJ59: 12 | BK59: 166.8547184 | BL59: 5.561823945 | BM59: 0.1797971331 | BO59: 74.12771472 | BP59: 160.9630377 | BQ59: 235.0907524 | BS59: 0.39 | BT59: 134.55 | BV59: =kuljetuslaskuri!$D$74 -> 71.1 | BX59: 205.65 | BZ59: =N_arvo*N_maara*kuljetuslaskuri!$E$87%*C59 -> 59.4 | CA59: =P_arvo*P_maara*kuljetuslaskuri!$E$88%*C59 -> 41.04 | CB59: =K_arvo*K_maara*kuljetuslaskuri!$E$89%*C59 -> 79.2 | CC59: 179.64
B60: =kuljetuslaskuri!$D$31 -> 2500 | C60: =kuljetuslaskuri!$D$12 -> 30 | D60: =kuljetuslaskuri!$D$33 -> 14 | E60: =kuljetuslaskuri!$D$34 -> 4000 | F60: 12 | G60: 2.142857143 | H60: 7.5 | I60: 2 | J60: =kuljetuslaskuri!$D$35 -> 0 | K60: 21.5 | L60: 0.7166666667 | N60: 1.395348837 | P60: =IF(kuljetuslaskuri!$H$17,kuljetuslaskuri!$D$17,0) -> 25 | Q60: =IF(kuljetuslaskuri!$H$18,kuljetuslaskuri!$D$18,0) -> 0 | R60: =IF(kuljetuslaskuri!$G$19,kuljetuslaskuri!#REF!,0) -> 0 | S60: =AVERAGE(IF(P60:R60<>0, P60:R60,"")) -> 25 | T60: =S60*kuljetuslaskuri!$D$19% -> 23.75 | U60: 11.75 | V60: =kuljetuslaskuri!$D$24% -> 0 | W60: 15.94 | X60: 42.33390557 | Y60: 111.734795 | Z60: 7.692307692 | AA60: 7.5 | AB60: =kuljetuslaskuri!$D$25*(laskentapohja!C60/laskentapohja!T60) -> 2.526315789 | AC60: 129.4534184 | AD60: 4.315113948 | AE60: 0.2317435906 | AG60: 129.4534184 | AH60: 0.2317435906 | AJ60: 0.8135462139 | AK60: -1.163605247 | AV60: =IF(kuljetuslaskuri!$H$45,kuljetuslaskuri!$D$45,0) -> 20 | AW60: =IF(kuljetuslaskuri!$H$46,kuljetuslaskuri!$D$46,0) -> 0 | AX60: =IF(kuljetuslaskuri!$G$19,kuljetuslaskuri!#REF!,0) -> 0 | AY60: =AVERAGE(IF(AV60:AX60<>0, AV60:AX60,"")) -> 20 | AZ60: =AY60*kuljetuslaskuri!$D$47% -> 19 | BA60: 11.75 | BB60: =kuljetuslaskuri!$D$52% -> 0 | BC60: 15.94 | BD60: 42.14786216 | BE60: 139.6684937 | BF60: 7.5 | BG60: 7.5 | BH60: =kuljetuslaskuri!$D$53*(laskentapohja!C60/laskentapohja!AZ60) -> 3.157894737 | BI60: 157.8263884 | BJ60: 12 | BK60: 169.8263884 | BL60: 5.660879614 | BM60: 0.1766509921 | BO60: 75.51449409 | BP60: 163.97433 | BQ60: 239.4888241 | BS60: 0.39 | BT60: 137.475 | BV60: =kuljetuslaskuri!$D$74 -> 71.1 | BX60: 208.575 | BZ60: =N_arvo*N_maara*kuljetuslaskuri!$E$87%*C60 -> 59.4 | CA60: =P_arvo*P_maara*kuljetuslaskuri!$E$88%*C60 -> 41.04 | CB60: =K_arvo*K_maara*kuljetuslaskuri!$E$89%*C60 -> 79.2 | CC60: 179.64
B61: =kuljetuslaskuri!$D$31 -> 2500 | C61: =kuljetuslaskuri!$D$12 -> 30 | D61: =kuljetuslaskuri!$D$33 -> 14 | E61: =kuljetuslaskuri!$D$34 -> 4000 | F61: 12 | G61: 2.142857143 | H61: 7.5 | I61: 2 | J61: =kuljetuslaskuri!$D$35 -> 0 | K61: 21.5 | L61: 0.7166666667 | N61: 1.395348837 | P61: =IF(kuljetuslaskuri!$H$17,kuljetuslaskuri!$D$17,0) -> 25 | Q61: =IF(kuljetuslaskuri!$H$18,kuljetuslaskuri!$D$18,0) -> 0 | R61: =IF(kuljetuslaskuri!$G$19,kuljetuslaskuri!#REF!,0) -> 0 | S61: =AVERAGE(IF(P61:R61<>0, P61:R61,"")) -> 25 | T61: =S61*kuljetuslaskuri!$D$19% -> 23.75 | U61: 12 | V61: =kuljetuslaskuri!$D$24% -> 0 | W61: 15.94 | X61: 42.89547803 | Y61: 114.112131 | Z61: 7.692307692 | AA61: 7.5 | AB61: =kuljetuslaskuri!$D$25*(laskentapohja!C61/laskentapohja!T61) -> 2.526315789 | AC61: 131.8307545 | AD61: 4.394358483 | AE61: 0.227564502 | AG61: 131.8307545 | AH61: 0.227564502 | AJ61: 0.8114566696 | AK61: -1.167784335 | AV61: =IF(kuljetuslaskuri!$H$45,kuljetuslaskuri!$D$45,0) -> 20 | AW61: =IF(kuljetuslaskuri!$H$46,kuljetuslaskuri!$D$46,0) -> 0 | AX61: =IF(kuljetuslaskuri!$G$19,kuljetuslaskuri!#REF!,0) -> 0 | AY61: =AVERAGE(IF(AV61:AX61<>0, AV61:AX61,"")) -> 20 | AZ61: =AY61*kuljetuslaskuri!$D$47% -> 19 | BA61: 12 | BB61: =kuljetuslaskuri!$D$52% -> 0 | BC61: 15.94 | BD61: 42.69977412 | BE61: 142.6401638 | BF61: 7.5 | BG61: 7.5 | BH61: =kuljetuslaskuri!$D$53*(laskentapohja!C61/laskentapohja!AZ61) -> 3.157894737 | BI61: 160.7980585 | BJ61: 12 | BK61: 172.7980585 | BL61: 5.759935284 | BM61: 0.1736130617 | BO61: 76.90127346 | BP61: 166.9856224 | BQ61: 243.8868958 | BS61: 0.39 | BT61: 140.4 | BV61: =kuljetuslaskuri!$D$74 -> 71.1 | BX61: 211.5 | BZ61: =N_arvo*N_maara*kuljetuslaskuri!$E$87%*C61 -> 59.4 | CA61: =P_arvo*P_maara*kuljetuslaskuri!$E$88%*C61 -> 41.04 | CB61: =K_arvo*K_maara*kuljetuslaskuri!$E$89%*C61 -> 79.2 | CC61: 179.64
B62: =kuljetuslaskuri!$D$31 -> 2500 | C62: =kuljetuslaskuri!$D$12 -> 30 | D62: =kuljetuslaskuri!$D$33 -> 14 | E62: =kuljetuslaskuri!$D$34 -> 4000 | F62: 12 | G62: 2.142857143 | H62: 7.5 | I62: 2 | J62: =kuljetuslaskuri!$D$35 -> 0 | K62: 21.5 | L62: 0.7166666667 | N62: 1.395348837 | P62: =IF(kuljetuslaskuri!$H$17,kuljetuslaskuri!$D$17,0) -> 25 | Q62: =IF(kuljetuslaskuri!$H$18,kuljetuslaskuri!$D$18,0) -> 0 | R62: =IF(kuljetuslaskuri!$G$19,kuljetuslaskuri!#REF!,0) -> 0 | S62: =AVERAGE(IF(P62:R62<>0, P62:R62,"")) -> 25 | T62: =S62*kuljetuslaskuri!$D$19% -> 23.75 | U62: 12.25 | V62: =kuljetuslaskuri!$D$24% -> 0 | W62: 15.94 | X62: 43.45705049 | Y62: 116.4894671 | Z62: 7.692307692 | AA62: 7.5 | AB62: =kuljetuslaskuri!$D$25*(laskentapohja!C62/laskentapohja!T62) -> 2.526315789 | AC62: 134.2080906 | AD62: 4.473603019 | AE62: 0.2235334686 | AG62: 134.2080906 | AH62: 0.2235334686 | AJ62: 0.8094411529 | AK62: -1.171815369 | AV62: =IF(kuljetuslaskuri!$H$45,kuljetuslaskuri!$D$45,0) -> 20 | AW62: =IF(kuljetuslaskuri!$H$46,kuljetuslaskuri!$D$46,0) -> 0 | AX62: =IF(kuljetuslaskuri!$G$19,kuljetuslaskuri!#REF!,0) -> 0 | AY62: =AVERAGE(IF(AV62:AX62<>0, AV62:AX62,"")) -> 20 | AZ62: =AY62*kuljetuslaskuri!$D$47% -> 19 | BA62: 12.25 | BB62: =kuljetuslaskuri!$D$52% -> 0 | BC62: 15.94 | BD62: 43.25168608 | BE62: 145.6118339 | BF62: 7.5 | BG62: 7.5 | BH62: =kuljetuslaskuri!$D$53*(laskentapohja!C62/laskentapohja!AZ62) -> 3.157894737 | BI62: 163.7697286 | BJ62: 12 | BK62: 175.7697286 | BL62: 5.858990953 | BM62: 0.1706778536 | BO62: 78.28805283 | BP62: 169.9969147 | BQ62: 248.2849675 | BS62: 0.39 | BT62: 143.325 | BV62: =kuljetuslaskuri!$D$74 -> 71.1 | BX62: 214.425 | BZ62: =N_arvo*N_maara*kuljetuslaskuri!$E$87%*C62 -> 59.4 | CA62: =P_arvo*P_maara*kuljetuslaskuri!$E$88%*C62 -> 41.04 | CB62: =K_arvo*K_maara*kuljetuslaskuri!$E$89%*C62 -> 79.2 | CC62: 179.64
B63: =kuljetuslaskuri!$D$31 -> 2500 | C63: =kuljetuslaskuri!$D$12 -> 30 | D63: =kuljetuslaskuri!$D$33 -> 14 | E63: =kuljetuslaskuri!$D$34 -> 4000 | F63: 12 | G63: 2.142857143 | H63: 7.5 | I63: 2 | J63: =kuljetuslaskuri!$D$35 -> 0 | K63: 21.5 | L63: 0.7166666667 | N63: 1.395348837 | P63: =IF(kuljetuslaskuri!$H$17,kuljetuslaskuri!$D$17,0) -> 25 | Q63: =IF(kuljetuslaskuri!$H$18,kuljetuslaskuri!$D$18,0) -> 0 | R63: =IF(kuljetuslaskuri!$G$19,kuljetuslaskuri!#REF!,0) -> 0 | S63: =AVERAGE(IF(P63:R63<>0, P63:R63,"")) -> 25 | T63: =S63*kuljetuslaskuri!$D$19% -> 23.75 | U63: 12.5 | V63: =kuljetuslaskuri!$D$24% -> 0 | W63: 15.94 | X63: 44.01862295 | Y63: 118.8668031 | Z63: 7.692307692 | AA63: 7.5 | AB63: =kuljetuslaskuri!$D$25*(laskentapohja!C63/laskentapohja!T63) -> 2.526315789 | AC63: 136.5854266 | AD63: 4.552847554 | AE63: 0.2196427594 | AG63: 136.5854266 | AH63: 0.2196427594 | AJ63: 0.8074957983 | AK63: -1.175706078 | AV63: =IF(kuljetuslaskuri!$H$45,kuljetuslaskuri!$D$45,0) -> 20 | AW63: =IF(kuljetuslaskuri!$H$46,kuljetuslaskuri!$D$46,0) -> 0 | AX63: =IF(kuljetuslaskuri!$G$19,kuljetuslaskuri!#REF!,0) -> 0 | AY63: =AVERAGE(IF(AV63:AX63<>0, AV63:AX63,"")) -> 20 | AZ63: =AY63*kuljetuslaskuri!$D$47% -> 19 | BA63: 12.5 | BB63: =kuljetuslaskuri!$D$52% -> 0 | BC63: 15.94 | BD63: 43.80359805 | BE63: 148.5835039 | BF63: 7.5 | BG63: 7.5 | BH63: =kuljetuslaskuri!$D$53*(laskentapohja!C63/laskentapohja!AZ63) -> 3.157894737 | BI63: 166.7413987 | BJ63: 12 | BK63: 178.7413987 | BL63: 5.958046622 | BM63: 0.1678402442 | BO63: 79.6748322 | BP63: 173.0082071 | BQ63: 252.6830393 | BS63: 0.39 | BT63: 146.25 | BV63: =kuljetuslaskuri!$D$74 -> 71.1 | BX63: 217.35 | BZ63: =N_arvo*N_maara*kuljetuslaskuri!$E$87%*C63 -> 59.4 | CA63: =P_arvo*P_maara*kuljetuslaskuri!$E$88%*C63 -> 41.04 | CB63: =K_arvo*K_maara*kuljetuslaskuri!$E$89%*C63 -> 79.2 | CC63: 179.64
B64: =kuljetuslaskuri!$D$31 -> 2500 | C64: =kuljetuslaskuri!$D$12 -> 30 | D64: =kuljetuslaskuri!$D$33 -> 14 | E64: =kuljetuslaskuri!$D$34 -> 4000 | F64: 12 | G64: 2.142857143 | H64: 7.5 | I64: 2 | J64: =kuljetuslaskuri!$D$35 -> 0 | K64: 21.5 | L64: 0.7166666667 | N64: 1.395348837 | P64: =IF(kuljetuslaskuri!$H$17,kuljetuslaskuri!$D$17,0) -> 25 | Q64: =IF(kuljetuslaskuri!$H$18,kuljetuslaskuri!$D$18,0) -> 0 | R64: =IF(kuljetuslaskuri!$G$19,kuljetuslaskuri!#REF!,0) -> 0 | S64: =AVERAGE(IF(P64:R64<>0, P64:R64,"")) -> 25 | T64: =S64*kuljetuslaskuri!$D$19% -> 23.75 | U64: 12.75 | V64: =kuljetuslaskuri!$D$24% -> 0 | W64: 15.94 | X64: 44.58019541 | Y64: 121.2441392 | Z64: 7.692307692 | AA64: 7.5 | AB64: =kuljetuslaskuri!$D$25*(laskentapohja!C64/laskentapohja!T64) -> 2.526315789 | AC64: 138.9627627 | AD64: 4.63209209 | AE64: 0.2158851725 | AG64: 138.9627627 | AH64: 0.2158851725 | AJ64: 0.8056170049 | AK64: -1.179463665 | AV64: =IF(kuljetuslaskuri!$H$45,kuljetuslaskuri!$D$45,0) -> 20 | AW64: =IF(kuljetuslaskuri!$H$46,kuljetuslaskuri!$D$46,0) -> 0 | AX64: =IF(kuljetuslaskuri!$G$19,kuljetuslaskuri!#REF!,0) -> 0 | AY64: =AVERAGE(IF(AV64:AX64<>0, AV64:AX64,"")) -> 20 | AZ64: =AY64*kuljetuslaskuri!$D$47% -> 19 | BA64: 12.75 | BB64: =kuljetuslaskuri!$D$52% -> 0 | BC64: 15.94 | BD64: 44.35551001 | BE64: 151.555174 | BF64: 7.5 | BG64: 7.5 | BH64: =kuljetuslaskuri!$D$53*(laskentapohja!C64/laskentapohja!AZ64) -> 3.157894737 | BI64: 169.7130687 | BJ64: 12 | BK64: 181.7130687 | BL64: 6.057102291 | BM64: 0.1650954453 | BO64: 81.06161157 | BP64: 176.0194994 | BQ64: 257.081111 | BS64: 0.39 | BT64: 149.175 | BV64: =kuljetuslaskuri!$D$74 -> 71.1 | BX64: 220.275 | BZ64: =N_arvo*N_maara*kuljetuslaskuri!$E$87%*C64 -> 59.4 | CA64: =P_arvo*P_maara*kuljetuslaskuri!$E$88%*C64 -> 41.04 | CB64: =K_arvo*K_maara*kuljetuslaskuri!$E$89%*C64 -> 79.2 | CC64: 179.64
B65: =kuljetuslaskuri!$D$31 -> 2500 | C65: =kuljetuslaskuri!$D$12 -> 30 | D65: =kuljetuslaskuri!$D$33 -> 14 | E65: =kuljetuslaskuri!$D$34 -> 4000 | F65: 12 | G65: 2.142857143 | H65: 7.5 | I65: 2 | J65: =kuljetuslaskuri!$D$35 -> 0 | K65: 21.5 | L65: 0.7166666667 | N65: 1.395348837 | P65: =IF(kuljetuslaskuri!$H$17,kuljetuslaskuri!$D$17,0) -> 25 | Q65: =IF(kuljetuslaskuri!$H$18,kuljetuslaskuri!$D$18,0) -> 0 | R65: =IF(kuljetuslaskuri!$G$19,kuljetuslaskuri!#REF!,0) -> 0 | S65: =AVERAGE(IF(P65:R65<>0, P65:R65,"")) -> 25 | T65: =S65*kuljetuslaskuri!$D$19% -> 23.75 | U65: 13 | V65: =kuljetuslaskuri!$D$24% -> 0 | W65: 15.94 | X65: 45.14176787 | Y65: 123.6214753 | Z65: 7.692307692 | AA65: 7.5 | AB65: =kuljetuslaskuri!$D$25*(laskentapohja!C65/laskentapohja!T65) -> 2.526315789 | AC65: 141.3400988 | AD65: 4.711336625 | AE65: 0.2122539907 | AG65: 141.3400988 | AH65: 0.2122539907 | AJ65: 0.8038014139 | AK65: -1.183094847 | AV65: =IF(kuljetuslaskuri!$H$45,kuljetuslaskuri!$D$45,0) -> 20 | AW65: =IF(kuljetuslaskuri!$H$46,kuljetuslaskuri!$D$46,0) -> 0 | AX65: =IF(kuljetuslaskuri!$G$19,kuljetuslaskuri!#REF!,0) -> 0 | AY65: =AVERAGE(IF(AV65:AX65<>0, AV65:AX65,"")) -> 20 | AZ65: =AY65*kuljetuslaskuri!$D$47% -> 19 | BA65: 13 | BB65: =kuljetuslaskuri!$D$52% -> 0 | BC65: 15.94 | BD65: 44.90742197 | BE65: 154.5268441 | BF65: 7.5 | BG65: 7.5 | BH65: =kuljetuslaskuri!$D$53*(laskentapohja!C65/laskentapohja!AZ65) -> 3.157894737 | BI65: 172.6847388 | BJ65: 12 | BK65: 184.6847388 | BL65: 6.156157961 | BM65: 0.1624389768 | BO65: 82.44839094 | BP65: 179.0307918 | BQ65: 261.4791827 | BS65: 0.39 | BT65: 152.1 | BV65: =kuljetuslaskuri!$D$74 -> 71.1 | BX65: 223.2 | BZ65: =N_arvo*N_maara*kuljetuslaskuri!$E$87%*C65 -> 59.4 | CA65: =P_arvo*P_maara*kuljetuslaskuri!$E$88%*C65 -> 41.04 | CB65: =K_arvo*K_maara*kuljetuslaskuri!$E$89%*C65 -> 79.2 | CC65: 179.64
B66: =kuljetuslaskuri!$D$31 -> 2500 | C66: =kuljetuslaskuri!$D$12 -> 30 | D66: =kuljetuslaskuri!$D$33 -> 14 | E66: =kuljetuslaskuri!$D$34 -> 4000 | F66: 12 | G66: 2.142857143 | H66: 7.5 | I66: 2 | J66: =kuljetuslaskuri!$D$35 -> 0 | K66: 21.5 | L66: 0.7166666667 | N66: 1.395348837 | P66: =IF(kuljetuslaskuri!$H$17,kuljetuslaskuri!$D$17,0) -> 25 | Q66: =IF(kuljetuslaskuri!$H$18,kuljetuslaskuri!$D$18,0) -> 0 | R66: =IF(kuljetuslaskuri!$G$19,kuljetuslaskuri!#REF!,0) -> 0 | S66: =AVERAGE(IF(P66:R66<>0, P66:R66,"")) -> 25 | T66: =S66*kuljetuslaskuri!$D$19% -> 23.75 | U66: 13.25 | V66: =kuljetuslaskuri!$D$24% -> 0 | W66: 15.94 | X66: 45.70334033 | Y66: 125.9988113 | Z66: 7.692307692 | AA66: 7.5 | AB66: =kuljetuslaskuri!$D$25*(laskentapohja!C66/laskentapohja!T66) -> 2.526315789 | AC66: 143.7174348 | AD66: 4.79058116 | AE66: 0.2087429409 | AG66: 143.7174348 | AH66: 0.2087429409 | AJ66: 0.802045889 | AK66: -1.186605896 | AV66: =IF(kuljetuslaskuri!$H$45,kuljetuslaskuri!$D$45,0) -> 20 | AW66: =IF(kuljetuslaskuri!$H$46,kuljetuslaskuri!$D$46,0) -> 0 | AX66: =IF(kuljetuslaskuri!$G$19,kuljetuslaskuri!#REF!,0) -> 0 | AY66: =AVERAGE(IF(AV66:AX66<>0, AV66:AX66,"")) -> 20 | AZ66: =AY66*kuljetuslaskuri!$D$47% -> 19 | BA66: 13.25 | BB66: =kuljetuslaskuri!$D$52% -> 0 | BC66: 15.94 | BD66: 45.45933393 | BE66: 157.4985142 | BF66: 7.5 | BG66: 7.5 | BH66: =kuljetuslaskuri!$D$53*(laskentapohja!C66/laskentapohja!AZ66) -> 3.157894737 | BI66: 175.6564089 | BJ66: 12 | BK66: 187.6564089 | BL66: 6.25521363 | BM66: 0.1598666423 | BO66: 83.83517031 | BP66: 182.0420841 | BQ66: 265.8772544 | BS66: 0.39 | BT66: 155.025 | BV66: =kuljetuslaskuri!$D$74 -> 71.1 | BX66: 226.125 | BZ66: =N_arvo*N_maara*kuljetuslaskuri!$E$87%*C66 -> 59.4 | CA66: =P_arvo*P_maara*kuljetuslaskuri!$E$88%*C66 -> 41.04 | CB66: =K_arvo*K_maara*kuljetuslaskuri!$E$89%*C66 -> 79.2 | CC66: 179.64
B67: =kuljetuslaskuri!$D$31 -> 2500 | C67: =kuljetuslaskuri!$D$12 -> 30 | D67: =kuljetuslaskuri!$D$33 -> 14 | E67: =kuljetuslaskuri!$D$34 -> 4000 | F67: 12 | G67: 2.142857143 | H67: 7.5 | I67: 2 | J67: =kuljetuslaskuri!$D$35 -> 0 | K67: 21.5 | L67: 0.7166666667 | N67: 1.395348837 | P67: =IF(kuljetuslaskuri!$H$17,kuljetuslaskuri!$D$17,0) -> 25 | Q67: =IF(kuljetuslaskuri!$H$18,kuljetuslaskuri!$D$18,0) -> 0 | R67: =IF(kuljetuslaskuri!$G$19,kuljetuslaskuri!#REF!,0) -> 0 | S67: =AVERAGE(IF(P67:R67<>0, P67:R67,"")) -> 25 | T67: =S67*kuljetuslaskuri!$D$19% -> 23.75 | U67: 13.5 | V67: =kuljetuslaskuri!$D$24% -> 0 | W67: 15.94 | X67: 46.26491279 | Y67: 128.3761474 | Z67: 7.692307692 | AA67: 7.5 | AB67: =kuljetuslaskuri!$D$25*(laskentapohja!C67/laskentapohja!T67) -> 2.526315789 | AC67: 146.0947709 | AD67: 4.869825696 | AE67: 0.2053461587 | AG67: 146.0947709 | AH67: 0.2053461587 | AJ67: 0.8003474979 | AK67: -1.190002679 | AV67: =IF(kuljetuslaskuri!$H$45,kuljetuslaskuri!$D$45,0) -> 20 | AW67: =IF(kuljetuslaskuri!$H$46,kuljetuslaskuri!$D$46,0) -> 0 | AX67: =IF(kuljetuslaskuri!$G$19,kuljetuslaskuri!#REF!,0) -> 0 | AY67: =AVERAGE(IF(AV67:AX67<>0, AV67:AX67,"")) -> 20 | AZ67: =AY67*kuljetuslaskuri!$D$47% -> 19 | BA67: 13.5 | BB67: =kuljetuslaskuri!$D$52% -> 0 | BC67: 15.94 | BD67: 46.01124589 | BE67: 160.4701842 | BF67: 7.5 | BG67: 7.5 | BH67: =kuljetuslaskuri!$D$53*(laskentapohja!C67/laskentapohja!AZ67) -> 3.157894737 | BI67: 178.628079 | BJ67: 12 | BK67: 190.628079 | BL67: 6.354269299 | BM67: 0.1573745073 | BO67: 85.22194968 | BP67: 185.0533764 | BQ67: 270.2753261 | BS67: 0.39 | BT67: 157.95 | BV67: =kuljetuslaskuri!$D$74 -> 71.1 | BX67: 229.05 | BZ67: =N_arvo*N_maara*kuljetuslaskuri!$E$87%*C67 -> 59.4 | CA67: =P_arvo*P_maara*kuljetuslaskuri!$E$88%*C67 -> 41.04 | CB67: =K_arvo*K_maara*kuljetuslaskuri!$E$89%*C67 -> 79.2 | CC67: 179.64
B68: =kuljetuslaskuri!$D$31 -> 2500 | C68: =kuljetuslaskuri!$D$12 -> 30 | D68: =kuljetuslaskuri!$D$33 -> 14 | E68: =kuljetuslaskuri!$D$34 -> 4000 | F68: 12 | G68: 2.142857143 | H68: 7.5 | I68: 2 | J68: =kuljetuslaskuri!$D$35 -> 0 | K68: 21.5 | L68: 0.7166666667 | N68: 1.395348837 | P68: =IF(kuljetuslaskuri!$H$17,kuljetuslaskuri!$D$17,0) -> 25 | Q68: =IF(kuljetuslaskuri!$H$18,kuljetuslaskuri!$D$18,0) -> 0 | R68: =IF(kuljetuslaskuri!$G$19,kuljetuslaskuri!#REF!,0) -> 0 | S68: =AVERAGE(IF(P68:R68<>0, P68:R68,"")) -> 25 | T68: =S68*kuljetuslaskuri!$D$19% -> 23.75 | U68: 13.75 | V68: =kuljetuslaskuri!$D$24% -> 0 | W68: 15.94 | X68: 46.82648524 | Y68: 130.7534835 | Z68: 7.692307692 | AA68: 7.5 | AB68: =kuljetuslaskuri!$D$25*(laskentapohja!C68/laskentapohja!T68) -> 2.526315789 | AC68: 148.4721069 | AD68: 4.949070231 | AE68: 0.202058155 | AG68: 148.4721069 | AH68: 0.202058155 | AJ68: 0.7987034961 | AK68: -1.193290682 | AV68: =IF(kuljetuslaskuri!$H$45,kuljetuslaskuri!$D$45,0) -> 20 | AW68: =IF(kuljetuslaskuri!$H$46,kuljetuslaskuri!$D$46,0) -> 0 | AX68: =IF(kuljetuslaskuri!$G$19,kuljetuslaskuri!#REF!,0) -> 0 | AY68: =AVERAGE(IF(AV68:AX68<>0, AV68:AX68,"")) -> 20 | AZ68: =AY68*kuljetuslaskuri!$D$47% -> 19 | BA68: 13.75 | BB68: =kuljetuslaskuri!$D$52% -> 0 | BC68: 15.94 | BD68: 46.56315785 | BE68: 163.4418543 | BF68: 7.5 | BG68: 7.5 | BH68: =kuljetuslaskuri!$D$53*(laskentapohja!C68/laskentapohja!AZ68) -> 3.157894737 | BI68: 181.5997491 | BJ68: 12 | BK68: 193.5997491 | BL68: 6.453324969 | BM68: 0.1549588785 | BO68: 86.60872905 | BP68: 188.0646688 | BQ68: 274.6733978 | BS68: 0.39 | BT68: 160.875 | BV68: =kuljetuslaskuri!$D$74 -> 71.1 | BX68: 231.975 | BZ68: =N_arvo*N_maara*kuljetuslaskuri!$E$87%*C68 -> 59.4 | CA68: =P_arvo*P_maara*kuljetuslaskuri!$E$88%*C68 -> 41.04 | CB68: =K_arvo*K_maara*kuljetuslaskuri!$E$89%*C68 -> 79.2 | CC68: 179.64
B69: =kuljetuslaskuri!$D$31 -> 2500 | C69: =kuljetuslaskuri!$D$12 -> 30 | D69: =kuljetuslaskuri!$D$33 -> 14 | E69: =kuljetuslaskuri!$D$34 -> 4000 | F69: 12 | G69: 2.142857143 | H69: 7.5 | I69: 2 | J69: =kuljetuslaskuri!$D$35 -> 0 | K69: 21.5 | L69: 0.7166666667 | N69: 1.395348837 | P69: =IF(kuljetuslaskuri!$H$17,kuljetuslaskuri!$D$17,0) -> 25 | Q69: =IF(kuljetuslaskuri!$H$18,kuljetuslaskuri!$D$18,0) -> 0 | R69: =IF(kuljetuslaskuri!$G$19,kuljetuslaskuri!#REF!,0) -> 0 | S69: =AVERAGE(IF(P69:R69<>0, P69:R69,"")) -> 25 | T69: =S69*kuljetuslaskuri!$D$19% -> 23.75 | U69: 14 | V69: =kuljetuslaskuri!$D$24% -> 0 | W69: 15.94 | X69: 47.3880577 | Y69: 133.1308195 | Z69: 7.692307692 | AA69: 7.5 | AB69: =kuljetuslaskuri!$D$25*(laskentapohja!C69/laskentapohja!T69) -> 2.526315789 | AC69: 150.849443 | AD69: 5.028314767 | AE69: 0.198873787 | AG69: 150.849443 | AH69: 0.198873787 | AJ69: 0.7971113121 | AK69: -1.19647505 | AV69: =IF(kuljetuslaskuri!$H$45,kuljetuslaskuri!$D$45,0) -> 20 | AW69: =IF(kuljetuslaskuri!$H$46,kuljetuslaskuri!$D$46,0) -> 0 | AX69: =IF(kuljetuslaskuri!$G$19,kuljetuslaskuri!#REF!,0) -> 0 | AY69: =AVERAGE(IF(AV69:AX69<>0, AV69:AX69,"")) -> 20 | AZ69: =AY69*kuljetuslaskuri!$D$47% -> 19 | BA69: 14 | BB69: =kuljetuslaskuri!$D$52% -> 0 | BC69: 15.94 | BD69: 47.11506981 | BE69: 166.4135244 | BF69: 7.5 | BG69: 7.5 | BH69: =kuljetuslaskuri!$D$53*(laskentapohja!C69/laskentapohja!AZ69) -> 3.157894737 | BI69: 184.5714191 | BJ69: 12 | BK69: 196.5714191 | BL69: 6.552380638 | BM69: 0.1526162864 | BO69: 87.99550842 | BP69: 191.0759611 | BQ69: 279.0714696 | BS69: 0.39 | BT69: 163.8 | BV69: =kuljetuslaskuri!$D$74 -> 71.1 | BX69: 234.9 | BZ69: =N_arvo*N_maara*kuljetuslaskuri!$E$87%*C69 -> 59.4 | CA69: =P_arvo*P_maara*kuljetuslaskuri!$E$88%*C69 -> 41.04 | CB69: =K_arvo*K_maara*kuljetuslaskuri!$E$89%*C69 -> 79.2 | CC69: 179.64
B70: =kuljetuslaskuri!$D$31 -> 2500 | C70: =kuljetuslaskuri!$D$12 -> 30 | D70: =kuljetuslaskuri!$D$33 -> 14 | E70: =kuljetuslaskuri!$D$34 -> 4000 | F70: 12 | G70: 2.142857143 | H70: 7.5 | I70: 2 | J70: =kuljetuslaskuri!$D$35 -> 0 | K70: 21.5 | L70: 0.7166666667 | N70: 1.395348837 | P70: =IF(kuljetuslaskuri!$H$17,kuljetuslaskuri!$D$17,0) -> 25 | Q70: =IF(kuljetuslaskuri!$H$18,kuljetuslaskuri!$D$18,0) -> 0 | R70: =IF(kuljetuslaskuri!$G$19,kuljetuslaskuri!#REF!,0) -> 0 | S70: =AVERAGE(IF(P70:R70<>0, P70:R70,"")) -> 25 | T70: =S70*kuljetuslaskuri!$D$19% -> 23.75 | U70: 14.25 | V70: =kuljetuslaskuri!$D$24% -> 0 | W70: 15.94 | X70: 47.94963016 | Y70: 135.5081556 | Z70: 7.692307692 | AA70: 7.5 | AB70: =kuljetuslaskuri!$D$25*(laskentapohja!C70/laskentapohja!T70) -> 2.526315789 | AC70: 153.2267791 | AD70: 5.107559302 | AE70: 0.1957882309 | AG70: 153.2267791 | AH70: 0.1957882309 | AJ70: 0.7955685341 | AK70: -1.199560606 | AV70: =IF(kuljetuslaskuri!$H$45,kuljetuslaskuri!$D$45,0) -> 20 | AW70: =IF(kuljetuslaskuri!$H$46,kuljetuslaskuri!$D$46,0) -> 0 | AX70: =IF(kuljetuslaskuri!$G$19,kuljetuslaskuri!#REF!,0) -> 0 | AY70: =AVERAGE(IF(AV70:AX70<>0, AV70:AX70,"")) -> 20 | AZ70: =AY70*kuljetuslaskuri!$D$47% -> 19 | BA70: 14.25 | BB70: =kuljetuslaskuri!$D$52% -> 0 | BC70: 15.94 | BD70: 47.66698177 | BE70: 169.3851945 | BF70: 7.5 | BG70: 7.5 | BH70: =kuljetuslaskuri!$D$53*(laskentapohja!C70/laskentapohja!AZ70) -> 3.157894737 | BI70: 187.5430892 | BJ70: 12 | BK70: 199.5430892 | BL70: 6.651436307 | BM70: 0.1503434678 | BO70: 89.38228779 | BP70: 194.0872535 | BQ70: 283.4695413 | BS70: 0.39 | BT70: 166.725 | BV70: =kuljetuslaskuri!$D$74 -> 71.1 | BX70: 237.825 | BZ70: =N_arvo*N_maara*kuljetuslaskuri!$E$87%*C70 -> 59.4 | CA70: =P_arvo*P_maara*kuljetuslaskuri!$E$88%*C70 -> 41.04 | CB70: =K_arvo*K_maara*kuljetuslaskuri!$E$89%*C70 -> 79.2 | CC70: 179.64
B71: =kuljetuslaskuri!$D$31 -> 2500 | C71: =kuljetuslaskuri!$D$12 -> 30 | D71: =kuljetuslaskuri!$D$33 -> 14 | E71: =kuljetuslaskuri!$D$34 -> 4000 | F71: 12 | G71: 2.142857143 | H71: 7.5 | I71: 2 | J71: =kuljetuslaskuri!$D$35 -> 0 | K71: 21.5 | L71: 0.7166666667 | N71: 1.395348837 | P71: =IF(kuljetuslaskuri!$H$17,kuljetuslaskuri!$D$17,0) -> 25 | Q71: =IF(kuljetuslaskuri!$H$18,kuljetuslaskuri!$D$18,0) -> 0 | R71: =IF(kuljetuslaskuri!$G$19,kuljetuslaskuri!#REF!,0) -> 0 | S71: =AVERAGE(IF(P71:R71<>0, P71:R71,"")) -> 25 | T71: =S71*kuljetuslaskuri!$D$19% -> 23.75 | U71: 14.5 | V71: =kuljetuslaskuri!$D$24% -> 0 | W71: 15.94 | X71: 48.51120262 | Y71: 137.8854916 | Z71: 7.692307692 | AA71: 7.5 | AB71: =kuljetuslaskuri!$D$25*(laskentapohja!C71/laskentapohja!T71) -> 2.526315789 | AC71: 155.6041151 | AD71: 5.186803838 | AE71: 0.1927969577 | AG71: 155.6041151 | AH71: 0.1927969577 | AJ71: 0.7940728974 | AK71: -1.20255188 | AV71: =IF(kuljetuslaskuri!$H$45,kuljetuslaskuri!$D$45,0) -> 20 | AW71: =IF(kuljetuslaskuri!$H$46,kuljetuslaskuri!$D$46,0) -> 0 | AX71: =IF(kuljetuslaskuri!$G$19,kuljetuslaskuri!#REF!,0) -> 0 | AY71: =AVERAGE(IF(AV71:AX71<>0, AV71:AX71,"")) -> 20 | AZ71: =AY71*kuljetuslaskuri!$D$47% -> 19 | BA71: 14.5 | BB71: =kuljetuslaskuri!$D$52% -> 0 | BC71: 15.94 | BD71: 48.21889373 | BE71: 172.3568646 | BF71: 7.5 | BG71: 7.5 | BH71: =kuljetuslaskuri!$D$53*(laskentapohja!C71/laskentapohja!AZ71) -> 3.157894737 | BI71: 190.5147593 | BJ71: 12 | BK71: 202.5147593 | BL71: 6.750491976 | BM71: 0.1481373511 | BO71: 90.76906716 | BP71: 197.0985458 | BQ71: 287.867613 | BS71: 0.39 | BT71: 169.65 | BV71: =kuljetuslaskuri!$D$74 -> 71.1 | BX71: 240.75 | BZ71: =N_arvo*N_maara*kuljetuslaskuri!$E$87%*C71 -> 59.4 | CA71: =P_arvo*P_maara*kuljetuslaskuri!$E$88%*C71 -> 41.04 | CB71: =K_arvo*K_maara*kuljetuslaskuri!$E$89%*C71 -> 79.2 | CC71: 179.64
B72: =kuljetuslaskuri!$D$31 -> 2500 | C72: =kuljetuslaskuri!$D$12 -> 30 | D72: =kuljetuslaskuri!$D$33 -> 14 | E72: =kuljetuslaskuri!$D$34 -> 4000 | F72: 12 | G72: 2.142857143 | H72: 7.5 | I72: 2 | J72: =kuljetuslaskuri!$D$35 -> 0 | K72: 21.5 | L72: 0.7166666667 | N72: 1.395348837 | P72: =IF(kuljetuslaskuri!$H$17,kuljetuslaskuri!$D$17,0) -> 25 | Q72: =IF(kuljetuslaskuri!$H$18,kuljetuslaskuri!$D$18,0) -> 0 | R72: =IF(kuljetuslaskuri!$G$19,kuljetuslaskuri!#REF!,0) -> 0 | S72: =AVERAGE(IF(P72:R72<>0, P72:R72,"")) -> 25 | T72: =S72*kuljetuslaskuri!$D$19% -> 23.75 | U72: 14.75 | V72: =kuljetuslaskuri!$D$24% -> 0 | W72: 15.94 | X72: 49.07277508 | Y72: 140.2628277 | Z72: 7.692307692 | AA72: 7.5 | AB72: =kuljetuslaskuri!$D$25*(laskentapohja!C72/laskentapohja!T72) -> 2.526315789 | AC72: 157.9814512 | AD72: 5.266048373 | AE72: 0.189895711 | AG72: 157.9814512 | AH72: 0.189895711 | AJ72: 0.7926222741 | AK72: -1.205453126 | AV72: =IF(kuljetuslaskuri!$H$45,kuljetuslaskuri!$D$45,0) -> 20 | AW72: =IF(kuljetuslaskuri!$H$46,kuljetuslaskuri!$D$46,0) -> 0 | AX72: =IF(kuljetuslaskuri!$G$19,kuljetuslaskuri!#REF!,0) -> 0 | AY72: =AVERAGE(IF(AV72:AX72<>0, AV72:AX72,"")) -> 20 | AZ72: =AY72*kuljetuslaskuri!$D$47% -> 19 | BA72: 14.75 | BB72: =kuljetuslaskuri!$D$52% -> 0 | BC72: 15.94 | BD72: 48.77080569 | BE72: 175.3285346 | BF72: 7.5 | BG72: 7.5 | BH72: =kuljetuslaskuri!$D$53*(laskentapohja!C72/laskentapohja!AZ72) -> 3.157894737 | BI72: 193.4864294 | BJ72: 12 | BK72: 205.4864294 | BL72: 6.849547646 | BM72: 0.1459950426 | BO72: 92.15584653 | BP72: 200.1098382 | BQ72: 292.2656847 | BS72: 0.39 | BT72: 172.575 | BV72: =kuljetuslaskuri!$D$74 -> 71.1 | BX72: 243.675 | BZ72: =N_arvo*N_maara*kuljetuslaskuri!$E$87%*C72 -> 59.4 | CA72: =P_arvo*P_maara*kuljetuslaskuri!$E$88%*C72 -> 41.04 | CB72: =K_arvo*K_maara*kuljetuslaskuri!$E$89%*C72 -> 79.2 | CC72: 179.64
B73: =kuljetuslaskuri!$D$31 -> 2500 | C73: =kuljetuslaskuri!$D$12 -> 30 | D73: =kuljetuslaskuri!$D$33 -> 14 | E73: =kuljetuslaskuri!$D$34 -> 4000 | F73: 12 | G73: 2.142857143 | H73: 7.5 | I73: 2 | J73: =kuljetuslaskuri!$D$35 -> 0 | K73: 21.5 | L73: 0.7166666667 | N73: 1.395348837 | P73: =IF(kuljetuslaskuri!$H$17,kuljetuslaskuri!$D$17,0) -> 25 | Q73: =IF(kuljetuslaskuri!$H$18,kuljetuslaskuri!$D$18,0) -> 0 | R73: =IF(kuljetuslaskuri!$G$19,kuljetuslaskuri!#REF!,0) -> 0 | S73: =AVERAGE(IF(P73:R73<>0, P73:R73,"")) -> 25 | T73: =S73*kuljetuslaskuri!$D$19% -> 23.75 | U73: 15 | V73: =kuljetuslaskuri!$D$24% -> 0 | W73: 15.94 | X73: 49.63434754 | Y73: 142.6401638 | Z73: 7.692307692 | AA73: 7.5 | AB73: =kuljetuslaskuri!$D$25*(laskentapohja!C73/laskentapohja!T73) -> 2.526315789 | AC73: 160.3587873 | AD73: 5.345292908 | AE73: 0.1870804869 | AG73: 160.3587873 | AH73: 0.1870804869 | AJ73: 0.7912146621 | AK73: -1.20826835 | AV73: =IF(kuljetuslaskuri!$H$45,kuljetuslaskuri!$D$45,0) -> 20 | AW73: =IF(kuljetuslaskuri!$H$46,kuljetuslaskuri!$D$46,0) -> 0 | AX73: =IF(kuljetuslaskuri!$G$19,kuljetuslaskuri!#REF!,0) -> 0 | AY73: =AVERAGE(IF(AV73:AX73<>0, AV73:AX73,"")) -> 20 | AZ73: =AY73*kuljetuslaskuri!$D$47% -> 19 | BA73: 15 | BB73: =kuljetuslaskuri!$D$52% -> 0 | BC73: 15.94 | BD73: 49.32271765 | BE73: 178.3002047 | BF73: 7.5 | BG73: 7.5 | BH73: =kuljetuslaskuri!$D$53*(laskentapohja!C73/laskentapohja!AZ73) -> 3.157894737 | BI73: 196.4580995 | BJ73: 12 | BK73: 208.4580995 | BL73: 6.948603315 | BM73: 0.1439138133 | BO73: 93.5426259 | BP73: 203.1211305 | BQ73: 296.6637564 | BS73: 0.39 | BT73: 175.5 | BV73: =kuljetuslaskuri!$D$74 -> 71.1 | BX73: 246.6 | BZ73: =N_arvo*N_maara*kuljetuslaskuri!$E$87%*C73 -> 59.4 | CA73: =P_arvo*P_maara*kuljetuslaskuri!$E$88%*C73 -> 41.04 | CB73: =K_arvo*K_maara*kuljetuslaskuri!$E$89%*C73 -> 79.2 | CC73: 179.64
B74: =kuljetuslaskuri!$D$31 -> 2500 | C74: =kuljetuslaskuri!$D$12 -> 30 | D74: =kuljetuslaskuri!$D$33 -> 14 | E74: =kuljetuslaskuri!$D$34 -> 4000 | F74: 12 | G74: 2.142857143 | H74: 7.5 | I74: 2 | J74: =kuljetuslaskuri!$D$35 -> 0 | K74: 21.5 | L74: 0.7166666667 | N74: 1.395348837 | P74: =IF(kuljetuslaskuri!$H$17,kuljetuslaskuri!$D$17,0) -> 25 | Q74: =IF(kuljetuslaskuri!$H$18,kuljetuslaskuri!$D$18,0) -> 0 | R74: =IF(kuljetuslaskuri!$G$19,kuljetuslaskuri!#REF!,0) -> 0 | S74: =AVERAGE(IF(P74:R74<>0, P74:R74,"")) -> 25 | T74: =S74*kuljetuslaskuri!$D$19% -> 23.75 | U74: 15.25 | V74: =kuljetuslaskuri!$D$24% -> 0 | W74: 15.94 | X74: 50 | Y74: 145.0174998 | Z74: 7.692307692 | AA74: 7.5 | AB74: =kuljetuslaskuri!$D$25*(laskentapohja!C74/laskentapohja!T74) -> 2.526315789 | AC74: 162.7361233 | AD74: 5.424537444 | AE74: 0.1843475154 | AG74: 162.7361233 | AH74: 0.1843475154 | AJ74: 0.7898481763 | AK74: -1.211001322 | AV74: =IF(kuljetuslaskuri!$H$45,kuljetuslaskuri!$D$45,0) -> 20 | AW74: =IF(kuljetuslaskuri!$H$46,kuljetuslaskuri!$D$46,0) -> 0 | AX74: =IF(kuljetuslaskuri!$G$19,kuljetuslaskuri!#REF!,0) -> 0 | AY74: =AVERAGE(IF(AV74:AX74<>0, AV74:AX74,"")) -> 20 | AZ74: =AY74*kuljetuslaskuri!$D$47% -> 19 | BA74: 15.25 | BB74: =kuljetuslaskuri!$D$52% -> 0 | BC74: 15.94 | BD74: 50 | BE74: 181.2718748 | BF74: 7.5 | BG74: 7.5 | BH74: =kuljetuslaskuri!$D$53*(laskentapohja!C74/laskentapohja!AZ74) -> 3.157894737 | BI74: 199.4297695 | BJ74: 12 | BK74: 211.4297695 | BL74: 7.047658984 | BM74: 0.1418910878 | BO74: 94.92940527 | BP74: 206.1324229 | BQ74: 301.0618281 | BS74: 0.39 | BT74: 178.425 | BV74: =kuljetuslaskuri!$D$74 -> 71.1 | BX74: 249.525 | BZ74: =N_arvo*N_maara*kuljetuslaskuri!$E$87%*C74 -> 59.4 | CA74: =P_arvo*P_maara*kuljetuslaskuri!$E$88%*C74 -> 41.04 | CB74: =K_arvo*K_maara*kuljetuslaskuri!$E$89%*C74 -> 79.2 | CC74: 179.64
B75: =kuljetuslaskuri!$D$31 -> 2500 | C75: =kuljetuslaskuri!$D$12 -> 30 | D75: =kuljetuslaskuri!$D$33 -> 14 | E75: =kuljetuslaskuri!$D$34 -> 4000 | F75: 12 | G75: 2.142857143 | H75: 7.5 | I75: 2 | J75: =kuljetuslaskuri!$D$35 -> 0 | K75: 21.5 | L75: 0.7166666667 | N75: 1.395348837 | P75: =IF(kuljetuslaskuri!$H$17,kuljetuslaskuri!$D$17,0) -> 25 | Q75: =IF(kuljetuslaskuri!$H$18,kuljetuslaskuri!$D$18,0) -> 0 | R75: =IF(kuljetuslaskuri!$G$19,kuljetuslaskuri!#REF!,0) -> 0 | S75: =AVERAGE(IF(P75:R75<>0, P75:R75,"")) -> 25 | T75: =S75*kuljetuslaskuri!$D$19% -> 23.75 | U75: 15.5 | V75: =kuljetuslaskuri!$D$24% -> 0 | W75: 15.94 | X75: 50 | Y75: 147.3948359 | Z75: 7.692307692 | AA75: 7.5 | AB75: =kuljetuslaskuri!$D$25*(laskentapohja!C75/laskentapohja!T75) -> 2.526315789 | AC75: 165.1134594 | AD75: 5.503781979 | AE75: 0.1816932436 | AG75: 165.1134594 | AH75: 0.1816932436 | AJ75: 0.7885210404 | AK75: -1.213655594 | AV75: =IF(kuljetuslaskuri!$H$45,kuljetuslaskuri!$D$45,0) -> 20 | AW75: =IF(kuljetuslaskuri!$H$46,kuljetuslaskuri!$D$46,0) -> 0 | AX75: =IF(kuljetuslaskuri!$G$19,kuljetuslaskuri!#REF!,0) -> 0 | AY75: =AVERAGE(IF(AV75:AX75<>0, AV75:AX75,"")) -> 20 | AZ75: =AY75*kuljetuslaskuri!$D$47% -> 19 | BA75: 15.5 | BB75: =kuljetuslaskuri!$D$52% -> 0 | BC75: 15.94 | BD75: 50 | BE75: 184.2435449 | BF75: 7.5 | BG75: 7.5 | BH75: =kuljetuslaskuri!$D$53*(laskentapohja!C75/laskentapohja!AZ75) -> 3.157894737 | BI75: 202.4014396 | BJ75: 12 | BK75: 214.4014396 | BL75: 7.146714654 | BM75: 0.1399244336 | BO75: 96.31618464 | BP75: 209.1437152 | BQ75: 305.4598999 | BS75: 0.39 | BT75: 181.35 | BV75: =kuljetuslaskuri!$D$74 -> 71.1 | BX75: 252.45 | BZ75: =N_arvo*N_maara*kuljetuslaskuri!$E$87%*C75 -> 59.4 | CA75: =P_arvo*P_maara*kuljetuslaskuri!$E$88%*C75 -> 41.04 | CB75: =K_arvo*K_maara*kuljetuslaskuri!$E$89%*C75 -> 79.2 | CC75: 179.64
B76: =kuljetuslaskuri!$D$31 -> 2500 | C76: =kuljetuslaskuri!$D$12 -> 30 | D76: =kuljetuslaskuri!$D$33 -> 14 | E76: =kuljetuslaskuri!$D$34 -> 4000 | F76: 12 | G76: =C76/D76 -> 2.142857143 | H76: =(C76*1000)/E76 -> 7.5 | I76: =Levityksen_apuaika -> 2 | J76: =kuljetuslaskuri!$D$35 -> 0 | K76: =(F76+H76+I76)*(1+J76%) -> 21.5 | L76: =K76/C76 -> 0.7166666667 | N76: 1.395348837 | P76: =IF(kuljetuslaskuri!$H$17,kuljetuslaskuri!$D$17,0) -> 25 | Q76: =IF(kuljetuslaskuri!$H$18,kuljetuslaskuri!$D$18,0) -> 0 | R76: =IF(kuljetuslaskuri!$G$19,kuljetuslaskuri!#REF!,0) -> 0 | S76: =AVERAGE(IF(P76:R76<>0, P76:R76,"")) -> 25 | T76: =S76*kuljetuslaskuri!$D$19% -> 23.75 | U76: 15.75 | V76: =kuljetuslaskuri!$D$24% -> 0 | W76: 15.94 | X76: 50 | Y76: =(C76/T76)*((U76*1000*0.12)/W76)*(1+V76) -> 149.772172 | Z76: =Levitys*1000/Last_nop -> 7.692307692 | AA76: =Levitys*1000/Purk_nop -> 7.5 | AB76: =kuljetuslaskuri!$D$25*(laskentapohja!C76/laskentapohja!T76) -> 2.526315789 | AC76: 167.4907954 | AD76: =AC76/C76 -> 5.583026515 | AE76: 0.1791143204 | AG76: =MAX(K76,AC76) -> 167.4907954 | AH76: =MIN(N76,AE76) -> 0.1791143204 | AJ76: 0.7872315788 | AK76: -1.216234517 | AV76: =IF(kuljetuslaskuri!$H$45,kuljetuslaskuri!$D$45,0) -> 20 | AW76: =IF(kuljetuslaskuri!$H$46,kuljetuslaskuri!$D$46,0) -> 0 | AX76: =IF(kuljetuslaskuri!$G$19,kuljetuslaskuri!#REF!,0) -> 0 | AY76: =AVERAGE(IF(AV76:AX76<>0, AV76:AX76,"")) -> 20 | AZ76: =AY76*kuljetuslaskuri!$D$47% -> 19 | BA76: 15.75 | BB76: =kuljetuslaskuri!$D$52% -> 0 | BC76: =Kulj_nop -> 15.94 | BD76: 50 | BE76: =(C76/AZ76)*((BA76*1000*0.12)/BC76) -> 187.215215 | BF76: =Levitys*1000/Last_nop2 -> 7.5 | BG76: =Levitys*1000/Levitys_kap2 -> 7.5 | BH76: =kuljetuslaskuri!$D$53*(laskentapohja!C76/laskentapohja!AZ76) -> 3.157894737 | BI76: 205.3731097 | BJ76: =(C76*1000)/B76 -> 12 | BK76: 217.3731097 | BL76: =BK76/C76 -> 7.245770323 | BM76: =IF(AW76>0,2*1/BL76,1/BL76) -> 0.1380115509 | BO76: =AC76/60*työ_kust -> 97.70296401 | BP76: =AC76/60*kone_kust -> 212.1550076 | BQ76: 309.8579716 | BS76: =kulj_taksa -> 0.39 | BT76: =BS76*C76*U76 -> 184.275 | BV76: =kuljetuslaskuri!$D$74 -> 71.1 | BX76: 255.375 | BZ76: =N_arvo*N_maara*kuljetuslaskuri!$E$87%*C76 -> 59.4 | CA76: =P_arvo*P_maara*kuljetuslaskuri!$E$88%*C76 -> 41.04 | CB76: =K_arvo*K_maara*kuljetuslaskuri!$E$89%*C76 -> 79.2 | CC76: 179.64
B77: =kuljetuslaskuri!$D$31 -> 2500 | C77: =kuljetuslaskuri!$D$12 -> 30 | D77: =kuljetuslaskuri!$D$33 -> 14 | E77: =kuljetuslaskuri!$D$34 -> 4000 | F77: =(C77*1000)/B77 -> 12 | G77: 2.142857143 | H77: 7.5 | I77: 2 | J77: =kuljetuslaskuri!$D$35 -> 0 | K77: 21.5 | L77: 0.7166666667 | N77: =1/L77 -> 1.395348837 | P77: =IF(kuljetuslaskuri!$H$17,kuljetuslaskuri!$D$17,0) -> 25 | Q77: =IF(kuljetuslaskuri!$H$18,kuljetuslaskuri!$D$18,0) -> 0 | R77: =IF(kuljetuslaskuri!$G$19,kuljetuslaskuri!#REF!,0) -> 0 | S77: =AVERAGE(IF(P77:R77<>0, P77:R77,"")) -> 25 | T77: =S77*kuljetuslaskuri!$D$19% -> 23.75 | U77: 16 | V77: =kuljetuslaskuri!$D$24% -> 0 | W77: 15.94 | X77: =IF(U77>15,50,LN(9.4526)*U77+15.94) -> 50 | Y77: 152.149508 | Z77: 7.692307692 | AA77: 7.5 | AB77: =kuljetuslaskuri!$D$25*(laskentapohja!C77/laskentapohja!T77) -> 2.526315789 | AC77: =SUM(Y77:AB77) -> 169.8681315 | AD77: 5.66227105 | AE77: =IF(Q77>0,2*1/AD77,1/AD77) -> 0.1766075822 | AG77: 169.8681315 | AH77: 0.1766075822 | AJ77: =N77+((AE77-N77)/2) -> 0.7859782097 | AK77: -1.218741255 | AV77: =IF(kuljetuslaskuri!$H$45,kuljetuslaskuri!$D$45,0) -> 20 | AW77: =IF(kuljetuslaskuri!$H$46,kuljetuslaskuri!$D$46,0) -> 0 | AX77: =IF(kuljetuslaskuri!$G$19,kuljetuslaskuri!#REF!,0) -> 0 | AY77: =AVERAGE(IF(AV77:AX77<>0, AV77:AX77,"")) -> 20 | AZ77: =AY77*kuljetuslaskuri!$D$47% -> 19 | BA77: 16 | BB77: =kuljetuslaskuri!$D$52% -> 0 | BC77: 15.94 | BD77: =IF(BA77>15,50,LN(9.0943)*BA77+16.208) -> 50 | BE77: 190.186885 | BF77: 7.5 | BG77: 7.5 | BH77: =kuljetuslaskuri!$D$53*(laskentapohja!C77/laskentapohja!AZ77) -> 3.157894737 | BI77: =SUM(BE77:BH77) -> 208.3447798 | BJ77: 12 | BK77: =SUM(BI77,BJ77)*(1+BB77) -> 220.3447798 | BL77: 7.344825992 | BM77: 0.1361502643 | BO77: 99.08974338 | BP77: 215.1662999 | BQ77: =SUM(BO77:BP77) -> 314.2560433 | BS77: 0.39 | BT77: 187.2 | BV77: =kuljetuslaskuri!$D$74 -> 71.1 | BX77: =BT77+BV77 -> 258.3 | BZ77: =N_arvo*N_maara*kuljetuslaskuri!$E$87%*C77 -> 59.4 | CA77: =P_arvo*P_maara*kuljetuslaskuri!$E$88%*C77 -> 41.04 | CB77: =K_arvo*K_maara*kuljetuslaskuri!$E$89%*C77 -> 79.2 | CC77: =SUM(BZ77:CB77) -> 179.64
B78: =kuljetuslaskuri!$D$31 -> 2500 | C78: =kuljetuslaskuri!$D$12 -> 30 | D78: =kuljetuslaskuri!$D$33 -> 14 | E78: =kuljetuslaskuri!$D$34 -> 4000 | F78: 12 | G78: 2.142857143 | H78: 7.5 | I78: 2 | J78: =kuljetuslaskuri!$D$35 -> 0 | K78: 21.5 | L78: 0.7166666667 | N78: 1.395348837 | P78: =IF(kuljetuslaskuri!$H$17,kuljetuslaskuri!$D$17,0) -> 25 | Q78: =IF(kuljetuslaskuri!$H$18,kuljetuslaskuri!$D$18,0) -> 0 | R78: =IF(kuljetuslaskuri!$G$19,kuljetuslaskuri!#REF!,0) -> 0 | S78: =AVERAGE(IF(P78:R78<>0, P78:R78,"")) -> 25 | T78: =S78*kuljetuslaskuri!$D$19% -> 23.75 | U78: 16.25 | V78: =kuljetuslaskuri!$D$24% -> 0 | W78: 15.94 | X78: 50 | Y78: 154.5268441 | Z78: 7.692307692 | AA78: 7.5 | AB78: =kuljetuslaskuri!$D$25*(laskentapohja!C78/laskentapohja!T78) -> 2.526315789 | AC78: 172.2454676 | AD78: 5.741515586 | AE78: 0.1741700401 | AG78: 172.2454676 | AH78: 0.1741700401 | AJ78: 0.7847594387 | AK78: -1.221178797 | AV78: =IF(kuljetuslaskuri!$H$45,kuljetuslaskuri!$D$45,0) -> 20 | AW78: =IF(kuljetuslaskuri!$H$46,kuljetuslaskuri!$D$46,0) -> 0 | AX78: =IF(kuljetuslaskuri!$G$19,kuljetuslaskuri!#REF!,0) -> 0 | AY78: =AVERAGE(IF(AV78:AX78<>0, AV78:AX78,"")) -> 20 | AZ78: =AY78*kuljetuslaskuri!$D$47% -> 19 | BA78: 16.25 | BB78: =kuljetuslaskuri!$D$52% -> 0 | BC78: 15.94 | BD78: 50 | BE78: 193.1585551 | BF78: 7.5 | BG78: 7.5 | BH78: =kuljetuslaskuri!$D$53*(laskentapohja!C78/laskentapohja!AZ78) -> 3.157894737 | BI78: 211.3164498 | BJ78: 12 | BK78: 223.3164498 | BL78: 7.443881661 | BM78: 0.1343385139 | BO78: 100.4765227 | BP78: 218.1775923 | BQ78: 318.654115 | BS78: 0.39 | BT78: 190.125 | BV78: =kuljetuslaskuri!$D$74 -> 71.1 | BX78: 261.225 | BZ78: =N_arvo*N_maara*kuljetuslaskuri!$E$87%*C78 -> 59.4 | CA78: =P_arvo*P_maara*kuljetuslaskuri!$E$88%*C78 -> 41.04 | CB78: =K_arvo*K_maara*kuljetuslaskuri!$E$89%*C78 -> 79.2 | CC78: 179.64
B79: =kuljetuslaskuri!$D$31 -> 2500 | C79: =kuljetuslaskuri!$D$12 -> 30 | D79: =kuljetuslaskuri!$D$33 -> 14 | E79: =kuljetuslaskuri!$D$34 -> 4000 | F79: 12 | G79: 2.142857143 | H79: 7.5 | I79: 2 | J79: =kuljetuslaskuri!$D$35 -> 0 | K79: 21.5 | L79: 0.7166666667 | N79: 1.395348837 | P79: =IF(kuljetuslaskuri!$H$17,kuljetuslaskuri!$D$17,0) -> 25 | Q79: =IF(kuljetuslaskuri!$H$18,kuljetuslaskuri!$D$18,0) -> 0 | R79: =IF(kuljetuslaskuri!$G$19,kuljetuslaskuri!#REF!,0) -> 0 | S79: =AVERAGE(IF(P79:R79<>0, P79:R79,"")) -> 25 | T79: =S79*kuljetuslaskuri!$D$19% -> 23.75 | U79: 16.5 | V79: =kuljetuslaskuri!$D$24% -> 0 | W79: 15.94 | X79: 50 | Y79: 156.9041801 | Z79: 7.692307692 | AA79: 7.5 | AB79: =kuljetuslaskuri!$D$25*(laskentapohja!C79/laskentapohja!T79) -> 2.526315789 | AC79: 174.6228036 | AD79: 5.820760121 | AE79: 0.1717988681 | AG79: 174.6228036 | AH79: 0.1717988681 | AJ79: 0.7835738526 | AK79: -1.223549969 | AV79: =IF(kuljetuslaskuri!$H$45,kuljetuslaskuri!$D$45,0) -> 20 | AW79: =IF(kuljetuslaskuri!$H$46,kuljetuslaskuri!$D$46,0) -> 0 | AX79: =IF(kuljetuslaskuri!$G$19,kuljetuslaskuri!#REF!,0) -> 0 | AY79: =AVERAGE(IF(AV79:AX79<>0, AV79:AX79,"")) -> 20 | AZ79: =AY79*kuljetuslaskuri!$D$47% -> 19 | BA79: 16.5 | BB79: =kuljetuslaskuri!$D$52% -> 0 | BC79: 15.94 | BD79: 50 | BE79: 196.1302252 | BF79: 7.5 | BG79: 7.5 | BH79: =kuljetuslaskuri!$D$53*(laskentapohja!C79/laskentapohja!AZ79) -> 3.157894737 | BI79: 214.2881199 | BJ79: 12 | BK79: 226.2881199 | BL79: 7.542937331 | BM79: 0.1325743482 | BO79: 101.8633021 | BP79: 221.1888846 | BQ79: 323.0521867 | BS79: 0.39 | BT79: 193.05 | BV79: =kuljetuslaskuri!$D$74 -> 71.1 | BX79: 264.15 | BZ79: =N_arvo*N_maara*kuljetuslaskuri!$E$87%*C79 -> 59.4 | CA79: =P_arvo*P_maara*kuljetuslaskuri!$E$88%*C79 -> 41.04 | CB79: =K_arvo*K_maara*kuljetuslaskuri!$E$89%*C79 -> 79.2 | CC79: 179.64
B80: =kuljetuslaskuri!$D$31 -> 2500 | C80: =kuljetuslaskuri!$D$12 -> 30 | D80: =kuljetuslaskuri!$D$33 -> 14 | E80: =kuljetuslaskuri!$D$34 -> 4000 | F80: 12 | G80: 2.142857143 | H80: 7.5 | I80: 2 | J80: =kuljetuslaskuri!$D$35 -> 0 | K80: 21.5 | L80: 0.7166666667 | N80: 1.395348837 | P80: =IF(kuljetuslaskuri!$H$17,kuljetuslaskuri!$D$17,0) -> 25 | Q80: =IF(kuljetuslaskuri!$H$18,kuljetuslaskuri!$D$18,0) -> 0 | R80: =IF(kuljetuslaskuri!$G$19,kuljetuslaskuri!#REF!,0) -> 0 | S80: =AVERAGE(IF(P80:R80<>0, P80:R80,"")) -> 25 | T80: =S80*kuljetuslaskuri!$D$19% -> 23.75 | U80: 16.75 | V80: =kuljetuslaskuri!$D$24% -> 0 | W80: 15.94 | X80: 50 | Y80: 159.2815162 | Z80: 7.692307692 | AA80: 7.5 | AB80: =kuljetuslaskuri!$D$25*(laskentapohja!C80/laskentapohja!T80) -> 2.526315789 | AC80: 177.0001397 | AD80: 5.900004656 | AE80: 0.1694913917 | AG80: 177.0001397 | AH80: 0.1694913917 | AJ80: 0.7824201144 | AK80: -1.225857446 | AV80: =IF(kuljetuslaskuri!$H$45,kuljetuslaskuri!$D$45,0) -> 20 | AW80: =IF(kuljetuslaskuri!$H$46,kuljetuslaskuri!$D$46,0) -> 0 | AX80: =IF(kuljetuslaskuri!$G$19,kuljetuslaskuri!#REF!,0) -> 0 | AY80: =AVERAGE(IF(AV80:AX80<>0, AV80:AX80,"")) -> 20 | AZ80: =AY80*kuljetuslaskuri!$D$47% -> 19 | BA80: 16.75 | BB80: =kuljetuslaskuri!$D$52% -> 0 | BC80: 15.94 | BD80: 50 | BE80: 199.1018953 | BF80: 7.5 | BG80: 7.5 | BH80: =kuljetuslaskuri!$D$53*(laskentapohja!C80/laskentapohja!AZ80) -> 3.157894737 | BI80: 217.25979 | BJ80: 12 | BK80: 229.25979 | BL80: 7.641993 | BM80: 0.1308559168 | BO80: 103.2500815 | BP80: 224.2001769 | BQ80: 327.4502584 | BS80: 0.39 | BT80: 195.975 | BV80: =kuljetuslaskuri!$D$74 -> 71.1 | BX80: 267.075 | BZ80: =N_arvo*N_maara*kuljetuslaskuri!$E$87%*C80 -> 59.4 | CA80: =P_arvo*P_maara*kuljetuslaskuri!$E$88%*C80 -> 41.04 | CB80: =K_arvo*K_maara*kuljetuslaskuri!$E$89%*C80 -> 79.2 | CC80: 179.64
B81: =kuljetuslaskuri!$D$31 -> 2500 | C81: =kuljetuslaskuri!$D$12 -> 30 | D81: =kuljetuslaskuri!$D$33 -> 14 | E81: =kuljetuslaskuri!$D$34 -> 4000 | F81: 12 | G81: 2.142857143 | H81: 7.5 | I81: 2 | J81: =kuljetuslaskuri!$D$35 -> 0 | K81: 21.5 | L81: 0.7166666667 | N81: 1.395348837 | P81: =IF(kuljetuslaskuri!$H$17,kuljetuslaskuri!$D$17,0) -> 25 | Q81: =IF(kuljetuslaskuri!$H$18,kuljetuslaskuri!$D$18,0) -> 0 | R81: =IF(kuljetuslaskuri!$G$19,kuljetuslaskuri!#REF!,0) -> 0 | S81: =AVERAGE(IF(P81:R81<>0, P81:R81,"")) -> 25 | T81: =S81*kuljetuslaskuri!$D$19% -> 23.75 | U81: 17 | V81: =kuljetuslaskuri!$D$24% -> 0 | W81: 15.94 | X81: 50 | Y81: 161.6588523 | Z81: 7.692307692 | AA81: 7.5 | AB81: =kuljetuslaskuri!$D$25*(laskentapohja!C81/laskentapohja!T81) -> 2.526315789 | AC81: 179.3774758 | AD81: 5.979249192 | AE81: 0.1672450784 | AG81: 179.3774758 | AH81: 0.1672450784 | AJ81: 0.7812969578 | AK81: -1.228103759 | AV81: =IF(kuljetuslaskuri!$H$45,kuljetuslaskuri!$D$45,0) -> 20 | AW81: =IF(kuljetuslaskuri!$H$46,kuljetuslaskuri!$D$46,0) -> 0 | AX81: =IF(kuljetuslaskuri!$G$19,kuljetuslaskuri!#REF!,0) -> 0 | AY81: =AVERAGE(IF(AV81:AX81<>0, AV81:AX81,"")) -> 20 | AZ81: =AY81*kuljetuslaskuri!$D$47% -> 19 | BA81: 17 | BB81: =kuljetuslaskuri!$D$52% -> 0 | BC81: 15.94 | BD81: 50 | BE81: 202.0735653 | BF81: 7.5 | BG81: 7.5 | BH81: =kuljetuslaskuri!$D$53*(laskentapohja!C81/laskentapohja!AZ81) -> 3.157894737 | BI81: 220.2314601 | BJ81: 12 | BK81: 232.2314601 | BL81: 7.741048669 | BM81: 0.129181464 | BO81: 104.6368609 | BP81: 227.2114693 | BQ81: 331.8483302 | BS81: 0.39 | BT81: 198.9 | BV81: =kuljetuslaskuri!$D$74 -> 71.1 | BX81: 270 | BZ81: =N_arvo*N_maara*kuljetuslaskuri!$E$87%*C81 -> 59.4 | CA81: =P_arvo*P_maara*kuljetuslaskuri!$E$88%*C81 -> 41.04 | CB81: =K_arvo*K_maara*kuljetuslaskuri!$E$89%*C81 -> 79.2 | CC81: 179.64
B82: =kuljetuslaskuri!$D$31 -> 2500 | C82: =kuljetuslaskuri!$D$12 -> 30 | D82: =kuljetuslaskuri!$D$33 -> 14 | E82: =kuljetuslaskuri!$D$34 -> 4000 | F82: 12 | G82: 2.142857143 | H82: 7.5 | I82: 2 | J82: =kuljetuslaskuri!$D$35 -> 0 | K82: 21.5 | L82: 0.7166666667 | N82: 1.395348837 | P82: =IF(kuljetuslaskuri!$H$17,kuljetuslaskuri!$D$17,0) -> 25 | Q82: =IF(kuljetuslaskuri!$H$18,kuljetuslaskuri!$D$18,0) -> 0 | R82: =IF(kuljetuslaskuri!$G$19,kuljetuslaskuri!#REF!,0) -> 0 | S82: =AVERAGE(IF(P82:R82<>0, P82:R82,"")) -> 25 | T82: =S82*kuljetuslaskuri!$D$19% -> 23.75 | U82: 17.25 | V82: =kuljetuslaskuri!$D$24% -> 0 | W82: 15.94 | X82: 50 | Y82: 164.0361883 | Z82: 7.692307692 | AA82: 7.5 | AB82: =kuljetuslaskuri!$D$25*(laskentapohja!C82/laskentapohja!T82) -> 2.526315789 | AC82: 181.7548118 | AD82: 6.058493727 | AE82: 0.1650575283 | AG82: 181.7548118 | AH82: 0.1650575283 | AJ82: 0.7802031828 | AK82: -1.230291309 | AV82: =IF(kuljetuslaskuri!$H$45,kuljetuslaskuri!$D$45,0) -> 20 | AW82: =IF(kuljetuslaskuri!$H$46,kuljetuslaskuri!$D$46,0) -> 0 | AX82: =IF(kuljetuslaskuri!$G$19,kuljetuslaskuri!#REF!,0) -> 0 | AY82: =AVERAGE(IF(AV82:AX82<>0, AV82:AX82,"")) -> 20 | AZ82: =AY82*kuljetuslaskuri!$D$47% -> 19 | BA82: 17.25 | BB82: =kuljetuslaskuri!$D$52% -> 0 | BC82: 15.94 | BD82: 50 | BE82: 205.0452354 | BF82: 7.5 | BG82: 7.5 | BH82: =kuljetuslaskuri!$D$53*(laskentapohja!C82/laskentapohja!AZ82) -> 3.157894737 | BI82: 223.2031302 | BJ82: 12 | BK82: 235.2031302 | BL82: 7.840104339 | BM82: 0.1275493229 | BO82: 106.0236402 | BP82: 230.2227616 | BQ82: 336.2464019 | BS82: 0.39 | BT82: 201.825 | BV82: =kuljetuslaskuri!$D$74 -> 71.1 | BX82: 272.925 | BZ82: =N_arvo*N_maara*kuljetuslaskuri!$E$87%*C82 -> 59.4 | CA82: =P_arvo*P_maara*kuljetuslaskuri!$E$88%*C82 -> 41.04 | CB82: =K_arvo*K_maara*kuljetuslaskuri!$E$89%*C82 -> 79.2 | CC82: 179.64
B83: =kuljetuslaskuri!$D$31 -> 2500 | C83: =kuljetuslaskuri!$D$12 -> 30 | D83: =kuljetuslaskuri!$D$33 -> 14 | E83: =kuljetuslaskuri!$D$34 -> 4000 | F83: 12 | G83: 2.142857143 | H83: 7.5 | I83: 2 | J83: =kuljetuslaskuri!$D$35 -> 0 | K83: 21.5 | L83: 0.7166666667 | N83: 1.395348837 | P83: =IF(kuljetuslaskuri!$H$17,kuljetuslaskuri!$D$17,0) -> 25 | Q83: =IF(kuljetuslaskuri!$H$18,kuljetuslaskuri!$D$18,0) -> 0 | R83: =IF(kuljetuslaskuri!$G$19,kuljetuslaskuri!#REF!,0) -> 0 | S83: =AVERAGE(IF(P83:R83<>0, P83:R83,"")) -> 25 | T83: =S83*kuljetuslaskuri!$D$19% -> 23.75 | U83: 17.5 | V83: =kuljetuslaskuri!$D$24% -> 0 | W83: 15.94 | X83: 50 | Y83: 166.4135244 | Z83: 7.692307692 | AA83: 7.5 | AB83: =kuljetuslaskuri!$D$25*(laskentapohja!C83/laskentapohja!T83) -> 2.526315789 | AC83: 184.1321479 | AD83: 6.137738263 | AE83: 0.1629264653 | AG83: 184.1321479 | AH83: 0.1629264653 | AJ83: 0.7791376512 | AK83: -1.232422372 | AV83: =IF(kuljetuslaskuri!$H$45,kuljetuslaskuri!$D$45,0) -> 20 | AW83: =IF(kuljetuslaskuri!$H$46,kuljetuslaskuri!$D$46,0) -> 0 | AX83: =IF(kuljetuslaskuri!$G$19,kuljetuslaskuri!#REF!,0) -> 0 | AY83: =AVERAGE(IF(AV83:AX83<>0, AV83:AX83,"")) -> 20 | AZ83: =AY83*kuljetuslaskuri!$D$47% -> 19 | BA83: 17.5 | BB83: =kuljetuslaskuri!$D$52% -> 0 | BC83: 15.94 | BD83: 50 | BE83: 208.0169055 | BF83: 7.5 | BG83: 7.5 | BH83: =kuljetuslaskuri!$D$53*(laskentapohja!C83/laskentapohja!AZ83) -> 3.157894737 | BI83: 226.1748002 | BJ83: 12 | BK83: 238.1748002 | BL83: 7.939160008 | BM83: 0.1259579098 | BO83: 107.4104196 | BP83: 233.234054 | BQ83: 340.6444736 | BS83: 0.39 | BT83: 204.75 | BV83: =kuljetuslaskuri!$D$74 -> 71.1 | BX83: 275.85 | BZ83: =N_arvo*N_maara*kuljetuslaskuri!$E$87%*C83 -> 59.4 | CA83: =P_arvo*P_maara*kuljetuslaskuri!$E$88%*C83 -> 41.04 | CB83: =K_arvo*K_maara*kuljetuslaskuri!$E$89%*C83 -> 79.2 | CC83: 179.64
B84: =kuljetuslaskuri!$D$31 -> 2500 | C84: =kuljetuslaskuri!$D$12 -> 30 | D84: =kuljetuslaskuri!$D$33 -> 14 | E84: =kuljetuslaskuri!$D$34 -> 4000 | F84: 12 | G84: 2.142857143 | H84: 7.5 | I84: 2 | J84: =kuljetuslaskuri!$D$35 -> 0 | K84: 21.5 | L84: 0.7166666667 | N84: 1.395348837 | P84: =IF(kuljetuslaskuri!$H$17,kuljetuslaskuri!$D$17,0) -> 25 | Q84: =IF(kuljetuslaskuri!$H$18,kuljetuslaskuri!$D$18,0) -> 0 | R84: =IF(kuljetuslaskuri!$G$19,kuljetuslaskuri!#REF!,0) -> 0 | S84: =AVERAGE(IF(P84:R84<>0, P84:R84,"")) -> 25 | T84: =S84*kuljetuslaskuri!$D$19% -> 23.75 | U84: 17.75 | V84: =kuljetuslaskuri!$D$24% -> 0 | W84: 15.94 | X84: 50 | Y84: 168.7908605 | Z84: 7.692307692 | AA84: 7.5 | AB84: =kuljetuslaskuri!$D$25*(laskentapohja!C84/laskentapohja!T84) -> 2.526315789 | AC84: 186.5094839 | AD84: 6.216982798 | AE84: 0.1608497293 | AG84: 186.5094839 | AH84: 0.1608497293 | AJ84: 0.7780992832 | AK84: -1.234499108 | AV84: =IF(kuljetuslaskuri!$H$45,kuljetuslaskuri!$D$45,0) -> 20 | AW84: =IF(kuljetuslaskuri!$H$46,kuljetuslaskuri!$D$46,0) -> 0 | AX84: =IF(kuljetuslaskuri!$G$19,kuljetuslaskuri!#REF!,0) -> 0 | AY84: =AVERAGE(IF(AV84:AX84<>0, AV84:AX84,"")) -> 20 | AZ84: =AY84*kuljetuslaskuri!$D$47% -> 19 | BA84: 17.75 | BB84: =kuljetuslaskuri!$D$52% -> 0 | BC84: 15.94 | BD84: 50 | BE84: 210.9885756 | BF84: 7.5 | BG84: 7.5 | BH84: =kuljetuslaskuri!$D$53*(laskentapohja!C84/laskentapohja!AZ84) -> 3.157894737 | BI84: 229.1464703 | BJ84: 12 | BK84: 241.1464703 | BL84: 8.038215677 | BM84: 0.1244057189 | BO84: 108.797199 | BP84: 236.2453463 | BQ84: 345.0425453 | BS84: 0.39 | BT84: 207.675 | BV84: =kuljetuslaskuri!$D$74 -> 71.1 | BX84: 278.775 | BZ84: =N_arvo*N_maara*kuljetuslaskuri!$E$87%*C84 -> 59.4 | CA84: =P_arvo*P_maara*kuljetuslaskuri!$E$88%*C84 -> 41.04 | CB84: =K_arvo*K_maara*kuljetuslaskuri!$E$89%*C84 -> 79.2 | CC84: 179.64
B85: =kuljetuslaskuri!$D$31 -> 2500 | C85: =kuljetuslaskuri!$D$12 -> 30 | D85: =kuljetuslaskuri!$D$33 -> 14 | E85: =kuljetuslaskuri!$D$34 -> 4000 | F85: 12 | G85: 2.142857143 | H85: 7.5 | I85: 2 | J85: =kuljetuslaskuri!$D$35 -> 0 | K85: 21.5 | L85: 0.7166666667 | N85: 1.395348837 | P85: =IF(kuljetuslaskuri!$H$17,kuljetuslaskuri!$D$17,0) -> 25 | Q85: =IF(kuljetuslaskuri!$H$18,kuljetuslaskuri!$D$18,0) -> 0 | R85: =IF(kuljetuslaskuri!$G$19,kuljetuslaskuri!#REF!,0) -> 0 | S85: =AVERAGE(IF(P85:R85<>0, P85:R85,"")) -> 25 | T85: =S85*kuljetuslaskuri!$D$19% -> 23.75 | U85: 18 | V85: =kuljetuslaskuri!$D$24% -> 0 | W85: 15.94 | X85: 50 | Y85: 171.1681965 | Z85: 7.692307692 | AA85: 7.5 | AB85: =kuljetuslaskuri!$D$25*(laskentapohja!C85/laskentapohja!T85) -> 2.526315789 | AC85: 188.88682 | AD85: 6.296227334 | AE85: 0.158825269 | AG85: 188.88682 | AH85: 0.158825269 | AJ85: 0.7770870531 | AK85: -1.236523568 | AV85: =IF(kuljetuslaskuri!$H$45,kuljetuslaskuri!$D$45,0) -> 20 | AW85: =IF(kuljetuslaskuri!$H$46,kuljetuslaskuri!$D$46,0) -> 0 | AX85: =IF(kuljetuslaskuri!$G$19,kuljetuslaskuri!#REF!,0) -> 0 | AY85: =AVERAGE(IF(AV85:AX85<>0, AV85:AX85,"")) -> 20 | AZ85: =AY85*kuljetuslaskuri!$D$47% -> 19 | BA85: 18 | BB85: =kuljetuslaskuri!$D$52% -> 0 | BC85: 15.94 | BD85: 50 | BE85: 213.9602457 | BF85: 7.5 | BG85: 7.5 | BH85: =kuljetuslaskuri!$D$53*(laskentapohja!C85/laskentapohja!AZ85) -> 3.157894737 | BI85: 232.1181404 | BJ85: 12 | BK85: 244.1181404 | BL85: 8.137271346 | BM85: 0.1228913179 | BO85: 110.1839783 | BP85: 239.2566387 | BQ85: 349.440617 | BS85: 0.39 | BT85: 210.6 | BV85: =kuljetuslaskuri!$D$74 -> 71.1 | BX85: 281.7 | BZ85: =N_arvo*N_maara*kuljetuslaskuri!$E$87%*C85 -> 59.4 | CA85: =P_arvo*P_maara*kuljetuslaskuri!$E$88%*C85 -> 41.04 | CB85: =K_arvo*K_maara*kuljetuslaskuri!$E$89%*C85 -> 79.2 | CC85: 179.64
B86: =kuljetuslaskuri!$D$31 -> 2500 | C86: =kuljetuslaskuri!$D$12 -> 30 | D86: =kuljetuslaskuri!$D$33 -> 14 | E86: =kuljetuslaskuri!$D$34 -> 4000 | F86: 12 | G86: 2.142857143 | H86: 7.5 | I86: 2 | J86: =kuljetuslaskuri!$D$35 -> 0 | K86: 21.5 | L86: 0.7166666667 | N86: 1.395348837 | P86: =IF(kuljetuslaskuri!$H$17,kuljetuslaskuri!$D$17,0) -> 25 | Q86: =IF(kuljetuslaskuri!$H$18,kuljetuslaskuri!$D$18,0) -> 0 | R86: =IF(kuljetuslaskuri!$G$19,kuljetuslaskuri!#REF!,0) -> 0 | S86: =AVERAGE(IF(P86:R86<>0, P86:R86,"")) -> 25 | T86: =S86*kuljetuslaskuri!$D$19% -> 23.75 | U86: 18.25 | V86: =kuljetuslaskuri!$D$24% -> 0 | W86: 15.94 | X86: 50 | Y86: 173.5455326 | Z86: 7.692307692 | AA86: 7.5 | AB86: =kuljetuslaskuri!$D$25*(laskentapohja!C86/laskentapohja!T86) -> 2.526315789 | AC86: 191.2641561 | AD86: 6.375471869 | AE86: 0.1568511352 | AG86: 191.2641561 | AH86: 0.1568511352 | AJ86: 0.7760999862 | AK86: -1.238497702 | AV86: =IF(kuljetuslaskuri!$H$45,kuljetuslaskuri!$D$45,0) -> 20 | AW86: =IF(kuljetuslaskuri!$H$46,kuljetuslaskuri!$D$46,0) -> 0 | AX86: =IF(kuljetuslaskuri!$G$19,kuljetuslaskuri!#REF!,0) -> 0 | AY86: =AVERAGE(IF(AV86:AX86<>0, AV86:AX86,"")) -> 20 | AZ86: =AY86*kuljetuslaskuri!$D$47% -> 19 | BA86: 18.25 | BB86: =kuljetuslaskuri!$D$52% -> 0 | BC86: 15.94 | BD86: 50 | BE86: 216.9319157 | BF86: 7.5 | BG86: 7.5 | BH86: =kuljetuslaskuri!$D$53*(laskentapohja!C86/laskentapohja!AZ86) -> 3.157894737 | BI86: 235.0898105 | BJ86: 12 | BK86: 247.0898105 | BL86: 8.236327016 | BM86: 0.1214133434 | BO86: 111.5707577 | BP86: 242.267931 | BQ86: 353.8386887 | BS86: 0.39 | BT86: 213.525 | BV86: =kuljetuslaskuri!$D$74 -> 71.1 | BX86: 284.625 | BZ86: =N_arvo*N_maara*kuljetuslaskuri!$E$87%*C86 -> 59.4 | CA86: =P_arvo*P_maara*kuljetuslaskuri!$E$88%*C86 -> 41.04 | CB86: =K_arvo*K_maara*kuljetuslaskuri!$E$89%*C86 -> 79.2 | CC86: 179.64
B87: =kuljetuslaskuri!$D$31 -> 2500 | C87: =kuljetuslaskuri!$D$12 -> 30 | D87: =kuljetuslaskuri!$D$33 -> 14 | E87: =kuljetuslaskuri!$D$34 -> 4000 | F87: 12 | G87: 2.142857143 | H87: 7.5 | I87: 2 | J87: =kuljetuslaskuri!$D$35 -> 0 | K87: 21.5 | L87: 0.7166666667 | N87: 1.395348837 | P87: =IF(kuljetuslaskuri!$H$17,kuljetuslaskuri!$D$17,0) -> 25 | Q87: =IF(kuljetuslaskuri!$H$18,kuljetuslaskuri!$D$18,0) -> 0 | R87: =IF(kuljetuslaskuri!$G$19,kuljetuslaskuri!#REF!,0) -> 0 | S87: =AVERAGE(IF(P87:R87<>0, P87:R87,"")) -> 25 | T87: =S87*kuljetuslaskuri!$D$19% -> 23.75 | U87: 18.5 | V87: =kuljetuslaskuri!$D$24% -> 0 | W87: 15.94 | X87: 50 | Y87: 175.9228687 | Z87: 7.692307692 | AA87: 7.5 | AB87: =kuljetuslaskuri!$D$25*(laskentapohja!C87/laskentapohja!T87) -> 2.526315789 | AC87: 193.6414921 | AD87: 6.454716404 | AE87: 0.1549254742 | AG87: 193.6414921 | AH87: 0.1549254742 | AJ87: 0.7751371557 | AK87: -1.240423363 | AV87: =IF(kuljetuslaskuri!$H$45,kuljetuslaskuri!$D$45,0) -> 20 | AW87: =IF(kuljetuslaskuri!$H$46,kuljetuslaskuri!$D$46,0) -> 0 | AX87: =IF(kuljetuslaskuri!$G$19,kuljetuslaskuri!#REF!,0) -> 0 | AY87: =AVERAGE(IF(AV87:AX87<>0, AV87:AX87,"")) -> 20 | AZ87: =AY87*kuljetuslaskuri!$D$47% -> 19 | BA87: 18.5 | BB87: =kuljetuslaskuri!$D$52% -> 0 | BC87: 15.94 | BD87: 50 | BE87: 219.9035858 | BF87: 7.5 | BG87: 7.5 | BH87: =kuljetuslaskuri!$D$53*(laskentapohja!C87/laskentapohja!AZ87) -> 3.157894737 | BI87: 238.0614806 | BJ87: 12 | BK87: 250.0614806 | BL87: 8.335382685 | BM87: 0.1199704966 | BO87: 112.9575371 | BP87: 245.2792234 | BQ87: 358.2367604 | BS87: 0.39 | BT87: 216.45 | BV87: =kuljetuslaskuri!$D$74 -> 71.1 | BX87: 287.55 | BZ87: =N_arvo*N_maara*kuljetuslaskuri!$E$87%*C87 -> 59.4 | CA87: =P_arvo*P_maara*kuljetuslaskuri!$E$88%*C87 -> 41.04 | CB87: =K_arvo*K_maara*kuljetuslaskuri!$E$89%*C87 -> 79.2 | CC87: 179.64
B88: =kuljetuslaskuri!$D$31 -> 2500 | C88: =kuljetuslaskuri!$D$12 -> 30 | D88: =kuljetuslaskuri!$D$33 -> 14 | E88: =kuljetuslaskuri!$D$34 -> 4000 | F88: 12 | G88: 2.142857143 | H88: 7.5 | I88: 2 | J88: =kuljetuslaskuri!$D$35 -> 0 | K88: 21.5 | L88: 0.7166666667 | N88: 1.395348837 | P88: =IF(kuljetuslaskuri!$H$17,kuljetuslaskuri!$D$17,0) -> 25 | Q88: =IF(kuljetuslaskuri!$H$18,kuljetuslaskuri!$D$18,0) -> 0 | R88: =IF(kuljetuslaskuri!$G$19,kuljetuslaskuri!#REF!,0) -> 0 | S88: =AVERAGE(IF(P88:R88<>0, P88:R88,"")) -> 25 | T88: =S88*kuljetuslaskuri!$D$19% -> 23.75 | U88: 18.75 | V88: =kuljetuslaskuri!$D$24% -> 0 | W88: 15.94 | X88: 50 | Y88: 178.3002047 | Z88: 7.692307692 | AA88: 7.5 | AB88: =kuljetuslaskuri!$D$25*(laskentapohja!C88/laskentapohja!T88) -> 2.526315789 | AC88: 196.0188282 | AD88: 6.53396094 | AE88: 0.1530465225 | AG88: 196.0188282 | AH88: 0.1530465225 | AJ88: 0.7741976799 | AK88: -1.242302315 | AV88: =IF(kuljetuslaskuri!$H$45,kuljetuslaskuri!$D$45,0) -> 20 | AW88: =IF(kuljetuslaskuri!$H$46,kuljetuslaskuri!$D$46,0) -> 0 | AX88: =IF(kuljetuslaskuri!$G$19,kuljetuslaskuri!#REF!,0) -> 0 | AY88: =AVERAGE(IF(AV88:AX88<>0, AV88:AX88,"")) -> 20 | AZ88: =AY88*kuljetuslaskuri!$D$47% -> 19 | BA88: 18.75 | BB88: =kuljetuslaskuri!$D$52% -> 0 | BC88: 15.94 | BD88: 50 | BE88: 222.8752559 | BF88: 7.5 | BG88: 7.5 | BH88: =kuljetuslaskuri!$D$53*(laskentapohja!C88/laskentapohja!AZ88) -> 3.157894737 | BI88: 241.0331506 | BJ88: 12 | BK88: 253.0331506 | BL88: 8.434438354 | BM88: 0.11856154 | BO88: 114.3443164 | BP88: 248.2905157 | BQ88: 362.6348322 | BS88: 0.39 | BT88: 219.375 | BV88: =kuljetuslaskuri!$D$74 -> 71.1 | BX88: 290.475 | BZ88: =N_arvo*N_maara*kuljetuslaskuri!$E$87%*C88 -> 59.4 | CA88: =P_arvo*P_maara*kuljetuslaskuri!$E$88%*C88 -> 41.04 | CB88: =K_arvo*K_maara*kuljetuslaskuri!$E$89%*C88 -> 79.2 | CC88: 179.64
B89: =kuljetuslaskuri!$D$31 -> 2500 | C89: =kuljetuslaskuri!$D$12 -> 30 | D89: =kuljetuslaskuri!$D$33 -> 14 | E89: =kuljetuslaskuri!$D$34 -> 4000 | F89: 12 | G89: 2.142857143 | H89: 7.5 | I89: 2 | J89: =kuljetuslaskuri!$D$35 -> 0 | K89: 21.5 | L89: 0.7166666667 | N89: 1.395348837 | P89: =IF(kuljetuslaskuri!$H$17,kuljetuslaskuri!$D$17,0) -> 25 | Q89: =IF(kuljetuslaskuri!$H$18,kuljetuslaskuri!$D$18,0) -> 0 | R89: =IF(kuljetuslaskuri!$G$19,kuljetuslaskuri!#REF!,0) -> 0 | S89: =AVERAGE(IF(P89:R89<>0, P89:R89,"")) -> 25 | T89: =S89*kuljetuslaskuri!$D$19% -> 23.75 | U89: 19 | V89: =kuljetuslaskuri!$D$24% -> 0 | W89: 15.94 | X89: 50 | Y89: 180.6775408 | Z89: 7.692307692 | AA89: 7.5 | AB89: =kuljetuslaskuri!$D$25*(laskentapohja!C89/laskentapohja!T89) -> 2.526315789 | AC89: 198.3961643 | AD89: 6.613205475 | AE89: 0.1512126009 | AG89: 198.3961643 | AH89: 0.1512126009 | AJ89: 0.773280719 | AK89: -1.244136236 | AV89: =IF(kuljetuslaskuri!$H$45,kuljetuslaskuri!$D$45,0) -> 20 | AW89: =IF(kuljetuslaskuri!$H$46,kuljetuslaskuri!$D$46,0) -> 0 | AX89: =IF(kuljetuslaskuri!$G$19,kuljetuslaskuri!#REF!,0) -> 0 | AY89: =AVERAGE(IF(AV89:AX89<>0, AV89:AX89,"")) -> 20 | AZ89: =AY89*kuljetuslaskuri!$D$47% -> 19 | BA89: 19 | BB89: =kuljetuslaskuri!$D$52% -> 0 | BC89: 15.94 | BD89: 50 | BE89: 225.846926 | BF89: 7.5 | BG89: 7.5 | BH89: =kuljetuslaskuri!$D$53*(laskentapohja!C89/laskentapohja!AZ89) -> 3.157894737 | BI89: 244.0048207 | BJ89: 12 | BK89: 256.0048207 | BL89: 8.533494024 | BM89: 0.1171852933 | BO89: 115.7310958 | BP89: 251.3018081 | BQ89: 367.0329039 | BS89: 0.39 | BT89: 222.3 | BV89: =kuljetuslaskuri!$D$74 -> 71.1 | BX89: 293.4 | BZ89: =N_arvo*N_maara*kuljetuslaskuri!$E$87%*C89 -> 59.4 | CA89: =P_arvo*P_maara*kuljetuslaskuri!$E$88%*C89 -> 41.04 | CB89: =K_arvo*K_maara*kuljetuslaskuri!$E$89%*C89 -> 79.2 | CC89: 179.64
B90: =kuljetuslaskuri!$D$31 -> 2500 | C90: =kuljetuslaskuri!$D$12 -> 30 | D90: =kuljetuslaskuri!$D$33 -> 14 | E90: =kuljetuslaskuri!$D$34 -> 4000 | F90: 12 | G90: 2.142857143 | H90: 7.5 | I90: 2 | J90: =kuljetuslaskuri!$D$35 -> 0 | K90: 21.5 | L90: 0.7166666667 | N90: 1.395348837 | P90: =IF(kuljetuslaskuri!$H$17,kuljetuslaskuri!$D$17,0) -> 25 | Q90: =IF(kuljetuslaskuri!$H$18,kuljetuslaskuri!$D$18,0) -> 0 | R90: =IF(kuljetuslaskuri!$G$19,kuljetuslaskuri!#REF!,0) -> 0 | S90: =AVERAGE(IF(P90:R90<>0, P90:R90,"")) -> 25 | T90: =S90*kuljetuslaskuri!$D$19% -> 23.75 | U90: 19.25 | V90: =kuljetuslaskuri!$D$24% -> 0 | W90: 15.94 | X90: 50 | Y90: 183.0548768 | Z90: 7.692307692 | AA90: 7.5 | AB90: =kuljetuslaskuri!$D$25*(laskentapohja!C90/laskentapohja!T90) -> 2.526315789 | AC90: 200.7735003 | AD90: 6.692450011 | AE90: 0.1494221097 | AG90: 200.7735003 | AH90: 0.1494221097 | AJ90: 0.7723854735 | AK90: -1.245926727 | AV90: =IF(kuljetuslaskuri!$H$45,kuljetuslaskuri!$D$45,0) -> 20 | AW90: =IF(kuljetuslaskuri!$H$46,kuljetuslaskuri!$D$46,0) -> 0 | AX90: =IF(kuljetuslaskuri!$G$19,kuljetuslaskuri!#REF!,0) -> 0 | AY90: =AVERAGE(IF(AV90:AX90<>0, AV90:AX90,"")) -> 20 | AZ90: =AY90*kuljetuslaskuri!$D$47% -> 19 | BA90: 19.25 | BB90: =kuljetuslaskuri!$D$52% -> 0 | BC90: 15.94 | BD90: 50 | BE90: 228.8185961 | BF90: 7.5 | BG90: 7.5 | BH90: =kuljetuslaskuri!$D$53*(laskentapohja!C90/laskentapohja!AZ90) -> 3.157894737 | BI90: 246.9764908 | BJ90: 12 | BK90: 258.9764908 | BL90: 8.632549693 | BM90: 0.1158406306 | BO90: 117.1178752 | BP90: 254.3131004 | BQ90: 371.4309756 | BS90: 0.39 | BT90: 225.225 | BV90: =kuljetuslaskuri!$D$74 -> 71.1 | BX90: 296.325 | BZ90: =N_arvo*N_maara*kuljetuslaskuri!$E$87%*C90 -> 59.4 | CA90: =P_arvo*P_maara*kuljetuslaskuri!$E$88%*C90 -> 41.04 | CB90: =K_arvo*K_maara*kuljetuslaskuri!$E$89%*C90 -> 79.2 | CC90: 179.64
B91: =kuljetuslaskuri!$D$31 -> 2500 | C91: =kuljetuslaskuri!$D$12 -> 30 | D91: =kuljetuslaskuri!$D$33 -> 14 | E91: =kuljetuslaskuri!$D$34 -> 4000 | F91: 12 | G91: 2.142857143 | H91: 7.5 | I91: 2 | J91: =kuljetuslaskuri!$D$35 -> 0 | K91: 21.5 | L91: 0.7166666667 | N91: 1.395348837 | P91: =IF(kuljetuslaskuri!$H$17,kuljetuslaskuri!$D$17,0) -> 25 | Q91: =IF(kuljetuslaskuri!$H$18,kuljetuslaskuri!$D$18,0) -> 0 | R91: =IF(kuljetuslaskuri!$G$19,kuljetuslaskuri!#REF!,0) -> 0 | S91: =AVERAGE(IF(P91:R91<>0, P91:R91,"")) -> 25 | T91: =S91*kuljetuslaskuri!$D$19% -> 23.75 | U91: 19.5 | V91: =kuljetuslaskuri!$D$24% -> 0 | W91: 15.94 | X91: 50 | Y91: 185.4322129 | Z91: 7.692307692 | AA91: 7.5 | AB91: =kuljetuslaskuri!$D$25*(laskentapohja!C91/laskentapohja!T91) -> 2.526315789 | AC91: 203.1508364 | AD91: 6.771694546 | AE91: 0.1476735244 | AG91: 203.1508364 | AH91: 0.1476735244 | AJ91: 0.7715111808 | AK91: -1.247675313 | AV91: =IF(kuljetuslaskuri!$H$45,kuljetuslaskuri!$D$45,0) -> 20 | AW91: =IF(kuljetuslaskuri!$H$46,kuljetuslaskuri!$D$46,0) -> 0 | AX91: =IF(kuljetuslaskuri!$G$19,kuljetuslaskuri!#REF!,0) -> 0 | AY91: =AVERAGE(IF(AV91:AX91<>0, AV91:AX91,"")) -> 20 | AZ91: =AY91*kuljetuslaskuri!$D$47% -> 19 | BA91: 19.5 | BB91: =kuljetuslaskuri!$D$52% -> 0 | BC91: 15.94 | BD91: 50 | BE91: 231.7902661 | BF91: 7.5 | BG91: 7.5 | BH91: =kuljetuslaskuri!$D$53*(laskentapohja!C91/laskentapohja!AZ91) -> 3.157894737 | BI91: 249.9481609 | BJ91: 12 | BK91: 261.9481609 | BL91: 8.731605362 | BM91: 0.1145264769 | BO91: 118.5046546 | BP91: 257.3243928 | BQ91: 375.8290473 | BS91: 0.39 | BT91: 228.15 | BV91: =kuljetuslaskuri!$D$74 -> 71.1 | BX91: 299.25 | BZ91: =N_arvo*N_maara*kuljetuslaskuri!$E$87%*C91 -> 59.4 | CA91: =P_arvo*P_maara*kuljetuslaskuri!$E$88%*C91 -> 41.04 | CB91: =K_arvo*K_maara*kuljetuslaskuri!$E$89%*C91 -> 79.2 | CC91: 179.64
B92: =kuljetuslaskuri!$D$31 -> 2500 | C92: =kuljetuslaskuri!$D$12 -> 30 | D92: =kuljetuslaskuri!$D$33 -> 14 | E92: =kuljetuslaskuri!$D$34 -> 4000 | F92: 12 | G92: 2.142857143 | H92: 7.5 | I92: 2 | J92: =kuljetuslaskuri!$D$35 -> 0 | K92: 21.5 | L92: 0.7166666667 | N92: 1.395348837 | P92: =IF(kuljetuslaskuri!$H$17,kuljetuslaskuri!$D$17,0) -> 25 | Q92: =IF(kuljetuslaskuri!$H$18,kuljetuslaskuri!$D$18,0) -> 0 | R92: =IF(kuljetuslaskuri!$G$19,kuljetuslaskuri!#REF!,0) -> 0 | S92: =AVERAGE(IF(P92:R92<>0, P92:R92,"")) -> 25 | T92: =S92*kuljetuslaskuri!$D$19% -> 23.75 | U92: 19.75 | V92: =kuljetuslaskuri!$D$24% -> 0 | W92: 15.94 | X92: 50 | Y92: 187.809549 | Z92: 7.692307692 | AA92: 7.5 | AB92: =kuljetuslaskuri!$D$25*(laskentapohja!C92/laskentapohja!T92) -> 2.526315789 | AC92: 205.5281724 | AD92: 6.850939082 | AE92: 0.1459653907 | AG92: 205.5281724 | AH92: 0.1459653907 | AJ92: 0.770657114 | AK92: -1.249383446 | AV92: =IF(kuljetuslaskuri!$H$45,kuljetuslaskuri!$D$45,0) -> 20 | AW92: =IF(kuljetuslaskuri!$H$46,kuljetuslaskuri!$D$46,0) -> 0 | AX92: =IF(kuljetuslaskuri!$G$19,kuljetuslaskuri!#REF!,0) -> 0 | AY92: =AVERAGE(IF(AV92:AX92<>0, AV92:AX92,"")) -> 20 | AZ92: =AY92*kuljetuslaskuri!$D$47% -> 19 | BA92: 19.75 | BB92: =kuljetuslaskuri!$D$52% -> 0 | BC92: 15.94 | BD92: 50 | BE92: 234.7619362 | BF92: 7.5 | BG92: 7.5 | BH92: =kuljetuslaskuri!$D$53*(laskentapohja!C92/laskentapohja!AZ92) -> 3.157894737 | BI92: 252.9198309 | BJ92: 12 | BK92: 264.9198309 | BL92: 8.830661031 | BM92: 0.1132418056 | BO92: 119.8914339 | BP92: 260.3356851 | BQ92: 380.227119 | BS92: 0.39 | BT92: 231.075 | BV92: =kuljetuslaskuri!$D$74 -> 71.1 | BX92: 302.175 | BZ92: =N_arvo*N_maara*kuljetuslaskuri!$E$87%*C92 -> 59.4 | CA92: =P_arvo*P_maara*kuljetuslaskuri!$E$88%*C92 -> 41.04 | CB92: =K_arvo*K_maara*kuljetuslaskuri!$E$89%*C92 -> 79.2 | CC92: 179.64
B93: =kuljetuslaskuri!$D$31 -> 2500 | C93: =kuljetuslaskuri!$D$12 -> 30 | D93: =kuljetuslaskuri!$D$33 -> 14 | E93: =kuljetuslaskuri!$D$34 -> 4000 | F93: 12 | G93: 2.142857143 | H93: 7.5 | I93: 2 | J93: =kuljetuslaskuri!$D$35 -> 0 | K93: 21.5 | L93: 0.7166666667 | N93: 1.395348837 | P93: =IF(kuljetuslaskuri!$H$17,kuljetuslaskuri!$D$17,0) -> 25 | Q93: =IF(kuljetuslaskuri!$H$18,kuljetuslaskuri!$D$18,0) -> 0 | R93: =IF(kuljetuslaskuri!$G$19,kuljetuslaskuri!#REF!,0) -> 0 | S93: =AVERAGE(IF(P93:R93<>0, P93:R93,"")) -> 25 | T93: =S93*kuljetuslaskuri!$D$19% -> 23.75 | U93: 20 | V93: =kuljetuslaskuri!$D$24% -> 0 | W93: 15.94 | X93: 50 | Y93: 190.186885 | Z93: 7.692307692 | AA93: 7.5 | AB93: =kuljetuslaskuri!$D$25*(laskentapohja!C93/laskentapohja!T93) -> 2.526315789 | AC93: 207.9055085 | AD93: 6.930183617 | AE93: 0.144296321 | AG93: 207.9055085 | AH93: 0.144296321 | AJ93: 0.7698225791 | AK93: -1.251052516 | AV93: =IF(kuljetuslaskuri!$H$45,kuljetuslaskuri!$D$45,0) -> 20 | AW93: =IF(kuljetuslaskuri!$H$46,kuljetuslaskuri!$D$46,0) -> 0 | AX93: =IF(kuljetuslaskuri!$G$19,kuljetuslaskuri!#REF!,0) -> 0 | AY93: =AVERAGE(IF(AV93:AX93<>0, AV93:AX93,"")) -> 20 | AZ93: =AY93*kuljetuslaskuri!$D$47% -> 19 | BA93: 20 | BB93: =kuljetuslaskuri!$D$52% -> 0 | BC93: 15.94 | BD93: 50 | BE93: 237.7336063 | BF93: 7.5 | BG93: 7.5 | BH93: =kuljetuslaskuri!$D$53*(laskentapohja!C93/laskentapohja!AZ93) -> 3.157894737 | BI93: 255.891501 | BJ93: 12 | BK93: 267.891501 | BL93: 8.929716701 | BM93: 0.1119856355 | BO93: 121.2782133 | BP93: 263.3469774 | BQ93: 384.6251907 | BS93: 0.39 | BT93: 234 | BV93: =kuljetuslaskuri!$D$74 -> 71.1 | BX93: 305.1 | BZ93: =N_arvo*N_maara*kuljetuslaskuri!$E$87%*C93 -> 59.4 | CA93: =P_arvo*P_maara*kuljetuslaskuri!$E$88%*C93 -> 41.04 | CB93: =K_arvo*K_maara*kuljetuslaskuri!$E$89%*C93 -> 79.2 | CC93: 179.64
B94: =kuljetuslaskuri!$D$31 -> 2500 | C94: =kuljetuslaskuri!$D$12 -> 30 | D94: =kuljetuslaskuri!$D$33 -> 14 | E94: =kuljetuslaskuri!$D$34 -> 4000 | F94: 12 | G94: 2.142857143 | H94: 7.5 | I94: 2 | J94: =kuljetuslaskuri!$D$35 -> 0 | K94: 21.5 | L94: 0.7166666667 | N94: 1.395348837 | P94: =IF(kuljetuslaskuri!$H$17,kuljetuslaskuri!$D$17,0) -> 25 | Q94: =IF(kuljetuslaskuri!$H$18,kuljetuslaskuri!$D$18,0) -> 0 | R94: =IF(kuljetuslaskuri!$G$19,kuljetuslaskuri!#REF!,0) -> 0 | S94: =AVERAGE(IF(P94:R94<>0, P94:R94,"")) -> 25 | T94: =S94*kuljetuslaskuri!$D$19% -> 23.75 | U94: 20.25 | V94: =kuljetuslaskuri!$D$24% -> 0 | W94: 15.94 | X94: 50 | Y94: 192.5642211 | Z94: 7.692307692 | AA94: 7.5 | AB94: =kuljetuslaskuri!$D$25*(laskentapohja!C94/laskentapohja!T94) -> 2.526315789 | AC94: 210.2828446 | AD94: 7.009428152 | AE94: 0.1426649904 | AG94: 210.2828446 | AH94: 0.1426649904 | AJ94: 0.7690069138 | AK94: -1.252683847 | AV94: =IF(kuljetuslaskuri!$H$45,kuljetuslaskuri!$D$45,0) -> 20 | AW94: =IF(kuljetuslaskuri!$H$46,kuljetuslaskuri!$D$46,0) -> 0 | AX94: =IF(kuljetuslaskuri!$G$19,kuljetuslaskuri!#REF!,0) -> 0 | AY94: =AVERAGE(IF(AV94:AX94<>0, AV94:AX94,"")) -> 20 | AZ94: =AY94*kuljetuslaskuri!$D$47% -> 19 | BA94: 20.25 | BB94: =kuljetuslaskuri!$D$52% -> 0 | BC94: 15.94 | BD94: 50 | BE94: 240.7052764 | BF94: 7.5 | BG94: 7.5 | BH94: =kuljetuslaskuri!$D$53*(laskentapohja!C94/laskentapohja!AZ94) -> 3.157894737 | BI94: 258.8631711 | BJ94: 12 | BK94: 270.8631711 | BL94: 9.02877237 | BM94: 0.1107570286 | BO94: 122.6649927 | BP94: 266.3582698 | BQ94: 389.0232625 | BS94: 0.39 | BT94: 236.925 | BV94: =kuljetuslaskuri!$D$74 -> 71.1 | BX94: 308.025 | BZ94: =N_arvo*N_maara*kuljetuslaskuri!$E$87%*C94 -> 59.4 | CA94: =P_arvo*P_maara*kuljetuslaskuri!$E$88%*C94 -> 41.04 | CB94: =K_arvo*K_maara*kuljetuslaskuri!$E$89%*C94 -> 79.2 | CC94: 179.64
B95: =kuljetuslaskuri!$D$31 -> 2500 | C95: =kuljetuslaskuri!$D$12 -> 30 | D95: =kuljetuslaskuri!$D$33 -> 14 | E95: =kuljetuslaskuri!$D$34 -> 4000 | F95: 12 | G95: 2.142857143 | H95: 7.5 | I95: 2 | J95: =kuljetuslaskuri!$D$35 -> 0 | K95: 21.5 | L95: 0.7166666667 | N95: 1.395348837 | P95: =IF(kuljetuslaskuri!$H$17,kuljetuslaskuri!$D$17,0) -> 25 | Q95: =IF(kuljetuslaskuri!$H$18,kuljetuslaskuri!$D$18,0) -> 0 | R95: =IF(kuljetuslaskuri!$G$19,kuljetuslaskuri!#REF!,0) -> 0 | S95: =AVERAGE(IF(P95:R95<>0, P95:R95,"")) -> 25 | T95: =S95*kuljetuslaskuri!$D$19% -> 23.75 | U95: 20.5 | V95: =kuljetuslaskuri!$D$24% -> 0 | W95: 15.94 | X95: 50 | Y95: 194.9415572 | Z95: 7.692307692 | AA95: 7.5 | AB95: =kuljetuslaskuri!$D$25*(laskentapohja!C95/laskentapohja!T95) -> 2.526315789 | AC95: 212.6601806 | AD95: 7.088672688 | AE95: 0.1410701332 | AG95: 212.6601806 | AH95: 0.1410701332 | AJ95: 0.7682094852 | AK95: -1.254278704 | AV95: =IF(kuljetuslaskuri!$H$45,kuljetuslaskuri!$D$45,0) -> 20 | AW95: =IF(kuljetuslaskuri!$H$46,kuljetuslaskuri!$D$46,0) -> 0 | AX95: =IF(kuljetuslaskuri!$G$19,kuljetuslaskuri!#REF!,0) -> 0 | AY95: =AVERAGE(IF(AV95:AX95<>0, AV95:AX95,"")) -> 20 | AZ95: =AY95*kuljetuslaskuri!$D$47% -> 19 | BA95: 20.5 | BB95: =kuljetuslaskuri!$D$52% -> 0 | BC95: 15.94 | BD95: 50 | BE95: 243.6769464 | BF95: 7.5 | BG95: 7.5 | BH95: =kuljetuslaskuri!$D$53*(laskentapohja!C95/laskentapohja!AZ95) -> 3.157894737 | BI95: 261.8348412 | BJ95: 12 | BK95: 273.8348412 | BL95: 9.127828039 | BM95: 0.1095550876 | BO95: 124.051772 | BP95: 269.3695621 | BQ95: 393.4213342 | BS95: 0.39 | BT95: 239.85 | BV95: =kuljetuslaskuri!$D$74 -> 71.1 | BX95: 310.95 | BZ95: =N_arvo*N_maara*kuljetuslaskuri!$E$87%*C95 -> 59.4 | CA95: =P_arvo*P_maara*kuljetuslaskuri!$E$88%*C95 -> 41.04 | CB95: =K_arvo*K_maara*kuljetuslaskuri!$E$89%*C95 -> 79.2 | CC95: 179.64
B96: =kuljetuslaskuri!$D$31 -> 2500 | C96: =kuljetuslaskuri!$D$12 -> 30 | D96: =kuljetuslaskuri!$D$33 -> 14 | E96: =kuljetuslaskuri!$D$34 -> 4000 | F96: 12 | G96: 2.142857143 | H96: 7.5 | I96: 2 | J96: =kuljetuslaskuri!$D$35 -> 0 | K96: 21.5 | L96: 0.7166666667 | N96: 1.395348837 | P96: =IF(kuljetuslaskuri!$H$17,kuljetuslaskuri!$D$17,0) -> 25 | Q96: =IF(kuljetuslaskuri!$H$18,kuljetuslaskuri!$D$18,0) -> 0 | R96: =IF(kuljetuslaskuri!$G$19,kuljetuslaskuri!#REF!,0) -> 0 | S96: =AVERAGE(IF(P96:R96<>0, P96:R96,"")) -> 25 | T96: =S96*kuljetuslaskuri!$D$19% -> 23.75 | U96: 20.75 | V96: =kuljetuslaskuri!$D$24% -> 0 | W96: 15.94 | X96: 50 | Y96: 197.3188932 | Z96: 7.692307692 | AA96: 7.5 | AB96: =kuljetuslaskuri!$D$25*(laskentapohja!C96/laskentapohja!T96) -> 2.526315789 | AC96: 215.0375167 | AD96: 7.167917223 | AE96: 0.1395105397 | AG96: 215.0375167 | AH96: 0.1395105397 | AJ96: 0.7674296884 | AK96: -1.255838298 | AV96: =IF(kuljetuslaskuri!$H$45,kuljetuslaskuri!$D$45,0) -> 20 | AW96: =IF(kuljetuslaskuri!$H$46,kuljetuslaskuri!$D$46,0) -> 0 | AX96: =IF(kuljetuslaskuri!$G$19,kuljetuslaskuri!#REF!,0) -> 0 | AY96: =AVERAGE(IF(AV96:AX96<>0, AV96:AX96,"")) -> 20 | AZ96: =AY96*kuljetuslaskuri!$D$47% -> 19 | BA96: 20.75 | BB96: =kuljetuslaskuri!$D$52% -> 0 | BC96: 15.94 | BD96: 50 | BE96: 246.6486165 | BF96: 7.5 | BG96: 7.5 | BH96: =kuljetuslaskuri!$D$53*(laskentapohja!C96/laskentapohja!AZ96) -> 3.157894737 | BI96: 264.8065113 | BJ96: 12 | BK96: 276.8065113 | BL96: 9.226883709 | BM96: 0.1083789535 | BO96: 125.4385514 | BP96: 272.3808545 | BQ96: 397.8194059 | BS96: 0.39 | BT96: 242.775 | BV96: =kuljetuslaskuri!$D$74 -> 71.1 | BX96: 313.875 | BZ96: =N_arvo*N_maara*kuljetuslaskuri!$E$87%*C96 -> 59.4 | CA96: =P_arvo*P_maara*kuljetuslaskuri!$E$88%*C96 -> 41.04 | CB96: =K_arvo*K_maara*kuljetuslaskuri!$E$89%*C96 -> 79.2 | CC96: 179.64
B97: =kuljetuslaskuri!$D$31 -> 2500 | C97: =kuljetuslaskuri!$D$12 -> 30 | D97: =kuljetuslaskuri!$D$33 -> 14 | E97: =kuljetuslaskuri!$D$34 -> 4000 | F97: 12 | G97: 2.142857143 | H97: 7.5 | I97: 2 | J97: =kuljetuslaskuri!$D$35 -> 0 | K97: 21.5 | L97: 0.7166666667 | N97: 1.395348837 | P97: =IF(kuljetuslaskuri!$H$17,kuljetuslaskuri!$D$17,0) -> 25 | Q97: =IF(kuljetuslaskuri!$H$18,kuljetuslaskuri!$D$18,0) -> 0 | R97: =IF(kuljetuslaskuri!$G$19,kuljetuslaskuri!#REF!,0) -> 0 | S97: =AVERAGE(IF(P97:R97<>0, P97:R97,"")) -> 25 | T97: =S97*kuljetuslaskuri!$D$19% -> 23.75 | U97: 21 | V97: =kuljetuslaskuri!$D$24% -> 0 | W97: 15.94 | X97: 50 | Y97: 199.6962293 | Z97: 7.692307692 | AA97: 7.5 | AB97: =kuljetuslaskuri!$D$25*(laskentapohja!C97/laskentapohja!T97) -> 2.526315789 | AC97: 217.4148528 | AD97: 7.247161759 | AE97: 0.1379850531 | AG97: 217.4148528 | AH97: 0.1379850531 | AJ97: 0.7666669451 | AK97: -1.257363784 | AV97: =IF(kuljetuslaskuri!$H$45,kuljetuslaskuri!$D$45,0) -> 20 | AW97: =IF(kuljetuslaskuri!$H$46,kuljetuslaskuri!$D$46,0) -> 0 | AX97: =IF(kuljetuslaskuri!$G$19,kuljetuslaskuri!#REF!,0) -> 0 | AY97: =AVERAGE(IF(AV97:AX97<>0, AV97:AX97,"")) -> 20 | AZ97: =AY97*kuljetuslaskuri!$D$47% -> 19 | BA97: 21 | BB97: =kuljetuslaskuri!$D$52% -> 0 | BC97: 15.94 | BD97: 50 | BE97: 249.6202866 | BF97: 7.5 | BG97: 7.5 | BH97: =kuljetuslaskuri!$D$53*(laskentapohja!C97/laskentapohja!AZ97) -> 3.157894737 | BI97: 267.7781813 | BJ97: 12 | BK97: 279.7781813 | BL97: 9.325939378 | BM97: 0.107227804 | BO97: 126.8253308 | BP97: 275.3921468 | BQ97: 402.2174776 | BS97: 0.39 | BT97: 245.7 | BV97: =kuljetuslaskuri!$D$74 -> 71.1 | BX97: 316.8 | BZ97: =N_arvo*N_maara*kuljetuslaskuri!$E$87%*C97 -> 59.4 | CA97: =P_arvo*P_maara*kuljetuslaskuri!$E$88%*C97 -> 41.04 | CB97: =K_arvo*K_maara*kuljetuslaskuri!$E$89%*C97 -> 79.2 | CC97: 179.64
B98: =kuljetuslaskuri!$D$31 -> 2500 | C98: =kuljetuslaskuri!$D$12 -> 30 | D98: =kuljetuslaskuri!$D$33 -> 14 | E98: =kuljetuslaskuri!$D$34 -> 4000 | F98: 12 | G98: 2.142857143 | H98: 7.5 | I98: 2 | J98: =kuljetuslaskuri!$D$35 -> 0 | K98: 21.5 | L98: 0.7166666667 | N98: 1.395348837 | P98: =IF(kuljetuslaskuri!$H$17,kuljetuslaskuri!$D$17,0) -> 25 | Q98: =IF(kuljetuslaskuri!$H$18,kuljetuslaskuri!$D$18,0) -> 0 | R98: =IF(kuljetuslaskuri!$G$19,kuljetuslaskuri!#REF!,0) -> 0 | S98: =AVERAGE(IF(P98:R98<>0, P98:R98,"")) -> 25 | T98: =S98*kuljetuslaskuri!$D$19% -> 23.75 | U98: 21.25 | V98: =kuljetuslaskuri!$D$24% -> 0 | W98: 15.94 | X98: 50 | Y98: 202.0735653 | Z98: 7.692307692 | AA98: 7.5 | AB98: =kuljetuslaskuri!$D$25*(laskentapohja!C98/laskentapohja!T98) -> 2.526315789 | AC98: 219.7921888 | AD98: 7.326406294 | AE98: 0.1364925667 | AG98: 219.7921888 | AH98: 0.1364925667 | AJ98: 0.765920702 | AK98: -1.25885627 | AV98: =IF(kuljetuslaskuri!$H$45,kuljetuslaskuri!$D$45,0) -> 20 | AW98: =IF(kuljetuslaskuri!$H$46,kuljetuslaskuri!$D$46,0) -> 0 | AX98: =IF(kuljetuslaskuri!$G$19,kuljetuslaskuri!#REF!,0) -> 0 | AY98: =AVERAGE(IF(AV98:AX98<>0, AV98:AX98,"")) -> 20 | AZ98: =AY98*kuljetuslaskuri!$D$47% -> 19 | BA98: 21.25 | BB98: =kuljetuslaskuri!$D$52% -> 0 | BC98: 15.94 | BD98: 50 | BE98: 252.5919567 | BF98: 7.5 | BG98: 7.5 | BH98: =kuljetuslaskuri!$D$53*(laskentapohja!C98/laskentapohja!AZ98) -> 3.157894737 | BI98: 270.7498514 | BJ98: 12 | BK98: 282.7498514 | BL98: 9.424995047 | BM98: 0.1061008515 | BO98: 128.2121101 | BP98: 278.4034392 | BQ98: 406.6155493 | BS98: 0.39 | BT98: 248.625 | BV98: =kuljetuslaskuri!$D$74 -> 71.1 | BX98: 319.725 | BZ98: =N_arvo*N_maara*kuljetuslaskuri!$E$87%*C98 -> 59.4 | CA98: =P_arvo*P_maara*kuljetuslaskuri!$E$88%*C98 -> 41.04 | CB98: =K_arvo*K_maara*kuljetuslaskuri!$E$89%*C98 -> 79.2 | CC98: 179.64
B99: =kuljetuslaskuri!$D$31 -> 2500 | C99: =kuljetuslaskuri!$D$12 -> 30 | D99: =kuljetuslaskuri!$D$33 -> 14 | E99: =kuljetuslaskuri!$D$34 -> 4000 | F99: 12 | G99: 2.142857143 | H99: 7.5 | I99: 2 | J99: =kuljetuslaskuri!$D$35 -> 0 | K99: 21.5 | L99: 0.7166666667 | N99: 1.395348837 | P99: =IF(kuljetuslaskuri!$H$17,kuljetuslaskuri!$D$17,0) -> 25 | Q99: =IF(kuljetuslaskuri!$H$18,kuljetuslaskuri!$D$18,0) -> 0 | R99: =IF(kuljetuslaskuri!$G$19,kuljetuslaskuri!#REF!,0) -> 0 | S99: =AVERAGE(IF(P99:R99<>0, P99:R99,"")) -> 25 | T99: =S99*kuljetuslaskuri!$D$19% -> 23.75 | U99: 21.5 | V99: =kuljetuslaskuri!$D$24% -> 0 | W99: 15.94 | X99: 50 | Y99: 204.4509014 | Z99: 7.692307692 | AA99: 7.5 | AB99: =kuljetuslaskuri!$D$25*(laskentapohja!C99/laskentapohja!T99) -> 2.526315789 | AC99: 222.1695249 | AD99: 7.40565083 | AE99: 0.1350320212 | AG99: 222.1695249 | AH99: 0.1350320212 | AJ99: 0.7651904292 | AK99: -1.260316816 | AV99: =IF(kuljetuslaskuri!$H$45,kuljetuslaskuri!$D$45,0) -> 20 | AW99: =IF(kuljetuslaskuri!$H$46,kuljetuslaskuri!$D$46,0) -> 0 | AX99: =IF(kuljetuslaskuri!$G$19,kuljetuslaskuri!#REF!,0) -> 0 | AY99: =AVERAGE(IF(AV99:AX99<>0, AV99:AX99,"")) -> 20 | AZ99: =AY99*kuljetuslaskuri!$D$47% -> 19 | BA99: 21.5 | BB99: =kuljetuslaskuri!$D$52% -> 0 | BC99: 15.94 | BD99: 50 | BE99: 255.5636268 | BF99: 7.5 | BG99: 7.5 | BH99: =kuljetuslaskuri!$D$53*(laskentapohja!C99/laskentapohja!AZ99) -> 3.157894737 | BI99: 273.7215215 | BJ99: 12 | BK99: 285.7215215 | BL99: 9.524050717 | BM99: 0.1049973409 | BO99: 129.5988895 | BP99: 281.4147315 | BQ99: 411.013621 | BS99: 0.39 | BT99: 251.55 | BV99: =kuljetuslaskuri!$D$74 -> 71.1 | BX99: 322.65 | BZ99: =N_arvo*N_maara*kuljetuslaskuri!$E$87%*C99 -> 59.4 | CA99: =P_arvo*P_maara*kuljetuslaskuri!$E$88%*C99 -> 41.04 | CB99: =K_arvo*K_maara*kuljetuslaskuri!$E$89%*C99 -> 79.2 | CC99: 179.64
B100: =kuljetuslaskuri!$D$31 -> 2500 | C100: =kuljetuslaskuri!$D$12 -> 30 | D100: =kuljetuslaskuri!$D$33 -> 14 | E100: =kuljetuslaskuri!$D$34 -> 4000 | F100: 12 | G100: 2.142857143 | H100: 7.5 | I100: 2 | J100: =kuljetuslaskuri!$D$35 -> 0 | K100: 21.5 | L100: 0.7166666667 | N100: 1.395348837 | P100: =IF(kuljetuslaskuri!$H$17,kuljetuslaskuri!$D$17,0) -> 25 | Q100: =IF(kuljetuslaskuri!$H$18,kuljetuslaskuri!$D$18,0) -> 0 | R100: =IF(kuljetuslaskuri!$G$19,kuljetuslaskuri!#REF!,0) -> 0 | S100: =AVERAGE(IF(P100:R100<>0, P100:R100,"")) -> 25 | T100: =S100*kuljetuslaskuri!$D$19% -> 23.75 | U100: 21.75 | V100: =kuljetuslaskuri!$D$24% -> 0 | W100: 15.94 | X100: 50 | Y100: 206.8282375 | Z100: 7.692307692 | AA100: 7.5 | AB100: =kuljetuslaskuri!$D$25*(laskentapohja!C100/laskentapohja!T100) -> 2.526315789 | AC100: 224.546861 | AD100: 7.484895365 | AE100: 0.1336024021 | AG100: 224.546861 | AH100: 0.1336024021 | AJ100: 0.7644756196 | AK100: -1.261746435 | AV100: =IF(kuljetuslaskuri!$H$45,kuljetuslaskuri!$D$45,0) -> 20 | AW100: =IF(kuljetuslaskuri!$H$46,kuljetuslaskuri!$D$46,0) -> 0 | AX100: =IF(kuljetuslaskuri!$G$19,kuljetuslaskuri!#REF!,0) -> 0 | AY100: =AVERAGE(IF(AV100:AX100<>0, AV100:AX100,"")) -> 20 | AZ100: =AY100*kuljetuslaskuri!$D$47% -> 19 | BA100: 21.75 | BB100: =kuljetuslaskuri!$D$52% -> 0 | BC100: 15.94 | BD100: 50 | BE100: 258.5352968 | BF100: 7.5 | BG100: 7.5 | BH100: =kuljetuslaskuri!$D$53*(laskentapohja!C100/laskentapohja!AZ100) -> 3.157894737 | BI100: 276.6931916 | BJ100: 12 | BK100: 288.6931916 | BL100: 9.623106386 | BM100: 0.1039165483 | BO100: 130.9856689 | BP100: 284.4260239 | BQ100: 415.4116928 | BS100: 0.39 | BT100: 254.475 | BV100: =kuljetuslaskuri!$D$74 -> 71.1 | BX100: 325.575 | BZ100: =N_arvo*N_maara*kuljetuslaskuri!$E$87%*C100 -> 59.4 | CA100: =P_arvo*P_maara*kuljetuslaskuri!$E$88%*C100 -> 41.04 | CB100: =K_arvo*K_maara*kuljetuslaskuri!$E$89%*C100 -> 79.2 | CC100: 179.64
B101: =kuljetuslaskuri!$D$31 -> 2500 | C101: =kuljetuslaskuri!$D$12 -> 30 | D101: =kuljetuslaskuri!$D$33 -> 14 | E101: =kuljetuslaskuri!$D$34 -> 4000 | F101: 12 | G101: 2.142857143 | H101: 7.5 | I101: 2 | J101: =kuljetuslaskuri!$D$35 -> 0 | K101: 21.5 | L101: 0.7166666667 | N101: 1.395348837 | P101: =IF(kuljetuslaskuri!$H$17,kuljetuslaskuri!$D$17,0) -> 25 | Q101: =IF(kuljetuslaskuri!$H$18,kuljetuslaskuri!$D$18,0) -> 0 | R101: =IF(kuljetuslaskuri!$G$19,kuljetuslaskuri!#REF!,0) -> 0 | S101: =AVERAGE(IF(P101:R101<>0, P101:R101,"")) -> 25 | T101: =S101*kuljetuslaskuri!$D$19% -> 23.75 | U101: 22 | V101: =kuljetuslaskuri!$D$24% -> 0 | W101: 15.94 | X101: 50 | Y101: 209.2055735 | Z101: 7.692307692 | AA101: 7.5 | AB101: =kuljetuslaskuri!$D$25*(laskentapohja!C101/laskentapohja!T101) -> 2.526315789 | AC101: 226.924197 | AD101: 7.5641399 | AE101: 0.1322027373 | AG101: 226.924197 | AH101: 0.1322027373 | AJ101: 0.7637757872 | AK101: -1.2631461 | AV101: =IF(kuljetuslaskuri!$H$45,kuljetuslaskuri!$D$45,0) -> 20 | AW101: =IF(kuljetuslaskuri!$H$46,kuljetuslaskuri!$D$46,0) -> 0 | AX101: =IF(kuljetuslaskuri!$G$19,kuljetuslaskuri!#REF!,0) -> 0 | AY101: =AVERAGE(IF(AV101:AX101<>0, AV101:AX101,"")) -> 20 | AZ101: =AY101*kuljetuslaskuri!$D$47% -> 19 | BA101: 22 | BB101: =kuljetuslaskuri!$D$52% -> 0 | BC101: 15.94 | BD101: 50 | BE101: 261.5069669 | BF101: 7.5 | BG101: 7.5 | BH101: =kuljetuslaskuri!$D$53*(laskentapohja!C101/laskentapohja!AZ101) -> 3.157894737 | BI101: 279.6648617 | BJ101: 12 | BK101: 291.6648617 | BL101: 9.722162055 | BM101: 0.1028577794 | BO101: 132.3724483 | BP101: 287.4373162 | BQ101: 419.8097645 | BS101: 0.39 | BT101: 257.4 | BV101: =kuljetuslaskuri!$D$74 -> 71.1 | BX101: 328.5 | BZ101: =N_arvo*N_maara*kuljetuslaskuri!$E$87%*C101 -> 59.4 | CA101: =P_arvo*P_maara*kuljetuslaskuri!$E$88%*C101 -> 41.04 | CB101: =K_arvo*K_maara*kuljetuslaskuri!$E$89%*C101 -> 79.2 | CC101: 179.64
B102: =kuljetuslaskuri!$D$31 -> 2500 | C102: =kuljetuslaskuri!$D$12 -> 30 | D102: =kuljetuslaskuri!$D$33 -> 14 | E102: =kuljetuslaskuri!$D$34 -> 4000 | F102: 12 | G102: 2.142857143 | H102: 7.5 | I102: 2 | J102: =kuljetuslaskuri!$D$35 -> 0 | K102: 21.5 | L102: 0.7166666667 | N102: 1.395348837 | P102: =IF(kuljetuslaskuri!$H$17,kuljetuslaskuri!$D$17,0) -> 25 | Q102: =IF(kuljetuslaskuri!$H$18,kuljetuslaskuri!$D$18,0) -> 0 | R102: =IF(kuljetuslaskuri!$G$19,kuljetuslaskuri!#REF!,0) -> 0 | S102: =AVERAGE(IF(P102:R102<>0, P102:R102,"")) -> 25 | T102: =S102*kuljetuslaskuri!$D$19% -> 23.75 | U102: 22.25 | V102: =kuljetuslaskuri!$D$24% -> 0 | W102: 15.94 | X102: 50 | Y102: 211.5829096 | Z102: 7.692307692 | AA102: 7.5 | AB102: =kuljetuslaskuri!$D$25*(laskentapohja!C102/laskentapohja!T102) -> 2.526315789 | AC102: 229.3015331 | AD102: 7.643384436 | AE102: 0.1308320952 | AG102: 229.3015331 | AH102: 0.1308320952 | AJ102: 0.7630904662 | AK102: -1.264516742 | AV102: =IF(kuljetuslaskuri!$H$45,kuljetuslaskuri!$D$45,0) -> 20 | AW102: =IF(kuljetuslaskuri!$H$46,kuljetuslaskuri!$D$46,0) -> 0 | AX102: =IF(kuljetuslaskuri!$G$19,kuljetuslaskuri!#REF!,0) -> 0 | AY102: =AVERAGE(IF(AV102:AX102<>0, AV102:AX102,"")) -> 20 | AZ102: =AY102*kuljetuslaskuri!$D$47% -> 19 | BA102: 22.25 | BB102: =kuljetuslaskuri!$D$52% -> 0 | BC102: 15.94 | BD102: 50 | BE102: 264.478637 | BF102: 7.5 | BG102: 7.5 | BH102: =kuljetuslaskuri!$D$53*(laskentapohja!C102/laskentapohja!AZ102) -> 3.157894737 | BI102: 282.6365317 | BJ102: 12 | BK102: 294.6365317 | BL102: 9.821217724 | BM102: 0.1018203677 | BO102: 133.7592276 | BP102: 290.4486086 | BQ102: 424.2078362 | BS102: 0.39 | BT102: 260.325 | BV102: =kuljetuslaskuri!$D$74 -> 71.1 | BX102: 331.425 | BZ102: =N_arvo*N_maara*kuljetuslaskuri!$E$87%*C102 -> 59.4 | CA102: =P_arvo*P_maara*kuljetuslaskuri!$E$88%*C102 -> 41.04 | CB102: =K_arvo*K_maara*kuljetuslaskuri!$E$89%*C102 -> 79.2 | CC102: 179.64
B103: =kuljetuslaskuri!$D$31 -> 2500 | C103: =kuljetuslaskuri!$D$12 -> 30 | D103: =kuljetuslaskuri!$D$33 -> 14 | E103: =kuljetuslaskuri!$D$34 -> 4000 | F103: 12 | G103: 2.142857143 | H103: 7.5 | I103: 2 | J103: =kuljetuslaskuri!$D$35 -> 0 | K103: 21.5 | L103: 0.7166666667 | N103: 1.395348837 | P103: =IF(kuljetuslaskuri!$H$17,kuljetuslaskuri!$D$17,0) -> 25 | Q103: =IF(kuljetuslaskuri!$H$18,kuljetuslaskuri!$D$18,0) -> 0 | R103: =IF(kuljetuslaskuri!$G$19,kuljetuslaskuri!#REF!,0) -> 0 | S103: =AVERAGE(IF(P103:R103<>0, P103:R103,"")) -> 25 | T103: =S103*kuljetuslaskuri!$D$19% -> 23.75 | U103: 22.5 | V103: =kuljetuslaskuri!$D$24% -> 0 | W103: 15.94 | X103: 50 | Y103: 213.9602457 | Z103: 7.692307692 | AA103: 7.5 | AB103: =kuljetuslaskuri!$D$25*(laskentapohja!C103/laskentapohja!T103) -> 2.526315789 | AC103: 231.6788691 | AD103: 7.722628971 | AE103: 0.1294895823 | AG103: 231.6788691 | AH103: 0.1294895823 | AJ103: 0.7624192098 | AK103: -1.265859255 | AV103: =IF(kuljetuslaskuri!$H$45,kuljetuslaskuri!$D$45,0) -> 20 | AW103: =IF(kuljetuslaskuri!$H$46,kuljetuslaskuri!$D$46,0) -> 0 | AX103: =IF(kuljetuslaskuri!$G$19,kuljetuslaskuri!#REF!,0) -> 0 | AY103: =AVERAGE(IF(AV103:AX103<>0, AV103:AX103,"")) -> 20 | AZ103: =AY103*kuljetuslaskuri!$D$47% -> 19 | BA103: 22.5 | BB103: =kuljetuslaskuri!$D$52% -> 0 | BC103: 15.94 | BD103: 50 | BE103: 267.4503071 | BF103: 7.5 | BG103: 7.5 | BH103: =kuljetuslaskuri!$D$53*(laskentapohja!C103/laskentapohja!AZ103) -> 3.157894737 | BI103: 285.6082018 | BJ103: 12 | BK103: 297.6082018 | BL103: 9.920273394 | BM103: 0.1008036735 | BO103: 135.146007 | BP103: 293.4599009 | BQ103: 428.6059079 | BS103: 0.39 | BT103: 263.25 | BV103: =kuljetuslaskuri!$D$74 -> 71.1 | BX103: 334.35 | BZ103: =N_arvo*N_maara*kuljetuslaskuri!$E$87%*C103 -> 59.4 | CA103: =P_arvo*P_maara*kuljetuslaskuri!$E$88%*C103 -> 41.04 | CB103: =K_arvo*K_maara*kuljetuslaskuri!$E$89%*C103 -> 79.2 | CC103: 179.64
B104: =kuljetuslaskuri!$D$31 -> 2500 | C104: =kuljetuslaskuri!$D$12 -> 30 | D104: =kuljetuslaskuri!$D$33 -> 14 | E104: =kuljetuslaskuri!$D$34 -> 4000 | F104: 12 | G104: 2.142857143 | H104: 7.5 | I104: 2 | J104: =kuljetuslaskuri!$D$35 -> 0 | K104: 21.5 | L104: 0.7166666667 | N104: 1.395348837 | P104: =IF(kuljetuslaskuri!$H$17,kuljetuslaskuri!$D$17,0) -> 25 | Q104: =IF(kuljetuslaskuri!$H$18,kuljetuslaskuri!$D$18,0) -> 0 | R104: =IF(kuljetuslaskuri!$G$19,kuljetuslaskuri!#REF!,0) -> 0 | S104: =AVERAGE(IF(P104:R104<>0, P104:R104,"")) -> 25 | T104: =S104*kuljetuslaskuri!$D$19% -> 23.75 | U104: 22.75 | V104: =kuljetuslaskuri!$D$24% -> 0 | W104: 15.94 | X104: 50 | Y104: 216.3375817 | Z104: 7.692307692 | AA104: 7.5 | AB104: =kuljetuslaskuri!$D$25*(laskentapohja!C104/laskentapohja!T104) -> 2.526315789 | AC104: 234.0562052 | AD104: 7.801873507 | AE104: 0.1281743416 | AG104: 234.0562052 | AH104: 0.1281743416 | AJ104: 0.7617615894 | AK104: -1.267174496 | AV104: =IF(kuljetuslaskuri!$H$45,kuljetuslaskuri!$D$45,0) -> 20 | AW104: =IF(kuljetuslaskuri!$H$46,kuljetuslaskuri!$D$46,0) -> 0 | AX104: =IF(kuljetuslaskuri!$G$19,kuljetuslaskuri!#REF!,0) -> 0 | AY104: =AVERAGE(IF(AV104:AX104<>0, AV104:AX104,"")) -> 20 | AZ104: =AY104*kuljetuslaskuri!$D$47% -> 19 | BA104: 22.75 | BB104: =kuljetuslaskuri!$D$52% -> 0 | BC104: 15.94 | BD104: 50 | BE104: 270.4219772 | BF104: 7.5 | BG104: 7.5 | BH104: =kuljetuslaskuri!$D$53*(laskentapohja!C104/laskentapohja!AZ104) -> 3.157894737 | BI104: 288.5798719 | BJ104: 12 | BK104: 300.5798719 | BL104: 10.01932906 | BM104: 0.09980708226 | BO104: 136.5327864 | BP104: 296.4711933 | BQ104: 433.0039796 | BS104: 0.39 | BT104: 266.175 | BV104: =kuljetuslaskuri!$D$74 -> 71.1 | BX104: 337.275 | BZ104: =N_arvo*N_maara*kuljetuslaskuri!$E$87%*C104 -> 59.4 | CA104: =P_arvo*P_maara*kuljetuslaskuri!$E$88%*C104 -> 41.04 | CB104: =K_arvo*K_maara*kuljetuslaskuri!$E$89%*C104 -> 79.2 | CC104: 179.64
B105: =kuljetuslaskuri!$D$31 -> 2500 | C105: =kuljetuslaskuri!$D$12 -> 30 | D105: =kuljetuslaskuri!$D$33 -> 14 | E105: =kuljetuslaskuri!$D$34 -> 4000 | F105: 12 | G105: 2.142857143 | H105: 7.5 | I105: 2 | J105: =kuljetuslaskuri!$D$35 -> 0 | K105: 21.5 | L105: 0.7166666667 | N105: 1.395348837 | P105: =IF(kuljetuslaskuri!$H$17,kuljetuslaskuri!$D$17,0) -> 25 | Q105: =IF(kuljetuslaskuri!$H$18,kuljetuslaskuri!$D$18,0) -> 0 | R105: =IF(kuljetuslaskuri!$G$19,kuljetuslaskuri!#REF!,0) -> 0 | S105: =AVERAGE(IF(P105:R105<>0, P105:R105,"")) -> 25 | T105: =S105*kuljetuslaskuri!$D$19% -> 23.75 | U105: 23 | V105: =kuljetuslaskuri!$D$24% -> 0 | W105: 15.94 | X105: 50 | Y105: 218.7149178 | Z105: 7.692307692 | AA105: 7.5 | AB105: =kuljetuslaskuri!$D$25*(laskentapohja!C105/laskentapohja!T105) -> 2.526315789 | AC105: 236.4335413 | AD105: 7.881118042 | AE105: 0.1268855503 | AG105: 236.4335413 | AH105: 0.1268855503 | AJ105: 0.7611171938 | AK105: -1.268463287 | AV105: =IF(kuljetuslaskuri!$H$45,kuljetuslaskuri!$D$45,0) -> 20 | AW105: =IF(kuljetuslaskuri!$H$46,kuljetuslaskuri!$D$46,0) -> 0 | AX105: =IF(kuljetuslaskuri!$G$19,kuljetuslaskuri!#REF!,0) -> 0 | AY105: =AVERAGE(IF(AV105:AX105<>0, AV105:AX105,"")) -> 20 | AZ105: =AY105*kuljetuslaskuri!$D$47% -> 19 | BA105: 23 | BB105: =kuljetuslaskuri!$D$52% -> 0 | BC105: 15.94 | BD105: 50 | BE105: 273.3936472 | BF105: 7.5 | BG105: 7.5 | BH105: =kuljetuslaskuri!$D$53*(laskentapohja!C105/laskentapohja!AZ105) -> 3.157894737 | BI105: 291.551542 | BJ105: 12 | BK105: 303.551542 | BL105: 10.11838473 | BM105: 0.09883000365 | BO105: 137.9195657 | BP105: 299.4824856 | BQ105: 437.4020513 | BS105: 0.39 | BT105: 269.1 | BV105: =kuljetuslaskuri!$D$74 -> 71.1 | BX105: 340.2 | BZ105: =N_arvo*N_maara*kuljetuslaskuri!$E$87%*C105 -> 59.4 | CA105: =P_arvo*P_maara*kuljetuslaskuri!$E$88%*C105 -> 41.04 | CB105: =K_arvo*K_maara*kuljetuslaskuri!$E$89%*C105 -> 79.2 | CC105: 179.64
B106: =kuljetuslaskuri!$D$31 -> 2500 | C106: =kuljetuslaskuri!$D$12 -> 30 | D106: =kuljetuslaskuri!$D$33 -> 14 | E106: =kuljetuslaskuri!$D$34 -> 4000 | F106: 12 | G106: 2.142857143 | H106: 7.5 | I106: 2 | J106: =kuljetuslaskuri!$D$35 -> 0 | K106: 21.5 | L106: 0.7166666667 | N106: 1.395348837 | P106: =IF(kuljetuslaskuri!$H$17,kuljetuslaskuri!$D$17,0) -> 25 | Q106: =IF(kuljetuslaskuri!$H$18,kuljetuslaskuri!$D$18,0) -> 0 | R106: =IF(kuljetuslaskuri!$G$19,kuljetuslaskuri!#REF!,0) -> 0 | S106: =AVERAGE(IF(P106:R106<>0, P106:R106,"")) -> 25 | T106: =S106*kuljetuslaskuri!$D$19% -> 23.75 | U106: 23.25 | V106: =kuljetuslaskuri!$D$24% -> 0 | W106: 15.94 | X106: 50 | Y106: 221.0922538 | Z106: 7.692307692 | AA106: 7.5 | AB106: =kuljetuslaskuri!$D$25*(laskentapohja!C106/laskentapohja!T106) -> 2.526315789 | AC106: 238.8108773 | AD106: 7.960362578 | AE106: 0.1256224186 | AG106: 238.8108773 | AH106: 0.1256224186 | AJ106: 0.7604856279 | AK106: =AH106-N106 -> -1.269726419 | AV106: =IF(kuljetuslaskuri!$H$45,kuljetuslaskuri!$D$45,0) -> 20 | AW106: =IF(kuljetuslaskuri!$H$46,kuljetuslaskuri!$D$46,0) -> 0 | AX106: =IF(kuljetuslaskuri!$G$19,kuljetuslaskuri!#REF!,0) -> 0 | AY106: =AVERAGE(IF(AV106:AX106<>0, AV106:AX106,"")) -> 20 | AZ106: =AY106*kuljetuslaskuri!$D$47% -> 19 | BA106: 23.25 | BB106: =kuljetuslaskuri!$D$52% -> 0 | BC106: 15.94 | BD106: 50 | BE106: 276.3653173 | BF106: 7.5 | BG106: 7.5 | BH106: =kuljetuslaskuri!$D$53*(laskentapohja!C106/laskentapohja!AZ106) -> 3.157894737 | BI106: 294.523212 | BJ106: 12 | BK106: 306.523212 | BL106: 10.2174404 | BM106: 0.09787187013 | BO106: 139.3063451 | BP106: 302.4937779 | BQ106: 441.8001231 | BS106: 0.39 | BT106: 272.025 | BV106: =kuljetuslaskuri!$D$74 -> 71.1 | BX106: 343.125 | BZ106: =N_arvo*N_maara*kuljetuslaskuri!$E$87%*C106 -> 59.4 | CA106: =P_arvo*P_maara*kuljetuslaskuri!$E$88%*C106 -> 41.04 | CB106: =K_arvo*K_maara*kuljetuslaskuri!$E$89%*C106 -> 79.2 | CC106: 179.64
B107: =kuljetuslaskuri!$D$31 -> 2500 | C107: =kuljetuslaskuri!$D$12 -> 30 | D107: =kuljetuslaskuri!$D$33 -> 14 | E107: =kuljetuslaskuri!$D$34 -> 4000 | F107: 12 | G107: 2.142857143 | H107: 7.5 | I107: 2 | J107: =kuljetuslaskuri!$D$35 -> 0 | K107: 21.5 | L107: 0.7166666667 | N107: 1.395348837 | P107: =IF(kuljetuslaskuri!$H$17,kuljetuslaskuri!$D$17,0) -> 25 | Q107: =IF(kuljetuslaskuri!$H$18,kuljetuslaskuri!$D$18,0) -> 0 | R107: =IF(kuljetuslaskuri!$G$19,kuljetuslaskuri!#REF!,0) -> 0 | S107: =AVERAGE(IF(P107:R107<>0, P107:R107,"")) -> 25 | T107: =S107*kuljetuslaskuri!$D$19% -> 23.75 | U107: 23.5 | V107: =kuljetuslaskuri!$D$24% -> 0 | W107: 15.94 | X107: 50 | Y107: 223.4695899 | Z107: 7.692307692 | AA107: 7.5 | AB107: =kuljetuslaskuri!$D$25*(laskentapohja!C107/laskentapohja!T107) -> 2.526315789 | AC107: 241.1882134 | AD107: 8.039607113 | AE107: 0.1243841877 | AG107: 241.1882134 | AH107: 0.1243841877 | AJ107: 0.7598665124 | AK107: -1.27096465 | AV107: =IF(kuljetuslaskuri!$H$45,kuljetuslaskuri!$D$45,0) -> 20 | AW107: =IF(kuljetuslaskuri!$H$46,kuljetuslaskuri!$D$46,0) -> 0 | AX107: =IF(kuljetuslaskuri!$G$19,kuljetuslaskuri!#REF!,0) -> 0 | AY107: =AVERAGE(IF(AV107:AX107<>0, AV107:AX107,"")) -> 20 | AZ107: =AY107*kuljetuslaskuri!$D$47% -> 19 | BA107: 23.5 | BB107: =kuljetuslaskuri!$D$52% -> 0 | BC107: 15.94 | BD107: 50 | BE107: 279.3369874 | BF107: 7.5 | BG107: 7.5 | BH107: =kuljetuslaskuri!$D$53*(laskentapohja!C107/laskentapohja!AZ107) -> 3.157894737 | BI107: 297.4948821 | BJ107: 12 | BK107: 309.4948821 | BL107: 10.31649607 | BM107: 0.09693213598 | BO107: 140.6931245 | BP107: 305.5050703 | BQ107: 446.1981948 | BS107: 0.39 | BT107: 274.95 | BV107: =kuljetuslaskuri!$D$74 -> 71.1 | BX107: 346.05 | BZ107: =N_arvo*N_maara*kuljetuslaskuri!$E$87%*C107 -> 59.4 | CA107: =P_arvo*P_maara*kuljetuslaskuri!$E$88%*C107 -> 41.04 | CB107: =K_arvo*K_maara*kuljetuslaskuri!$E$89%*C107 -> 79.2 | CC107: 179.64
B108: =kuljetuslaskuri!$D$31 -> 2500 | C108: =kuljetuslaskuri!$D$12 -> 30 | D108: =kuljetuslaskuri!$D$33 -> 14 | E108: =kuljetuslaskuri!$D$34 -> 4000 | F108: 12 | G108: 2.142857143 | H108: 7.5 | I108: 2 | J108: =kuljetuslaskuri!$D$35 -> 0 | K108: 21.5 | L108: 0.7166666667 | N108: 1.395348837 | P108: =IF(kuljetuslaskuri!$H$17,kuljetuslaskuri!$D$17,0) -> 25 | Q108: =IF(kuljetuslaskuri!$H$18,kuljetuslaskuri!$D$18,0) -> 0 | R108: =IF(kuljetuslaskuri!$G$19,kuljetuslaskuri!#REF!,0) -> 0 | S108: =AVERAGE(IF(P108:R108<>0, P108:R108,"")) -> 25 | T108: =S108*kuljetuslaskuri!$D$19% -> 23.75 | U108: 23.75 | V108: =kuljetuslaskuri!$D$24% -> 0 | W108: 15.94 | X108: 50 | Y108: 225.846926 | Z108: 7.692307692 | AA108: 7.5 | AB108: =kuljetuslaskuri!$D$25*(laskentapohja!C108/laskentapohja!T108) -> 2.526315789 | AC108: 243.5655495 | AD108: 8.118851648 | AE108: 0.1231701284 | AG108: 243.5655495 | AH108: 0.1231701284 | AJ108: 0.7592594828 | AK108: -1.272178709 | AV108: =IF(kuljetuslaskuri!$H$45,kuljetuslaskuri!$D$45,0) -> 20 | AW108: =IF(kuljetuslaskuri!$H$46,kuljetuslaskuri!$D$46,0) -> 0 | AX108: =IF(kuljetuslaskuri!$G$19,kuljetuslaskuri!#REF!,0) -> 0 | AY108: =AVERAGE(IF(AV108:AX108<>0, AV108:AX108,"")) -> 20 | AZ108: =AY108*kuljetuslaskuri!$D$47% -> 19 | BA108: 23.75 | BB108: =kuljetuslaskuri!$D$52% -> 0 | BC108: 15.94 | BD108: 50 | BE108: 282.3086575 | BF108: 7.5 | BG108: 7.5 | BH108: =kuljetuslaskuri!$D$53*(laskentapohja!C108/laskentapohja!AZ108) -> 3.157894737 | BI108: 300.4665522 | BJ108: 12 | BK108: 312.4665522 | BL108: 10.41555174 | BM108: 0.09601027626 | BO108: 142.0799038 | BP108: 308.5163626 | BQ108: 450.5962665 | BS108: 0.39 | BT108: 277.875 | BV108: =kuljetuslaskuri!$D$74 -> 71.1 | BX108: 348.975 | BZ108: =N_arvo*N_maara*kuljetuslaskuri!$E$87%*C108 -> 59.4 | CA108: =P_arvo*P_maara*kuljetuslaskuri!$E$88%*C108 -> 41.04 | CB108: =K_arvo*K_maara*kuljetuslaskuri!$E$89%*C108 -> 79.2 | CC108: 179.64
B109: =kuljetuslaskuri!$D$31 -> 2500 | C109: =kuljetuslaskuri!$D$12 -> 30 | D109: =kuljetuslaskuri!$D$33 -> 14 | E109: =kuljetuslaskuri!$D$34 -> 4000 | F109: 12 | G109: 2.142857143 | H109: 7.5 | I109: 2 | J109: =kuljetuslaskuri!$D$35 -> 0 | K109: 21.5 | L109: 0.7166666667 | N109: 1.395348837 | P109: =IF(kuljetuslaskuri!$H$17,kuljetuslaskuri!$D$17,0) -> 25 | Q109: =IF(kuljetuslaskuri!$H$18,kuljetuslaskuri!$D$18,0) -> 0 | R109: =IF(kuljetuslaskuri!$G$19,kuljetuslaskuri!#REF!,0) -> 0 | S109: =AVERAGE(IF(P109:R109<>0, P109:R109,"")) -> 25 | T109: =S109*kuljetuslaskuri!$D$19% -> 23.75 | U109: 24 | V109: =kuljetuslaskuri!$D$24% -> 0 | W109: 15.94 | X109: 50 | Y109: 228.224262 | Z109: 7.692307692 | AA109: 7.5 | AB109: =kuljetuslaskuri!$D$25*(laskentapohja!C109/laskentapohja!T109) -> 2.526315789 | AC109: 245.9428855 | AD109: 8.198096184 | AE109: 0.1219795398 | AG109: 245.9428855 | AH109: 0.1219795398 | AJ109: 0.7586641885 | AK109: -1.273369297 | AV109: =IF(kuljetuslaskuri!$H$45,kuljetuslaskuri!$D$45,0) -> 20 | AW109: =IF(kuljetuslaskuri!$H$46,kuljetuslaskuri!$D$46,0) -> 0 | AX109: =IF(kuljetuslaskuri!$G$19,kuljetuslaskuri!#REF!,0) -> 0 | AY109: =AVERAGE(IF(AV109:AX109<>0, AV109:AX109,"")) -> 20 | AZ109: =AY109*kuljetuslaskuri!$D$47% -> 19 | BA109: 24 | BB109: =kuljetuslaskuri!$D$52% -> 0 | BC109: 15.94 | BD109: 50 | BE109: 285.2803275 | BF109: 7.5 | BG109: 7.5 | BH109: =kuljetuslaskuri!$D$53*(laskentapohja!C109/laskentapohja!AZ109) -> 3.157894737 | BI109: 303.4382223 | BJ109: 12 | BK109: 315.4382223 | BL109: 10.51460741 | BM109: 0.0951057858 | BO109: 143.4666832 | BP109: 311.527655 | BQ109: 454.9943382 | BS109: 0.39 | BT109: 280.8 | BV109: =kuljetuslaskuri!$D$74 -> 71.1 | BX109: 351.9 | BZ109: =N_arvo*N_maara*kuljetuslaskuri!$E$87%*C109 -> 59.4 | CA109: =P_arvo*P_maara*kuljetuslaskuri!$E$88%*C109 -> 41.04 | CB109: =K_arvo*K_maara*kuljetuslaskuri!$E$89%*C109 -> 79.2 | CC109: 179.64
B110: =kuljetuslaskuri!$D$31 -> 2500 | C110: =kuljetuslaskuri!$D$12 -> 30 | D110: =kuljetuslaskuri!$D$33 -> 14 | E110: =kuljetuslaskuri!$D$34 -> 4000 | F110: 12 | G110: 2.142857143 | H110: 7.5 | I110: 2 | J110: =kuljetuslaskuri!$D$35 -> 0 | K110: 21.5 | L110: 0.7166666667 | N110: 1.395348837 | P110: =IF(kuljetuslaskuri!$H$17,kuljetuslaskuri!$D$17,0) -> 25 | Q110: =IF(kuljetuslaskuri!$H$18,kuljetuslaskuri!$D$18,0) -> 0 | R110: =IF(kuljetuslaskuri!$G$19,kuljetuslaskuri!#REF!,0) -> 0 | S110: =AVERAGE(IF(P110:R110<>0, P110:R110,"")) -> 25 | T110: =S110*kuljetuslaskuri!$D$19% -> 23.75 | U110: 24.25 | V110: =kuljetuslaskuri!$D$24% -> 0 | W110: 15.94 | X110: 50 | Y110: 230.6015981 | Z110: 7.692307692 | AA110: 7.5 | AB110: =kuljetuslaskuri!$D$25*(laskentapohja!C110/laskentapohja!T110) -> 2.526315789 | AC110: 248.3202216 | AD110: 8.277340719 | AE110: 0.1208117479 | AG110: 248.3202216 | AH110: 0.1208117479 | AJ110: 0.7580802925 | AK110: -1.274537089 | AV110: =IF(kuljetuslaskuri!$H$45,kuljetuslaskuri!$D$45,0) -> 20 | AW110: =IF(kuljetuslaskuri!$H$46,kuljetuslaskuri!$D$46,0) -> 0 | AX110: =IF(kuljetuslaskuri!$G$19,kuljetuslaskuri!#REF!,0) -> 0 | AY110: =AVERAGE(IF(AV110:AX110<>0, AV110:AX110,"")) -> 20 | AZ110: =AY110*kuljetuslaskuri!$D$47% -> 19 | BA110: 24.25 | BB110: =kuljetuslaskuri!$D$52% -> 0 | BC110: 15.94 | BD110: 50 | BE110: 288.2519976 | BF110: 7.5 | BG110: 7.5 | BH110: =kuljetuslaskuri!$D$53*(laskentapohja!C110/laskentapohja!AZ110) -> 3.157894737 | BI110: 306.4098924 | BJ110: 12 | BK110: 318.4098924 | BL110: 10.61366308 | BM110: 0.09421817827 | BO110: 144.8534626 | BP110: 314.5389473 | BQ110: 459.3924099 | BS110: 0.39 | BT110: 283.725 | BV110: =kuljetuslaskuri!$D$74 -> 71.1 | BX110: 354.825 | BZ110: =N_arvo*N_maara*kuljetuslaskuri!$E$87%*C110 -> 59.4 | CA110: =P_arvo*P_maara*kuljetuslaskuri!$E$88%*C110 -> 41.04 | CB110: =K_arvo*K_maara*kuljetuslaskuri!$E$89%*C110 -> 79.2 | CC110: 179.64
B111: =kuljetuslaskuri!$D$31 -> 2500 | C111: =kuljetuslaskuri!$D$12 -> 30 | D111: =kuljetuslaskuri!$D$33 -> 14 | E111: =kuljetuslaskuri!$D$34 -> 4000 | F111: 12 | G111: 2.142857143 | H111: 7.5 | I111: 2 | J111: =kuljetuslaskuri!$D$35 -> 0 | K111: 21.5 | L111: 0.7166666667 | N111: 1.395348837 | P111: =IF(kuljetuslaskuri!$H$17,kuljetuslaskuri!$D$17,0) -> 25 | Q111: =IF(kuljetuslaskuri!$H$18,kuljetuslaskuri!$D$18,0) -> 0 | R111: =IF(kuljetuslaskuri!$G$19,kuljetuslaskuri!#REF!,0) -> 0 | S111: =AVERAGE(IF(P111:R111<>0, P111:R111,"")) -> 25 | T111: =S111*kuljetuslaskuri!$D$19% -> 23.75 | U111: 24.5 | V111: =kuljetuslaskuri!$D$24% -> 0 | W111: 15.94 | X111: 50 | Y111: 232.9789342 | Z111: 7.692307692 | AA111: 7.5 | AB111: =kuljetuslaskuri!$D$25*(laskentapohja!C111/laskentapohja!T111) -> 2.526315789 | AC111: 250.6975576 | AD111: 8.356585255 | AE111: 0.119666104 | AG111: 250.6975576 | AH111: 0.119666104 | AJ111: 0.7575074706 | AK111: -1.275682733 | AV111: =IF(kuljetuslaskuri!$H$45,kuljetuslaskuri!$D$45,0) -> 20 | AW111: =IF(kuljetuslaskuri!$H$46,kuljetuslaskuri!$D$46,0) -> 0 | AX111: =IF(kuljetuslaskuri!$G$19,kuljetuslaskuri!#REF!,0) -> 0 | AY111: =AVERAGE(IF(AV111:AX111<>0, AV111:AX111,"")) -> 20 | AZ111: =AY111*kuljetuslaskuri!$D$47% -> 19 | BA111: 24.5 | BB111: =kuljetuslaskuri!$D$52% -> 0 | BC111: 15.94 | BD111: 50 | BE111: 291.2236677 | BF111: 7.5 | BG111: 7.5 | BH111: =kuljetuslaskuri!$D$53*(laskentapohja!C111/laskentapohja!AZ111) -> 3.157894737 | BI111: 309.3815624 | BJ111: 12 | BK111: 321.3815624 | BL111: 10.71271875 | BM111: 0.09334698535 | BO111: 146.240242 | BP111: 317.5502397 | BQ111: 463.7904816 | BS111: 0.39 | BT111: 286.65 | BV111: =kuljetuslaskuri!$D$74 -> 71.1 | BX111: 357.75 | BZ111: =N_arvo*N_maara*kuljetuslaskuri!$E$87%*C111 -> 59.4 | CA111: =P_arvo*P_maara*kuljetuslaskuri!$E$88%*C111 -> 41.04 | CB111: =K_arvo*K_maara*kuljetuslaskuri!$E$89%*C111 -> 79.2 | CC111: 179.64
B112: =kuljetuslaskuri!$D$31 -> 2500 | C112: =kuljetuslaskuri!$D$12 -> 30 | D112: =kuljetuslaskuri!$D$33 -> 14 | E112: =kuljetuslaskuri!$D$34 -> 4000 | F112: 12 | G112: 2.142857143 | H112: 7.5 | I112: 2 | J112: =kuljetuslaskuri!$D$35 -> 0 | K112: 21.5 | L112: 0.7166666667 | N112: 1.395348837 | P112: =IF(kuljetuslaskuri!$H$17,kuljetuslaskuri!$D$17,0) -> 25 | Q112: =IF(kuljetuslaskuri!$H$18,kuljetuslaskuri!$D$18,0) -> 0 | R112: =IF(kuljetuslaskuri!$G$19,kuljetuslaskuri!#REF!,0) -> 0 | S112: =AVERAGE(IF(P112:R112<>0, P112:R112,"")) -> 25 | T112: =S112*kuljetuslaskuri!$D$19% -> 23.75 | U112: 24.75 | V112: =kuljetuslaskuri!$D$24% -> 0 | W112: 15.94 | X112: 50 | Y112: 235.3562702 | Z112: 7.692307692 | AA112: 7.5 | AB112: =kuljetuslaskuri!$D$25*(laskentapohja!C112/laskentapohja!T112) -> 2.526315789 | AC112: 253.0748937 | AD112: 8.43582979 | AE112: 0.118541984 | AG112: 253.0748937 | AH112: 0.118541984 | AJ112: 0.7569454106 | AK112: -1.276806853 | AV112: =IF(kuljetuslaskuri!$H$45,kuljetuslaskuri!$D$45,0) -> 20 | AW112: =IF(kuljetuslaskuri!$H$46,kuljetuslaskuri!$D$46,0) -> 0 | AX112: =IF(kuljetuslaskuri!$G$19,kuljetuslaskuri!#REF!,0) -> 0 | AY112: =AVERAGE(IF(AV112:AX112<>0, AV112:AX112,"")) -> 20 | AZ112: =AY112*kuljetuslaskuri!$D$47% -> 19 | BA112: 24.75 | BB112: =kuljetuslaskuri!$D$52% -> 0 | BC112: 15.94 | BD112: 50 | BE112: 294.1953378 | BF112: 7.5 | BG112: 7.5 | BH112: =kuljetuslaskuri!$D$53*(laskentapohja!C112/laskentapohja!AZ112) -> 3.157894737 | BI112: 312.3532325 | BJ112: 12 | BK112: 324.3532325 | BL112: 10.81177442 | BM112: 0.09249175588 | BO112: 147.6270213 | BP112: 320.561532 | BQ112: 468.1885534 | BS112: 0.39 | BT112: 289.575 | BV112: =kuljetuslaskuri!$D$74 -> 71.1 | BX112: 360.675 | BZ112: =N_arvo*N_maara*kuljetuslaskuri!$E$87%*C112 -> 59.4 | CA112: =P_arvo*P_maara*kuljetuslaskuri!$E$88%*C112 -> 41.04 | CB112: =K_arvo*K_maara*kuljetuslaskuri!$E$89%*C112 -> 79.2 | CC112: 179.64
B113: =kuljetuslaskuri!$D$31 -> 2500 | C113: =kuljetuslaskuri!$D$12 -> 30 | D113: =kuljetuslaskuri!$D$33 -> 14 | E113: =kuljetuslaskuri!$D$34 -> 4000 | F113: 12 | G113: 2.142857143 | H113: 7.5 | I113: 2 | J113: =kuljetuslaskuri!$D$35 -> 0 | K113: 21.5 | L113: 0.7166666667 | N113: 1.395348837 | P113: =IF(kuljetuslaskuri!$H$17,kuljetuslaskuri!$D$17,0) -> 25 | Q113: =IF(kuljetuslaskuri!$H$18,kuljetuslaskuri!$D$18,0) -> 0 | R113: =IF(kuljetuslaskuri!$G$19,kuljetuslaskuri!#REF!,0) -> 0 | S113: =AVERAGE(IF(P113:R113<>0, P113:R113,"")) -> 25 | T113: =S113*kuljetuslaskuri!$D$19% -> 23.75 | U113: 25 | V113: =kuljetuslaskuri!$D$24% -> 0 | W113: 15.94 | X113: 50 | Y113: 237.7336063 | Z113: 7.692307692 | AA113: 7.5 | AB113: =kuljetuslaskuri!$D$25*(laskentapohja!C113/laskentapohja!T113) -> 2.526315789 | AC113: 255.4522298 | AD113: 8.515074326 | AE113: 0.117438787 | AG113: 255.4522298 | AH113: 0.117438787 | AJ113: 0.7563938121 | AK113: -1.27791005 | AV113: =IF(kuljetuslaskuri!$H$45,kuljetuslaskuri!$D$45,0) -> 20 | AW113: =IF(kuljetuslaskuri!$H$46,kuljetuslaskuri!$D$46,0) -> 0 | AX113: =IF(kuljetuslaskuri!$G$19,kuljetuslaskuri!#REF!,0) -> 0 | AY113: =AVERAGE(IF(AV113:AX113<>0, AV113:AX113,"")) -> 20 | AZ113: =AY113*kuljetuslaskuri!$D$47% -> 19 | BA113: 25 | BB113: =kuljetuslaskuri!$D$52% -> 0 | BC113: 15.94 | BD113: 50 | BE113: 297.1670079 | BF113: 7.5 | BG113: 7.5 | BH113: =kuljetuslaskuri!$D$53*(laskentapohja!C113/laskentapohja!AZ113) -> 3.157894737 | BI113: 315.3249026 | BJ113: 12 | BK113: 327.3249026 | BL113: 10.91083009 | BM113: 0.09165205507 | BO113: 149.0138007 | BP113: 323.5728244 | BQ113: 472.5866251 | BS113: 0.39 | BT113: 292.5 | BV113: =kuljetuslaskuri!$D$74 -> 71.1 | BX113: 363.6 | BZ113: =N_arvo*N_maara*kuljetuslaskuri!$E$87%*C113 -> 59.4 | CA113: =P_arvo*P_maara*kuljetuslaskuri!$E$88%*C113 -> 41.04 | CB113: =K_arvo*K_maara*kuljetuslaskuri!$E$89%*C113 -> 79.2 | CC113: 179.64
B114: =kuljetuslaskuri!$D$31 -> 2500 | C114: =kuljetuslaskuri!$D$12 -> 30 | D114: =kuljetuslaskuri!$D$33 -> 14 | E114: =kuljetuslaskuri!$D$34 -> 4000 | F114: 12 | G114: 2.142857143 | H114: 7.5 | I114: 2 | J114: =kuljetuslaskuri!$D$35 -> 0 | K114: 21.5 | L114: 0.7166666667 | N114: 1.395348837 | P114: =IF(kuljetuslaskuri!$H$17,kuljetuslaskuri!$D$17,0) -> 25 | Q114: =IF(kuljetuslaskuri!$H$18,kuljetuslaskuri!$D$18,0) -> 0 | R114: =IF(kuljetuslaskuri!$G$19,kuljetuslaskuri!#REF!,0) -> 0 | S114: =AVERAGE(IF(P114:R114<>0, P114:R114,"")) -> 25 | T114: =S114*kuljetuslaskuri!$D$19% -> 23.75 | U114: 25.25 | V114: =kuljetuslaskuri!$D$24% -> 0 | W114: 15.94 | X114: 50 | Y114: 240.1109423 | Z114: 7.692307692 | AA114: 7.5 | AB114: =kuljetuslaskuri!$D$25*(laskentapohja!C114/laskentapohja!T114) -> 2.526315789 | AC114: 257.8295658 | AD114: 8.594318861 | AE114: 0.1163559342 | AG114: 257.8295658 | AH114: 0.1163559342 | AJ114: 0.7558523857 | AK114: -1.278992903 | AV114: =IF(kuljetuslaskuri!$H$45,kuljetuslaskuri!$D$45,0) -> 20 | AW114: =IF(kuljetuslaskuri!$H$46,kuljetuslaskuri!$D$46,0) -> 0 | AX114: =IF(kuljetuslaskuri!$G$19,kuljetuslaskuri!#REF!,0) -> 0 | AY114: =AVERAGE(IF(AV114:AX114<>0, AV114:AX114,"")) -> 20 | AZ114: =AY114*kuljetuslaskuri!$D$47% -> 19 | BA114: 25.25 | BB114: =kuljetuslaskuri!$D$52% -> 0 | BC114: 15.94 | BD114: 50 | BE114: 300.1386779 | BF114: 7.5 | BG114: 7.5 | BH114: =kuljetuslaskuri!$D$53*(laskentapohja!C114/laskentapohja!AZ114) -> 3.157894737 | BI114: 318.2965727 | BJ114: 12 | BK114: 330.2965727 | BL114: 11.00988576 | BM114: 0.09082746381 | BO114: 150.4005801 | BP114: 326.5841167 | BQ114: 476.9846968 | BS114: 0.39 | BT114: 295.425 | BV114: =kuljetuslaskuri!$D$74 -> 71.1 | BX114: 366.525 | BZ114: =N_arvo*N_maara*kuljetuslaskuri!$E$87%*C114 -> 59.4 | CA114: =P_arvo*P_maara*kuljetuslaskuri!$E$88%*C114 -> 41.04 | CB114: =K_arvo*K_maara*kuljetuslaskuri!$E$89%*C114 -> 79.2 | CC114: 179.64
B115: =kuljetuslaskuri!$D$31 -> 2500 | C115: =kuljetuslaskuri!$D$12 -> 30 | D115: =kuljetuslaskuri!$D$33 -> 14 | E115: =kuljetuslaskuri!$D$34 -> 4000 | F115: 12 | G115: 2.142857143 | H115: 7.5 | I115: 2 | J115: =kuljetuslaskuri!$D$35 -> 0 | K115: 21.5 | L115: 0.7166666667 | N115: 1.395348837 | P115: =IF(kuljetuslaskuri!$H$17,kuljetuslaskuri!$D$17,0) -> 25 | Q115: =IF(kuljetuslaskuri!$H$18,kuljetuslaskuri!$D$18,0) -> 0 | R115: =IF(kuljetuslaskuri!$G$19,kuljetuslaskuri!#REF!,0) -> 0 | S115: =AVERAGE(IF(P115:R115<>0, P115:R115,"")) -> 25 | T115: =S115*kuljetuslaskuri!$D$19% -> 23.75 | U115: 25.5 | V115: =kuljetuslaskuri!$D$24% -> 0 | W115: 15.94 | X115: 50 | Y115: 242.4882784 | Z115: 7.692307692 | AA115: 7.5 | AB115: =kuljetuslaskuri!$D$25*(laskentapohja!C115/laskentapohja!T115) -> 2.526315789 | AC115: 260.2069019 | AD115: 8.673563396 | AE115: 0.115292868 | AG115: 260.2069019 | AH115: 0.115292868 | AJ115: 0.7553208526 | AK115: -1.280055969 | AV115: =IF(kuljetuslaskuri!$H$45,kuljetuslaskuri!$D$45,0) -> 20 | AW115: =IF(kuljetuslaskuri!$H$46,kuljetuslaskuri!$D$46,0) -> 0 | AX115: =IF(kuljetuslaskuri!$G$19,kuljetuslaskuri!#REF!,0) -> 0 | AY115: =AVERAGE(IF(AV115:AX115<>0, AV115:AX115,"")) -> 20 | AZ115: =AY115*kuljetuslaskuri!$D$47% -> 19 | BA115: 25.5 | BB115: =kuljetuslaskuri!$D$52% -> 0 | BC115: 15.94 | BD115: 50 | BE115: 303.110348 | BF115: 7.5 | BG115: 7.5 | BH115: =kuljetuslaskuri!$D$53*(laskentapohja!C115/laskentapohja!AZ115) -> 3.157894737 | BI115: 321.2682428 | BJ115: 12 | BK115: 333.2682428 | BL115: 11.10894143 | BM115: 0.09001757789 | BO115: 151.7873594 | BP115: 329.5954091 | BQ115: 481.3827685 | BS115: 0.39 | BT115: 298.35 | BV115: =kuljetuslaskuri!$D$74 -> 71.1 | BX115: 369.45 | BZ115: =N_arvo*N_maara*kuljetuslaskuri!$E$87%*C115 -> 59.4 | CA115: =P_arvo*P_maara*kuljetuslaskuri!$E$88%*C115 -> 41.04 | CB115: =K_arvo*K_maara*kuljetuslaskuri!$E$89%*C115 -> 79.2 | CC115: 179.64
B116: =kuljetuslaskuri!$D$31 -> 2500 | C116: =kuljetuslaskuri!$D$12 -> 30 | D116: =kuljetuslaskuri!$D$33 -> 14 | E116: =kuljetuslaskuri!$D$34 -> 4000 | F116: 12 | G116: 2.142857143 | H116: 7.5 | I116: 2 | J116: =kuljetuslaskuri!$D$35 -> 0 | K116: 21.5 | L116: 0.7166666667 | N116: 1.395348837 | P116: =IF(kuljetuslaskuri!$H$17,kuljetuslaskuri!$D$17,0) -> 25 | Q116: =IF(kuljetuslaskuri!$H$18,kuljetuslaskuri!$D$18,0) -> 0 | R116: =IF(kuljetuslaskuri!$G$19,kuljetuslaskuri!#REF!,0) -> 0 | S116: =AVERAGE(IF(P116:R116<>0, P116:R116,"")) -> 25 | T116: =S116*kuljetuslaskuri!$D$19% -> 23.75 | U116: 25.75 | V116: =kuljetuslaskuri!$D$24% -> 0 | W116: 15.94 | X116: 50 | Y116: 244.8656145 | Z116: 7.692307692 | AA116: 7.5 | AB116: =kuljetuslaskuri!$D$25*(laskentapohja!C116/laskentapohja!T116) -> 2.526315789 | AC116: 262.584238 | AD116: 8.752807932 | AE116: 0.114249051 | AG116: 262.584238 | AH116: 0.114249051 | AJ116: 0.7547989441 | AK116: -1.281099786 | AV116: =IF(kuljetuslaskuri!$H$45,kuljetuslaskuri!$D$45,0) -> 20 | AW116: =IF(kuljetuslaskuri!$H$46,kuljetuslaskuri!$D$46,0) -> 0 | AX116: =IF(kuljetuslaskuri!$G$19,kuljetuslaskuri!#REF!,0) -> 0 | AY116: =AVERAGE(IF(AV116:AX116<>0, AV116:AX116,"")) -> 20 | AZ116: =AY116*kuljetuslaskuri!$D$47% -> 19 | BA116: 25.75 | BB116: =kuljetuslaskuri!$D$52% -> 0 | BC116: 15.94 | BD116: 50 | BE116: 306.0820181 | BF116: 7.5 | BG116: 7.5 | BH116: =kuljetuslaskuri!$D$53*(laskentapohja!C116/laskentapohja!AZ116) -> 3.157894737 | BI116: 324.2399128 | BJ116: 12 | BK116: 336.2399128 | BL116: 11.20799709 | BM116: 0.08922200743 | BO116: 153.1741388 | BP116: 332.6067014 | BQ116: 485.7808402 | BS116: 0.39 | BT116: 301.275 | BV116: =kuljetuslaskuri!$D$74 -> 71.1 | BX116: 372.375 | BZ116: =N_arvo*N_maara*kuljetuslaskuri!$E$87%*C116 -> 59.4 | CA116: =P_arvo*P_maara*kuljetuslaskuri!$E$88%*C116 -> 41.04 | CB116: =K_arvo*K_maara*kuljetuslaskuri!$E$89%*C116 -> 79.2 | CC116: 179.64
B117: =kuljetuslaskuri!$D$31 -> 2500 | C117: =kuljetuslaskuri!$D$12 -> 30 | D117: =kuljetuslaskuri!$D$33 -> 14 | E117: =kuljetuslaskuri!$D$34 -> 4000 | F117: 12 | G117: 2.142857143 | H117: 7.5 | I117: 2 | J117: =kuljetuslaskuri!$D$35 -> 0 | K117: 21.5 | L117: 0.7166666667 | N117: 1.395348837 | P117: =IF(kuljetuslaskuri!$H$17,kuljetuslaskuri!$D$17,0) -> 25 | Q117: =IF(kuljetuslaskuri!$H$18,kuljetuslaskuri!$D$18,0) -> 0 | R117: =IF(kuljetuslaskuri!$G$19,kuljetuslaskuri!#REF!,0) -> 0 | S117: =AVERAGE(IF(P117:R117<>0, P117:R117,"")) -> 25 | T117: =S117*kuljetuslaskuri!$D$19% -> 23.75 | U117: 26 | V117: =kuljetuslaskuri!$D$24% -> 0 | W117: 15.94 | X117: 50 | Y117: 247.2429505 | Z117: 7.692307692 | AA117: 7.5 | AB117: =kuljetuslaskuri!$D$25*(laskentapohja!C117/laskentapohja!T117) -> 2.526315789 | AC117: 264.961574 | AD117: 8.832052467 | AE117: 0.1132239651 | AG117: 264.961574 | AH117: 0.1132239651 | AJ117: 0.7542864011 | AK117: -1.282124872 | AV117: =IF(kuljetuslaskuri!$H$45,kuljetuslaskuri!$D$45,0) -> 20 | AW117: =IF(kuljetuslaskuri!$H$46,kuljetuslaskuri!$D$46,0) -> 0 | AX117: =IF(kuljetuslaskuri!$G$19,kuljetuslaskuri!#REF!,0) -> 0 | AY117: =AVERAGE(IF(AV117:AX117<>0, AV117:AX117,"")) -> 20 | AZ117: =AY117*kuljetuslaskuri!$D$47% -> 19 | BA117: 26 | BB117: =kuljetuslaskuri!$D$52% -> 0 | BC117: 15.94 | BD117: 50 | BE117: 309.0536882 | BF117: 7.5 | BG117: 7.5 | BH117: =kuljetuslaskuri!$D$53*(laskentapohja!C117/laskentapohja!AZ117) -> 3.157894737 | BI117: 327.2115829 | BJ117: 12 | BK117: 339.2115829 | BL117: 11.30705276 | BM117: 0.08844037619 | BO117: 154.5609182 | BP117: 335.6179938 | BQ117: 490.1789119 | BS117: 0.39 | BT117: 304.2 | BV117: =kuljetuslaskuri!$D$74 -> 71.1 | BX117: 375.3 | BZ117: =N_arvo*N_maara*kuljetuslaskuri!$E$87%*C117 -> 59.4 | CA117: =P_arvo*P_maara*kuljetuslaskuri!$E$88%*C117 -> 41.04 | CB117: =K_arvo*K_maara*kuljetuslaskuri!$E$89%*C117 -> 79.2 | CC117: 179.64
B118: =kuljetuslaskuri!$D$31 -> 2500 | C118: =kuljetuslaskuri!$D$12 -> 30 | D118: =kuljetuslaskuri!$D$33 -> 14 | E118: =kuljetuslaskuri!$D$34 -> 4000 | F118: 12 | G118: 2.142857143 | H118: 7.5 | I118: 2 | J118: =kuljetuslaskuri!$D$35 -> 0 | K118: 21.5 | L118: 0.7166666667 | N118: 1.395348837 | P118: =IF(kuljetuslaskuri!$H$17,kuljetuslaskuri!$D$17,0) -> 25 | Q118: =IF(kuljetuslaskuri!$H$18,kuljetuslaskuri!$D$18,0) -> 0 | R118: =IF(kuljetuslaskuri!$G$19,kuljetuslaskuri!#REF!,0) -> 0 | S118: =AVERAGE(IF(P118:R118<>0, P118:R118,"")) -> 25 | T118: =S118*kuljetuslaskuri!$D$19% -> 23.75 | U118: 26.25 | V118: =kuljetuslaskuri!$D$24% -> 0 | W118: 15.94 | X118: 50 | Y118: 249.6202866 | Z118: 7.692307692 | AA118: 7.5 | AB118: =kuljetuslaskuri!$D$25*(laskentapohja!C118/laskentapohja!T118) -> 2.526315789 | AC118: 267.3389101 | AD118: 8.911297003 | AE118: 0.1122171104 | AG118: 267.3389101 | AH118: 0.1122171104 | AJ118: 0.7537829738 | AK118: -1.283131727 | AV118: =IF(kuljetuslaskuri!$H$45,kuljetuslaskuri!$D$45,0) -> 20 | AW118: =IF(kuljetuslaskuri!$H$46,kuljetuslaskuri!$D$46,0) -> 0 | AX118: =IF(kuljetuslaskuri!$G$19,kuljetuslaskuri!#REF!,0) -> 0 | AY118: =AVERAGE(IF(AV118:AX118<>0, AV118:AX118,"")) -> 20 | AZ118: =AY118*kuljetuslaskuri!$D$47% -> 19 | BA118: 26.25 | BB118: =kuljetuslaskuri!$D$52% -> 0 | BC118: 15.94 | BD118: 50 | BE118: 312.0253583 | BF118: 7.5 | BG118: 7.5 | BH118: =kuljetuslaskuri!$D$53*(laskentapohja!C118/laskentapohja!AZ118) -> 3.157894737 | BI118: 330.183253 | BJ118: 12 | BK118: 342.183253 | BL118: 11.40610843 | BM118: 0.08767232101 | BO118: 155.9476975 | BP118: 338.6292861 | BQ118: 494.5769837 | BS118: 0.39 | BT118: 307.125 | BV118: =kuljetuslaskuri!$D$74 -> 71.1 | BX118: 378.225 | BZ118: =N_arvo*N_maara*kuljetuslaskuri!$E$87%*C118 -> 59.4 | CA118: =P_arvo*P_maara*kuljetuslaskuri!$E$88%*C118 -> 41.04 | CB118: =K_arvo*K_maara*kuljetuslaskuri!$E$89%*C118 -> 79.2 | CC118: 179.64
B119: =kuljetuslaskuri!$D$31 -> 2500 | C119: =kuljetuslaskuri!$D$12 -> 30 | D119: =kuljetuslaskuri!$D$33 -> 14 | E119: =kuljetuslaskuri!$D$34 -> 4000 | F119: 12 | G119: 2.142857143 | H119: 7.5 | I119: 2 | J119: =kuljetuslaskuri!$D$35 -> 0 | K119: 21.5 | L119: 0.7166666667 | N119: 1.395348837 | P119: =IF(kuljetuslaskuri!$H$17,kuljetuslaskuri!$D$17,0) -> 25 | Q119: =IF(kuljetuslaskuri!$H$18,kuljetuslaskuri!$D$18,0) -> 0 | R119: =IF(kuljetuslaskuri!$G$19,kuljetuslaskuri!#REF!,0) -> 0 | S119: =AVERAGE(IF(P119:R119<>0, P119:R119,"")) -> 25 | T119: =S119*kuljetuslaskuri!$D$19% -> 23.75 | U119: 26.5 | V119: =kuljetuslaskuri!$D$24% -> 0 | W119: 15.94 | X119: 50 | Y119: 251.9976227 | Z119: 7.692307692 | AA119: 7.5 | AB119: =kuljetuslaskuri!$D$25*(laskentapohja!C119/laskentapohja!T119) -> 2.526315789 | AC119: 269.7162461 | AD119: 8.990541538 | AE119: 0.1112280051 | AG119: 269.7162461 | AH119: 0.1112280051 | AJ119: 0.7532884212 | AK119: -1.284120832 | AV119: =IF(kuljetuslaskuri!$H$45,kuljetuslaskuri!$D$45,0) -> 20 | AW119: =IF(kuljetuslaskuri!$H$46,kuljetuslaskuri!$D$46,0) -> 0 | AX119: =IF(kuljetuslaskuri!$G$19,kuljetuslaskuri!#REF!,0) -> 0 | AY119: =AVERAGE(IF(AV119:AX119<>0, AV119:AX119,"")) -> 20 | AZ119: =AY119*kuljetuslaskuri!$D$47% -> 19 | BA119: 26.5 | BB119: =kuljetuslaskuri!$D$52% -> 0 | BC119: 15.94 | BD119: 50 | BE119: 314.9970283 | BF119: 7.5 | BG119: 7.5 | BH119: =kuljetuslaskuri!$D$53*(laskentapohja!C119/laskentapohja!AZ119) -> 3.157894737 | BI119: 333.1549231 | BJ119: 12 | BK119: 345.1549231 | BL119: 11.5051641 | BM119: 0.08691749123 | BO119: 157.3344769 | BP119: 341.6405785 | BQ119: 498.9750554 | BS119: 0.39 | BT119: 310.05 | BV119: =kuljetuslaskuri!$D$74 -> 71.1 | BX119: 381.15 | BZ119: =N_arvo*N_maara*kuljetuslaskuri!$E$87%*C119 -> 59.4 | CA119: =P_arvo*P_maara*kuljetuslaskuri!$E$88%*C119 -> 41.04 | CB119: =K_arvo*K_maara*kuljetuslaskuri!$E$89%*C119 -> 79.2 | CC119: 179.64
B120: =kuljetuslaskuri!$D$31 -> 2500 | C120: =kuljetuslaskuri!$D$12 -> 30 | D120: =kuljetuslaskuri!$D$33 -> 14 | E120: =kuljetuslaskuri!$D$34 -> 4000 | F120: 12 | G120: 2.142857143 | H120: 7.5 | I120: 2 | J120: =kuljetuslaskuri!$D$35 -> 0 | K120: 21.5 | L120: 0.7166666667 | N120: 1.395348837 | P120: =IF(kuljetuslaskuri!$H$17,kuljetuslaskuri!$D$17,0) -> 25 | Q120: =IF(kuljetuslaskuri!$H$18,kuljetuslaskuri!$D$18,0) -> 0 | R120: =IF(kuljetuslaskuri!$G$19,kuljetuslaskuri!#REF!,0) -> 0 | S120: =AVERAGE(IF(P120:R120<>0, P120:R120,"")) -> 25 | T120: =S120*kuljetuslaskuri!$D$19% -> 23.75 | U120: 26.75 | V120: =kuljetuslaskuri!$D$24% -> 0 | W120: 15.94 | X120: 50 | Y120: 254.3749587 | Z120: 7.692307692 | AA120: 7.5 | AB120: =kuljetuslaskuri!$D$25*(laskentapohja!C120/laskentapohja!T120) -> 2.526315789 | AC120: 272.0935822 | AD120: 9.069786074 | AE120: 0.1102561838 | AG120: 272.0935822 | AH120: 0.1102561838 | AJ120: 0.7528025105 | AK120: -1.285092653 | AV120: =IF(kuljetuslaskuri!$H$45,kuljetuslaskuri!$D$45,0) -> 20 | AW120: =IF(kuljetuslaskuri!$H$46,kuljetuslaskuri!$D$46,0) -> 0 | AX120: =IF(kuljetuslaskuri!$G$19,kuljetuslaskuri!#REF!,0) -> 0 | AY120: =AVERAGE(IF(AV120:AX120<>0, AV120:AX120,"")) -> 20 | AZ120: =AY120*kuljetuslaskuri!$D$47% -> 19 | BA120: 26.75 | BB120: =kuljetuslaskuri!$D$52% -> 0 | BC120: 15.94 | BD120: 50 | BE120: 317.9686984 | BF120: 7.5 | BG120: 7.5 | BH120: =kuljetuslaskuri!$D$53*(laskentapohja!C120/laskentapohja!AZ120) -> 3.157894737 | BI120: 336.1265931 | BJ120: 12 | BK120: 348.1265931 | BL120: 11.60421977 | BM120: 0.08617554818 | BO120: 158.7212563 | BP120: 344.6518708 | BQ120: 503.3731271 | BS120: 0.39 | BT120: 312.975 | BV120: =kuljetuslaskuri!$D$74 -> 71.1 | BX120: 384.075 | BZ120: =N_arvo*N_maara*kuljetuslaskuri!$E$87%*C120 -> 59.4 | CA120: =P_arvo*P_maara*kuljetuslaskuri!$E$88%*C120 -> 41.04 | CB120: =K_arvo*K_maara*kuljetuslaskuri!$E$89%*C120 -> 79.2 | CC120: 179.64
B121: =kuljetuslaskuri!$D$31 -> 2500 | C121: =kuljetuslaskuri!$D$12 -> 30 | D121: =kuljetuslaskuri!$D$33 -> 14 | E121: =kuljetuslaskuri!$D$34 -> 4000 | F121: 12 | G121: 2.142857143 | H121: 7.5 | I121: 2 | J121: =kuljetuslaskuri!$D$35 -> 0 | K121: 21.5 | L121: 0.7166666667 | N121: 1.395348837 | P121: =IF(kuljetuslaskuri!$H$17,kuljetuslaskuri!$D$17,0) -> 25 | Q121: =IF(kuljetuslaskuri!$H$18,kuljetuslaskuri!$D$18,0) -> 0 | R121: =IF(kuljetuslaskuri!$G$19,kuljetuslaskuri!#REF!,0) -> 0 | S121: =AVERAGE(IF(P121:R121<>0, P121:R121,"")) -> 25 | T121: =S121*kuljetuslaskuri!$D$19% -> 23.75 | U121: 27 | V121: =kuljetuslaskuri!$D$24% -> 0 | W121: 15.94 | X121: 50 | Y121: 256.7522948 | Z121: 7.692307692 | AA121: 7.5 | AB121: =kuljetuslaskuri!$D$25*(laskentapohja!C121/laskentapohja!T121) -> 2.526315789 | AC121: 274.4709183 | AD121: 9.149030609 | AE121: 0.1093011973 | AG121: 274.4709183 | AH121: 0.1093011973 | AJ121: 0.7523250173 | AK121: -1.28604764 | AV121: =IF(kuljetuslaskuri!$H$45,kuljetuslaskuri!$D$45,0) -> 20 | AW121: =IF(kuljetuslaskuri!$H$46,kuljetuslaskuri!$D$46,0) -> 0 | AX121: =IF(kuljetuslaskuri!$G$19,kuljetuslaskuri!#REF!,0) -> 0 | AY121: =AVERAGE(IF(AV121:AX121<>0, AV121:AX121,"")) -> 20 | AZ121: =AY121*kuljetuslaskuri!$D$47% -> 19 | BA121: 27 | BB121: =kuljetuslaskuri!$D$52% -> 0 | BC121: 15.94 | BD121: 50 | BE121: 320.9403685 | BF121: 7.5 | BG121: 7.5 | BH121: =kuljetuslaskuri!$D$53*(laskentapohja!C121/laskentapohja!AZ121) -> 3.157894737 | BI121: 339.0982632 | BJ121: 12 | BK121: 351.0982632 | BL121: 11.70327544 | BM121: 0.08544616463 | BO121: 160.1080357 | BP121: 347.6631631 | BQ121: 507.7711988 | BS121: 0.39 | BT121: 315.9 | BV121: =kuljetuslaskuri!$D$74 -> 71.1 | BX121: 387 | BZ121: =N_arvo*N_maara*kuljetuslaskuri!$E$87%*C121 -> 59.4 | CA121: =P_arvo*P_maara*kuljetuslaskuri!$E$88%*C121 -> 41.04 | CB121: =K_arvo*K_maara*kuljetuslaskuri!$E$89%*C121 -> 79.2 | CC121: 179.64
B122: =kuljetuslaskuri!$D$31 -> 2500 | C122: =kuljetuslaskuri!$D$12 -> 30 | D122: =kuljetuslaskuri!$D$33 -> 14 | E122: =kuljetuslaskuri!$D$34 -> 4000 | F122: 12 | G122: 2.142857143 | H122: 7.5 | I122: 2 | J122: =kuljetuslaskuri!$D$35 -> 0 | K122: 21.5 | L122: 0.7166666667 | N122: 1.395348837 | P122: =IF(kuljetuslaskuri!$H$17,kuljetuslaskuri!$D$17,0) -> 25 | Q122: =IF(kuljetuslaskuri!$H$18,kuljetuslaskuri!$D$18,0) -> 0 | R122: =IF(kuljetuslaskuri!$G$19,kuljetuslaskuri!#REF!,0) -> 0 | S122: =AVERAGE(IF(P122:R122<>0, P122:R122,"")) -> 25 | T122: =S122*kuljetuslaskuri!$D$19% -> 23.75 | U122: 27.25 | V122: =kuljetuslaskuri!$D$24% -> 0 | W122: 15.94 | X122: 50 | Y122: 259.1296309 | Z122: 7.692307692 | AA122: 7.5 | AB122: =kuljetuslaskuri!$D$25*(laskentapohja!C122/laskentapohja!T122) -> 2.526315789 | AC122: 276.8482543 | AD122: 9.228275144 | AE122: 0.1083626121 | AG122: 276.8482543 | AH122: 0.1083626121 | AJ122: 0.7518557247 | AK122: -1.286986225 | AV122: =IF(kuljetuslaskuri!$H$45,kuljetuslaskuri!$D$45,0) -> 20 | AW122: =IF(kuljetuslaskuri!$H$46,kuljetuslaskuri!$D$46,0) -> 0 | AX122: =IF(kuljetuslaskuri!$G$19,kuljetuslaskuri!#REF!,0) -> 0 | AY122: =AVERAGE(IF(AV122:AX122<>0, AV122:AX122,"")) -> 20 | AZ122: =AY122*kuljetuslaskuri!$D$47% -> 19 | BA122: 27.25 | BB122: =kuljetuslaskuri!$D$52% -> 0 | BC122: 15.94 | BD122: 50 | BE122: 323.9120386 | BF122: 7.5 | BG122: 7.5 | BH122: =kuljetuslaskuri!$D$53*(laskentapohja!C122/laskentapohja!AZ122) -> 3.157894737 | BI122: 342.0699333 | BJ122: 12 | BK122: 354.0699333 | BL122: 11.80233111 | BM122: 0.08472902435 | BO122: 161.494815 | BP122: 350.6744555 | BQ122: 512.1692705 | BS122: 0.39 | BT122: 318.825 | BV122: =kuljetuslaskuri!$D$74 -> 71.1 | BX122: 389.925 | BZ122: =N_arvo*N_maara*kuljetuslaskuri!$E$87%*C122 -> 59.4 | CA122: =P_arvo*P_maara*kuljetuslaskuri!$E$88%*C122 -> 41.04 | CB122: =K_arvo*K_maara*kuljetuslaskuri!$E$89%*C122 -> 79.2 | CC122: 179.64
B123: =kuljetuslaskuri!$D$31 -> 2500 | C123: =kuljetuslaskuri!$D$12 -> 30 | D123: =kuljetuslaskuri!$D$33 -> 14 | E123: =kuljetuslaskuri!$D$34 -> 4000 | F123: 12 | G123: 2.142857143 | H123: 7.5 | I123: 2 | J123: =kuljetuslaskuri!$D$35 -> 0 | K123: 21.5 | L123: 0.7166666667 | N123: 1.395348837 | P123: =IF(kuljetuslaskuri!$H$17,kuljetuslaskuri!$D$17,0) -> 25 | Q123: =IF(kuljetuslaskuri!$H$18,kuljetuslaskuri!$D$18,0) -> 0 | R123: =IF(kuljetuslaskuri!$G$19,kuljetuslaskuri!#REF!,0) -> 0 | S123: =AVERAGE(IF(P123:R123<>0, P123:R123,"")) -> 25 | T123: =S123*kuljetuslaskuri!$D$19% -> 23.75 | U123: 27.5 | V123: =kuljetuslaskuri!$D$24% -> 0 | W123: 15.94 | X123: 50 | Y123: 261.5069669 | Z123: 7.692307692 | AA123: 7.5 | AB123: =kuljetuslaskuri!$D$25*(laskentapohja!C123/laskentapohja!T123) -> 2.526315789 | AC123: 279.2255904 | AD123: 9.30751968 | AE123: 0.1074400092 | AG123: 279.2255904 | AH123: 0.1074400092 | AJ123: 0.7513944232 | AK123: -1.287908828 | AV123: =IF(kuljetuslaskuri!$H$45,kuljetuslaskuri!$D$45,0) -> 20 | AW123: =IF(kuljetuslaskuri!$H$46,kuljetuslaskuri!$D$46,0) -> 0 | AX123: =IF(kuljetuslaskuri!$G$19,kuljetuslaskuri!#REF!,0) -> 0 | AY123: =AVERAGE(IF(AV123:AX123<>0, AV123:AX123,"")) -> 20 | AZ123: =AY123*kuljetuslaskuri!$D$47% -> 19 | BA123: 27.5 | BB123: =kuljetuslaskuri!$D$52% -> 0 | BC123: 15.94 | BD123: 50 | BE123: 326.8837086 | BF123: 7.5 | BG123: 7.5 | BH123: =kuljetuslaskuri!$D$53*(laskentapohja!C123/laskentapohja!AZ123) -> 3.157894737 | BI123: 345.0416034 | BJ123: 12 | BK123: 357.0416034 | BL123: 11.90138678 | BM123: 0.08402382164 | BO123: 162.8815944 | BP123: 353.6857478 | BQ123: 516.5673422 | BS123: 0.39 | BT123: 321.75 | BV123: =kuljetuslaskuri!$D$74 -> 71.1 | BX123: 392.85 | BZ123: =N_arvo*N_maara*kuljetuslaskuri!$E$87%*C123 -> 59.4 | CA123: =P_arvo*P_maara*kuljetuslaskuri!$E$88%*C123 -> 41.04 | CB123: =K_arvo*K_maara*kuljetuslaskuri!$E$89%*C123 -> 79.2 | CC123: 179.64
B124: =kuljetuslaskuri!$D$31 -> 2500 | C124: =kuljetuslaskuri!$D$12 -> 30 | D124: =kuljetuslaskuri!$D$33 -> 14 | E124: =kuljetuslaskuri!$D$34 -> 4000 | F124: 12 | G124: 2.142857143 | H124: 7.5 | I124: 2 | J124: =kuljetuslaskuri!$D$35 -> 0 | K124: 21.5 | L124: 0.7166666667 | N124: 1.395348837 | P124: =IF(kuljetuslaskuri!$H$17,kuljetuslaskuri!$D$17,0) -> 25 | Q124: =IF(kuljetuslaskuri!$H$18,kuljetuslaskuri!$D$18,0) -> 0 | R124: =IF(kuljetuslaskuri!$G$19,kuljetuslaskuri!#REF!,0) -> 0 | S124: =AVERAGE(IF(P124:R124<>0, P124:R124,"")) -> 25 | T124: =S124*kuljetuslaskuri!$D$19% -> 23.75 | U124: 27.75 | V124: =kuljetuslaskuri!$D$24% -> 0 | W124: 15.94 | X124: 50 | Y124: 263.884303 | Z124: 7.692307692 | AA124: 7.5 | AB124: =kuljetuslaskuri!$D$25*(laskentapohja!C124/laskentapohja!T124) -> 2.526315789 | AC124: 281.6029265 | AD124: 9.386764215 | AE124: 0.1065329838 | AG124: 281.6029265 | AH124: 0.1065329838 | AJ124: 0.7509409105 | AK124: -1.288815853 | AV124: =IF(kuljetuslaskuri!$H$45,kuljetuslaskuri!$D$45,0) -> 20 | AW124: =IF(kuljetuslaskuri!$H$46,kuljetuslaskuri!$D$46,0) -> 0 | AX124: =IF(kuljetuslaskuri!$G$19,kuljetuslaskuri!#REF!,0) -> 0 | AY124: =AVERAGE(IF(AV124:AX124<>0, AV124:AX124,"")) -> 20 | AZ124: =AY124*kuljetuslaskuri!$D$47% -> 19 | BA124: 27.75 | BB124: =kuljetuslaskuri!$D$52% -> 0 | BC124: 15.94 | BD124: 50 | BE124: 329.8553787 | BF124: 7.5 | BG124: 7.5 | BH124: =kuljetuslaskuri!$D$53*(laskentapohja!C124/laskentapohja!AZ124) -> 3.157894737 | BI124: 348.0132735 | BJ124: 12 | BK124: 360.0132735 | BL124: 12.00044245 | BM124: 0.08333026089 | BO124: 164.2683738 | BP124: 356.6970402 | BQ124: 520.965414 | BS124: 0.39 | BT124: 324.675 | BV124: =kuljetuslaskuri!$D$74 -> 71.1 | BX124: 395.775 | BZ124: =N_arvo*N_maara*kuljetuslaskuri!$E$87%*C124 -> 59.4 | CA124: =P_arvo*P_maara*kuljetuslaskuri!$E$88%*C124 -> 41.04 | CB124: =K_arvo*K_maara*kuljetuslaskuri!$E$89%*C124 -> 79.2 | CC124: 179.64
B125: =kuljetuslaskuri!$D$31 -> 2500 | C125: =kuljetuslaskuri!$D$12 -> 30 | D125: =kuljetuslaskuri!$D$33 -> 14 | E125: =kuljetuslaskuri!$D$34 -> 4000 | F125: 12 | G125: 2.142857143 | H125: 7.5 | I125: 2 | J125: =kuljetuslaskuri!$D$35 -> 0 | K125: 21.5 | L125: 0.7166666667 | N125: 1.395348837 | P125: =IF(kuljetuslaskuri!$H$17,kuljetuslaskuri!$D$17,0) -> 25 | Q125: =IF(kuljetuslaskuri!$H$18,kuljetuslaskuri!$D$18,0) -> 0 | R125: =IF(kuljetuslaskuri!$G$19,kuljetuslaskuri!#REF!,0) -> 0 | S125: =AVERAGE(IF(P125:R125<>0, P125:R125,"")) -> 25 | T125: =S125*kuljetuslaskuri!$D$19% -> 23.75 | U125: 28 | V125: =kuljetuslaskuri!$D$24% -> 0 | W125: 15.94 | X125: 50 | Y125: 266.261639 | Z125: 7.692307692 | AA125: 7.5 | AB125: =kuljetuslaskuri!$D$25*(laskentapohja!C125/laskentapohja!T125) -> 2.526315789 | AC125: 283.9802625 | AD125: 9.466008751 | AE125: 0.1056411447 | AG125: 283.9802625 | AH125: 0.1056411447 | AJ125: 0.7504949909 | AK125: -1.289707693 | AV125: =IF(kuljetuslaskuri!$H$45,kuljetuslaskuri!$D$45,0) -> 20 | AW125: =IF(kuljetuslaskuri!$H$46,kuljetuslaskuri!$D$46,0) -> 0 | AX125: =IF(kuljetuslaskuri!$G$19,kuljetuslaskuri!#REF!,0) -> 0 | AY125: =AVERAGE(IF(AV125:AX125<>0, AV125:AX125,"")) -> 20 | AZ125: =AY125*kuljetuslaskuri!$D$47% -> 19 | BA125: 28 | BB125: =kuljetuslaskuri!$D$52% -> 0 | BC125: 15.94 | BD125: 50 | BE125: 332.8270488 | BF125: 7.5 | BG125: 7.5 | BH125: =kuljetuslaskuri!$D$53*(laskentapohja!C125/laskentapohja!AZ125) -> 3.157894737 | BI125: 350.9849435 | BJ125: 12 | BK125: 362.9849435 | BL125: 12.09949812 | BM125: 0.08264805616 | BO125: 165.6551531 | BP125: 359.7083325 | BQ125: 525.3634857 | BS125: 0.39 | BT125: 327.6 | BV125: =kuljetuslaskuri!$D$74 -> 71.1 | BX125: 398.7 | BZ125: =N_arvo*N_maara*kuljetuslaskuri!$E$87%*C125 -> 59.4 | CA125: =P_arvo*P_maara*kuljetuslaskuri!$E$88%*C125 -> 41.04 | CB125: =K_arvo*K_maara*kuljetuslaskuri!$E$89%*C125 -> 79.2 | CC125: 179.64
B126: =kuljetuslaskuri!$D$31 -> 2500 | C126: =kuljetuslaskuri!$D$12 -> 30 | D126: =kuljetuslaskuri!$D$33 -> 14 | E126: =kuljetuslaskuri!$D$34 -> 4000 | F126: 12 | G126: 2.142857143 | H126: 7.5 | I126: 2 | J126: =kuljetuslaskuri!$D$35 -> 0 | K126: 21.5 | L126: 0.7166666667 | N126: 1.395348837 | P126: =IF(kuljetuslaskuri!$H$17,kuljetuslaskuri!$D$17,0) -> 25 | Q126: =IF(kuljetuslaskuri!$H$18,kuljetuslaskuri!$D$18,0) -> 0 | R126: =IF(kuljetuslaskuri!$G$19,kuljetuslaskuri!#REF!,0) -> 0 | S126: =AVERAGE(IF(P126:R126<>0, P126:R126,"")) -> 25 | T126: =S126*kuljetuslaskuri!$D$19% -> 23.75 | U126: 28.25 | V126: =kuljetuslaskuri!$D$24% -> 0 | W126: 15.94 | X126: 50 | Y126: 268.6389751 | Z126: 7.692307692 | AA126: 7.5 | AB126: =kuljetuslaskuri!$D$25*(laskentapohja!C126/laskentapohja!T126) -> 2.526315789 | AC126: 286.3575986 | AD126: 9.545253286 | AE126: 0.1047641136 | AG126: 286.3575986 | AH126: 0.1047641136 | AJ126: 0.7500564754 | AK126: -1.290584724 | AV126: =IF(kuljetuslaskuri!$H$45,kuljetuslaskuri!$D$45,0) -> 20 | AW126: =IF(kuljetuslaskuri!$H$46,kuljetuslaskuri!$D$46,0) -> 0 | AX126: =IF(kuljetuslaskuri!$G$19,kuljetuslaskuri!#REF!,0) -> 0 | AY126: =AVERAGE(IF(AV126:AX126<>0, AV126:AX126,"")) -> 20 | AZ126: =AY126*kuljetuslaskuri!$D$47% -> 19 | BA126: 28.25 | BB126: =kuljetuslaskuri!$D$52% -> 0 | BC126: 15.94 | BD126: 50 | BE126: 335.7987189 | BF126: 7.5 | BG126: 7.5 | BH126: =kuljetuslaskuri!$D$53*(laskentapohja!C126/laskentapohja!AZ126) -> 3.157894737 | BI126: 353.9566136 | BJ126: 12 | BK126: 365.9566136 | BL126: 12.19855379 | BM126: 0.08197693083 | BO126: 167.0419325 | BP126: 362.7196249 | BQ126: 529.7615574 | BS126: 0.39 | BT126: 330.525 | BV126: =kuljetuslaskuri!$D$74 -> 71.1 | BX126: 401.625 | BZ126: =N_arvo*N_maara*kuljetuslaskuri!$E$87%*C126 -> 59.4 | CA126: =P_arvo*P_maara*kuljetuslaskuri!$E$88%*C126 -> 41.04 | CB126: =K_arvo*K_maara*kuljetuslaskuri!$E$89%*C126 -> 79.2 | CC126: 179.64
B127: =kuljetuslaskuri!$D$31 -> 2500 | C127: =kuljetuslaskuri!$D$12 -> 30 | D127: =kuljetuslaskuri!$D$33 -> 14 | E127: =kuljetuslaskuri!$D$34 -> 4000 | F127: 12 | G127: 2.142857143 | H127: 7.5 | I127: 2 | J127: =kuljetuslaskuri!$D$35 -> 0 | K127: 21.5 | L127: 0.7166666667 | N127: 1.395348837 | P127: =IF(kuljetuslaskuri!$H$17,kuljetuslaskuri!$D$17,0) -> 25 | Q127: =IF(kuljetuslaskuri!$H$18,kuljetuslaskuri!$D$18,0) -> 0 | R127: =IF(kuljetuslaskuri!$G$19,kuljetuslaskuri!#REF!,0) -> 0 | S127: =AVERAGE(IF(P127:R127<>0, P127:R127,"")) -> 25 | T127: =S127*kuljetuslaskuri!$D$19% -> 23.75 | U127: 28.5 | V127: =kuljetuslaskuri!$D$24% -> 0 | W127: 15.94 | X127: 50 | Y127: 271.0163112 | Z127: 7.692307692 | AA127: 7.5 | AB127: =kuljetuslaskuri!$D$25*(laskentapohja!C127/laskentapohja!T127) -> 2.526315789 | AC127: 288.7349346 | AD127: 9.624497822 | AE127: 0.1039015249 | AG127: 288.7349346 | AH127: 0.1039015249 | AJ127: 0.7496251811 | AK127: -1.291447312 | AV127: =IF(kuljetuslaskuri!$H$45,kuljetuslaskuri!$D$45,0) -> 20 | AW127: =IF(kuljetuslaskuri!$H$46,kuljetuslaskuri!$D$46,0) -> 0 | AX127: =IF(kuljetuslaskuri!$G$19,kuljetuslaskuri!#REF!,0) -> 0 | AY127: =AVERAGE(IF(AV127:AX127<>0, AV127:AX127,"")) -> 20 | AZ127: =AY127*kuljetuslaskuri!$D$47% -> 19 | BA127: 28.5 | BB127: =kuljetuslaskuri!$D$52% -> 0 | BC127: 15.94 | BD127: 50 | BE127: 338.770389 | BF127: 7.5 | BG127: 7.5 | BH127: =kuljetuslaskuri!$D$53*(laskentapohja!C127/laskentapohja!AZ127) -> 3.157894737 | BI127: 356.9282837 | BJ127: 12 | BK127: 368.9282837 | BL127: 12.29760946 | BM127: 0.08131661715 | BO127: 168.4287119 | BP127: 365.7309172 | BQ127: 534.1596291 | BS127: 0.39 | BT127: 333.45 | BV127: =kuljetuslaskuri!$D$74 -> 71.1 | BX127: 404.55 | BZ127: =N_arvo*N_maara*kuljetuslaskuri!$E$87%*C127 -> 59.4 | CA127: =P_arvo*P_maara*kuljetuslaskuri!$E$88%*C127 -> 41.04 | CB127: =K_arvo*K_maara*kuljetuslaskuri!$E$89%*C127 -> 79.2 | CC127: 179.64
B128: =kuljetuslaskuri!$D$31 -> 2500 | C128: =kuljetuslaskuri!$D$12 -> 30 | D128: =kuljetuslaskuri!$D$33 -> 14 | E128: =kuljetuslaskuri!$D$34 -> 4000 | F128: 12 | G128: 2.142857143 | H128: 7.5 | I128: 2 | J128: =kuljetuslaskuri!$D$35 -> 0 | K128: 21.5 | L128: 0.7166666667 | N128: 1.395348837 | P128: =IF(kuljetuslaskuri!$H$17,kuljetuslaskuri!$D$17,0) -> 25 | Q128: =IF(kuljetuslaskuri!$H$18,kuljetuslaskuri!$D$18,0) -> 0 | R128: =IF(kuljetuslaskuri!$G$19,kuljetuslaskuri!#REF!,0) -> 0 | S128: =AVERAGE(IF(P128:R128<>0, P128:R128,"")) -> 25 | T128: =S128*kuljetuslaskuri!$D$19% -> 23.75 | U128: 28.75 | V128: =kuljetuslaskuri!$D$24% -> 0 | W128: 15.94 | X128: 50 | Y128: 273.3936472 | Z128: 7.692307692 | AA128: 7.5 | AB128: =kuljetuslaskuri!$D$25*(laskentapohja!C128/laskentapohja!T128) -> 2.526315789 | AC128: 291.1122707 | AD128: 9.703742357 | AE128: 0.1030530246 | AG128: 291.1122707 | AH128: 0.1030530246 | AJ128: 0.7492009309 | AK128: -1.292295813 | AV128: =IF(kuljetuslaskuri!$H$45,kuljetuslaskuri!$D$45,0) -> 20 | AW128: =IF(kuljetuslaskuri!$H$46,kuljetuslaskuri!$D$46,0) -> 0 | AX128: =IF(kuljetuslaskuri!$G$19,kuljetuslaskuri!#REF!,0) -> 0 | AY128: =AVERAGE(IF(AV128:AX128<>0, AV128:AX128,"")) -> 20 | AZ128: =AY128*kuljetuslaskuri!$D$47% -> 19 | BA128: 28.75 | BB128: =kuljetuslaskuri!$D$52% -> 0 | BC128: 15.94 | BD128: 50 | BE128: 341.742059 | BF128: 7.5 | BG128: 7.5 | BH128: =kuljetuslaskuri!$D$53*(laskentapohja!C128/laskentapohja!AZ128) -> 3.157894737 | BI128: 359.8999538 | BJ128: 12 | BK128: 371.8999538 | BL128: 12.39666513 | BM128: 0.08066685595 | BO128: 169.8154912 | BP128: 368.7422096 | BQ128: 538.5577008 | BS128: 0.39 | BT128: 336.375 | BV128: =kuljetuslaskuri!$D$74 -> 71.1 | BX128: 407.475 | BZ128: =N_arvo*N_maara*kuljetuslaskuri!$E$87%*C128 -> 59.4 | CA128: =P_arvo*P_maara*kuljetuslaskuri!$E$88%*C128 -> 41.04 | CB128: =K_arvo*K_maara*kuljetuslaskuri!$E$89%*C128 -> 79.2 | CC128: 179.64
B129: =kuljetuslaskuri!$D$31 -> 2500 | C129: =kuljetuslaskuri!$D$12 -> 30 | D129: =kuljetuslaskuri!$D$33 -> 14 | E129: =kuljetuslaskuri!$D$34 -> 4000 | F129: 12 | G129: 2.142857143 | H129: 7.5 | I129: 2 | J129: =kuljetuslaskuri!$D$35 -> 0 | K129: 21.5 | L129: 0.7166666667 | N129: 1.395348837 | P129: =IF(kuljetuslaskuri!$H$17,kuljetuslaskuri!$D$17,0) -> 25 | Q129: =IF(kuljetuslaskuri!$H$18,kuljetuslaskuri!$D$18,0) -> 0 | R129: =IF(kuljetuslaskuri!$G$19,kuljetuslaskuri!#REF!,0) -> 0 | S129: =AVERAGE(IF(P129:R129<>0, P129:R129,"")) -> 25 | T129: =S129*kuljetuslaskuri!$D$19% -> 23.75 | U129: 29 | V129: =kuljetuslaskuri!$D$24% -> 0 | W129: 15.94 | X129: 50 | Y129: 275.7709833 | Z129: 7.692307692 | AA129: 7.5 | AB129: =kuljetuslaskuri!$D$25*(laskentapohja!C129/laskentapohja!T129) -> 2.526315789 | AC129: 293.4896068 | AD129: 9.782986892 | AE129: 0.1022182705 | AG129: 293.4896068 | AH129: 0.1022182705 | AJ129: 0.7487835538 | AK129: -1.293130567 | AV129: =IF(kuljetuslaskuri!$H$45,kuljetuslaskuri!$D$45,0) -> 20 | AW129: =IF(kuljetuslaskuri!$H$46,kuljetuslaskuri!$D$46,0) -> 0 | AX129: =IF(kuljetuslaskuri!$G$19,kuljetuslaskuri!#REF!,0) -> 0 | AY129: =AVERAGE(IF(AV129:AX129<>0, AV129:AX129,"")) -> 20 | AZ129: =AY129*kuljetuslaskuri!$D$47% -> 19 | BA129: 29 | BB129: =kuljetuslaskuri!$D$52% -> 0 | BC129: 15.94 | BD129: 50 | BE129: 344.7137291 | BF129: 7.5 | BG129: 7.5 | BH129: =kuljetuslaskuri!$D$53*(laskentapohja!C129/laskentapohja!AZ129) -> 3.157894737 | BI129: 362.8716239 | BJ129: 12 | BK129: 374.8716239 | BL129: 12.4957208 | BM129: 0.08002739629 | BO129: 171.2022706 | BP129: 371.7535019 | BQ129: 542.9557725 | BS129: 0.39 | BT129: 339.3 | BV129: =kuljetuslaskuri!$D$74 -> 71.1 | BX129: 410.4 | BZ129: =N_arvo*N_maara*kuljetuslaskuri!$E$87%*C129 -> 59.4 | CA129: =P_arvo*P_maara*kuljetuslaskuri!$E$88%*C129 -> 41.04 | CB129: =K_arvo*K_maara*kuljetuslaskuri!$E$89%*C129 -> 79.2 | CC129: 179.64
B130: =kuljetuslaskuri!$D$31 -> 2500 | C130: =kuljetuslaskuri!$D$12 -> 30 | D130: =kuljetuslaskuri!$D$33 -> 14 | E130: =kuljetuslaskuri!$D$34 -> 4000 | F130: 12 | G130: 2.142857143 | H130: 7.5 | I130: 2 | J130: =kuljetuslaskuri!$D$35 -> 0 | K130: 21.5 | L130: 0.7166666667 | N130: 1.395348837 | P130: =IF(kuljetuslaskuri!$H$17,kuljetuslaskuri!$D$17,0) -> 25 | Q130: =IF(kuljetuslaskuri!$H$18,kuljetuslaskuri!$D$18,0) -> 0 | R130: =IF(kuljetuslaskuri!$G$19,kuljetuslaskuri!#REF!,0) -> 0 | S130: =AVERAGE(IF(P130:R130<>0, P130:R130,"")) -> 25 | T130: =S130*kuljetuslaskuri!$D$19% -> 23.75 | U130: 29.25 | V130: =kuljetuslaskuri!$D$24% -> 0 | W130: 15.94 | X130: 50 | Y130: 278.1483194 | Z130: 7.692307692 | AA130: 7.5 | AB130: =kuljetuslaskuri!$D$25*(laskentapohja!C130/laskentapohja!T130) -> 2.526315789 | AC130: 295.8669428 | AD130: 9.862231428 | AE130: 0.101396931 | AG130: 295.8669428 | AH130: 0.101396931 | AJ130: 0.7483728841 | AK130: -1.293951906 | AV130: =IF(kuljetuslaskuri!$H$45,kuljetuslaskuri!$D$45,0) -> 20 | AW130: =IF(kuljetuslaskuri!$H$46,kuljetuslaskuri!$D$46,0) -> 0 | AX130: =IF(kuljetuslaskuri!$G$19,kuljetuslaskuri!#REF!,0) -> 0 | AY130: =AVERAGE(IF(AV130:AX130<>0, AV130:AX130,"")) -> 20 | AZ130: =AY130*kuljetuslaskuri!$D$47% -> 19 | BA130: 29.25 | BB130: =kuljetuslaskuri!$D$52% -> 0 | BC130: 15.94 | BD130: 50 | BE130: 347.6853992 | BF130: 7.5 | BG130: 7.5 | BH130: =kuljetuslaskuri!$D$53*(laskentapohja!C130/laskentapohja!AZ130) -> 3.157894737 | BI130: 365.8432939 | BJ130: 12 | BK130: 377.8432939 | BL130: 12.59477646 | BM130: 0.0793979951 | BO130: 172.58905 | BP130: 374.7647943 | BQ130: 547.3538442 | BS130: 0.39 | BT130: 342.225 | BV130: =kuljetuslaskuri!$D$74 -> 71.1 | BX130: 413.325 | BZ130: =N_arvo*N_maara*kuljetuslaskuri!$E$87%*C130 -> 59.4 | CA130: =P_arvo*P_maara*kuljetuslaskuri!$E$88%*C130 -> 41.04 | CB130: =K_arvo*K_maara*kuljetuslaskuri!$E$89%*C130 -> 79.2 | CC130: 179.64
B131: =kuljetuslaskuri!$D$31 -> 2500 | C131: =kuljetuslaskuri!$D$12 -> 30 | D131: =kuljetuslaskuri!$D$33 -> 14 | E131: =kuljetuslaskuri!$D$34 -> 4000 | F131: 12 | G131: 2.142857143 | H131: 7.5 | I131: 2 | J131: =kuljetuslaskuri!$D$35 -> 0 | K131: 21.5 | L131: 0.7166666667 | N131: 1.395348837 | P131: =IF(kuljetuslaskuri!$H$17,kuljetuslaskuri!$D$17,0) -> 25 | Q131: =IF(kuljetuslaskuri!$H$18,kuljetuslaskuri!$D$18,0) -> 0 | R131: =IF(kuljetuslaskuri!$G$19,kuljetuslaskuri!#REF!,0) -> 0 | S131: =AVERAGE(IF(P131:R131<>0, P131:R131,"")) -> 25 | T131: =S131*kuljetuslaskuri!$D$19% -> 23.75 | U131: 29.5 | V131: =kuljetuslaskuri!$D$24% -> 0 | W131: 15.94 | X131: 50 | Y131: 280.5256554 | Z131: 7.692307692 | AA131: 7.5 | AB131: =kuljetuslaskuri!$D$25*(laskentapohja!C131/laskentapohja!T131) -> 2.526315789 | AC131: 298.2442789 | AD131: 9.941475963 | AE131: 0.1005886856 | AG131: 298.2442789 | AH131: 0.1005886856 | AJ131: 0.7479687614 | AK131: -1.294760152 | AV131: =IF(kuljetuslaskuri!$H$45,kuljetuslaskuri!$D$45,0) -> 20 | AW131: =IF(kuljetuslaskuri!$H$46,kuljetuslaskuri!$D$46,0) -> 0 | AX131: =IF(kuljetuslaskuri!$G$19,kuljetuslaskuri!#REF!,0) -> 0 | AY131: =AVERAGE(IF(AV131:AX131<>0, AV131:AX131,"")) -> 20 | AZ131: =AY131*kuljetuslaskuri!$D$47% -> 19 | BA131: 29.5 | BB131: =kuljetuslaskuri!$D$52% -> 0 | BC131: 15.94 | BD131: 50 | BE131: 350.6570693 | BF131: 7.5 | BG131: 7.5 | BH131: =kuljetuslaskuri!$D$53*(laskentapohja!C131/laskentapohja!AZ131) -> 3.157894737 | BI131: 368.814964 | BJ131: 12 | BK131: 380.814964 | BL131: 12.69383213 | BM131: 0.07877841691 | BO131: 173.9758294 | BP131: 377.7760866 | BQ131: 551.751916 | BS131: 0.39 | BT131: 345.15 | BV131: =kuljetuslaskuri!$D$74 -> 71.1 | BX131: 416.25 | BZ131: =N_arvo*N_maara*kuljetuslaskuri!$E$87%*C131 -> 59.4 | CA131: =P_arvo*P_maara*kuljetuslaskuri!$E$88%*C131 -> 41.04 | CB131: =K_arvo*K_maara*kuljetuslaskuri!$E$89%*C131 -> 79.2 | CC131: 179.64
B132: =kuljetuslaskuri!$D$31 -> 2500 | C132: =kuljetuslaskuri!$D$12 -> 30 | D132: =kuljetuslaskuri!$D$33 -> 14 | E132: =kuljetuslaskuri!$D$34 -> 4000 | F132: 12 | G132: 2.142857143 | H132: 7.5 | I132: 2 | J132: =kuljetuslaskuri!$D$35 -> 0 | K132: 21.5 | L132: 0.7166666667 | N132: 1.395348837 | P132: =IF(kuljetuslaskuri!$H$17,kuljetuslaskuri!$D$17,0) -> 25 | Q132: =IF(kuljetuslaskuri!$H$18,kuljetuslaskuri!$D$18,0) -> 0 | R132: =IF(kuljetuslaskuri!$G$19,kuljetuslaskuri!#REF!,0) -> 0 | S132: =AVERAGE(IF(P132:R132<>0, P132:R132,"")) -> 25 | T132: =S132*kuljetuslaskuri!$D$19% -> 23.75 | U132: 29.75 | V132: =kuljetuslaskuri!$D$24% -> 0 | W132: 15.94 | X132: 50 | Y132: 282.9029915 | Z132: 7.692307692 | AA132: 7.5 | AB132: =kuljetuslaskuri!$D$25*(laskentapohja!C132/laskentapohja!T132) -> 2.526315789 | AC132: 300.621615 | AD132: 10.0207205 | AE132: 0.09979322346 | AG132: 300.621615 | AH132: 0.09979322346 | AJ132: 0.7475710303 | AK132: -1.295555614 | AV132: =IF(kuljetuslaskuri!$H$45,kuljetuslaskuri!$D$45,0) -> 20 | AW132: =IF(kuljetuslaskuri!$H$46,kuljetuslaskuri!$D$46,0) -> 0 | AX132: =IF(kuljetuslaskuri!$G$19,kuljetuslaskuri!#REF!,0) -> 0 | AY132: =AVERAGE(IF(AV132:AX132<>0, AV132:AX132,"")) -> 20 | AZ132: =AY132*kuljetuslaskuri!$D$47% -> 19 | BA132: 29.75 | BB132: =kuljetuslaskuri!$D$52% -> 0 | BC132: 15.94 | BD132: 50 | BE132: 353.6287394 | BF132: 7.5 | BG132: 7.5 | BH132: =kuljetuslaskuri!$D$53*(laskentapohja!C132/laskentapohja!AZ132) -> 3.157894737 | BI132: 371.7866341 | BJ132: 12 | BK132: 383.7866341 | BL132: 12.7928878 | BM132: 0.07816843354 | BO132: 175.3626087 | BP132: 380.787379 | BQ132: 556.1499877 | BS132: 0.39 | BT132: 348.075 | BV132: =kuljetuslaskuri!$D$74 -> 71.1 | BX132: 419.175 | BZ132: =N_arvo*N_maara*kuljetuslaskuri!$E$87%*C132 -> 59.4 | CA132: =P_arvo*P_maara*kuljetuslaskuri!$E$88%*C132 -> 41.04 | CB132: =K_arvo*K_maara*kuljetuslaskuri!$E$89%*C132 -> 79.2 | CC132: 179.64
B133: =kuljetuslaskuri!$D$31 -> 2500 | C133: =kuljetuslaskuri!$D$12 -> 30 | D133: =kuljetuslaskuri!$D$33 -> 14 | E133: =kuljetuslaskuri!$D$34 -> 4000 | F133: 12 | G133: 2.142857143 | H133: 7.5 | I133: 2 | J133: =kuljetuslaskuri!$D$35 -> 0 | K133: 21.5 | L133: 0.7166666667 | N133: 1.395348837 | P133: =IF(kuljetuslaskuri!$H$17,kuljetuslaskuri!$D$17,0) -> 25 | Q133: =IF(kuljetuslaskuri!$H$18,kuljetuslaskuri!$D$18,0) -> 0 | R133: =IF(kuljetuslaskuri!$G$19,kuljetuslaskuri!#REF!,0) -> 0 | S133: =AVERAGE(IF(P133:R133<>0, P133:R133,"")) -> 25 | T133: =S133*kuljetuslaskuri!$D$19% -> 23.75 | U133: 30 | V133: =kuljetuslaskuri!$D$24% -> 0 | W133: 15.94 | X133: 50 | Y133: 285.2803275 | Z133: 7.692307692 | AA133: 7.5 | AB133: =kuljetuslaskuri!$D$25*(laskentapohja!C133/laskentapohja!T133) -> 2.526315789 | AC133: 302.998951 | AD133: 10.09996503 | AE133: 0.09901024376 | AG133: 302.998951 | AH133: 0.09901024376 | AJ133: 0.7471795405 | AK133: -1.296338593 | AV133: =IF(kuljetuslaskuri!$H$45,kuljetuslaskuri!$D$45,0) -> 20 | AW133: =IF(kuljetuslaskuri!$H$46,kuljetuslaskuri!$D$46,0) -> 0 | AX133: =IF(kuljetuslaskuri!$G$19,kuljetuslaskuri!#REF!,0) -> 0 | AY133: =AVERAGE(IF(AV133:AX133<>0, AV133:AX133,"")) -> 20 | AZ133: =AY133*kuljetuslaskuri!$D$47% -> 19 | BA133: 30 | BB133: =kuljetuslaskuri!$D$52% -> 0 | BC133: 15.94 | BD133: 50 | BE133: 356.6004094 | BF133: 7.5 | BG133: 7.5 | BH133: =kuljetuslaskuri!$D$53*(laskentapohja!C133/laskentapohja!AZ133) -> 3.157894737 | BI133: 374.7583042 | BJ133: 12 | BK133: 386.7583042 | BL133: 12.89194347 | BM133: 0.07756782382 | BO133: 176.7493881 | BP133: 383.7986713 | BQ133: 560.5480594 | BS133: 0.39 | BT133: 351 | BV133: =kuljetuslaskuri!$D$74 -> 71.1 | BX133: 422.1 | BZ133: =N_arvo*N_maara*kuljetuslaskuri!$E$87%*C133 -> 59.4 | CA133: =P_arvo*P_maara*kuljetuslaskuri!$E$88%*C133 -> 41.04 | CB133: =K_arvo*K_maara*kuljetuslaskuri!$E$89%*C133 -> 79.2 | CC133: 179.64
B134: =kuljetuslaskuri!$D$31 -> 2500 | C134: =kuljetuslaskuri!$D$12 -> 30 | D134: =kuljetuslaskuri!$D$33 -> 14 | E134: =kuljetuslaskuri!$D$34 -> 4000 | F134: 12 | G134: 2.142857143 | H134: 7.5 | I134: 2 | J134: =kuljetuslaskuri!$D$35 -> 0 | K134: 21.5 | L134: 0.7166666667 | N134: 1.395348837 | P134: =IF(kuljetuslaskuri!$H$17,kuljetuslaskuri!$D$17,0) -> 25 | Q134: =IF(kuljetuslaskuri!$H$18,kuljetuslaskuri!$D$18,0) -> 0 | R134: =IF(kuljetuslaskuri!$G$19,kuljetuslaskuri!#REF!,0) -> 0 | S134: =AVERAGE(IF(P134:R134<>0, P134:R134,"")) -> 25 | T134: =S134*kuljetuslaskuri!$D$19% -> 23.75 | U134: 30.25 | V134: =kuljetuslaskuri!$D$24% -> 0 | W134: 15.94 | X134: 50 | Y134: 287.6576636 | Z134: 7.692307692 | AA134: 7.5 | AB134: =kuljetuslaskuri!$D$25*(laskentapohja!C134/laskentapohja!T134) -> 2.526315789 | AC134: 305.3762871 | AD134: 10.17920957 | AE134: 0.09823945496 | AG134: 305.3762871 | AH134: 0.09823945496 | AJ134: 0.7467941461 | AK134: -1.297109382 | AV134: =IF(kuljetuslaskuri!$H$45,kuljetuslaskuri!$D$45,0) -> 20 | AW134: =IF(kuljetuslaskuri!$H$46,kuljetuslaskuri!$D$46,0) -> 0 | AX134: =IF(kuljetuslaskuri!$G$19,kuljetuslaskuri!#REF!,0) -> 0 | AY134: =AVERAGE(IF(AV134:AX134<>0, AV134:AX134,"")) -> 20 | AZ134: =AY134*kuljetuslaskuri!$D$47% -> 19 | BA134: 30.25 | BB134: =kuljetuslaskuri!$D$52% -> 0 | BC134: 15.94 | BD134: 50 | BE134: 359.5720795 | BF134: 7.5 | BG134: 7.5 | BH134: =kuljetuslaskuri!$D$53*(laskentapohja!C134/laskentapohja!AZ134) -> 3.157894737 | BI134: 377.7299742 | BJ134: 12 | BK134: 389.7299742 | BL134: 12.99099914 | BM134: 0.07697637334 | BO134: 178.1361675 | BP134: 386.8099636 | BQ134: 564.9461311 | BS134: 0.39 | BT134: 353.925 | BV134: =kuljetuslaskuri!$D$74 -> 71.1 | BX134: 425.025 | BZ134: =N_arvo*N_maara*kuljetuslaskuri!$E$87%*C134 -> 59.4 | CA134: =P_arvo*P_maara*kuljetuslaskuri!$E$88%*C134 -> 41.04 | CB134: =K_arvo*K_maara*kuljetuslaskuri!$E$89%*C134 -> 79.2 | CC134: 179.64
B135: =kuljetuslaskuri!$D$31 -> 2500 | C135: =kuljetuslaskuri!$D$12 -> 30 | D135: =kuljetuslaskuri!$D$33 -> 14 | E135: =kuljetuslaskuri!$D$34 -> 4000 | F135: 12 | G135: 2.142857143 | H135: 7.5 | I135: 2 | J135: =kuljetuslaskuri!$D$35 -> 0 | K135: 21.5 | L135: 0.7166666667 | N135: 1.395348837 | P135: =IF(kuljetuslaskuri!$H$17,kuljetuslaskuri!$D$17,0) -> 25 | Q135: =IF(kuljetuslaskuri!$H$18,kuljetuslaskuri!$D$18,0) -> 0 | R135: =IF(kuljetuslaskuri!$G$19,kuljetuslaskuri!#REF!,0) -> 0 | S135: =AVERAGE(IF(P135:R135<>0, P135:R135,"")) -> 25 | T135: =S135*kuljetuslaskuri!$D$19% -> 23.75 | U135: 30.5 | V135: =kuljetuslaskuri!$D$24% -> 0 | W135: 15.94 | X135: 50 | Y135: 290.0349997 | Z135: 7.692307692 | AA135: 7.5 | AB135: =kuljetuslaskuri!$D$25*(laskentapohja!C135/laskentapohja!T135) -> 2.526315789 | AC135: 307.7536232 | AD135: 10.25845411 | AE135: 0.09748057453 | AG135: 307.7536232 | AH135: 0.09748057453 | AJ135: 0.7464147059 | AK135: -1.297868263 | AV135: =IF(kuljetuslaskuri!$H$45,kuljetuslaskuri!$D$45,0) -> 20 | AW135: =IF(kuljetuslaskuri!$H$46,kuljetuslaskuri!$D$46,0) -> 0 | AX135: =IF(kuljetuslaskuri!$G$19,kuljetuslaskuri!#REF!,0) -> 0 | AY135: =AVERAGE(IF(AV135:AX135<>0, AV135:AX135,"")) -> 20 | AZ135: =AY135*kuljetuslaskuri!$D$47% -> 19 | BA135: 30.5 | BB135: =kuljetuslaskuri!$D$52% -> 0 | BC135: 15.94 | BD135: 50 | BE135: 362.5437496 | BF135: 7.5 | BG135: 7.5 | BH135: =kuljetuslaskuri!$D$53*(laskentapohja!C135/laskentapohja!AZ135) -> 3.157894737 | BI135: 380.7016443 | BJ135: 12 | BK135: 392.7016443 | BL135: 13.09005481 | BM135: 0.07639387416 | BO135: 179.5229468 | BP135: 389.821256 | BQ135: 569.3442028 | BS135: 0.39 | BT135: 356.85 | BV135: =kuljetuslaskuri!$D$74 -> 71.1 | BX135: 427.95 | BZ135: =N_arvo*N_maara*kuljetuslaskuri!$E$87%*C135 -> 59.4 | CA135: =P_arvo*P_maara*kuljetuslaskuri!$E$88%*C135 -> 41.04 | CB135: =K_arvo*K_maara*kuljetuslaskuri!$E$89%*C135 -> 79.2 | CC135: 179.64
B136: =kuljetuslaskuri!$D$31 -> 2500 | C136: =kuljetuslaskuri!$D$12 -> 30 | D136: =kuljetuslaskuri!$D$33 -> 14 | E136: =kuljetuslaskuri!$D$34 -> 4000 | F136: 12 | G136: 2.142857143 | H136: 7.5 | I136: 2 | J136: =kuljetuslaskuri!$D$35 -> 0 | K136: 21.5 | L136: 0.7166666667 | N136: 1.395348837 | P136: =IF(kuljetuslaskuri!$H$17,kuljetuslaskuri!$D$17,0) -> 25 | Q136: =IF(kuljetuslaskuri!$H$18,kuljetuslaskuri!$D$18,0) -> 0 | R136: =IF(kuljetuslaskuri!$G$19,kuljetuslaskuri!#REF!,0) -> 0 | S136: =AVERAGE(IF(P136:R136<>0, P136:R136,"")) -> 25 | T136: =S136*kuljetuslaskuri!$D$19% -> 23.75 | U136: 30.75 | V136: =kuljetuslaskuri!$D$24% -> 0 | W136: 15.94 | X136: 50 | Y136: 292.4123357 | Z136: 7.692307692 | AA136: 7.5 | AB136: =kuljetuslaskuri!$D$25*(laskentapohja!C136/laskentapohja!T136) -> 2.526315789 | AC136: 310.1309592 | AD136: 10.33769864 | AE136: 0.09673332864 | AG136: 310.1309592 | AH136: 0.09673332864 | AJ136: 0.7460410829 | AK136: -1.298615509 | AV136: =IF(kuljetuslaskuri!$H$45,kuljetuslaskuri!$D$45,0) -> 20 | AW136: =IF(kuljetuslaskuri!$H$46,kuljetuslaskuri!$D$46,0) -> 0 | AX136: =IF(kuljetuslaskuri!$G$19,kuljetuslaskuri!#REF!,0) -> 0 | AY136: =AVERAGE(IF(AV136:AX136<>0, AV136:AX136,"")) -> 20 | AZ136: =AY136*kuljetuslaskuri!$D$47% -> 19 | BA136: 30.75 | BB136: =kuljetuslaskuri!$D$52% -> 0 | BC136: 15.94 | BD136: 50 | BE136: 365.5154197 | BF136: 7.5 | BG136: 7.5 | BH136: =kuljetuslaskuri!$D$53*(laskentapohja!C136/laskentapohja!AZ136) -> 3.157894737 | BI136: 383.6733144 | BJ136: 12 | BK136: 395.6733144 | BL136: 13.18911048 | BM136: 0.0758201246 | BO136: 180.9097262 | BP136: 392.8325483 | BQ136: 573.7422745 | BS136: 0.39 | BT136: 359.775 | BV136: =kuljetuslaskuri!$D$74 -> 71.1 | BX136: 430.875 | BZ136: =N_arvo*N_maara*kuljetuslaskuri!$E$87%*C136 -> 59.4 | CA136: =P_arvo*P_maara*kuljetuslaskuri!$E$88%*C136 -> 41.04 | CB136: =K_arvo*K_maara*kuljetuslaskuri!$E$89%*C136 -> 79.2 | CC136: 179.64
B137: =kuljetuslaskuri!$D$31 -> 2500 | C137: =kuljetuslaskuri!$D$12 -> 30 | D137: =kuljetuslaskuri!$D$33 -> 14 | E137: =kuljetuslaskuri!$D$34 -> 4000 | F137: 12 | G137: 2.142857143 | H137: 7.5 | I137: 2 | J137: =kuljetuslaskuri!$D$35 -> 0 | K137: 21.5 | L137: 0.7166666667 | N137: 1.395348837 | P137: =IF(kuljetuslaskuri!$H$17,kuljetuslaskuri!$D$17,0) -> 25 | Q137: =IF(kuljetuslaskuri!$H$18,kuljetuslaskuri!$D$18,0) -> 0 | R137: =IF(kuljetuslaskuri!$G$19,kuljetuslaskuri!#REF!,0) -> 0 | S137: =AVERAGE(IF(P137:R137<>0, P137:R137,"")) -> 25 | T137: =S137*kuljetuslaskuri!$D$19% -> 23.75 | U137: 31 | V137: =kuljetuslaskuri!$D$24% -> 0 | W137: 15.94 | X137: 50 | Y137: 294.7896718 | Z137: 7.692307692 | AA137: 7.5 | AB137: =kuljetuslaskuri!$D$25*(laskentapohja!C137/laskentapohja!T137) -> 2.526315789 | AC137: 312.5082953 | AD137: 10.41694318 | AE137: 0.09599745176 | AG137: 312.5082953 | AH137: 0.09599745176 | AJ137: 0.7456731445 | AK137: -1.299351385 | AV137: =IF(kuljetuslaskuri!$H$45,kuljetuslaskuri!$D$45,0) -> 20 | AW137: =IF(kuljetuslaskuri!$H$46,kuljetuslaskuri!$D$46,0) -> 0 | AX137: =IF(kuljetuslaskuri!$G$19,kuljetuslaskuri!#REF!,0) -> 0 | AY137: =AVERAGE(IF(AV137:AX137<>0, AV137:AX137,"")) -> 20 | AZ137: =AY137*kuljetuslaskuri!$D$47% -> 19 | BA137: 31 | BB137: =kuljetuslaskuri!$D$52% -> 0 | BC137: 15.94 | BD137: 50 | BE137: 368.4870897 | BF137: 7.5 | BG137: 7.5 | BH137: =kuljetuslaskuri!$D$53*(laskentapohja!C137/laskentapohja!AZ137) -> 3.157894737 | BI137: 386.6449845 | BJ137: 12 | BK137: 398.6449845 | BL137: 13.28816615 | BM137: 0.07525492899 | BO137: 182.2965056 | BP137: 395.8438407 | BQ137: 578.1403463 | BS137: 0.39 | BT137: 362.7 | BV137: =kuljetuslaskuri!$D$74 -> 71.1 | BX137: 433.8 | BZ137: =N_arvo*N_maara*kuljetuslaskuri!$E$87%*C137 -> 59.4 | CA137: =P_arvo*P_maara*kuljetuslaskuri!$E$88%*C137 -> 41.04 | CB137: =K_arvo*K_maara*kuljetuslaskuri!$E$89%*C137 -> 79.2 | CC137: 179.64
B138: =kuljetuslaskuri!$D$31 -> 2500 | C138: =kuljetuslaskuri!$D$12 -> 30 | D138: =kuljetuslaskuri!$D$33 -> 14 | E138: =kuljetuslaskuri!$D$34 -> 4000 | F138: 12 | G138: 2.142857143 | H138: 7.5 | I138: 2 | J138: =kuljetuslaskuri!$D$35 -> 0 | K138: 21.5 | L138: 0.7166666667 | N138: 1.395348837 | P138: =IF(kuljetuslaskuri!$H$17,kuljetuslaskuri!$D$17,0) -> 25 | Q138: =IF(kuljetuslaskuri!$H$18,kuljetuslaskuri!$D$18,0) -> 0 | R138: =IF(kuljetuslaskuri!$G$19,kuljetuslaskuri!#REF!,0) -> 0 | S138: =AVERAGE(IF(P138:R138<>0, P138:R138,"")) -> 25 | T138: =S138*kuljetuslaskuri!$D$19% -> 23.75 | U138: 31.25 | V138: =kuljetuslaskuri!$D$24% -> 0 | W138: 15.94 | X138: 50 | Y138: 297.1670079 | Z138: 7.692307692 | AA138: 7.5 | AB138: =kuljetuslaskuri!$D$25*(laskentapohja!C138/laskentapohja!T138) -> 2.526315789 | AC138: 314.8856313 | AD138: 10.49618771 | AE138: 0.09527268638 | AG138: 314.8856313 | AH138: 0.09527268638 | AJ138: 0.7453107618 | AK138: -1.300076151 | AV138: =IF(kuljetuslaskuri!$H$45,kuljetuslaskuri!$D$45,0) -> 20 | AW138: =IF(kuljetuslaskuri!$H$46,kuljetuslaskuri!$D$46,0) -> 0 | AX138: =IF(kuljetuslaskuri!$G$19,kuljetuslaskuri!#REF!,0) -> 0 | AY138: =AVERAGE(IF(AV138:AX138<>0, AV138:AX138,"")) -> 20 | AZ138: =AY138*kuljetuslaskuri!$D$47% -> 19 | BA138: 31.25 | BB138: =kuljetuslaskuri!$D$52% -> 0 | BC138: 15.94 | BD138: 50 | BE138: 371.4587598 | BF138: 7.5 | BG138: 7.5 | BH138: =kuljetuslaskuri!$D$53*(laskentapohja!C138/laskentapohja!AZ138) -> 3.157894737 | BI138: 389.6166546 | BJ138: 12 | BK138: 401.6166546 | BL138: 13.38722182 | BM138: 0.07469809745 | BO138: 183.6832849 | BP138: 398.855133 | BQ138: 582.538418 | BS138: 0.39 | BT138: 365.625 | BV138: =kuljetuslaskuri!$D$74 -> 71.1 | BX138: 436.725 | BZ138: =N_arvo*N_maara*kuljetuslaskuri!$E$87%*C138 -> 59.4 | CA138: =P_arvo*P_maara*kuljetuslaskuri!$E$88%*C138 -> 41.04 | CB138: =K_arvo*K_maara*kuljetuslaskuri!$E$89%*C138 -> 79.2 | CC138: 179.64
B139: =kuljetuslaskuri!$D$31 -> 2500 | C139: =kuljetuslaskuri!$D$12 -> 30 | D139: =kuljetuslaskuri!$D$33 -> 14 | E139: =kuljetuslaskuri!$D$34 -> 4000 | F139: 12 | G139: 2.142857143 | H139: 7.5 | I139: 2 | J139: =kuljetuslaskuri!$D$35 -> 0 | K139: 21.5 | L139: 0.7166666667 | N139: 1.395348837 | P139: =IF(kuljetuslaskuri!$H$17,kuljetuslaskuri!$D$17,0) -> 25 | Q139: =IF(kuljetuslaskuri!$H$18,kuljetuslaskuri!$D$18,0) -> 0 | R139: =IF(kuljetuslaskuri!$G$19,kuljetuslaskuri!#REF!,0) -> 0 | S139: =AVERAGE(IF(P139:R139<>0, P139:R139,"")) -> 25 | T139: =S139*kuljetuslaskuri!$D$19% -> 23.75 | U139: 31.5 | V139: =kuljetuslaskuri!$D$24% -> 0 | W139: 15.94 | X139: 50 | Y139: 299.5443439 | Z139: 7.692307692 | AA139: 7.5 | AB139: =kuljetuslaskuri!$D$25*(laskentapohja!C139/laskentapohja!T139) -> 2.526315789 | AC139: 317.2629674 | AD139: 10.57543225 | AE139: 0.09455878272 | AG139: 317.2629674 | AH139: 0.09455878272 | AJ139: 0.74495381 | AK139: -1.300790054 | AV139: =IF(kuljetuslaskuri!$H$45,kuljetuslaskuri!$D$45,0) -> 20 | AW139: =IF(kuljetuslaskuri!$H$46,kuljetuslaskuri!$D$46,0) -> 0 | AX139: =IF(kuljetuslaskuri!$G$19,kuljetuslaskuri!#REF!,0) -> 0 | AY139: =AVERAGE(IF(AV139:AX139<>0, AV139:AX139,"")) -> 20 | AZ139: =AY139*kuljetuslaskuri!$D$47% -> 19 | BA139: 31.5 | BB139: =kuljetuslaskuri!$D$52% -> 0 | BC139: 15.94 | BD139: 50 | BE139: 374.4304299 | BF139: 7.5 | BG139: 7.5 | BH139: =kuljetuslaskuri!$D$53*(laskentapohja!C139/laskentapohja!AZ139) -> 3.157894737 | BI139: 392.5883246 | BJ139: 12 | BK139: 404.5883246 | BL139: 13.48627749 | BM139: 0.07414944568 | BO139: 185.0700643 | BP139: 401.8664254 | BQ139: 586.9364897 | BS139: 0.39 | BT139: 368.55 | BV139: =kuljetuslaskuri!$D$74 -> 71.1 | BX139: 439.65 | BZ139: =N_arvo*N_maara*kuljetuslaskuri!$E$87%*C139 -> 59.4 | CA139: =P_arvo*P_maara*kuljetuslaskuri!$E$88%*C139 -> 41.04 | CB139: =K_arvo*K_maara*kuljetuslaskuri!$E$89%*C139 -> 79.2 | CC139: 179.64
B140: =kuljetuslaskuri!$D$31 -> 2500 | C140: =kuljetuslaskuri!$D$12 -> 30 | D140: =kuljetuslaskuri!$D$33 -> 14 | E140: =kuljetuslaskuri!$D$34 -> 4000 | F140: 12 | G140: =C140/D140 -> 2.142857143 | H140: =(C140*1000)/E140 -> 7.5 | I140: =Levityksen_apuaika -> 2 | J140: =kuljetuslaskuri!$D$35 -> 0 | K140: =(F140+H140+I140)*(1+J140%) -> 21.5 | L140: =K140/C140 -> 0.7166666667 | N140: 1.395348837 | P140: =IF(kuljetuslaskuri!$H$17,kuljetuslaskuri!$D$17,0) -> 25 | Q140: =IF(kuljetuslaskuri!$H$18,kuljetuslaskuri!$D$18,0) -> 0 | R140: =IF(kuljetuslaskuri!$G$19,kuljetuslaskuri!#REF!,0) -> 0 | S140: =AVERAGE(IF(P140:R140<>0, P140:R140,"")) -> 25 | T140: =S140*kuljetuslaskuri!$D$19% -> 23.75 | U140: 31.75 | V140: =kuljetuslaskuri!$D$24% -> 0 | W140: 15.94 | X140: 50 | Y140: =(C140/T140)*((U140*1000*0.12)/W140)*(1+V140) -> 301.92168 | Z140: =Levitys*1000/Last_nop -> 7.692307692 | AA140: =Levitys*1000/Purk_nop -> 7.5 | AB140: =kuljetuslaskuri!$D$25*(laskentapohja!C140/laskentapohja!T140) -> 2.526315789 | AC140: 319.6403035 | AD140: =AC140/C140 -> 10.65467678 | AE140: 0.09385549843 | AG140: =MAX(K140,AC140) -> 319.6403035 | AH140: =MIN(N140,AE140) -> 0.09385549843 | AJ140: 0.7446021678 | AK140: -1.301493339 | AV140: =IF(kuljetuslaskuri!$H$45,kuljetuslaskuri!$D$45,0) -> 20 | AW140: =IF(kuljetuslaskuri!$H$46,kuljetuslaskuri!$D$46,0) -> 0 | AX140: =IF(kuljetuslaskuri!$G$19,kuljetuslaskuri!#REF!,0) -> 0 | AY140: =AVERAGE(IF(AV140:AX140<>0, AV140:AX140,"")) -> 20 | AZ140: =AY140*kuljetuslaskuri!$D$47% -> 19 | BA140: 31.75 | BB140: =kuljetuslaskuri!$D$52% -> 0 | BC140: 15.94 | BD140: 50 | BE140: =(C140/AZ140)*((BA140*1000*0.12)/BC140) -> 377.4021 | BF140: =Levitys*1000/Last_nop2 -> 7.5 | BG140: =Levitys*1000/Levitys_kap2 -> 7.5 | BH140: =kuljetuslaskuri!$D$53*(laskentapohja!C140/laskentapohja!AZ140) -> 3.157894737 | BI140: 395.5599947 | BJ140: =(C140*1000)/B140 -> 12 | BK140: 407.5599947 | BL140: =BK140/C140 -> 13.58533316 | BM140: =IF(AW140>0,2*1/BL140,1/BL140) -> 0.07360879475 | BO140: =AC140/60*työ_kust -> 186.4568437 | BP140: =AC140/60*kone_kust -> 404.8777177 | BQ140: 591.3345614 | BS140: =kulj_taksa -> 0.39 | BT140: =BS140*C140*U140 -> 371.475 | BV140: =kuljetuslaskuri!$D$74 -> 71.1 | BX140: 442.575 | BZ140: =N_arvo*N_maara*kuljetuslaskuri!$E$87%*C140 -> 59.4 | CA140: =P_arvo*P_maara*kuljetuslaskuri!$E$88%*C140 -> 41.04 | CB140: =K_arvo*K_maara*kuljetuslaskuri!$E$89%*C140 -> 79.2 | CC140: 179.64
B141: =kuljetuslaskuri!$D$31 -> 2500 | C141: =kuljetuslaskuri!$D$12 -> 30 | D141: =kuljetuslaskuri!$D$33 -> 14 | E141: =kuljetuslaskuri!$D$34 -> 4000 | F141: =(C141*1000)/B141 -> 12 | G141: 2.142857143 | H141: 7.5 | I141: 2 | J141: =kuljetuslaskuri!$D$35 -> 0 | K141: 21.5 | L141: 0.7166666667 | N141: =1/L141 -> 1.395348837 | P141: =IF(kuljetuslaskuri!$H$17,kuljetuslaskuri!$D$17,0) -> 25 | Q141: =IF(kuljetuslaskuri!$H$18,kuljetuslaskuri!$D$18,0) -> 0 | R141: =IF(kuljetuslaskuri!$G$19,kuljetuslaskuri!#REF!,0) -> 0 | S141: =AVERAGE(IF(P141:R141<>0, P141:R141,"")) -> 25 | T141: =S141*kuljetuslaskuri!$D$19% -> 23.75 | U141: 32 | V141: =kuljetuslaskuri!$D$24% -> 0 | W141: 15.94 | X141: =IF(U141>15,50,LN(9.4526)*U141+15.94) -> 50 | Y141: 304.299016 | Z141: 7.692307692 | AA141: 7.5 | AB141: =kuljetuslaskuri!$D$25*(laskentapohja!C141/laskentapohja!T141) -> 2.526315789 | AC141: =SUM(Y141:AB141) -> 322.0176395 | AD141: 10.73392132 | AE141: =IF(Q141>0,2*1/AD141,1/AD141) -> 0.09316259831 | AG141: 322.0176395 | AH141: 0.09316259831 | AJ141: =N141+((AE141-N141)/2) -> 0.7442557178 | AK141: -1.302186239 | AV141: =IF(kuljetuslaskuri!$H$45,kuljetuslaskuri!$D$45,0) -> 20 | AW141: =IF(kuljetuslaskuri!$H$46,kuljetuslaskuri!$D$46,0) -> 0 | AX141: =IF(kuljetuslaskuri!$G$19,kuljetuslaskuri!#REF!,0) -> 0 | AY141: =AVERAGE(IF(AV141:AX141<>0, AV141:AX141,"")) -> 20 | AZ141: =AY141*kuljetuslaskuri!$D$47% -> 19 | BA141: 32 | BB141: =kuljetuslaskuri!$D$52% -> 0 | BC141: 15.94 | BD141: =IF(BA141>15,50,LN(9.0943)*BA141+16.208) -> 50 | BE141: 380.3737701 | BF141: 7.5 | BG141: 7.5 | BH141: =kuljetuslaskuri!$D$53*(laskentapohja!C141/laskentapohja!AZ141) -> 3.157894737 | BI141: =SUM(BE141:BH141) -> 398.5316648 | BJ141: 12 | BK141: =SUM(BI141,BJ141)*(1+BB141) -> 410.5316648 | BL141: 13.68438883 | BM141: 0.07307597092 | BO141: 187.8436231 | BP141: 407.8890101 | BQ141: =SUM(BO141:BP141) -> 595.7326331 | BS141: 0.39 | BT141: 374.4 | BV141: =kuljetuslaskuri!$D$74 -> 71.1 | BX141: =BT141+BV141 -> 445.5 | BZ141: =N_arvo*N_maara*kuljetuslaskuri!$E$87%*C141 -> 59.4 | CA141: =P_arvo*P_maara*kuljetuslaskuri!$E$88%*C141 -> 41.04 | CB141: =K_arvo*K_maara*kuljetuslaskuri!$E$89%*C141 -> 79.2 | CC141: =SUM(BZ141:CB141) -> 179.64
B142: =kuljetuslaskuri!$D$31 -> 2500 | C142: =kuljetuslaskuri!$D$12 -> 30 | D142: =kuljetuslaskuri!$D$33 -> 14 | E142: =kuljetuslaskuri!$D$34 -> 4000 | F142: 12 | G142: 2.142857143 | H142: 7.5 | I142: 2 | J142: =kuljetuslaskuri!$D$35 -> 0 | K142: 21.5 | L142: 0.7166666667 | N142: 1.395348837 | P142: =IF(kuljetuslaskuri!$H$17,kuljetuslaskuri!$D$17,0) -> 25 | Q142: =IF(kuljetuslaskuri!$H$18,kuljetuslaskuri!$D$18,0) -> 0 | R142: =IF(kuljetuslaskuri!$G$19,kuljetuslaskuri!#REF!,0) -> 0 | S142: =AVERAGE(IF(P142:R142<>0, P142:R142,"")) -> 25 | T142: =S142*kuljetuslaskuri!$D$19% -> 23.75 | U142: 32.25 | V142: =kuljetuslaskuri!$D$24% -> 0 | W142: 15.94 | X142: 50 | Y142: 306.6763521 | Z142: 7.692307692 | AA142: 7.5 | AB142: =kuljetuslaskuri!$D$25*(laskentapohja!C142/laskentapohja!T142) -> 2.526315789 | AC142: 324.3949756 | AD142: 10.81316585 | AE142: 0.09247985406 | AG142: 324.3949756 | AH142: 0.09247985406 | AJ142: 0.7439143456 | AK142: -1.302868983 | AV142: =IF(kuljetuslaskuri!$H$45,kuljetuslaskuri!$D$45,0) -> 20 | AW142: =IF(kuljetuslaskuri!$H$46,kuljetuslaskuri!$D$46,0) -> 0 | AX142: =IF(kuljetuslaskuri!$G$19,kuljetuslaskuri!#REF!,0) -> 0 | AY142: =AVERAGE(IF(AV142:AX142<>0, AV142:AX142,"")) -> 20 | AZ142: =AY142*kuljetuslaskuri!$D$47% -> 19 | BA142: 32.25 | BB142: =kuljetuslaskuri!$D$52% -> 0 | BC142: 15.94 | BD142: 50 | BE142: 383.3454401 | BF142: 7.5 | BG142: 7.5 | BH142: =kuljetuslaskuri!$D$53*(laskentapohja!C142/laskentapohja!AZ142) -> 3.157894737 | BI142: 401.5033349 | BJ142: 12 | BK142: 413.5033349 | BL142: 13.7834445 | BM142: 0.07255080545 | BO142: 189.2304024 | BP142: 410.9003024 | BQ142: 600.1307048 | BS142: 0.39 | BT142: 377.325 | BV142: =kuljetuslaskuri!$D$74 -> 71.1 | BX142: 448.425 | BZ142: =N_arvo*N_maara*kuljetuslaskuri!$E$87%*C142 -> 59.4 | CA142: =P_arvo*P_maara*kuljetuslaskuri!$E$88%*C142 -> 41.04 | CB142: =K_arvo*K_maara*kuljetuslaskuri!$E$89%*C142 -> 79.2 | CC142: 179.64
B143: =kuljetuslaskuri!$D$31 -> 2500 | C143: =kuljetuslaskuri!$D$12 -> 30 | D143: =kuljetuslaskuri!$D$33 -> 14 | E143: =kuljetuslaskuri!$D$34 -> 4000 | F143: 12 | G143: 2.142857143 | H143: 7.5 | I143: 2 | J143: =kuljetuslaskuri!$D$35 -> 0 | K143: 21.5 | L143: 0.7166666667 | N143: 1.395348837 | P143: =IF(kuljetuslaskuri!$H$17,kuljetuslaskuri!$D$17,0) -> 25 | Q143: =IF(kuljetuslaskuri!$H$18,kuljetuslaskuri!$D$18,0) -> 0 | R143: =IF(kuljetuslaskuri!$G$19,kuljetuslaskuri!#REF!,0) -> 0 | S143: =AVERAGE(IF(P143:R143<>0, P143:R143,"")) -> 25 | T143: =S143*kuljetuslaskuri!$D$19% -> 23.75 | U143: 32.5 | V143: =kuljetuslaskuri!$D$24% -> 0 | W143: 15.94 | X143: 50 | Y143: 309.0536882 | Z143: 7.692307692 | AA143: 7.5 | AB143: =kuljetuslaskuri!$D$25*(laskentapohja!C143/laskentapohja!T143) -> 2.526315789 | AC143: 326.7723117 | AD143: 10.89241039 | AE143: 0.09180704402 | AG143: 326.7723117 | AH143: 0.09180704402 | AJ143: 0.7435779406 | AK143: -1.303541793 | AV143: =IF(kuljetuslaskuri!$H$45,kuljetuslaskuri!$D$45,0) -> 20 | AW143: =IF(kuljetuslaskuri!$H$46,kuljetuslaskuri!$D$46,0) -> 0 | AX143: =IF(kuljetuslaskuri!$G$19,kuljetuslaskuri!#REF!,0) -> 0 | AY143: =AVERAGE(IF(AV143:AX143<>0, AV143:AX143,"")) -> 20 | AZ143: =AY143*kuljetuslaskuri!$D$47% -> 19 | BA143: 32.5 | BB143: =kuljetuslaskuri!$D$52% -> 0 | BC143: 15.94 | BD143: 50 | BE143: 386.3171102 | BF143: 7.5 | BG143: 7.5 | BH143: =kuljetuslaskuri!$D$53*(laskentapohja!C143/laskentapohja!AZ143) -> 3.157894737 | BI143: 404.475005 | BJ143: 12 | BK143: 416.475005 | BL143: 13.88250017 | BM143: 0.07203313439 | BO143: 190.6171818 | BP143: 413.9115948 | BQ143: 604.5287766 | BS143: 0.39 | BT143: 380.25 | BV143: =kuljetuslaskuri!$D$74 -> 71.1 | BX143: 451.35 | BZ143: =N_arvo*N_maara*kuljetuslaskuri!$E$87%*C143 -> 59.4 | CA143: =P_arvo*P_maara*kuljetuslaskuri!$E$88%*C143 -> 41.04 | CB143: =K_arvo*K_maara*kuljetuslaskuri!$E$89%*C143 -> 79.2 | CC143: 179.64
B144: =kuljetuslaskuri!$D$31 -> 2500 | C144: =kuljetuslaskuri!$D$12 -> 30 | D144: =kuljetuslaskuri!$D$33 -> 14 | E144: =kuljetuslaskuri!$D$34 -> 4000 | F144: 12 | G144: 2.142857143 | H144: 7.5 | I144: 2 | J144: =kuljetuslaskuri!$D$35 -> 0 | K144: 21.5 | L144: 0.7166666667 | N144: 1.395348837 | P144: =IF(kuljetuslaskuri!$H$17,kuljetuslaskuri!$D$17,0) -> 25 | Q144: =IF(kuljetuslaskuri!$H$18,kuljetuslaskuri!$D$18,0) -> 0 | R144: =IF(kuljetuslaskuri!$G$19,kuljetuslaskuri!#REF!,0) -> 0 | S144: =AVERAGE(IF(P144:R144<>0, P144:R144,"")) -> 25 | T144: =S144*kuljetuslaskuri!$D$19% -> 23.75 | U144: 32.75 | V144: =kuljetuslaskuri!$D$24% -> 0 | W144: 15.94 | X144: 50 | Y144: 311.4310242 | Z144: 7.692307692 | AA144: 7.5 | AB144: =kuljetuslaskuri!$D$25*(laskentapohja!C144/laskentapohja!T144) -> 2.526315789 | AC144: 329.1496477 | AD144: 10.97165492 | AE144: 0.09114395293 | AG144: 329.1496477 | AH144: 0.09114395293 | AJ144: 0.7432463951 | AK144: -1.304204884 | AV144: =IF(kuljetuslaskuri!$H$45,kuljetuslaskuri!$D$45,0) -> 20 | AW144: =IF(kuljetuslaskuri!$H$46,kuljetuslaskuri!$D$46,0) -> 0 | AX144: =IF(kuljetuslaskuri!$G$19,kuljetuslaskuri!#REF!,0) -> 0 | AY144: =AVERAGE(IF(AV144:AX144<>0, AV144:AX144,"")) -> 20 | AZ144: =AY144*kuljetuslaskuri!$D$47% -> 19 | BA144: 32.75 | BB144: =kuljetuslaskuri!$D$52% -> 0 | BC144: 15.94 | BD144: 50 | BE144: 389.2887803 | BF144: 7.5 | BG144: 7.5 | BH144: =kuljetuslaskuri!$D$53*(laskentapohja!C144/laskentapohja!AZ144) -> 3.157894737 | BI144: 407.446675 | BJ144: 12 | BK144: 419.446675 | BL144: 13.98155583 | BM144: 0.07152279845 | BO144: 192.0039612 | BP144: 416.9228871 | BQ144: 608.9268483 | BS144: 0.39 | BT144: 383.175 | BV144: =kuljetuslaskuri!$D$74 -> 71.1 | BX144: 454.275 | BZ144: =N_arvo*N_maara*kuljetuslaskuri!$E$87%*C144 -> 59.4 | CA144: =P_arvo*P_maara*kuljetuslaskuri!$E$88%*C144 -> 41.04 | CB144: =K_arvo*K_maara*kuljetuslaskuri!$E$89%*C144 -> 79.2 | CC144: 179.64
B145: =kuljetuslaskuri!$D$31 -> 2500 | C145: =kuljetuslaskuri!$D$12 -> 30 | D145: =kuljetuslaskuri!$D$33 -> 14 | E145: =kuljetuslaskuri!$D$34 -> 4000 | F145: 12 | G145: 2.142857143 | H145: 7.5 | I145: 2 | J145: =kuljetuslaskuri!$D$35 -> 0 | K145: 21.5 | L145: 0.7166666667 | N145: 1.395348837 | P145: =IF(kuljetuslaskuri!$H$17,kuljetuslaskuri!$D$17,0) -> 25 | Q145: =IF(kuljetuslaskuri!$H$18,kuljetuslaskuri!$D$18,0) -> 0 | R145: =IF(kuljetuslaskuri!$G$19,kuljetuslaskuri!#REF!,0) -> 0 | S145: =AVERAGE(IF(P145:R145<>0, P145:R145,"")) -> 25 | T145: =S145*kuljetuslaskuri!$D$19% -> 23.75 | U145: 33 | V145: =kuljetuslaskuri!$D$24% -> 0 | W145: 15.94 | X145: 50 | Y145: 313.8083603 | Z145: 7.692307692 | AA145: 7.5 | AB145: =kuljetuslaskuri!$D$25*(laskentapohja!C145/laskentapohja!T145) -> 2.526315789 | AC145: 331.5269838 | AD145: 11.05089946 | AE145: 0.09049037173 | AG145: 331.5269838 | AH145: 0.09049037173 | AJ145: 0.7429196045 | AK145: -1.304858465 | AV145: =IF(kuljetuslaskuri!$H$45,kuljetuslaskuri!$D$45,0) -> 20 | AW145: =IF(kuljetuslaskuri!$H$46,kuljetuslaskuri!$D$46,0) -> 0 | AX145: =IF(kuljetuslaskuri!$G$19,kuljetuslaskuri!#REF!,0) -> 0 | AY145: =AVERAGE(IF(AV145:AX145<>0, AV145:AX145,"")) -> 20 | AZ145: =AY145*kuljetuslaskuri!$D$47% -> 19 | BA145: 33 | BB145: =kuljetuslaskuri!$D$52% -> 0 | BC145: 15.94 | BD145: 50 | BE145: 392.2604504 | BF145: 7.5 | BG145: 7.5 | BH145: =kuljetuslaskuri!$D$53*(laskentapohja!C145/laskentapohja!AZ145) -> 3.157894737 | BI145: 410.4183451 | BJ145: 12 | BK145: 422.4183451 | BL145: 14.0806115 | BM145: 0.07101964284 | BO145: 193.3907405 | BP145: 419.9341795 | BQ145: 613.32492 | BS145: 0.39 | BT145: 386.1 | BV145: =kuljetuslaskuri!$D$74 -> 71.1 | BX145: 457.2 | BZ145: =N_arvo*N_maara*kuljetuslaskuri!$E$87%*C145 -> 59.4 | CA145: =P_arvo*P_maara*kuljetuslaskuri!$E$88%*C145 -> 41.04 | CB145: =K_arvo*K_maara*kuljetuslaskuri!$E$89%*C145 -> 79.2 | CC145: 179.64
B146: =kuljetuslaskuri!$D$31 -> 2500 | C146: =kuljetuslaskuri!$D$12 -> 30 | D146: =kuljetuslaskuri!$D$33 -> 14 | E146: =kuljetuslaskuri!$D$34 -> 4000 | F146: 12 | G146: 2.142857143 | H146: 7.5 | I146: 2 | J146: =kuljetuslaskuri!$D$35 -> 0 | K146: 21.5 | L146: 0.7166666667 | N146: 1.395348837 | P146: =IF(kuljetuslaskuri!$H$17,kuljetuslaskuri!$D$17,0) -> 25 | Q146: =IF(kuljetuslaskuri!$H$18,kuljetuslaskuri!$D$18,0) -> 0 | R146: =IF(kuljetuslaskuri!$G$19,kuljetuslaskuri!#REF!,0) -> 0 | S146: =AVERAGE(IF(P146:R146<>0, P146:R146,"")) -> 25 | T146: =S146*kuljetuslaskuri!$D$19% -> 23.75 | U146: 33.25 | V146: =kuljetuslaskuri!$D$24% -> 0 | W146: 15.94 | X146: 50 | Y146: 316.1856964 | Z146: 7.692307692 | AA146: 7.5 | AB146: =kuljetuslaskuri!$D$25*(laskentapohja!C146/laskentapohja!T146) -> 2.526315789 | AC146: 333.9043198 | AD146: 11.13014399 | AE146: 0.08984609727 | AG146: 333.9043198 | AH146: 0.08984609727 | AJ146: 0.7425974672 | AK146: -1.30550274 | AV146: =IF(kuljetuslaskuri!$H$45,kuljetuslaskuri!$D$45,0) -> 20 | AW146: =IF(kuljetuslaskuri!$H$46,kuljetuslaskuri!$D$46,0) -> 0 | AX146: =IF(kuljetuslaskuri!$G$19,kuljetuslaskuri!#REF!,0) -> 0 | AY146: =AVERAGE(IF(AV146:AX146<>0, AV146:AX146,"")) -> 20 | AZ146: =AY146*kuljetuslaskuri!$D$47% -> 19 | BA146: 33.25 | BB146: =kuljetuslaskuri!$D$52% -> 0 | BC146: 15.94 | BD146: 50 | BE146: 395.2321205 | BF146: 7.5 | BG146: 7.5 | BH146: =kuljetuslaskuri!$D$53*(laskentapohja!C146/laskentapohja!AZ146) -> 3.157894737 | BI146: 413.3900152 | BJ146: 12 | BK146: 425.3900152 | BL146: 14.17966717 | BM146: 0.07052351708 | BO146: 194.7775199 | BP146: 422.9454718 | BQ146: 617.7229917 | BS146: 0.39 | BT146: 389.025 | BV146: =kuljetuslaskuri!$D$74 -> 71.1 | BX146: 460.125 | BZ146: =N_arvo*N_maara*kuljetuslaskuri!$E$87%*C146 -> 59.4 | CA146: =P_arvo*P_maara*kuljetuslaskuri!$E$88%*C146 -> 41.04 | CB146: =K_arvo*K_maara*kuljetuslaskuri!$E$89%*C146 -> 79.2 | CC146: 179.64
B147: =kuljetuslaskuri!$D$31 -> 2500 | C147: =kuljetuslaskuri!$D$12 -> 30 | D147: =kuljetuslaskuri!$D$33 -> 14 | E147: =kuljetuslaskuri!$D$34 -> 4000 | F147: 12 | G147: 2.142857143 | H147: 7.5 | I147: 2 | J147: =kuljetuslaskuri!$D$35 -> 0 | K147: 21.5 | L147: 0.7166666667 | N147: 1.395348837 | P147: =IF(kuljetuslaskuri!$H$17,kuljetuslaskuri!$D$17,0) -> 25 | Q147: =IF(kuljetuslaskuri!$H$18,kuljetuslaskuri!$D$18,0) -> 0 | R147: =IF(kuljetuslaskuri!$G$19,kuljetuslaskuri!#REF!,0) -> 0 | S147: =AVERAGE(IF(P147:R147<>0, P147:R147,"")) -> 25 | T147: =S147*kuljetuslaskuri!$D$19% -> 23.75 | U147: 33.5 | V147: =kuljetuslaskuri!$D$24% -> 0 | W147: 15.94 | X147: 50 | Y147: 318.5630324 | Z147: 7.692307692 | AA147: 7.5 | AB147: =kuljetuslaskuri!$D$25*(laskentapohja!C147/laskentapohja!T147) -> 2.526315789 | AC147: 336.2816559 | AD147: 11.20938853 | AE147: 0.08921093218 | AG147: 336.2816559 | AH147: 0.08921093218 | AJ147: 0.7422798847 | AK147: -1.306137905 | AV147: =IF(kuljetuslaskuri!$H$45,kuljetuslaskuri!$D$45,0) -> 20 | AW147: =IF(kuljetuslaskuri!$H$46,kuljetuslaskuri!$D$46,0) -> 0 | AX147: =IF(kuljetuslaskuri!$G$19,kuljetuslaskuri!#REF!,0) -> 0 | AY147: =AVERAGE(IF(AV147:AX147<>0, AV147:AX147,"")) -> 20 | AZ147: =AY147*kuljetuslaskuri!$D$47% -> 19 | BA147: 33.5 | BB147: =kuljetuslaskuri!$D$52% -> 0 | BC147: 15.94 | BD147: 50 | BE147: 398.2037905 | BF147: 7.5 | BG147: 7.5 | BH147: =kuljetuslaskuri!$D$53*(laskentapohja!C147/laskentapohja!AZ147) -> 3.157894737 | BI147: 416.3616853 | BJ147: 12 | BK147: 428.3616853 | BL147: 14.27872284 | BM147: 0.07003427485 | BO147: 196.1642993 | BP147: 425.9567641 | BQ147: 622.1210634 | BS147: 0.39 | BT147: 391.95 | BV147: =kuljetuslaskuri!$D$74 -> 71.1 | BX147: 463.05 | BZ147: =N_arvo*N_maara*kuljetuslaskuri!$E$87%*C147 -> 59.4 | CA147: =P_arvo*P_maara*kuljetuslaskuri!$E$88%*C147 -> 41.04 | CB147: =K_arvo*K_maara*kuljetuslaskuri!$E$89%*C147 -> 79.2 | CC147: 179.64
B148: =kuljetuslaskuri!$D$31 -> 2500 | C148: =kuljetuslaskuri!$D$12 -> 30 | D148: =kuljetuslaskuri!$D$33 -> 14 | E148: =kuljetuslaskuri!$D$34 -> 4000 | F148: 12 | G148: 2.142857143 | H148: 7.5 | I148: 2 | J148: =kuljetuslaskuri!$D$35 -> 0 | K148: 21.5 | L148: 0.7166666667 | N148: 1.395348837 | P148: =IF(kuljetuslaskuri!$H$17,kuljetuslaskuri!$D$17,0) -> 25 | Q148: =IF(kuljetuslaskuri!$H$18,kuljetuslaskuri!$D$18,0) -> 0 | R148: =IF(kuljetuslaskuri!$G$19,kuljetuslaskuri!#REF!,0) -> 0 | S148: =AVERAGE(IF(P148:R148<>0, P148:R148,"")) -> 25 | T148: =S148*kuljetuslaskuri!$D$19% -> 23.75 | U148: 33.75 | V148: =kuljetuslaskuri!$D$24% -> 0 | W148: 15.94 | X148: 50 | Y148: 320.9403685 | Z148: 7.692307692 | AA148: 7.5 | AB148: =kuljetuslaskuri!$D$25*(laskentapohja!C148/laskentapohja!T148) -> 2.526315789 | AC148: 338.658992 | AD148: 11.28863307 | AE148: 0.08858468463 | AG148: 338.658992 | AH148: 0.08858468463 | AJ148: 0.7419667609 | AK148: -1.306764153 | AV148: =IF(kuljetuslaskuri!$H$45,kuljetuslaskuri!$D$45,0) -> 20 | AW148: =IF(kuljetuslaskuri!$H$46,kuljetuslaskuri!$D$46,0) -> 0 | AX148: =IF(kuljetuslaskuri!$G$19,kuljetuslaskuri!#REF!,0) -> 0 | AY148: =AVERAGE(IF(AV148:AX148<>0, AV148:AX148,"")) -> 20 | AZ148: =AY148*kuljetuslaskuri!$D$47% -> 19 | BA148: 33.75 | BB148: =kuljetuslaskuri!$D$52% -> 0 | BC148: 15.94 | BD148: 50 | BE148: 401.1754606 | BF148: 7.5 | BG148: 7.5 | BH148: =kuljetuslaskuri!$D$53*(laskentapohja!C148/laskentapohja!AZ148) -> 3.157894737 | BI148: 419.3333553 | BJ148: 12 | BK148: 431.3333553 | BL148: 14.37777851 | BM148: 0.06955177388 | BO148: 197.5510786 | BP148: 428.9680565 | BQ148: 626.5191351 | BS148: 0.39 | BT148: 394.875 | BV148: =kuljetuslaskuri!$D$74 -> 71.1 | BX148: 465.975 | BZ148: =N_arvo*N_maara*kuljetuslaskuri!$E$87%*C148 -> 59.4 | CA148: =P_arvo*P_maara*kuljetuslaskuri!$E$88%*C148 -> 41.04 | CB148: =K_arvo*K_maara*kuljetuslaskuri!$E$89%*C148 -> 79.2 | CC148: 179.64
B149: =kuljetuslaskuri!$D$31 -> 2500 | C149: =kuljetuslaskuri!$D$12 -> 30 | D149: =kuljetuslaskuri!$D$33 -> 14 | E149: =kuljetuslaskuri!$D$34 -> 4000 | F149: 12 | G149: 2.142857143 | H149: 7.5 | I149: 2 | J149: =kuljetuslaskuri!$D$35 -> 0 | K149: 21.5 | L149: 0.7166666667 | N149: 1.395348837 | P149: =IF(kuljetuslaskuri!$H$17,kuljetuslaskuri!$D$17,0) -> 25 | Q149: =IF(kuljetuslaskuri!$H$18,kuljetuslaskuri!$D$18,0) -> 0 | R149: =IF(kuljetuslaskuri!$G$19,kuljetuslaskuri!#REF!,0) -> 0 | S149: =AVERAGE(IF(P149:R149<>0, P149:R149,"")) -> 25 | T149: =S149*kuljetuslaskuri!$D$19% -> 23.75 | U149: 34 | V149: =kuljetuslaskuri!$D$24% -> 0 | W149: 15.94 | X149: 50 | Y149: 323.3177045 | Z149: 7.692307692 | AA149: 7.5 | AB149: =kuljetuslaskuri!$D$25*(laskentapohja!C149/laskentapohja!T149) -> 2.526315789 | AC149: 341.036328 | AD149: 11.3678776 | AE149: 0.08796716811 | AG149: 341.036328 | AH149: 0.08796716811 | AJ149: 0.7416580027 | AK149: -1.307381669 | AV149: =IF(kuljetuslaskuri!$H$45,kuljetuslaskuri!$D$45,0) -> 20 | AW149: =IF(kuljetuslaskuri!$H$46,kuljetuslaskuri!$D$46,0) -> 0 | AX149: =IF(kuljetuslaskuri!$G$19,kuljetuslaskuri!#REF!,0) -> 0 | AY149: =AVERAGE(IF(AV149:AX149<>0, AV149:AX149,"")) -> 20 | AZ149: =AY149*kuljetuslaskuri!$D$47% -> 19 | BA149: 34 | BB149: =kuljetuslaskuri!$D$52% -> 0 | BC149: 15.94 | BD149: 50 | BE149: 404.1471307 | BF149: 7.5 | BG149: 7.5 | BH149: =kuljetuslaskuri!$D$53*(laskentapohja!C149/laskentapohja!AZ149) -> 3.157894737 | BI149: 422.3050254 | BJ149: 12 | BK149: 434.3050254 | BL149: 14.47683418 | BM149: 0.06907587581 | BO149: 198.937858 | BP149: 431.9793488 | BQ149: 630.9172069 | BS149: 0.39 | BT149: 397.8 | BV149: =kuljetuslaskuri!$D$74 -> 71.1 | BX149: 468.9 | BZ149: =N_arvo*N_maara*kuljetuslaskuri!$E$87%*C149 -> 59.4 | CA149: =P_arvo*P_maara*kuljetuslaskuri!$E$88%*C149 -> 41.04 | CB149: =K_arvo*K_maara*kuljetuslaskuri!$E$89%*C149 -> 79.2 | CC149: 179.64
B150: =kuljetuslaskuri!$D$31 -> 2500 | C150: =kuljetuslaskuri!$D$12 -> 30 | D150: =kuljetuslaskuri!$D$33 -> 14 | E150: =kuljetuslaskuri!$D$34 -> 4000 | F150: 12 | G150: 2.142857143 | H150: 7.5 | I150: 2 | J150: =kuljetuslaskuri!$D$35 -> 0 | K150: 21.5 | L150: 0.7166666667 | N150: 1.395348837 | P150: =IF(kuljetuslaskuri!$H$17,kuljetuslaskuri!$D$17,0) -> 25 | Q150: =IF(kuljetuslaskuri!$H$18,kuljetuslaskuri!$D$18,0) -> 0 | R150: =IF(kuljetuslaskuri!$G$19,kuljetuslaskuri!#REF!,0) -> 0 | S150: =AVERAGE(IF(P150:R150<>0, P150:R150,"")) -> 25 | T150: =S150*kuljetuslaskuri!$D$19% -> 23.75 | U150: 34.25 | V150: =kuljetuslaskuri!$D$24% -> 0 | W150: 15.94 | X150: 50 | Y150: 325.6950406 | Z150: 7.692307692 | AA150: 7.5 | AB150: =kuljetuslaskuri!$D$25*(laskentapohja!C150/laskentapohja!T150) -> 2.526315789 | AC150: 343.4136641 | AD150: 11.44712214 | AE150: 0.08735820131 | AG150: 343.4136641 | AH150: 0.08735820131 | AJ150: 0.7413535193 | AK150: -1.307990636 | AV150: =IF(kuljetuslaskuri!$H$45,kuljetuslaskuri!$D$45,0) -> 20 | AW150: =IF(kuljetuslaskuri!$H$46,kuljetuslaskuri!$D$46,0) -> 0 | AX150: =IF(kuljetuslaskuri!$G$19,kuljetuslaskuri!#REF!,0) -> 0 | AY150: =AVERAGE(IF(AV150:AX150<>0, AV150:AX150,"")) -> 20 | AZ150: =AY150*kuljetuslaskuri!$D$47% -> 19 | BA150: 34.25 | BB150: =kuljetuslaskuri!$D$52% -> 0 | BC150: 15.94 | BD150: 50 | BE150: 407.1188008 | BF150: 7.5 | BG150: 7.5 | BH150: =kuljetuslaskuri!$D$53*(laskentapohja!C150/laskentapohja!AZ150) -> 3.157894737 | BI150: 425.2766955 | BJ150: 12 | BK150: 437.2766955 | BL150: 14.57588985 | BM150: 0.06860644601 | BO150: 200.3246374 | BP150: 434.9906412 | BQ150: 635.3152786 | BS150: 0.39 | BT150: 400.725 | BV150: =kuljetuslaskuri!$D$74 -> 71.1 | BX150: 471.825 | BZ150: =N_arvo*N_maara*kuljetuslaskuri!$E$87%*C150 -> 59.4 | CA150: =P_arvo*P_maara*kuljetuslaskuri!$E$88%*C150 -> 41.04 | CB150: =K_arvo*K_maara*kuljetuslaskuri!$E$89%*C150 -> 79.2 | CC150: 179.64
B151: =kuljetuslaskuri!$D$31 -> 2500 | C151: =kuljetuslaskuri!$D$12 -> 30 | D151: =kuljetuslaskuri!$D$33 -> 14 | E151: =kuljetuslaskuri!$D$34 -> 4000 | F151: 12 | G151: 2.142857143 | H151: 7.5 | I151: 2 | J151: =kuljetuslaskuri!$D$35 -> 0 | K151: 21.5 | L151: 0.7166666667 | N151: 1.395348837 | P151: =IF(kuljetuslaskuri!$H$17,kuljetuslaskuri!$D$17,0) -> 25 | Q151: =IF(kuljetuslaskuri!$H$18,kuljetuslaskuri!$D$18,0) -> 0 | R151: =IF(kuljetuslaskuri!$G$19,kuljetuslaskuri!#REF!,0) -> 0 | S151: =AVERAGE(IF(P151:R151<>0, P151:R151,"")) -> 25 | T151: =S151*kuljetuslaskuri!$D$19% -> 23.75 | U151: 34.5 | V151: =kuljetuslaskuri!$D$24% -> 0 | W151: 15.94 | X151: 50 | Y151: 328.0723767 | Z151: 7.692307692 | AA151: 7.5 | AB151: =kuljetuslaskuri!$D$25*(laskentapohja!C151/laskentapohja!T151) -> 2.526315789 | AC151: 345.7910002 | AD151: 11.52636667 | AE151: 0.08675760788 | AG151: 345.7910002 | AH151: 0.08675760788 | AJ151: 0.7410532225 | AK151: -1.308591229 | AV151: =IF(kuljetuslaskuri!$H$45,kuljetuslaskuri!$D$45,0) -> 20 | AW151: =IF(kuljetuslaskuri!$H$46,kuljetuslaskuri!$D$46,0) -> 0 | AX151: =IF(kuljetuslaskuri!$G$19,kuljetuslaskuri!#REF!,0) -> 0 | AY151: =AVERAGE(IF(AV151:AX151<>0, AV151:AX151,"")) -> 20 | AZ151: =AY151*kuljetuslaskuri!$D$47% -> 19 | BA151: 34.5 | BB151: =kuljetuslaskuri!$D$52% -> 0 | BC151: 15.94 | BD151: 50 | BE151: 410.0904708 | BF151: 7.5 | BG151: 7.5 | BH151: =kuljetuslaskuri!$D$53*(laskentapohja!C151/laskentapohja!AZ151) -> 3.157894737 | BI151: 428.2483656 | BJ151: 12 | BK151: 440.2483656 | BL151: 14.67494552 | BM151: 0.06814335349 | BO151: 201.7114168 | BP151: 438.0019335 | BQ151: 639.7133503 | BS151: 0.39 | BT151: 403.65 | BV151: =kuljetuslaskuri!$D$74 -> 71.1 | BX151: 474.75 | BZ151: =N_arvo*N_maara*kuljetuslaskuri!$E$87%*C151 -> 59.4 | CA151: =P_arvo*P_maara*kuljetuslaskuri!$E$88%*C151 -> 41.04 | CB151: =K_arvo*K_maara*kuljetuslaskuri!$E$89%*C151 -> 79.2 | CC151: 179.64
B152: =kuljetuslaskuri!$D$31 -> 2500 | C152: =kuljetuslaskuri!$D$12 -> 30 | D152: =kuljetuslaskuri!$D$33 -> 14 | E152: =kuljetuslaskuri!$D$34 -> 4000 | F152: 12 | G152: 2.142857143 | H152: 7.5 | I152: 2 | J152: =kuljetuslaskuri!$D$35 -> 0 | K152: 21.5 | L152: 0.7166666667 | N152: 1.395348837 | P152: =IF(kuljetuslaskuri!$H$17,kuljetuslaskuri!$D$17,0) -> 25 | Q152: =IF(kuljetuslaskuri!$H$18,kuljetuslaskuri!$D$18,0) -> 0 | R152: =IF(kuljetuslaskuri!$G$19,kuljetuslaskuri!#REF!,0) -> 0 | S152: =AVERAGE(IF(P152:R152<>0, P152:R152,"")) -> 25 | T152: =S152*kuljetuslaskuri!$D$19% -> 23.75 | U152: 34.75 | V152: =kuljetuslaskuri!$D$24% -> 0 | W152: 15.94 | X152: 50 | Y152: 330.4497127 | Z152: 7.692307692 | AA152: 7.5 | AB152: =kuljetuslaskuri!$D$25*(laskentapohja!C152/laskentapohja!T152) -> 2.526315789 | AC152: 348.1683362 | AD152: 11.60561121 | AE152: 0.0861652163 | AG152: 348.1683362 | AH152: 0.0861652163 | AJ152: 0.7407570268 | AK152: -1.309183621 | AV152: =IF(kuljetuslaskuri!$H$45,kuljetuslaskuri!$D$45,0) -> 20 | AW152: =IF(kuljetuslaskuri!$H$46,kuljetuslaskuri!$D$46,0) -> 0 | AX152: =IF(kuljetuslaskuri!$G$19,kuljetuslaskuri!#REF!,0) -> 0 | AY152: =AVERAGE(IF(AV152:AX152<>0, AV152:AX152,"")) -> 20 | AZ152: =AY152*kuljetuslaskuri!$D$47% -> 19 | BA152: 34.75 | BB152: =kuljetuslaskuri!$D$52% -> 0 | BC152: 15.94 | BD152: 50 | BE152: 413.0621409 | BF152: 7.5 | BG152: 7.5 | BH152: =kuljetuslaskuri!$D$53*(laskentapohja!C152/laskentapohja!AZ152) -> 3.157894737 | BI152: 431.2200357 | BJ152: 12 | BK152: 443.2200357 | BL152: 14.77400119 | BM152: 0.0676864708 | BO152: 203.0981961 | BP152: 441.0132259 | BQ152: 644.111422 | BS152: 0.39 | BT152: 406.575 | BV152: =kuljetuslaskuri!$D$74 -> 71.1 | BX152: 477.675 | BZ152: =N_arvo*N_maara*kuljetuslaskuri!$E$87%*C152 -> 59.4 | CA152: =P_arvo*P_maara*kuljetuslaskuri!$E$88%*C152 -> 41.04 | CB152: =K_arvo*K_maara*kuljetuslaskuri!$E$89%*C152 -> 79.2 | CC152: 179.64
B153: =kuljetuslaskuri!$D$31 -> 2500 | C153: =kuljetuslaskuri!$D$12 -> 30 | D153: =kuljetuslaskuri!$D$33 -> 14 | E153: =kuljetuslaskuri!$D$34 -> 4000 | F153: 12 | G153: 2.142857143 | H153: 7.5 | I153: 2 | J153: =kuljetuslaskuri!$D$35 -> 0 | K153: 21.5 | L153: 0.7166666667 | N153: 1.395348837 | P153: =IF(kuljetuslaskuri!$H$17,kuljetuslaskuri!$D$17,0) -> 25 | Q153: =IF(kuljetuslaskuri!$H$18,kuljetuslaskuri!$D$18,0) -> 0 | R153: =IF(kuljetuslaskuri!$G$19,kuljetuslaskuri!#REF!,0) -> 0 | S153: =AVERAGE(IF(P153:R153<>0, P153:R153,"")) -> 25 | T153: =S153*kuljetuslaskuri!$D$19% -> 23.75 | U153: 35 | V153: =kuljetuslaskuri!$D$24% -> 0 | W153: 15.94 | X153: 50 | Y153: 332.8270488 | Z153: 7.692307692 | AA153: 7.5 | AB153: =kuljetuslaskuri!$D$25*(laskentapohja!C153/laskentapohja!T153) -> 2.526315789 | AC153: 350.5456723 | AD153: 11.68485574 | AE153: 0.08558085971 | AG153: 350.5456723 | AH153: 0.08558085971 | AJ153: 0.7404648485 | AK153: -1.309767978 | AV153: =IF(kuljetuslaskuri!$H$45,kuljetuslaskuri!$D$45,0) -> 20 | AW153: =IF(kuljetuslaskuri!$H$46,kuljetuslaskuri!$D$46,0) -> 0 | AX153: =IF(kuljetuslaskuri!$G$19,kuljetuslaskuri!#REF!,0) -> 0 | AY153: =AVERAGE(IF(AV153:AX153<>0, AV153:AX153,"")) -> 20 | AZ153: =AY153*kuljetuslaskuri!$D$47% -> 19 | BA153: 35 | BB153: =kuljetuslaskuri!$D$52% -> 0 | BC153: 15.94 | BD153: 50 | BE153: 416.033811 | BF153: 7.5 | BG153: 7.5 | BH153: =kuljetuslaskuri!$D$53*(laskentapohja!C153/laskentapohja!AZ153) -> 3.157894737 | BI153: 434.1917057 | BJ153: 12 | BK153: 446.1917057 | BL153: 14.87305686 | BM153: 0.06723567385 | BO153: 204.4849755 | BP153: 444.0245182 | BQ153: 648.5094937 | BS153: 0.39 | BT153: 409.5 | BV153: =kuljetuslaskuri!$D$74 -> 71.1 | BX153: 480.6 | BZ153: =N_arvo*N_maara*kuljetuslaskuri!$E$87%*C153 -> 59.4 | CA153: =P_arvo*P_maara*kuljetuslaskuri!$E$88%*C153 -> 41.04 | CB153: =K_arvo*K_maara*kuljetuslaskuri!$E$89%*C153 -> 79.2 | CC153: 179.64
B154: =kuljetuslaskuri!$D$31 -> 2500 | C154: =kuljetuslaskuri!$D$12 -> 30 | D154: =kuljetuslaskuri!$D$33 -> 14 | E154: =kuljetuslaskuri!$D$34 -> 4000 | F154: 12 | G154: 2.142857143 | H154: 7.5 | I154: 2 | J154: =kuljetuslaskuri!$D$35 -> 0 | K154: 21.5 | L154: 0.7166666667 | N154: 1.395348837 | P154: =IF(kuljetuslaskuri!$H$17,kuljetuslaskuri!$D$17,0) -> 25 | Q154: =IF(kuljetuslaskuri!$H$18,kuljetuslaskuri!$D$18,0) -> 0 | R154: =IF(kuljetuslaskuri!$G$19,kuljetuslaskuri!#REF!,0) -> 0 | S154: =AVERAGE(IF(P154:R154<>0, P154:R154,"")) -> 25 | T154: =S154*kuljetuslaskuri!$D$19% -> 23.75 | U154: 35.25 | V154: =kuljetuslaskuri!$D$24% -> 0 | W154: 15.94 | X154: 50 | Y154: 335.2043849 | Z154: 7.692307692 | AA154: 7.5 | AB154: =kuljetuslaskuri!$D$25*(laskentapohja!C154/laskentapohja!T154) -> 2.526315789 | AC154: 352.9230083 | AD154: 11.76410028 | AE154: 0.08500437572 | AG154: 352.9230083 | AH154: 0.08500437572 | AJ154: 0.7401766065 | AK154: -1.310344461 | AV154: =IF(kuljetuslaskuri!$H$45,kuljetuslaskuri!$D$45,0) -> 20 | AW154: =IF(kuljetuslaskuri!$H$46,kuljetuslaskuri!$D$46,0) -> 0 | AX154: =IF(kuljetuslaskuri!$G$19,kuljetuslaskuri!#REF!,0) -> 0 | AY154: =AVERAGE(IF(AV154:AX154<>0, AV154:AX154,"")) -> 20 | AZ154: =AY154*kuljetuslaskuri!$D$47% -> 19 | BA154: 35.25 | BB154: =kuljetuslaskuri!$D$52% -> 0 | BC154: 15.94 | BD154: 50 | BE154: 419.0054811 | BF154: 7.5 | BG154: 7.5 | BH154: =kuljetuslaskuri!$D$53*(laskentapohja!C154/laskentapohja!AZ154) -> 3.157894737 | BI154: 437.1633758 | BJ154: 12 | BK154: 449.1633758 | BL154: 14.97211253 | BM154: 0.06679084185 | BO154: 205.8717549 | BP154: 447.0358106 | BQ154: 652.9075654 | BS154: 0.39 | BT154: 412.425 | BV154: =kuljetuslaskuri!$D$74 -> 71.1 | BX154: 483.525 | BZ154: =N_arvo*N_maara*kuljetuslaskuri!$E$87%*C154 -> 59.4 | CA154: =P_arvo*P_maara*kuljetuslaskuri!$E$88%*C154 -> 41.04 | CB154: =K_arvo*K_maara*kuljetuslaskuri!$E$89%*C154 -> 79.2 | CC154: 179.64
B155: =kuljetuslaskuri!$D$31 -> 2500 | C155: =kuljetuslaskuri!$D$12 -> 30 | D155: =kuljetuslaskuri!$D$33 -> 14 | E155: =kuljetuslaskuri!$D$34 -> 4000 | F155: 12 | G155: 2.142857143 | H155: 7.5 | I155: 2 | J155: =kuljetuslaskuri!$D$35 -> 0 | K155: 21.5 | L155: 0.7166666667 | N155: 1.395348837 | P155: =IF(kuljetuslaskuri!$H$17,kuljetuslaskuri!$D$17,0) -> 25 | Q155: =IF(kuljetuslaskuri!$H$18,kuljetuslaskuri!$D$18,0) -> 0 | R155: =IF(kuljetuslaskuri!$G$19,kuljetuslaskuri!#REF!,0) -> 0 | S155: =AVERAGE(IF(P155:R155<>0, P155:R155,"")) -> 25 | T155: =S155*kuljetuslaskuri!$D$19% -> 23.75 | U155: 35.5 | V155: =kuljetuslaskuri!$D$24% -> 0 | W155: 15.94 | X155: 50 | Y155: 337.5817209 | Z155: 7.692307692 | AA155: 7.5 | AB155: =kuljetuslaskuri!$D$25*(laskentapohja!C155/laskentapohja!T155) -> 2.526315789 | AC155: 355.3003444 | AD155: 11.84334481 | AE155: 0.0844356063 | AG155: 355.3003444 | AH155: 0.0844356063 | AJ155: 0.7398922218 | AK155: -1.310913231 | AV155: =IF(kuljetuslaskuri!$H$45,kuljetuslaskuri!$D$45,0) -> 20 | AW155: =IF(kuljetuslaskuri!$H$46,kuljetuslaskuri!$D$46,0) -> 0 | AX155: =IF(kuljetuslaskuri!$G$19,kuljetuslaskuri!#REF!,0) -> 0 | AY155: =AVERAGE(IF(AV155:AX155<>0, AV155:AX155,"")) -> 20 | AZ155: =AY155*kuljetuslaskuri!$D$47% -> 19 | BA155: 35.5 | BB155: =kuljetuslaskuri!$D$52% -> 0 | BC155: 15.94 | BD155: 50 | BE155: 421.9771512 | BF155: 7.5 | BG155: 7.5 | BH155: =kuljetuslaskuri!$D$53*(laskentapohja!C155/laskentapohja!AZ155) -> 3.157894737 | BI155: 440.1350459 | BJ155: 12 | BK155: 452.1350459 | BL155: 15.0711682 | BM155: 0.0663518572 | BO155: 207.2585342 | BP155: 450.0471029 | BQ155: 657.3056372 | BS155: 0.39 | BT155: 415.35 | BV155: =kuljetuslaskuri!$D$74 -> 71.1 | BX155: 486.45 | BZ155: =N_arvo*N_maara*kuljetuslaskuri!$E$87%*C155 -> 59.4 | CA155: =P_arvo*P_maara*kuljetuslaskuri!$E$88%*C155 -> 41.04 | CB155: =K_arvo*K_maara*kuljetuslaskuri!$E$89%*C155 -> 79.2 | CC155: 179.64
B156: =kuljetuslaskuri!$D$31 -> 2500 | C156: =kuljetuslaskuri!$D$12 -> 30 | D156: =kuljetuslaskuri!$D$33 -> 14 | E156: =kuljetuslaskuri!$D$34 -> 4000 | F156: 12 | G156: 2.142857143 | H156: 7.5 | I156: 2 | J156: =kuljetuslaskuri!$D$35 -> 0 | K156: 21.5 | L156: 0.7166666667 | N156: 1.395348837 | P156: =IF(kuljetuslaskuri!$H$17,kuljetuslaskuri!$D$17,0) -> 25 | Q156: =IF(kuljetuslaskuri!$H$18,kuljetuslaskuri!$D$18,0) -> 0 | R156: =IF(kuljetuslaskuri!$G$19,kuljetuslaskuri!#REF!,0) -> 0 | S156: =AVERAGE(IF(P156:R156<>0, P156:R156,"")) -> 25 | T156: =S156*kuljetuslaskuri!$D$19% -> 23.75 | U156: 35.75 | V156: =kuljetuslaskuri!$D$24% -> 0 | W156: 15.94 | X156: 50 | Y156: 339.959057 | Z156: 7.692307692 | AA156: 7.5 | AB156: =kuljetuslaskuri!$D$25*(laskentapohja!C156/laskentapohja!T156) -> 2.526315789 | AC156: 357.6776805 | AD156: 11.92258935 | AE156: 0.08387439764 | AG156: 357.6776805 | AH156: 0.08387439764 | AJ156: 0.7396116174 | AK156: -1.31147444 | AV156: =IF(kuljetuslaskuri!$H$45,kuljetuslaskuri!$D$45,0) -> 20 | AW156: =IF(kuljetuslaskuri!$H$46,kuljetuslaskuri!$D$46,0) -> 0 | AX156: =IF(kuljetuslaskuri!$G$19,kuljetuslaskuri!#REF!,0) -> 0 | AY156: =AVERAGE(IF(AV156:AX156<>0, AV156:AX156,"")) -> 20 | AZ156: =AY156*kuljetuslaskuri!$D$47% -> 19 | BA156: 35.75 | BB156: =kuljetuslaskuri!$D$52% -> 0 | BC156: 15.94 | BD156: 50 | BE156: 424.9488212 | BF156: 7.5 | BG156: 7.5 | BH156: =kuljetuslaskuri!$D$53*(laskentapohja!C156/laskentapohja!AZ156) -> 3.157894737 | BI156: 443.106716 | BJ156: 12 | BK156: 455.106716 | BL156: 15.17022387 | BM156: 0.06591860534 | BO156: 208.6453136 | BP156: 453.0583953 | BQ156: 661.7037089 | BS156: 0.39 | BT156: 418.275 | BV156: =kuljetuslaskuri!$D$74 -> 71.1 | BX156: 489.375 | BZ156: =N_arvo*N_maara*kuljetuslaskuri!$E$87%*C156 -> 59.4 | CA156: =P_arvo*P_maara*kuljetuslaskuri!$E$88%*C156 -> 41.04 | CB156: =K_arvo*K_maara*kuljetuslaskuri!$E$89%*C156 -> 79.2 | CC156: 179.64
B157: =kuljetuslaskuri!$D$31 -> 2500 | C157: =kuljetuslaskuri!$D$12 -> 30 | D157: =kuljetuslaskuri!$D$33 -> 14 | E157: =kuljetuslaskuri!$D$34 -> 4000 | F157: 12 | G157: 2.142857143 | H157: 7.5 | I157: 2 | J157: =kuljetuslaskuri!$D$35 -> 0 | K157: 21.5 | L157: 0.7166666667 | N157: 1.395348837 | P157: =IF(kuljetuslaskuri!$H$17,kuljetuslaskuri!$D$17,0) -> 25 | Q157: =IF(kuljetuslaskuri!$H$18,kuljetuslaskuri!$D$18,0) -> 0 | R157: =IF(kuljetuslaskuri!$G$19,kuljetuslaskuri!#REF!,0) -> 0 | S157: =AVERAGE(IF(P157:R157<>0, P157:R157,"")) -> 25 | T157: =S157*kuljetuslaskuri!$D$19% -> 23.75 | U157: 36 | V157: =kuljetuslaskuri!$D$24% -> 0 | W157: 15.94 | X157: 50 | Y157: 342.3363931 | Z157: 7.692307692 | AA157: 7.5 | AB157: =kuljetuslaskuri!$D$25*(laskentapohja!C157/laskentapohja!T157) -> 2.526315789 | AC157: 360.0550165 | AD157: 12.00183388 | AE157: 0.08332059997 | AG157: 360.0550165 | AH157: 0.08332059997 | AJ157: 0.7393347186 | AK157: -1.312028237 | AV157: =IF(kuljetuslaskuri!$H$45,kuljetuslaskuri!$D$45,0) -> 20 | AW157: =IF(kuljetuslaskuri!$H$46,kuljetuslaskuri!$D$46,0) -> 0 | AX157: =IF(kuljetuslaskuri!$G$19,kuljetuslaskuri!#REF!,0) -> 0 | AY157: =AVERAGE(IF(AV157:AX157<>0, AV157:AX157,"")) -> 20 | AZ157: =AY157*kuljetuslaskuri!$D$47% -> 19 | BA157: 36 | BB157: =kuljetuslaskuri!$D$52% -> 0 | BC157: 15.94 | BD157: 50 | BE157: 427.9204913 | BF157: 7.5 | BG157: 7.5 | BH157: =kuljetuslaskuri!$D$53*(laskentapohja!C157/laskentapohja!AZ157) -> 3.157894737 | BI157: 446.0783861 | BJ157: 12 | BK157: 458.0783861 | BL157: 15.26927954 | BM157: 0.06549097472 | BO157: 210.032093 | BP157: 456.0696876 | BQ157: 666.1017806 | BS157: 0.39 | BT157: 421.2 | BV157: =kuljetuslaskuri!$D$74 -> 71.1 | BX157: 492.3 | BZ157: =N_arvo*N_maara*kuljetuslaskuri!$E$87%*C157 -> 59.4 | CA157: =P_arvo*P_maara*kuljetuslaskuri!$E$88%*C157 -> 41.04 | CB157: =K_arvo*K_maara*kuljetuslaskuri!$E$89%*C157 -> 79.2 | CC157: 179.64
B158: =kuljetuslaskuri!$D$31 -> 2500 | C158: =kuljetuslaskuri!$D$12 -> 30 | D158: =kuljetuslaskuri!$D$33 -> 14 | E158: =kuljetuslaskuri!$D$34 -> 4000 | F158: 12 | G158: 2.142857143 | H158: 7.5 | I158: 2 | J158: =kuljetuslaskuri!$D$35 -> 0 | K158: 21.5 | L158: 0.7166666667 | N158: 1.395348837 | P158: =IF(kuljetuslaskuri!$H$17,kuljetuslaskuri!$D$17,0) -> 25 | Q158: =IF(kuljetuslaskuri!$H$18,kuljetuslaskuri!$D$18,0) -> 0 | R158: =IF(kuljetuslaskuri!$G$19,kuljetuslaskuri!#REF!,0) -> 0 | S158: =AVERAGE(IF(P158:R158<>0, P158:R158,"")) -> 25 | T158: =S158*kuljetuslaskuri!$D$19% -> 23.75 | U158: 36.25 | V158: =kuljetuslaskuri!$D$24% -> 0 | W158: 15.94 | X158: 50 | Y158: 344.7137291 | Z158: 7.692307692 | AA158: 7.5 | AB158: =kuljetuslaskuri!$D$25*(laskentapohja!C158/laskentapohja!T158) -> 2.526315789 | AC158: 362.4323526 | AD158: 12.08107842 | AE158: 0.08277406745 | AG158: 362.4323526 | AH158: 0.08277406745 | AJ158: 0.7390614523 | AK158: -1.31257477 | AV158: =IF(kuljetuslaskuri!$H$45,kuljetuslaskuri!$D$45,0) -> 20 | AW158: =IF(kuljetuslaskuri!$H$46,kuljetuslaskuri!$D$46,0) -> 0 | AX158: =IF(kuljetuslaskuri!$G$19,kuljetuslaskuri!#REF!,0) -> 0 | AY158: =AVERAGE(IF(AV158:AX158<>0, AV158:AX158,"")) -> 20 | AZ158: =AY158*kuljetuslaskuri!$D$47% -> 19 | BA158: 36.25 | BB158: =kuljetuslaskuri!$D$52% -> 0 | BC158: 15.94 | BD158: 50 | BE158: 430.8921614 | BF158: 7.5 | BG158: 7.5 | BH158: =kuljetuslaskuri!$D$53*(laskentapohja!C158/laskentapohja!AZ158) -> 3.157894737 | BI158: 449.0500561 | BJ158: 12 | BK158: 461.0500561 | BL158: 15.3683352 | BM158: 0.06506885663 | BO158: 211.4188723 | BP158: 459.08098 | BQ158: 670.4998523 | BS158: 0.39 | BT158: 424.125 | BV158: =kuljetuslaskuri!$D$74 -> 71.1 | BX158: 495.225 | BZ158: =N_arvo*N_maara*kuljetuslaskuri!$E$87%*C158 -> 59.4 | CA158: =P_arvo*P_maara*kuljetuslaskuri!$E$88%*C158 -> 41.04 | CB158: =K_arvo*K_maara*kuljetuslaskuri!$E$89%*C158 -> 79.2 | CC158: 179.64
B159: =kuljetuslaskuri!$D$31 -> 2500 | C159: =kuljetuslaskuri!$D$12 -> 30 | D159: =kuljetuslaskuri!$D$33 -> 14 | E159: =kuljetuslaskuri!$D$34 -> 4000 | F159: 12 | G159: 2.142857143 | H159: 7.5 | I159: 2 | J159: =kuljetuslaskuri!$D$35 -> 0 | K159: 21.5 | L159: 0.7166666667 | N159: 1.395348837 | P159: =IF(kuljetuslaskuri!$H$17,kuljetuslaskuri!$D$17,0) -> 25 | Q159: =IF(kuljetuslaskuri!$H$18,kuljetuslaskuri!$D$18,0) -> 0 | R159: =IF(kuljetuslaskuri!$G$19,kuljetuslaskuri!#REF!,0) -> 0 | S159: =AVERAGE(IF(P159:R159<>0, P159:R159,"")) -> 25 | T159: =S159*kuljetuslaskuri!$D$19% -> 23.75 | U159: 36.5 | V159: =kuljetuslaskuri!$D$24% -> 0 | W159: 15.94 | X159: 50 | Y159: 347.0910652 | Z159: 7.692307692 | AA159: 7.5 | AB159: =kuljetuslaskuri!$D$25*(laskentapohja!C159/laskentapohja!T159) -> 2.526315789 | AC159: 364.8096887 | AD159: 12.16032296 | AE159: 0.08223465805 | AG159: 364.8096887 | AH159: 0.08223465805 | AJ159: 0.7387917476 | AK159: -1.313114179 | AV159: =IF(kuljetuslaskuri!$H$45,kuljetuslaskuri!$D$45,0) -> 20 | AW159: =IF(kuljetuslaskuri!$H$46,kuljetuslaskuri!$D$46,0) -> 0 | AX159: =IF(kuljetuslaskuri!$G$19,kuljetuslaskuri!#REF!,0) -> 0 | AY159: =AVERAGE(IF(AV159:AX159<>0, AV159:AX159,"")) -> 20 | AZ159: =AY159*kuljetuslaskuri!$D$47% -> 19 | BA159: 36.5 | BB159: =kuljetuslaskuri!$D$52% -> 0 | BC159: 15.94 | BD159: 50 | BE159: 433.8638315 | BF159: 7.5 | BG159: 7.5 | BH159: =kuljetuslaskuri!$D$53*(laskentapohja!C159/laskentapohja!AZ159) -> 3.157894737 | BI159: 452.0217262 | BJ159: 12 | BK159: 464.0217262 | BL159: 15.46739087 | BM159: 0.06465214516 | BO159: 212.8056517 | BP159: 462.0922723 | BQ159: 674.897924 | BS159: 0.39 | BT159: 427.05 | BV159: =kuljetuslaskuri!$D$74 -> 71.1 | BX159: 498.15 | BZ159: =N_arvo*N_maara*kuljetuslaskuri!$E$87%*C159 -> 59.4 | CA159: =P_arvo*P_maara*kuljetuslaskuri!$E$88%*C159 -> 41.04 | CB159: =K_arvo*K_maara*kuljetuslaskuri!$E$89%*C159 -> 79.2 | CC159: 179.64
B160: =kuljetuslaskuri!$D$31 -> 2500 | C160: =kuljetuslaskuri!$D$12 -> 30 | D160: =kuljetuslaskuri!$D$33 -> 14 | E160: =kuljetuslaskuri!$D$34 -> 4000 | F160: 12 | G160: 2.142857143 | H160: 7.5 | I160: 2 | J160: =kuljetuslaskuri!$D$35 -> 0 | K160: 21.5 | L160: 0.7166666667 | N160: 1.395348837 | P160: =IF(kuljetuslaskuri!$H$17,kuljetuslaskuri!$D$17,0) -> 25 | Q160: =IF(kuljetuslaskuri!$H$18,kuljetuslaskuri!$D$18,0) -> 0 | R160: =IF(kuljetuslaskuri!$G$19,kuljetuslaskuri!#REF!,0) -> 0 | S160: =AVERAGE(IF(P160:R160<>0, P160:R160,"")) -> 25 | T160: =S160*kuljetuslaskuri!$D$19% -> 23.75 | U160: 36.75 | V160: =kuljetuslaskuri!$D$24% -> 0 | W160: 15.94 | X160: 50 | Y160: 349.4684012 | Z160: 7.692307692 | AA160: 7.5 | AB160: =kuljetuslaskuri!$D$25*(laskentapohja!C160/laskentapohja!T160) -> 2.526315789 | AC160: 367.1870247 | AD160: 12.23956749 | AE160: 0.08170223341 | AG160: 367.1870247 | AH160: 0.08170223341 | AJ160: 0.7385255353 | AK160: -1.313646604 | AV160: =IF(kuljetuslaskuri!$H$45,kuljetuslaskuri!$D$45,0) -> 20 | AW160: =IF(kuljetuslaskuri!$H$46,kuljetuslaskuri!$D$46,0) -> 0 | AX160: =IF(kuljetuslaskuri!$G$19,kuljetuslaskuri!#REF!,0) -> 0 | AY160: =AVERAGE(IF(AV160:AX160<>0, AV160:AX160,"")) -> 20 | AZ160: =AY160*kuljetuslaskuri!$D$47% -> 19 | BA160: 36.75 | BB160: =kuljetuslaskuri!$D$52% -> 0 | BC160: 15.94 | BD160: 50 | BE160: 436.8355016 | BF160: 7.5 | BG160: 7.5 | BH160: =kuljetuslaskuri!$D$53*(laskentapohja!C160/laskentapohja!AZ160) -> 3.157894737 | BI160: 454.9933963 | BJ160: 12 | BK160: 466.9933963 | BL160: 15.56644654 | BM160: 0.0642407371 | BO160: 214.1924311 | BP160: 465.1035646 | BQ160: 679.2959957 | BS160: 0.39 | BT160: 429.975 | BV160: =kuljetuslaskuri!$D$74 -> 71.1 | BX160: 501.075 | BZ160: =N_arvo*N_maara*kuljetuslaskuri!$E$87%*C160 -> 59.4 | CA160: =P_arvo*P_maara*kuljetuslaskuri!$E$88%*C160 -> 41.04 | CB160: =K_arvo*K_maara*kuljetuslaskuri!$E$89%*C160 -> 79.2 | CC160: 179.64
B161: =kuljetuslaskuri!$D$31 -> 2500 | C161: =kuljetuslaskuri!$D$12 -> 30 | D161: =kuljetuslaskuri!$D$33 -> 14 | E161: =kuljetuslaskuri!$D$34 -> 4000 | F161: 12 | G161: 2.142857143 | H161: 7.5 | I161: 2 | J161: =kuljetuslaskuri!$D$35 -> 0 | K161: 21.5 | L161: 0.7166666667 | N161: 1.395348837 | P161: =IF(kuljetuslaskuri!$H$17,kuljetuslaskuri!$D$17,0) -> 25 | Q161: =IF(kuljetuslaskuri!$H$18,kuljetuslaskuri!$D$18,0) -> 0 | R161: =IF(kuljetuslaskuri!$G$19,kuljetuslaskuri!#REF!,0) -> 0 | S161: =AVERAGE(IF(P161:R161<>0, P161:R161,"")) -> 25 | T161: =S161*kuljetuslaskuri!$D$19% -> 23.75 | U161: 37 | V161: =kuljetuslaskuri!$D$24% -> 0 | W161: 15.94 | X161: 50 | Y161: 351.8457373 | Z161: 7.692307692 | AA161: 7.5 | AB161: =kuljetuslaskuri!$D$25*(laskentapohja!C161/laskentapohja!T161) -> 2.526315789 | AC161: 369.5643608 | AD161: 12.31881203 | AE161: 0.08117665875 | AG161: 369.5643608 | AH161: 0.08117665875 | AJ161: 0.738262748 | AK161: -1.314172178 | AV161: =IF(kuljetuslaskuri!$H$45,kuljetuslaskuri!$D$45,0) -> 20 | AW161: =IF(kuljetuslaskuri!$H$46,kuljetuslaskuri!$D$46,0) -> 0 | AX161: =IF(kuljetuslaskuri!$G$19,kuljetuslaskuri!#REF!,0) -> 0 | AY161: =AVERAGE(IF(AV161:AX161<>0, AV161:AX161,"")) -> 20 | AZ161: =AY161*kuljetuslaskuri!$D$47% -> 19 | BA161: 37 | BB161: =kuljetuslaskuri!$D$52% -> 0 | BC161: 15.94 | BD161: 50 | BE161: 439.8071716 | BF161: 7.5 | BG161: 7.5 | BH161: =kuljetuslaskuri!$D$53*(laskentapohja!C161/laskentapohja!AZ161) -> 3.157894737 | BI161: 457.9650664 | BJ161: 12 | BK161: 469.9650664 | BL161: 15.66550221 | BM161: 0.06383453186 | BO161: 215.5792105 | BP161: 468.114857 | BQ161: 683.6940675 | BS161: 0.39 | BT161: 432.9 | BV161: =kuljetuslaskuri!$D$74 -> 71.1 | BX161: 504 | BZ161: =N_arvo*N_maara*kuljetuslaskuri!$E$87%*C161 -> 59.4 | CA161: =P_arvo*P_maara*kuljetuslaskuri!$E$88%*C161 -> 41.04 | CB161: =K_arvo*K_maara*kuljetuslaskuri!$E$89%*C161 -> 79.2 | CC161: 179.64
B162: =kuljetuslaskuri!$D$31 -> 2500 | C162: =kuljetuslaskuri!$D$12 -> 30 | D162: =kuljetuslaskuri!$D$33 -> 14 | E162: =kuljetuslaskuri!$D$34 -> 4000 | F162: 12 | G162: 2.142857143 | H162: 7.5 | I162: 2 | J162: =kuljetuslaskuri!$D$35 -> 0 | K162: 21.5 | L162: 0.7166666667 | N162: 1.395348837 | P162: =IF(kuljetuslaskuri!$H$17,kuljetuslaskuri!$D$17,0) -> 25 | Q162: =IF(kuljetuslaskuri!$H$18,kuljetuslaskuri!$D$18,0) -> 0 | R162: =IF(kuljetuslaskuri!$G$19,kuljetuslaskuri!#REF!,0) -> 0 | S162: =AVERAGE(IF(P162:R162<>0, P162:R162,"")) -> 25 | T162: =S162*kuljetuslaskuri!$D$19% -> 23.75 | U162: 37.25 | V162: =kuljetuslaskuri!$D$24% -> 0 | W162: 15.94 | X162: 50 | Y162: 354.2230734 | Z162: 7.692307692 | AA162: 7.5 | AB162: =kuljetuslaskuri!$D$25*(laskentapohja!C162/laskentapohja!T162) -> 2.526315789 | AC162: 371.9416968 | AD162: 12.39805656 | AE162: 0.0806578027 | AG162: 371.9416968 | AH162: 0.0806578027 | AJ162: 0.73800332 | AK162: -1.314691035 | AV162: =IF(kuljetuslaskuri!$H$45,kuljetuslaskuri!$D$45,0) -> 20 | AW162: =IF(kuljetuslaskuri!$H$46,kuljetuslaskuri!$D$46,0) -> 0 | AX162: =IF(kuljetuslaskuri!$G$19,kuljetuslaskuri!#REF!,0) -> 0 | AY162: =AVERAGE(IF(AV162:AX162<>0, AV162:AX162,"")) -> 20 | AZ162: =AY162*kuljetuslaskuri!$D$47% -> 19 | BA162: 37.25 | BB162: =kuljetuslaskuri!$D$52% -> 0 | BC162: 15.94 | BD162: 50 | BE162: 442.7788417 | BF162: 7.5 | BG162: 7.5 | BH162: =kuljetuslaskuri!$D$53*(laskentapohja!C162/laskentapohja!AZ162) -> 3.157894737 | BI162: 460.9367364 | BJ162: 12 | BK162: 472.9367364 | BL162: 15.76455788 | BM162: 0.06343343134 | BO162: 216.9659898 | BP162: 471.1261493 | BQ162: 688.0921392 | BS162: 0.39 | BT162: 435.825 | BV162: =kuljetuslaskuri!$D$74 -> 71.1 | BX162: 506.925 | BZ162: =N_arvo*N_maara*kuljetuslaskuri!$E$87%*C162 -> 59.4 | CA162: =P_arvo*P_maara*kuljetuslaskuri!$E$88%*C162 -> 41.04 | CB162: =K_arvo*K_maara*kuljetuslaskuri!$E$89%*C162 -> 79.2 | CC162: 179.64
B163: =kuljetuslaskuri!$D$31 -> 2500 | C163: =kuljetuslaskuri!$D$12 -> 30 | D163: =kuljetuslaskuri!$D$33 -> 14 | E163: =kuljetuslaskuri!$D$34 -> 4000 | F163: 12 | G163: 2.142857143 | H163: 7.5 | I163: 2 | J163: =kuljetuslaskuri!$D$35 -> 0 | K163: 21.5 | L163: 0.7166666667 | N163: 1.395348837 | P163: =IF(kuljetuslaskuri!$H$17,kuljetuslaskuri!$D$17,0) -> 25 | Q163: =IF(kuljetuslaskuri!$H$18,kuljetuslaskuri!$D$18,0) -> 0 | R163: =IF(kuljetuslaskuri!$G$19,kuljetuslaskuri!#REF!,0) -> 0 | S163: =AVERAGE(IF(P163:R163<>0, P163:R163,"")) -> 25 | T163: =S163*kuljetuslaskuri!$D$19% -> 23.75 | U163: 37.5 | V163: =kuljetuslaskuri!$D$24% -> 0 | W163: 15.94 | X163: 50 | Y163: 356.6004094 | Z163: 7.692307692 | AA163: 7.5 | AB163: =kuljetuslaskuri!$D$25*(laskentapohja!C163/laskentapohja!T163) -> 2.526315789 | AC163: 374.3190329 | AD163: 12.4773011 | AE163: 0.08014553726 | AG163: 374.3190329 | AH163: 0.08014553726 | AJ163: 0.7377471872 | AK163: -1.3152033 | AV163: =IF(kuljetuslaskuri!$H$45,kuljetuslaskuri!$D$45,0) -> 20 | AW163: =IF(kuljetuslaskuri!$H$46,kuljetuslaskuri!$D$46,0) -> 0 | AX163: =IF(kuljetuslaskuri!$G$19,kuljetuslaskuri!#REF!,0) -> 0 | AY163: =AVERAGE(IF(AV163:AX163<>0, AV163:AX163,"")) -> 20 | AZ163: =AY163*kuljetuslaskuri!$D$47% -> 19 | BA163: 37.5 | BB163: =kuljetuslaskuri!$D$52% -> 0 | BC163: 15.94 | BD163: 50 | BE163: 445.7505118 | BF163: 7.5 | BG163: 7.5 | BH163: =kuljetuslaskuri!$D$53*(laskentapohja!C163/laskentapohja!AZ163) -> 3.157894737 | BI163: 463.9084065 | BJ163: 12 | BK163: 475.9084065 | BL163: 15.86361355 | BM163: 0.06303733993 | BO163: 218.3527692 | BP163: 474.1374417 | BQ163: 692.4902109 | BS163: 0.39 | BT163: 438.75 | BV163: =kuljetuslaskuri!$D$74 -> 71.1 | BX163: 509.85 | BZ163: =N_arvo*N_maara*kuljetuslaskuri!$E$87%*C163 -> 59.4 | CA163: =P_arvo*P_maara*kuljetuslaskuri!$E$88%*C163 -> 41.04 | CB163: =K_arvo*K_maara*kuljetuslaskuri!$E$89%*C163 -> 79.2 | CC163: 179.64
B164: =kuljetuslaskuri!$D$31 -> 2500 | C164: =kuljetuslaskuri!$D$12 -> 30 | D164: =kuljetuslaskuri!$D$33 -> 14 | E164: =kuljetuslaskuri!$D$34 -> 4000 | F164: 12 | G164: 2.142857143 | H164: 7.5 | I164: 2 | J164: =kuljetuslaskuri!$D$35 -> 0 | K164: 21.5 | L164: 0.7166666667 | N164: 1.395348837 | P164: =IF(kuljetuslaskuri!$H$17,kuljetuslaskuri!$D$17,0) -> 25 | Q164: =IF(kuljetuslaskuri!$H$18,kuljetuslaskuri!$D$18,0) -> 0 | R164: =IF(kuljetuslaskuri!$G$19,kuljetuslaskuri!#REF!,0) -> 0 | S164: =AVERAGE(IF(P164:R164<>0, P164:R164,"")) -> 25 | T164: =S164*kuljetuslaskuri!$D$19% -> 23.75 | U164: 37.75 | V164: =kuljetuslaskuri!$D$24% -> 0 | W164: 15.94 | X164: 50 | Y164: 358.9777455 | Z164: 7.692307692 | AA164: 7.5 | AB164: =kuljetuslaskuri!$D$25*(laskentapohja!C164/laskentapohja!T164) -> 2.526315789 | AC164: 376.696369 | AD164: 12.55654563 | AE164: 0.07963973765 | AG164: 376.696369 | AH164: 0.07963973765 | AJ164: 0.7374942874 | AK164: -1.3157091 | AV164: =IF(kuljetuslaskuri!$H$45,kuljetuslaskuri!$D$45,0) -> 20 | AW164: =IF(kuljetuslaskuri!$H$46,kuljetuslaskuri!$D$46,0) -> 0 | AX164: =IF(kuljetuslaskuri!$G$19,kuljetuslaskuri!#REF!,0) -> 0 | AY164: =AVERAGE(IF(AV164:AX164<>0, AV164:AX164,"")) -> 20 | AZ164: =AY164*kuljetuslaskuri!$D$47% -> 19 | BA164: 37.75 | BB164: =kuljetuslaskuri!$D$52% -> 0 | BC164: 15.94 | BD164: 50 | BE164: 448.7221819 | BF164: 7.5 | BG164: 7.5 | BH164: =kuljetuslaskuri!$D$53*(laskentapohja!C164/laskentapohja!AZ164) -> 3.157894737 | BI164: 466.8800766 | BJ164: 12 | BK164: 478.8800766 | BL164: 15.96266922 | BM164: 0.06264616439 | BO164: 219.7395486 | BP164: 477.148734 | BQ164: 696.8882826 | BS164: 0.39 | BT164: 441.675 | BV164: =kuljetuslaskuri!$D$74 -> 71.1 | BX164: 512.775 | BZ164: =N_arvo*N_maara*kuljetuslaskuri!$E$87%*C164 -> 59.4 | CA164: =P_arvo*P_maara*kuljetuslaskuri!$E$88%*C164 -> 41.04 | CB164: =K_arvo*K_maara*kuljetuslaskuri!$E$89%*C164 -> 79.2 | CC164: 179.64
